Workbook

Sheet LOGO
A1: DUKE ENERGY KENTUCKY, INC.
A2: AUTOMATED RATE CASE FILING SYSTEM
A4: Range Name
A5: Company: | B5: DUKE ENERGY KENTUCKY, INC. | F5: Witnesses: | I5: Periods:
A6: Case: | B6: CASE NO. 2022-00372 | F6: WIT1: | G6: L. D. STEINKUHL | I6: Base | J6: Forecast
A7: Period: | B7: ="FOR THE TWELVE MONTHS ENDED "&UPPER(TEXT(EDATE(I18,0),"mmmm dd, yyyy")) -> FOR THE TWELVE MONTHS ENDED FEBRUARY 28, 2023 | F7: WIT2: | G7: J. E. ZIOLKOWSKI | I7: 2022-03-31 | J7: 2023-07-31
A8: PeriodF: | B8: ="FOR THE TWELVE MONTHS ENDED "&UPPER(TEXT(EDATE(J18,0),"mmmm dd, yyyy")) -> FOR THE TWELVE MONTHS ENDED JUNE 30, 2024 | F8: WIT3: | G8: J. R. PANIZZA | I8: 2022-04-30 | J8: 2023-08-31
A9: Department: | B9: ELECTRIC DEPARTMENT | F9: WIT4: | G9: C. R. BAUER | I9: 2022-05-31 | J9: 2023-09-30
A10: Base Period: | B10: ="12 MONTHS ENDED "&UPPER(TEXT(EDATE(I18,0),"mmmm dd, yyyy")) -> 12 MONTHS ENDED FEBRUARY 28, 2023 | F10: WIT5: | G10: G. S. CARPENTER / L. D. STEINKUHL | I10: 2022-06-30 | J10: 2023-10-31
A11: Forecast Period: | B11: ="12 MONTHS ENDED "&UPPER(TEXT(EDATE(J18,0),"mmmm dd, yyyy")) -> 12 MONTHS ENDED JUNE 30, 2024 | F11: WIT6: | G11: G. S. CARPENTER / D. L. WEATHERSTON | I11: 2022-07-31 | J11: 2023-11-30
A12: Data: | B12: DATA: "X" BASE PERIOD FORECASTED PERIOD | F12: WIT7: | G12: G. S. CARPENTER / H. C. DANG | I12: 2022-08-31 | J12: 2023-12-31
A13: DataF: | B13: DATA: BASE PERIOD "X" FORECASTED PERIOD | F13: WIT8: | G13: J. J. STEWART | I13: 2022-09-30 | J13: 2024-01-31
A14: DataBoth: | B14: DATA: "X" BASE PERIOD "X" FORECASTED PERIOD | F14: WIT9: | G14: H. C. DANG | I14: 2022-10-31 | J14: 2024-02-29
A15: Type: | B15: TYPE OF FILING: "X" ORIGINAL UPDATED REVISED | F15: WIT10: | G15: G. S. CARPENTER | I15: 2022-11-30 | J15: 2024-03-31
F16: WIT11: | G16: D. L. WEATHERSON | I16: 2022-12-31 | J16: 2024-04-30
A17: Test Year | B17: JUNE 30, 2024 | I17: 2023-01-31 | J17: 2024-05-31
I18: 2023-02-28 | J18: 2024-06-30
B22: UNCOLLECTIBLE ACCOUNTS | C22: =SCH_H!Y100 -> 0.000182
B23: KPSC MAINTENANCE | C23: =ROUND(716348.77/479804937,8) -> 0.001493
B24: STATE OF KENTUCKY INC TAX | C24: 0.05
B25: FEDERAL INCOME | C25: 0.21
B26: EFFECTIVE STATE | C26: =ROUND(SCH_E1!G80/SCH_E1!G72,6) -> 0.049685
B27: COMPOSITE TAX RATE | C27: =(1-KPSC)*FIT+KPSC -> 0.2495

Sheet ALLOCTABLE
A1: ALLOCTABLE
A3: C319 | B3: 100 | D3: Customer Accounts Expenses
A4: D149 | B4: 100 | D4: Distribution gross plant factor
A5: D249 | B5: 100 | D5: Distribution net plant factor
A6: DALL | B6: 100 | D6: Direct Assign
A7: DE49 | B7: 100 | D7: Depreciation expense factor
A8: DEA | B8: 100 | D8: Emission Allowance - Native
A9: DNON | B9: 0 | D9: Direct Assign
A10: K201 | B10: 100 | D10: Average of 12 months demand factor
A11: K209 | B11: 100 | D11: Average of 12 months demand factor less lighting
A12: K301 | B12: 100 | D12: Total kWh energy factor
A13: K305 | B13: 100 | D13: Total kWh energy factor less lighting
A14: K411 | B14: 100 | D14: Administrative & General
A15: NP29 | B15: 100 | D15: Total net plant factor
A16: UNBL | B16: 100 | D16: Unbilled revenue factor - directly assigned

Sheet GOTO
T23: SFR MODEL - NAVIGATION TOOL
T24: To get to the "GO TO" menu while in the model,
T25: click "Model Navigation" on the
T26: worksheet menubar.

Sheet PRINT
R23: SFR MODEL - NAVIGATION TOOL
R24: To get to the "GO TO" menu while in the
R25: model, click "Model Navigation" on the
R26: worksheet menubar.

Sheet BASE PERIOD
A1: =COMPANY -> DUKE ENERGY KENTUCKY, INC.
A2: =CASE -> CASE NO. 2022-00372
A3: MONTHLY REVENUES AND EXPENSES BY ACCOUNT
A4: BASE PERIOD
A6: =Data -> DATA: "X" BASE PERIOD FORECASTED PERIOD
A7: =Type -> TYPE OF FILING: "X" ORIGINAL UPDATED REVISED
F9: ACTUAL | G9: ACTUAL | H9: ACTUAL | I9: ACTUAL | J9: ACTUAL | K9: ACTUAL | L9: BUDGET | M9: BUDGET | N9: BUDGET | O9: BUDGET | P9: BUDGET | Q9: BUDGET
A10: Account | B10: Description | C10: Code | D10: FERC | E10: Total | F10: =LOGO!I7 -> 2022-03-31 | G10: =LOGO!I8 -> 2022-04-30 | H10: =LOGO!I9 -> 2022-05-31 | I10: =LOGO!I10 -> 2022-06-30 | J10: =LOGO!I11 -> 2022-07-31 | K10: =LOGO!I12 -> 2022-08-31 | L10: =LOGO!I13 -> 2022-09-30 | M10: =LOGO!I14 -> 2022-10-31 | N10: =LOGO!I15 -> 2022-11-30 | O10: =LOGO!I16 -> 2022-12-31 | P10: =LOGO!I17 -> 2023-01-31 | Q10: =LOGO!I18 -> 2023-02-28
A11: 403002 | B11: Depr-Expense | C11: DEPR | D11: =VALUE(LEFT(A11,3)) -> 403 | E11: =SUM(F11:Q11) -> 50522293 | F11: 4119392 | G11: 4123609 | H11: 4125424 | I11: 4140515 | J11: 4151034 | K11: 4155331 | L11: 4244047 | M11: 4254311 | N11: 4254516 | O11: 4256424 | P11: 4348739 | Q11: 4348951
A12: 404200 | B12: Amort of Elec Plt - Software | C12: DEPR | D12: =VALUE(LEFT(A12,3)) -> 404 | E12: 3692679 | F12: 293184 | G12: 289844 | H12: 311879 | I12: 307023 | J12: 447516 | K12: 462453 | L12: 240343 | M12: 240190 | N12: 282652 | O12: 280136 | P12: 284765 | Q12: 252694
A13: 407115 | B13: Meter Amortization | C13: AMORT | D13: 407 | E13: 231966 | F13: 38661 | G13: 38661 | H13: 38661 | I13: 38661 | J13: 38661 | K13: 38661 | L13: 0 | M13: 0 | N13: 0 | O13: 0 | P13: 0 | Q13: 0
A14: 407305 | B14: Regulatory Debits | C14: AMORT | D14: 407 | E14: 5936208 | F14: 475353 | G14: 475353 | H14: 475353 | I14: 475353 | J14: 393475 | K14: 557231 | L14: 514015 | M14: 514015 | N14: 514015 | O14: 514015 | P14: 514015 | Q14: 514015
A15: 407324 | B15: NC & MW Coal As Amort Exp | C15: AMORT | D15: 407 | E15: =SUM(F15:Q15) -> 8076716 | F15: 202486 | G15: 525500 | H15: 552801 | I15: 558800 | J15: 775714 | K15: 595413 | L15: 791167 | M15: 791167 | N15: 791167 | O15: 791167 | P15: 850667 | Q15: 850667
A16: 407354 | B16: DSM Deferral - Electric | C16: OTH | D16: 407 | E16: 1542008 | F16: 172358 | G16: 243725 | H16: 172118 | I16: 548847 | J16: -118313 | K16: 523273 | L16: 0 | M16: 0 | N16: 0 | O16: 0 | P16: 0 | Q16: 0
A17: 407407 | B17: Carrying Charges | C17: OTH | D17: 407 | E17: -539955 | F17: -92494 | G17: -91498 | H17: -90499 | I17: -89496 | J17: -88489 | K17: -87479 | L17: 0 | M17: 0 | N17: 0 | O17: 0 | P17: 0 | Q17: 0
A18: 408040 | B18: Taxes Property-Allocated | C18: OTHTX | D18: 408 | E18: 43848 | F18: 0 | G18: 0 | H18: 0 | I18: 0 | J18: 0 | K18: 0 | L18: 7250 | M18: 7250 | N18: 7250 | O18: 7250 | P18: 7424 | Q18: 7424
A19: 408120 | B19: Franchise Tax - Non Electric | C19: OTHTX | D19: 408 | E19: 1 | F19: 0 | G19: 0 | H19: 0 | I19: 1 | J19: 0 | K19: 0 | L19: 0 | M19: 0 | N19: 0 | O19: 0 | P19: 0 | Q19: 0
A20: 408121 | B20: Taxes Property-Operating | C20: OTHTX | D20: 408 | E20: 16416822 | F20: 1533412 | G20: 1304976 | H20: 1304976 | I20: 1304976 | J20: 1304976 | K20: 1304976 | L20: 1302895 | M20: 1302895 | N20: 1302895 | O20: 1302895 | P20: 1573475 | Q20: 1573475
A21: 408150 | B21: State Unemployment Tax | C21: OTHTX | D21: 408 | E21: 511 | F21: 302 | G21: -72 | H21: 38 | I21: 55 | J21: 104 | K21: 84 | L21: 0 | M21: 0 | N21: 0 | O21: 0 | P21: 0 | Q21: 0
A22: 408151 | B22: Federal Unemployment Tax | C22: OTHTX | D22: 408 | E22: 3091 | F22: 1280 | G22: 968 | H22: 966 | I22: 1266 | J22: -699 | K22: -690 | L22: 0 | M22: 0 | N22: 0 | O22: 0 | P22: 0 | Q22: 0
A23: 408152 | B23: Employer FICA Tax | C23: OTHTX | D23: 408 | E23: 346099 | F23: 91923 | G23: 71097 | H23: 68242 | I23: -77013 | J23: 119267 | K23: 72583 | L23: 0 | M23: 0 | N23: 0 | O23: 0 | P23: 0 | Q23: 0
A24: 408205 | B24: Highway Use Tax | C24: OTHTX | D24: 408 | E24: 0 | F24: 0 | G24: 0 | H24: 0 | I24: 0 | J24: 0 | K24: 0 | L24: 0 | M24: 0 | N24: 0 | O24: 0 | P24: 0 | Q24: 0
A25: 408470 | B25: Franchise Tax | C25: OTHTX | D25: =VALUE(LEFT(A25,3)) -> 408 | E25: 5844 | F25: 974 | G25: 974 | H25: 974 | I25: 974 | J25: 974 | K25: 974 | L25: 0 | M25: 0 | N25: 0 | O25: 0 | P25: 0 | Q25: 0
A26: 408700 | B26: Fed Social Security Tax-Elec | C26: OTHTX | D26: 408 | E26: 24000 | F26: 8000 | G26: 0 | H26: 0 | I26: 16000 | J26: 0 | K26: 0 | L26: 0 | M26: 0 | N26: 0 | O26: 0 | P26: 0 | Q26: 0
A27: 408800 | B27: Federal Highway Use Tax-Elec | C27: OTHTX | D27: 408 | E27: 0 | F27: 0 | G27: 0 | H27: 0 | I27: 0 | J27: 0 | K27: 0 | L27: 0 | M27: 0 | N27: 0 | O27: 0 | P27: 0 | Q27: 0
A28: 408840 | B28: Miscellaneous Taxes | C28: OTHTX | D28: 408 | E28: 0 | F28: 0 | G28: 0 | H28: 0 | I28: 0 | J28: 0 | K28: 0 | L28: 0 | M28: 0 | N28: 0 | O28: 0 | P28: 0 | Q28: 0
A29: 408851 | B29: Sales & Use Tax Exp | C29: OTHTX | D29: 408 | E29: 228794 | F29: -1 | G29: -2621 | H29: -1300 | I29: 74134 | J29: 97872 | K29: 60710 | L29: 0 | M29: 0 | N29: 0 | O29: 0 | P29: 0 | Q29: 0
A30: 408960 | B30: Allocated Payroll Taxes | C30: OTHTX | D30: 408 | E30: 1386899 | F30: 57339 | G30: 70858 | H30: 103326 | I30: 63400 | J30: 73726 | K30: 62838 | L30: 158656 | M30: 158656 | N30: 158656 | O30: 158656 | P30: 160394 | Q30: 160394
A31: 409102 | B31: SIT Exp-Utility | C31: FIT | D31: 409 | E31: -415214 | F31: -34601 | G31: -34601 | H31: -34601 | I31: -34601 | J31: -34601 | K31: -34601 | L31: -34601 | M31: -34601 | N31: -34601 | O31: -34601 | P31: -34601 | Q31: -34603
A32: 409104 | B32: Current State Income Tax - PY | C32: FIT | D32: 409 | E32: 0 | F32: 0 | G32: 0 | H32: 0 | I32: 0 | J32: 0 | K32: 0 | L32: 0 | M32: 0 | N32: 0 | O32: 0 | P32: 0 | Q32: 0
A33: 409190 | B33: Federal Income Tax-Electric-CY | C33: FIT | D33: 409 | E33: 2052000 | F33: 171000 | G33: 171000 | H33: 171000 | I33: 171000 | J33: 171000 | K33: 171000 | L33: 171000 | M33: 171000 | N33: 171000 | O33: 171000 | P33: 171000 | Q33: 171000
A34: 409191 | B34: Fed Income Tax-Electric-PY | C34: FIT | D34: 409 | E34: 0 | F34: 0 | G34: 0 | H34: 0 | I34: 0 | J34: 0 | K34: 0 | L34: 0 | M34: 0 | N34: 0 | O34: 0 | P34: 0 | Q34: 0
A35: 409194 | B35: Current FIT Elec - PY Audit | C35: FIT | D35: 409 | E35: 0 | F35: 0 | G35: 0 | H35: 0 | I35: 0 | J35: 0 | K35: 0 | L35: 0 | M35: 0 | N35: 0 | O35: 0 | P35: 0 | Q35: 0
A36: 409195 | B36: UTP Tax Expense: Fed Util-PY | C36: FIT | D36: 409 | E36: 0 | F36: 0 | G36: 0 | H36: 0 | I36: 0 | J36: 0 | K36: 0 | L36: 0 | M36: 0 | N36: 0 | O36: 0 | P36: 0 | Q36: 0
A37: 409197 | B37: Current State Inc Tax-Util | C37: FIT | D37: =VALUE(LEFT(A37,3)) -> 409 | E37: 0 | F37: 0 | G37: 0 | H37: 0 | I37: 0 | J37: 0 | K37: 0 | L37: 0 | M37: 0 | N37: 0 | O37: 0 | P37: 0 | Q37: 0
A38: 410100 | B38: DFIT: Utility: Current Year | C38: FIT | D38: 410 | E38: 2253331 | F38: 187778 | G38: 187778 | H38: 187778 | I38: 187778 | J38: 187778 | K38: 187778 | L38: 187778 | M38: 187778 | N38: 187778 | O38: 187778 | P38: 187778 | Q38: 187773
A39: 410102 | B39: DSIT: Utility: Current Year | C39: FIT | D39: 410 | E39: 2325642 | F39: 193804 | G39: 193804 | H39: 193804 | I39: 193804 | J39: 193804 | K39: 193804 | L39: 193804 | M39: 193804 | N39: 193804 | O39: 193804 | P39: 193804 | Q39: 193798
A40: 410105 | B40: DFIT: Utility: Prior Year | C40: FIT | D40: 410 | E40: 0 | F40: 0 | G40: 0 | H40: 0 | I40: 0 | J40: 0 | K40: 0 | L40: 0 | M40: 0 | N40: 0 | O40: 0 | P40: 0 | Q40: 0
A41: 410106 | B41: DSIT: Utility: Prior Year | C41: FIT | D41: 410 | E41: 0 | F41: 0 | G41: 0 | H41: 0 | I41: 0 | J41: 0 | K41: 0 | L41: 0 | M41: 0 | N41: 0 | O41: 0 | P41: 0 | Q41: 0
A42: 411050 | B42: Accretion Expense ARO | C42: OTH | D42: 411 | E42: 0 | F42: 0 | G42: 0 | H42: 0 | I42: 0 | J42: 0 | K42: 0 | L42: 0 | M42: 0 | N42: 0 | O42: 0 | P42: 0 | Q42: 0
A43: 411051 | B43: Accretion Expense-ARO Ash Pond | C43: OTH | D43: 411 | E43: 0 | F43: 0 | G43: 0 | H43: 0 | I43: 0 | J43: 0 | K43: 0 | L43: 0 | M43: 0 | N43: 0 | O43: 0 | P43: 0 | Q43: 0
A44: 411100 | B44: DFIT: Utility: Curr Year CR | C44: FIT | D44: 411 | E44: 0 | F44: 0 | G44: 0 | H44: 0 | I44: 0 | J44: 0 | K44: 0 | L44: 0 | M44: 0 | N44: 0 | O44: 0 | P44: 0 | Q44: 0
A45: 411101 | B45: DSIT: Utility: Curr Year CR | C45: FIT | D45: 411 | E45: 0 | F45: 0 | G45: 0 | H45: 0 | I45: 0 | J45: 0 | K45: 0 | L45: 0 | M45: 0 | N45: 0 | O45: 0 | P45: 0 | Q45: 0
A46: 411102 | B46: DFIT: Utility: Prior Year CR | C46: FIT | D46: 411 | E46: 0 | F46: 0 | G46: 0 | H46: 0 | I46: 0 | J46: 0 | K46: 0 | L46: 0 | M46: 0 | N46: 0 | O46: 0 | P46: 0 | Q46: 0
A47: 411103 | B47: DSIT: Utility: Prior Year CR | C47: FIT | D47: 411 | E47: 0 | F47: 0 | G47: 0 | H47: 0 | I47: 0 | J47: 0 | K47: 0 | L47: 0 | M47: 0 | N47: 0 | O47: 0 | P47: 0 | Q47: 0
A48: 411106 | B48: DFIT:Utility:Prior year | C48: FIT | D48: 411 | E48: 0 | F48: 0 | G48: 0 | H48: 0 | I48: 0 | J48: 0 | K48: 0 | L48: 0 | M48: 0 | N48: 0 | O48: 0 | P48: 0 | Q48: 0
A49: 411410 | B49: Invest Tax Credit Adj-Electric | C49: FIT | D49: 411 | E49: 0 | F49: 0 | G49: 0 | H49: 0 | I49: 0 | J49: 0 | K49: 0 | L49: 0 | M49: 0 | N49: 0 | O49: 0 | P49: 0 | Q49: 0
A50: 411603 | B50: Gain on Asset Ret Obligation | D50: 411 | E50: 0 | F50: 0 | G50: 0 | H50: 0 | I50: 0 | J50: 0 | K50: 0 | L50: 0 | M50: 0 | N50: 0 | O50: 0 | P50: 0 | Q50: 0
A51: 411834 | B51: NOx Sales Proceeds Native | C51: Fuel | D51: 411 | E51: -2000000 | F51: 0 | G51: 0 | H51: -2000000 | I51: 0 | J51: 0 | K51: 0 | L51: 0 | M51: 0 | N51: 0 | O51: 0 | P51: 0 | Q51: 0
A52: 411835 | B52: NOx Sales COGS -Native | C52: Fuel | D52: 411 | E52: 87 | F52: 0 | G52: 0 | H52: 0 | I52: 87 | J52: 0 | K52: 0 | L52: 0 | M52: 0 | N52: 0 | O52: 0 | P52: 0 | Q52: 0
A53: 426591 | B53: I/C - Loss on Sale of AR | C53: CO | D53: =VALUE(LEFT(A53,3)) -> 426 | E53: 485725 | F53: 31964 | G53: 0 | H53: 62044 | I53: 306830 | J53: -57744 | K53: -9819 | L53: 66660 | M53: 76664 | N53: 44363 | O53: 78416 | P53: -115016 | Q53: 1363
A54: 426891 | B54: IC Sale of AR Fees VIE | C54: CO | D54: 426 | E54: 379275 | F54: 28208 | G54: 0 | H54: 67757 | I54: 42242 | J54: 42061 | K54: 58978 | L54: 24015 | M54: 22103 | N54: 21460 | O54: 21950 | P54: 23690 | Q54: 26811
A55: 440000 | B55: Residential | C55: REV | D55: 440 | E55: 170324972 | F55: 11607297 | G55: 12082416 | H55: 11615288 | I55: 17910941 | J55: 18524367 | K55: 18473401 | L55: 14899785 | M55: 10562734 | N55: 10007325 | O55: 13987671 | P55: 16168372 | Q55: 14485375
A56: 440990 | B56: Residential Unbilled Rev | C56: REV | D56: 440 | E56: 3312816 | F56: -501895 | G56: -918561 | H56: 3090976 | I56: 1815804 | J56: 1902734 | K56: -962221 | L56: -1823909 | M56: -356689 | N56: 1510019 | O56: 1978930 | P56: -1861876 | Q56: -560496
A57: 442100 | B57: General Service | C57: REV | D57: 442 | E57: 139702791 | F57: 9179598 | G57: 6414531 | H57: 11212065 | I57: 10340842 | J57: 18309371 | K57: 15156255 | L57: 12742826 | M57: 11172407 | N57: 10584069 | O57: 11920038 | P57: 11469186 | Q57: 11201603
A58: 442190 | B58: General Service Unbilled Rev | C58: REV | D58: 442 | E58: 3968084 | F58: 729591 | G58: 4063455 | H58: 1478462 | I58: -1143387 | J58: 614856 | K58: -215111 | L58: -548631 | M58: -83418 | N58: 92645 | O58: -660 | P58: -905769 | Q58: -113949
A59: 442200 | B59: Industrial Service | C59: REV | D59: 442 | E59: 63264802 | F59: 3972404 | G59: 1969198 | H59: 3954267 | I59: -1659601 | J59: 14464283 | K59: 8318054 | L59: 5951604 | M59: 5447426 | N59: 5320997 | O59: 5635479 | P59: 4897732 | Q59: 4992959
A60: 442290 | B60: Industrial Svc Unbilled Rev | C60: REV | D60: 442 | E60: 1911069 | F60: 471838 | G60: 2930083 | H60: 1310669 | I60: 3317816 | J60: -5389169 | K60: 27957 | L60: -260645 | M60: 134075 | N60: -410 | O60: -73741 | P60: -459750 | Q60: -97654
A61: 444000 | B61: Public St & Highway Lighting | C61: REV | D61: 444 | E61: 1337811 | F61: 126445 | G61: 6442 | H61: 157495 | I61: 308278 | J61: 157099 | K61: -277282 | L61: 145719 | M61: 138959 | N61: 145467 | O61: 149998 | P61: 134501 | Q61: 144690
A62: 445000 | B62: Other Sales to Public Auth | C62: REV | D62: 445 | E62: 22664090 | F62: 1480112 | G62: 810616 | H62: 1737755 | I62: 301033 | J62: 4078750 | K62: 2246766 | L62: 2270293 | M62: 1979262 | N62: 1746711 | O62: 2075244 | P62: 1936255 | Q62: 2001293
A63: 445090 | B63: OPA Unbilled | C63: REV | D63: 445 | E63: 823099 | F63: 181945 | G63: 1025391 | H63: 102472 | I63: 1020498 | J63: -2024669 | K63: 758578 | L63: -144423 | M63: 90988 | N63: 29149 | O63: 565 | P63: -211112 | Q63: -6283
A64: 447150 | B64: Sales For Resale - Outside | C64: REV | D64: 447 | E64: 27816420 | F64: 6453862 | G64: 1161650 | H64: 2838263 | I64: 9883465 | J64: 1355895 | K64: 1018215 | L64: 370152 | M64: 0 | N64: 1099751 | O64: 1188322 | P64: 1419790 | Q64: 1027055
A65: 448000 | B65: Interdepartmental Sales-Elec | C65: REV | D65: 448 | E65: 120514 | F65: 76984 | G65: 3325 | H65: 0 | I65: 0 | J65: 0 | K65: 0 | L65: 4694 | M65: 4349 | N65: 4038 | O65: 8922 | P65: 9456 | Q65: 8746
A66: 449100 | B66: Provisions For Rate Refunds | C66: REV | D66: 449 | E66: -4883131 | F66: -261422 | G66: 70013 | H66: -1642884 | I66: -2072437 | J66: -1342898 | K66: 366497 | L66: 0 | M66: 0 | N66: 0 | O66: 0 | P66: 0 | Q66: 0
A67: 449111 | B67: Tax Reform - Residential | C67: REV | D67: 449 | E67: 18460 | F67: 9230 | G67: 9230 | H67: 0 | I67: 0 | J67: 0 | K67: 0 | L67: 0 | M67: 0 | N67: 0 | O67: 0 | P67: 0 | Q67: 0
A68: 450100 | B68: Late Payment Fees | C68: REV | D68: =VALUE(LEFT(A68,3)) -> 450 | E68: 0 | F68: 0 | G68: -1038 | H68: 1038 | I68: 0 | J68: 0 | K68: 0 | L68: 0 | M68: 0 | N68: 0 | O68: 0 | P68: 0 | Q68: 0
A69: 451100 | B69: Misc Service Revenue | C69: REV | D69: 451 | E69: 394446 | F69: 26084 | G69: -28337 | H69: -18109 | I69: -149818 | J69: 200541 | K69: 239087 | L69: 20833 | M69: 20833 | N69: 20833 | O69: 20833 | P69: 20833 | Q69: 20833
A70: 454004 | B70: Rent - Joint Use | C70: REV | D70: 454 | E70: 0 | F70: 0 | G70: 0 | H70: 0 | I70: 0 | J70: 0 | K70: 0 | L70: 0 | M70: 0 | N70: 0 | O70: 0 | P70: 0 | Q70: 0
A71: 454100 | B71: Extra-Facilities | C71: REV | D71: 454 | E71: 288 | F71: 0 | G71: 0 | H71: 42 | I71: 132 | J71: 63 | K71: 51 | L71: 0 | M71: 0 | N71: 0 | O71: 0 | P71: 0 | Q71: 0
A72: 454200 | B72: Pole & Line Attachments | C72: REV | D72: 454 | E72: 108668 | F72: 0 | G72: 0 | H72: 0 | I72: 0 | J72: 0 | K72: 0 | L72: 18111 | M72: 18111 | N72: 18111 | O72: 18111 | P72: 18112 | Q72: 18112
A73: 454210 | B73: Foreign Pole Revenue | C73: REV | D73: 454 | E73: 34869 | F73: 0 | G73: 0 | H73: 15640 | I73: 14659 | J73: 0 | K73: 4570 | L73: 0 | M73: 0 | N73: 0 | O73: 0 | P73: 0 | Q73: 0
A74: 454300 | B74: Tower Lease Revenues | C74: REV | D74: 454 | E74: 12061 | F74: 281 | G74: 281 | H74: 281 | I74: 281 | J74: 281 | K74: 10656 | L74: 0 | M74: 0 | N74: 0 | O74: 0 | P74: 0 | Q74: 0
A75: 454400 | B75: Other Electric Rents | C75: REV | D75: 454 | E75: 1123843 | F75: 90796 | G75: 30502 | H75: 46055 | I75: -26980 | J75: 235762 | K75: 97710 | L75: 108333 | M75: 108333 | N75: 108333 | O75: 108333 | P75: 108333 | Q75: 108333
A76: 456025 | B76: RSG Rev - MISO Make Whole | C76: REV | D76: 456 | E76: 2113018 | F76: 37393 | G76: 170522 | H76: 83101 | I76: 312113 | J76: 958955 | K76: 550934 | L76: 0 | M76: 0 | N76: 0 | O76: 0 | P76: 0 | Q76: 0
A77: 456040 | B77: Sales Use Tax Coll Fee | C77: REV | D77: 456 | E77: 300 | F77: 50 | G77: 50 | H77: 50 | I77: 50 | J77: 50 | K77: 50 | L77: 0 | M77: 0 | N77: 0 | O77: 0 | P77: 0 | Q77: 0
A78: 456075 | B78: Data Processing Service | C78: REV | D78: 456 | E78: 0 | F78: 0 | G78: 0 | H78: 0 | I78: 0 | J78: 0 | K78: 0 | L78: 0 | M78: 0 | N78: 0 | O78: 0 | P78: 0 | Q78: 0
A79: 456110 | B79: Transmission Charge PTP | C79: REV | D79: 456 | E79: 155036 | F79: 16599 | G79: 11336 | H79: 11007 | I79: 14168 | J79: 14481 | K79: 14947 | L79: 12083 | M79: 12083 | N79: 12083 | O79: 12083 | P79: 12083 | Q79: 12083
A80: 456111 | B80: Other Transmission Revenues | C80: REV | D80: 456 | E80: 3721004 | F80: 129258 | G80: 109054 | H80: 158342 | I80: 1738484 | J80: 831989 | K80: 753877 | L80: 0 | M80: 0 | N80: 0 | O80: 0 | P80: 0 | Q80: 0
A81: 456610 | B81: Other Electric Revenues | C81: REV | D81: 456 | E81: 0 | F81: 0 | G81: 0 | H81: 0 | I81: 0 | J81: 0 | K81: 0 | L81: 0 | M81: 0 | N81: 0 | O81: 0 | P81: 0 | Q81: 0
A82: 456970 | B82: Wheel Transmission Rev - ED | C82: REV | D82: 456 | E82: =SUM(F82:Q82) -> 40079 | F82: 5058 | G82: 4493 | H82: 3775 | I82: 4464 | J82: 5122 | K82: 4915 | L82: 2042 | M82: 2042 | N82: 2042 | O82: 2042 | P82: 2042 | Q82: 2042
A83: 457100 | B83: Regional Transmission Service | C83: REV | D83: =VALUE(LEFT(A83,3)) -> 457 | E83: 0 | F83: 0 | G83: 0 | H83: 0 | I83: 0 | J83: 0 | K83: 0 | L83: 0 | M83: 0 | N83: 0 | O83: 0 | P83: 0 | Q83: 0
A84: 457105 | B84: Scheduling & Dispatch Revenues | C84: REV | D84: =VALUE(LEFT(A84,3)) -> 457 | E84: 106497 | F84: 21172 | G84: 20390 | H84: 18541 | I84: 7670 | J84: 18295 | K84: 20429 | L84: 0 | M84: 0 | N84: 0 | O84: 0 | P84: 0 | Q84: 0
A85: 457204 | B85: PJM Reactive Rev | C85: REV | D85: =VALUE(LEFT(A85,3)) -> 457 | E85: 1881498 | F85: 157311 | G85: 156887 | H85: 156938 | I85: 156926 | J85: 155835 | K85: 157101 | L85: 156750 | M85: 156750 | N85: 156750 | O85: 156750 | P85: 156750 | Q85: 156750
A86: 500000 | B86: Suprvsn and Engrg - Steam Oper | C86: PO | D86: 500 | E86: 1540665 | F86: 202883 | G86: 199864 | H86: 196839 | I86: 194310 | J86: 210765 | K86: 169285 | L86: 63332 | M86: 69160 | N86: 68472 | O86: 69273 | P86: 48352 | Q86: 48130
A87: 501110 | B87: Coal Consumed-Fossil Steam | C87: Fuel | D87: 501 | E87: 74804670 | F87: 6885985 | G87: 4444352 | H87: 6032691 | I87: 8522735 | J87: 7226973 | K87: 3207071 | L87: 6957181 | M87: 1267642 | N87: 6465066 | O87: 7626583 | P87: 8438776 | Q87: 7729615
A88: 501150 | B88: Coal & Other Fuel Handling | C88: PO | D88: 501 | E88: 999027 | F88: 67682 | G88: 79543 | H88: 79793 | I88: 82155 | J88: 99799 | K88: 77803 | L88: 82775 | M88: 82711 | N88: 82750 | O88: 103547 | P88: 80051 | Q88: 80418
A89: 501160 | B89: Coal Sampling & Testing | C89: PO | D89: 501 | E89: 0 | F89: 0 | G89: 0 | H89: 0 | I89: 0 | J89: 0 | K89: 0 | L89: 0 | M89: 0 | N89: 0 | O89: 0 | P89: 0 | Q89: 0
A90: 501180 | B90: Sale of Fly Ash-Revenues | C90: PO | D90: 501 | E90: 1890 | F90: 0 | G90: 0 | H90: 0 | I90: 0 | J90: 0 | K90: 0 | L90: 945 | M90: 0 | N90: 0 | O90: 945 | P90: 0 | Q90: 0
A91: 501190 | B91: Sale of Fly Ash-Expenses | C91: PO | D91: 501 | E91: 2382431 | F91: 51176 | G91: 60864 | H91: 61049 | I91: 71165 | J91: 48528 | K91: 27489 | L91: 343712 | M91: 343715 | N91: 343713 | O91: 343716 | P91: 343668 | Q91: 343636
A92: 501310 | B92: Oil Consumed-Fossil Steam | C92: Fuel | D92: 501 | E92: 1658522 | F92: 154733 | G92: 184625 | H92: 584268 | I92: 242397 | J92: 128605 | K92: 363894 | L92: 0 | M92: 0 | N92: 0 | O92: 0 | P92: 0 | Q92: 0
A93: 501350 | B93: Oil Handling Expense | C93: PO | D93: 501 | E93: 0 | F93: 0 | G93: 0 | H93: 0 | I93: 0 | J93: 0 | K93: 0 | L93: 0 | M93: 0 | N93: 0 | O93: 0 | P93: 0 | Q93: 0
A94: 501996 | B94: Fuel Expense | C94: Fuel | D94: 501 | E94: 3309048 | F94: 0 | G94: 0 | H94: 0 | I94: 0 | J94: 0 | K94: 0 | L94: 232103 | M94: 0 | N94: 678687 | O94: 802897 | P94: 949697 | Q94: 645664
A95: 502020 | B95: Ammonia-Qualifying | C95: PO | D95: =VALUE(LEFT(A95,3)) -> 502 | E95: =SUM(F95:Q95) -> 1025261 | F95: 112733 | G95: 94533 | H95: 179694 | I95: 232445 | J95: 119906 | K95: 69650 | L95: 31500 | M95: 5000 | N95: 44000 | O95: 39400 | P95: 49700 | Q95: 46700
A96: 502040 | B96: Cost of Lime | C96: PO | D96: 502 | E96: 12447573 | F96: 1396441 | G96: 845059 | H96: 1218077 | I96: 1595631 | J96: 1421439 | K96: 622526 | L96: 728200 | M96: 115300 | N96: 1015700 | O96: 909700 | P96: 1331100 | Q96: 1248400
A97: 502070 | B97: Gypsum - Qualifying | C97: PO | D97: =VALUE(LEFT(A97,3)) -> 502 | E97: 0 | F97: 0 | G97: 0 | H97: 0 | I97: 0 | J97: 0 | K97: 0 | L97: 0 | M97: 0 | N97: 0 | O97: 0 | P97: 0 | Q97: 0
A98: 502100 | B98: Fossil Steam Exp-Other | C98: PO | D98: 502 | E98: 3691897 | F98: 275258 | G98: 299487 | H98: 293639 | I98: 349380 | J98: 456863 | K98: 317179 | L98: 266693 | M98: 266103 | N98: 266255 | O98: 372909 | P98: 263014 | Q98: 265117
A99: 502410 | B99: Steam Oper-Bottom Ash/Fly Ash | C99: PO | D99: 502 | E99: 1564 | F99: -2209 | G99: 33 | H99: 0 | I99: 1627 | J99: 6 | K99: 2107 | L99: 0 | M99: 0 | N99: 0 | O99: 0 | P99: 0 | Q99: 0
A100: 505000 | B100: Electric Expenses-Steam Oper | C100: PO | D100: =VALUE(LEFT(A100,3)) -> 505 | E100: 993803 | F100: 70272 | G100: 32499 | H100: 52423 | I100: 60062 | J100: 101683 | K100: 52879 | L100: 96844 | M100: 96706 | N100: 96791 | O100: 141393 | P100: 95720 | Q100: 96531
A101: 506000 | B101: Misc Fossil Power Expenses | C101: PO | D101: 506 | E101: 2108539 | F101: 103575 | G101: 79624 | H101: 122874 | I101: 130511 | J101: 77673 | K101: 87853 | L101: 193399 | M101: 129289 | N101: 128632 | O101: 775516 | P101: 137622 | Q101: 141971
A102: 507000 | B102: Steam Power Gen Op Rents | C102: PO | D102: =VALUE(LEFT(A102,3)) -> 507 | E102: 0 | F102: 0 | G102: 0 | H102: 0 | I102: 0 | J102: 0 | K102: 0 | L102: 0 | M102: 0 | N102: 0 | O102: 0 | P102: 0 | Q102: 0
A103: 509030 | B103: SO2 Emission Expense | C103: EA | D103: 509 | E103: 32 | F103: 32 | G103: 0 | H103: 0 | I103: 0 | J103: 0 | K103: 0 | L103: 0 | M103: 0 | N103: 0 | O103: 0 | P103: 0 | Q103: 0
A104: 509212 | B104: Annual NOx Emission Expense | C104: EA | D104: 509 | E104: 83 | F104: 83 | G104: 0 | H104: 0 | I104: 0 | J104: 0 | K104: 0 | L104: 0 | M104: 0 | N104: 0 | O104: 0 | P104: 0 | Q104: 0
A105: 510000 | B105: Suprvsn and Engrng-Steam Maint | C105: PM | D105: 510 | E105: 2137335 | F105: 155677 | G105: 140294 | H105: 139686 | I105: 131911 | J105: 132359 | K105: 145766 | L105: 250034 | M105: 53245 | N105: 247939 | O105: 248478 | P105: 245369 | Q105: 246577
A106: 510100 | B106: Suprvsn & Engrng-Steam Maint R | C106: PM | D106: 510 | E106: 55658 | F106: 9731 | G106: 1915 | H106: 2023 | I106: 2310 | J106: 2818 | K106: 27349 | L106: 1560 | M106: 1542 | N106: 1915 | O106: 2250 | P106: 1116 | Q106: 1129
A107: 511000 | B107: Maint of Structures-Steam | C107: PM | D107: 511 | E107: 5702765 | F107: 566836 | G107: 379353 | H107: 713033 | I107: 708893 | J107: 514395 | K107: 862017 | L107: 306228 | M107: 302935 | N107: 303060 | O107: 334123 | P107: 355110 | Q107: 356782
A108: 512100 | B108: Maint of Boiler Plant-Other | C108: PM | D108: 512 | E108: 9429192 | F108: 548085 | G108: 996195 | H108: 525733 | I108: 501272 | J108: 403448 | K108: 532882 | L108: 820406 | M108: 2307318 | N108: 1095393 | O108: 551285 | P108: 515608 | Q108: 631567
A109: 513100 | B109: Maint of Electric Plant-Other | C109: PM | D109: 513 | E109: 1732820 | F109: 341454 | G109: 230299 | H109: 9854 | I109: 243011 | J109: 213867 | K109: 83548 | L109: 99462 | M109: 99333 | N109: 99412 | O109: 98931 | P109: 93944 | Q109: 119705
A110: 514000 | B110: Maintenance - Misc Steam Plant | C110: PM | D110: 514 | E110: 1175115 | F110: 149590 | G110: 156053 | H110: 184170 | I110: 209671 | J110: 164436 | K110: 100423 | L110: 34021 | M110: 33983 | N110: 34006 | O110: 41120 | P110: 33708 | Q110: 33934
A111: 514300 | B111: Maintenance - Misc Steam Plant | C111: PM | D111: 514 | E111: 0 | F111: 0 | G111: 0 | H111: 0 | I111: 0 | J111: 0 | K111: 0 | L111: 0 | M111: 0 | N111: 0 | O111: 0 | P111: 0 | Q111: 0
A112: 546000 | B112: Suprvsn and Enginring-CT Oper | C112: PO | D112: 546 | E112: 184101 | F112: 26463 | G112: 22864 | H112: 25419 | I112: 22456 | J112: 27961 | K112: 28672 | L112: 4419 | M112: 4403 | N112: 4413 | O112: 5731 | P112: 5628 | Q112: 5672
A113: 547100 | B113: Natural Gas | C113: Fuel | D113: 547 | E113: 4805148 | F113: 312250 | G113: 290095 | H113: 219 | I113: 893000 | J113: 2102900 | K113: 1206684 | L113: 0 | M113: 0 | N113: 0 | O113: 0 | P113: 0 | Q113: 0
A114: 547150 | B114: Natural Gas Handling-CT | C114: PO | D114: 547 | E114: 30089 | F114: 2595 | G114: 2609 | H114: 2612 | I114: 2479 | J114: 2084 | K114: 2016 | L114: 2636 | M114: 2638 | N114: 2637 | O114: 2669 | P114: 2568 | Q114: 2546
A115: 547200 | B115: Oil | C115: Fuel | D115: 547 | E115: 0 | F115: 0 | G115: 0 | H115: 0 | I115: 0 | J115: 0 | K115: 0 | L115: 0 | M115: 0 | N115: 0 | O115: 0 | P115: 0 | Q115: 0
A116: 548100 | B116: Generation Expenses-Other CT | C116: PO | D116: 548 | E116: 19666 | F116: 2070 | G116: 1977 | H116: 1848 | I116: 1750 | J116: 2123 | K116: 298 | L116: 1655 | M116: 1615 | N116: 1606 | O116: 1648 | P116: 1537 | Q116: 1539
A117: 548200 | B117: Prime Movers - Generators- CT | C117: PO | D117: 548 | E117: 167920 | F117: 4981 | G117: 18012 | H117: 5867 | I117: 17284 | J117: 36209 | K117: 8053 | L117: 11702 | M117: 11748 | N117: 11762 | O117: 19170 | P117: 11499 | Q117: 11633
A118: 549000 | B118: Misc-Power Generation Expenses | C118: PO | D118: 549 | E118: 947002 | F118: 113056 | G118: 91526 | H118: 100011 | I118: 102997 | J118: 122709 | K118: 135431 | L118: 49901 | M118: 44501 | N118: 42235 | O118: 49503 | P118: 42867 | Q118: 52265
A119: 551000 | B119: Suprvsn and Enginring-CT Maint | C119: PM | D119: 551 | E119: 332544 | F119: 20288 | G119: 21417 | H119: 18595 | I119: 18258 | J119: 18415 | K119: 15972 | L119: 36464 | M119: 36425 | N119: 36449 | O119: 36309 | P119: 36860 | Q119: 37092
A120: 552000 | B120: Maintenance of Structures-CT | C120: PM | D120: 552 | E120: 167586 | F120: 18577 | G120: 12375 | H120: 12879 | I120: 18746 | J120: 12831 | K120: 7403 | L120: 22505 | M120: 12505 | N120: 12505 | O120: 12640 | P120: 12310 | Q120: 12310
A121: 552220 | B121: Solar: Maint of Structures | C121: PM | D121: 552 | E121: 0 | F121: 0 | G121: 0 | H121: 0 | I121: 0 | J121: 0 | K121: 0 | L121: 0 | M121: 0 | N121: 0 | O121: 0 | P121: 0 | Q121: 0
A122: 553000 | B122: Maint-Gentg and Elect Equip-CT | C122: PM | D122: 553 | E122: 755575 | F122: 142351 | G122: 88298 | H122: 66446 | I122: 76867 | J122: 14002 | K122: 41425 | L122: 21749 | M122: 218298 | N122: 8163 | O122: 15253 | P122: 54583 | Q122: 8140
A123: 554000 | B123: Misc Power Generation Plant-CT | C123: PM | D123: 554 | E123: 325694 | F123: 28149 | G123: 20798 | H123: 26851 | I123: 44529 | J123: 19296 | K123: 34294 | L123: 24086 | M123: 24528 | N123: 23702 | O123: 31438 | P123: 23525 | Q123: 24498
A124: 555028 | B124: Purch Pwr - Non-native - net | C124: PP | D124: 555 | E124: 505850 | F124: 309349 | G124: 0 | H124: 0 | I124: 196501 | J124: 0 | K124: 0 | L124: 0 | M124: 0 | N124: 0 | O124: 0 | P124: 0 | Q124: 0
A125: 555190 | B125: Capacity Purchase Expense | C125: PP | D125: 555 | E125: 0 | F125: 0 | G125: 0 | H125: 0 | I125: 0 | J125: 0 | K125: 0 | L125: 0 | M125: 0 | N125: 0 | O125: 0 | P125: 0 | Q125: 0
A126: 555202 | B126: Purch Power-Fuel Clause | C126: PP | D126: 555 | E126: 99839413 | F126: 8613988 | G126: 9779771 | H126: 7376676 | I126: 13923927 | J126: 13549414 | K126: 29051643 | L126: 2313352 | M126: 9286966 | N126: 1224376 | O126: 1051162 | P126: 1941038 | Q126: 1727100
A127: 556000 | B127: System Cnts & Load Dispatching | C127: OPS | D127: 556 | E127: 44160 | F127: 0 | G127: 9 | H127: 0 | I127: 0 | J127: 0 | K127: 0 | L127: 7421 | M127: 7421 | N127: 7421 | O127: 7486 | P127: 7201 | Q127: 7201
A128: 557000 | B128: Other Expenses-Oper | C128: OPS | D128: 557 | E128: 7619789 | F128: -678233 | G128: 82421 | H128: 140885 | I128: 676395 | J128: 1272415 | K128: -497385 | L128: 493923 | M128: 514794 | N128: 434273 | O128: 3717766 | P128: 1089704 | Q128: 372831
A129: 557450 | B129: Commissions/Brokerage Expense | C129: OPS | D129: 557 | E129: 76701 | F129: 5547 | G129: 4827 | H129: 3991 | I129: 16619 | J129: 4455 | K129: 4200 | L129: 6177 | M129: 6177 | N129: 6177 | O129: 6177 | P129: 6177 | Q129: 6177
A130: 557451 | B130: EA & Coal Broker Fees | C130: OPS | D130: 557 | E130: 12500 | F130: 0 | G130: 0 | H130: 0 | I130: 2500 | J130: 10000 | K130: 0 | L130: 0 | M130: 0 | N130: 0 | O130: 0 | P130: 0 | Q130: 0
A131: 557980 | B131: Retail Deferred Fuel Expenses | C131: Fuel | D131: 557 | E131: -18757144 | F131: -1412615 | G131: -5063626 | H131: 2682648 | I131: -275616 | J131: -2516636 | K131: -15254182 | L131: 1567803 | M131: -2242597 | N131: 1019339 | O131: 4891162 | P131: -1948260 | Q131: -204564
A132: 560000 | B132: Supervsn and Engrng-Trans Oper | C132: TO | D132: 560 | E132: 2221 | F132: 380 | G132: 377 | H132: 481 | I132: 405 | J132: 274 | K132: 304 | L132: 0 | M132: 0 | N132: 0 | O132: 0 | P132: 0 | Q132: 0
A133: 561100 | B133: Load Dispatch-Reliability | C133: TO | D133: 561 | E133: 99889 | F133: 7737 | G133: 6926 | H133: 6827 | I133: 6943 | J133: 6497 | K133: 6892 | L133: 9723 | M133: 9724 | N133: 9723 | O133: 9757 | P133: 9420 | Q133: 9720
A134: 561200 | B134: Load Dispatch-Mnitor&OprTrnSys | C134: TO | D134: 561 | E134: 336915 | F134: 34945 | G134: 32300 | H134: 31385 | I134: 31558 | J134: 30198 | K134: 32279 | L134: 23259 | M134: 23263 | N134: 23261 | O134: 23298 | P134: 26907 | Q134: 24262
A135: 561300 | B135: Load Dispatch - TransSvc&Sch | C135: TO | D135: 561 | E135: 83860 | F135: 4734 | G135: 4346 | H135: 4237 | I135: 4264 | J135: 4067 | K135: 4343 | L135: 9680 | M135: 9681 | N135: 9681 | O135: 9714 | P135: 9489 | Q135: 9624
A136: 561400 | B136: Scheduling-Sys Cntrl&Disp Svs | C136: TO | D136: 561 | E136: 1526625 | F136: 219626 | G136: 197368 | H136: 191142 | I136: 132727 | J136: 14784 | K136: 170978 | L136: 100000 | M136: 100000 | N136: 100000 | O136: 100000 | P136: 100000 | Q136: 100000
A137: 561800 | B137: ReliabilityPlanning&StdsDev | C137: TO | D137: 561 | E137: 2026481 | F137: 170327 | G137: 169769 | H137: 170239 | I137: 171368 | J137: 172494 | K137: 172282 | L137: 166667 | M137: 166667 | N137: 166667 | O137: 166667 | P137: 166667 | Q137: 166667
A138: 562000 | B138: Station Expenses | C138: TO | D138: 562 | E138: 142652 | F138: 11238 | G138: 9721 | H138: 13992 | I138: 23926 | J138: 12469 | K138: 3319 | L138: 14145 | M138: 6384 | N138: 8134 | O138: 8702 | P138: 24407 | Q138: 6215
A139: 563000 | B139: Overhead Line Expenses-Trans | C139: TO | D139: 563 | E139: 85987 | F139: 279 | G139: 1940 | H139: 0 | I139: 48960 | J139: 0 | K139: 0 | L139: 228 | M139: 3573 | N139: 7309 | O139: 5991 | P139: 9070 | Q139: 8637
A140: 565000 | B140: Transm of Elec By Others | C140: TO | D140: 565 | E140: 21146389 | F140: 1845203 | G140: 1438319 | H140: 1626625 | I140: 2076662 | J140: 1747987 | K140: 1926407 | L140: 1747531 | M140: 1747531 | N140: 1747531 | O140: 1747531 | P140: 1747531 | Q140: 1747531
A141: 566000 | B141: Misc Trans Exp-Other | C141: TO | D141: 566 | E141: 210115 | F141: 9239 | G141: 12329 | H141: 8084 | I141: 8898 | J141: 7885 | K141: 8170 | L141: 44093 | M141: 15298 | N141: 18642 | O141: 50357 | P141: 13712 | Q141: 13408
A142: 566100 | B142: Misc Trans-Trans Lines Related | C142: TO | D142: 566 | E142: 6216 | F142: 748 | G142: 746 | H142: 718 | I142: 644 | J142: 244 | K142: 221 | L142: 486 | M142: 487 | N142: 487 | O142: 487 | P142: 475 | Q142: 473
A143: 569000 | B143: Maint of Structures-Trans | C143: TM | D143: 569 | E143: 16656 | F143: 919 | G143: 5096 | H143: 431 | I143: 3653 | J143: 1998 | K143: 0 | L143: 1312 | M143: 700 | N143: 558 | O143: 640 | P143: 858 | Q143: 491
A144: 569200 | B144: Maint of Computer Software | C144: TM | D144: 569 | E144: 79588 | F144: 7113 | G144: 8919 | H144: 7670 | I144: 8533 | J144: 6305 | K144: 6732 | L144: 5682 | M144: 5685 | N144: 5684 | O144: 5686 | P144: 5908 | Q144: 5671
A145: 570100 | B145: Maint Stat Equip-Other- Trans | C145: TM | D145: 570 | E145: 107612 | F145: 9272 | G145: 8440 | H145: 76255 | I145: -35239 | J145: 8835 | K145: 7504 | L145: 2268 | M145: 2452 | N145: 1538 | O145: 8273 | P145: 12042 | Q145: 5972
A146: 570200 | B146: Main-Cir BrkrsTrnsf Mtrs-Trans | C146: TM | D146: 570 | E146: 115752 | F146: 3891 | G146: 17867 | H146: 27848 | I146: 5572 | J146: 17617 | K146: 10121 | L146: 6070 | M146: 4584 | N146: 3004 | O146: 5661 | P146: 8388 | Q146: 5129
A147: 571000 | B147: Maint of Overhead Lines-Trans | C147: TM | D147: 571 | E147: 948800 | F147: 36852 | G147: 36257 | H147: 17886 | I147: 26622 | J147: 77251 | K147: 45197 | L147: 241377 | M147: 195155 | N147: 119178 | O147: 62125 | P147: 46402 | Q147: 44498
A148: 575700 | B148: Market Faciliation-Mntr&Comp | C148: RMO | D148: 575 | E148: =SUM(F148:Q148) -> 2448413 | F148: 141665 | G148: 166164 | H148: 148552 | I148: 179900 | J148: 181032 | K148: 177672 | L148: 242238 | M148: 242238 | N148: 242238 | O148: 242238 | P148: 242238 | Q148: 242238
A149: 580000 | B149: Supervsn and Engring-Dist Oper | C149: DO | D149: 580 | E149: 49181 | F149: 5219 | G149: 37773 | H149: -26396 | I149: 10804 | J149: 12609 | K149: 9172 | L149: 0 | M149: 0 | N149: 0 | O149: 0 | P149: 0 | Q149: 0
A150: 581004 | B150: Load Dispatch-Dist of Elec | C150: DO | D150: 581 | E150: 321107 | F150: 31581 | G150: -5654 | H150: 29187 | I150: 19915 | J150: 34230 | K150: 19574 | L150: 25870 | M150: 25870 | N150: 25870 | O150: 36457 | P150: 51107 | Q150: 27100
A151: 582100 | B151: Station Expenses-Other-Dist | C151: DO | D151: 582 | E151: 87416 | F151: 17898 | G151: 3580 | H151: 18179 | I151: 10842 | J151: 7097 | K151: 3140 | L151: 6199 | M151: 4280 | N151: 6095 | O151: 5607 | P151: 2616 | Q151: 1883
A152: 583100 | B152: Overhead Line Exps-Other-Dist | C152: DO | D152: 583 | E152: 184514 | F152: 0 | G152: 25686 | H152: 69091 | I152: 27567 | J152: 0 | K152: 2728 | L152: 13752 | M152: 13864 | N152: 7909 | O152: 7969 | P152: 7909 | Q152: 8039
A153: 583200 | B153: Transf Set Rem Reset Test-Dist | C153: DO | D153: 583 | E153: 124218 | F153: 5606 | G153: 4919 | H153: 5126 | I153: 5947 | J153: 7208 | K153: 36134 | L153: 9005 | M153: 9078 | N153: 9078 | O153: 10345 | P153: 10886 | Q153: 10886
A154: 584000 | B154: Underground Line Expenses-Dist | C154: DO | D154: 584 | E154: 457566 | F154: 25053 | G154: 64626 | H154: 72359 | I154: 61533 | J154: 38796 | K154: 40489 | L154: 34607 | M154: 24332 | N154: 25519 | O154: 23810 | P154: 22534 | Q154: 23908
A155: 586000 | B155: Meter Expenses-Dist | C155: DO | D155: 586 | E155: 394883 | F155: 56405 | G155: 59628 | H155: 51705 | I155: 47937 | J155: 40546 | K155: 36020 | L155: 16087 | M155: 16076 | N155: 16062 | O155: 21690 | P155: 16334 | Q155: 16393
A156: 587000 | B156: Cust Install Exp-Other Dist | C156: DO | D156: 587 | E156: 751106 | F156: 66939 | G156: 50471 | H156: 57491 | I156: 59252 | J156: 70207 | K156: 56978 | L156: 58809 | M156: 59968 | N156: 62319 | O156: 89484 | P156: 57724 | Q156: 61464
A157: 588100 | B157: Misc Distribution Exp-Other | C157: DO | D157: 588 | E157: 2159618 | F157: 110015 | G157: 119744 | H157: 111154 | I157: 77487 | J157: 181954 | K157: 92082 | L157: 229991 | M157: 234301 | N157: 215558 | O157: 319845 | P157: 258183 | Q157: 209304
A158: 588300 | B158: Load Mang-Gen and Control-Dist | C158: DO | D158: 588 | E158: 0 | F158: 0 | G158: 0 | H158: 0 | I158: 0 | J158: 0 | K158: 0 | L158: 0 | M158: 0 | N158: 0 | O158: 0 | P158: 0 | Q158: 0
A159: 588700 | B159: Intcon Study Costs (D) | C159: DO | D159: 588 | E159: 2959 | F159: 0 | G159: 2959 | H159: 0 | I159: 0 | J159: 0 | K159: 0 | L159: 0 | M159: 0 | N159: 0 | O159: 0 | P159: 0 | Q159: 0
A160: 589000 | B160: Rents-Dist Oper | C160: DO | D160: 589 | E160: 4206 | F160: 0 | G160: 0 | H160: 3275 | I160: 1087 | J160: 1325 | K160: -1481 | L160: 0 | M160: 0 | N160: 0 | O160: 0 | P160: 0 | Q160: 0
A161: 590000 | B161: Supervsn and Engrng-Dist Maint | C161: DM | D161: 590 | E161: 107119 | F161: 8578 | G161: 8528 | H161: 8718 | I161: 8226 | J161: 7614 | K161: 9798 | L161: 9281 | M161: 9258 | N161: 9231 | O161: 9912 | P161: 8930 | Q161: 9045
A162: 591000 | B162: Maintenance of Structures-Dist | C162: DM | D162: 591 | E162: 2330 | F162: 0 | G162: 0 | H162: 0 | I162: 0 | J162: 0 | K162: 0 | L162: 345 | M162: 66 | N162: 113 | O162: 278 | P162: 1211 | Q162: 317
A163: 592100 | B163: Maint Station Equip-Other-Dist | C163: DM | D163: 592 | E163: 74137 | F163: 4772 | G163: 5445 | H163: 6666 | I163: 5721 | J163: 5411 | K163: 6967 | L163: 3703 | M163: 5785 | N163: 1887 | O163: 4953 | P163: 15024 | Q163: 7803
A164: 592200 | B164: Cir BrkrsTrnsf Mters Rely-Dist | C164: DM | D164: =VALUE(LEFT(A164,3)) -> 592 | E164: 213927 | F164: 23856 | G164: 20989 | H164: 32639 | I164: 38666 | J164: 21699 | K164: 33027 | L164: 8165 | M164: 6221 | N164: 4144 | O164: 7614 | P164: 10495 | Q164: 6412
A165: 593000 | B165: Maint Overhd Lines-Other-Dist | C165: DM | D165: 593 | E165: 3919278 | F165: 242524 | G165: 125509 | H165: 262609 | I165: 658263 | J165: 1477909 | K165: -468647 | L165: 308056 | M165: 242940 | N165: 253945 | O165: 328710 | P165: 241603 | Q165: 245857
A166: 593100 | B166: Right-of-Way Maintenance-Dist | C166: DM | D166: 593 | E166: 4385495 | F166: 335131 | G166: 406395 | H166: 330797 | I166: 410968 | J166: 345090 | K166: 561476 | L166: 473444 | M166: 302403 | N166: 300609 | O166: 300609 | P166: 309287 | Q166: 309286
A167: 594000 | B167: Maint-Underground Lines-Dist | C167: DM | D167: 594 | E167: 140000 | F167: 24092 | G167: 4304 | H167: 22029 | I167: 18507 | J167: 15000 | K167: 31556 | L167: 5366 | M167: 4159 | N167: 3012 | O167: 4859 | P167: 4061 | Q167: 3055
A168: 595100 | B168: Maint Line Transfrs-Other-Dist | C168: DM | D168: =VALUE(LEFT(A168,3)) -> 595 | E168: 27005 | F168: 1371 | G168: 1488 | H168: 1584 | I168: 1326 | J168: 1365 | K168: 1527 | L168: 11431 | M168: 1406 | N168: 1398 | O168: 1435 | P168: 1336 | Q168: 1338
A169: 596000 | B169: Maint-StreetLightng/Signl-Dist | C169: DM | D169: 596 | E169: 179531 | F169: 14471 | G169: 10803 | H169: 10700 | I169: 13779 | J169: 20348 | K169: 21478 | L169: 14099 | M169: 13198 | N169: 12586 | O169: 15080 | P169: 16658 | Q169: 16331
A170: 597000 | B170: Maintenance of Meters-Dist | C170: DM | D170: 597 | E170: 400545 | F170: 30256 | G170: 31296 | H170: 33976 | I170: 30902 | J170: 39223 | K170: 31145 | L170: 34946 | M170: 34933 | N170: 34918 | O170: 42156 | P170: 28363 | Q170: 28431
A171: 598100 | B171: Main Misc Dist Plt - Other - Dist | C171: DM | D171: 598 | E171: =SUM(F171:Q171) -> 4716 | F171: 0 | G171: 0 | H171: 0 | I171: 0 | J171: 0 | K171: 0 | L171: 786 | M171: 786 | N171: 786 | O171: 786 | P171: 786 | Q171: 786
A172: 901000 | B172: Supervision-Cust Accts | C172: CO | D172: 901 | E172: 53635 | F172: 10755 | G172: 9371 | H172: 8456 | I172: 9512 | J172: 8146 | K172: 8905 | L172: -91 | M172: -16 | N172: 81 | O172: -496 | P172: -1086 | Q172: 98
A173: 902000 | B173: Meter Reading Expense | C173: CO | D173: 902 | E173: 223083 | F173: 19817 | G173: 19701 | H173: 17846 | I173: 18442 | J173: 22440 | K173: 16813 | L173: 19345 | M173: 19345 | N173: 19345 | O173: 27129 | P173: 11430 | Q173: 11430
A174: 903000 | B174: Cust Records & Collection Exp | C174: CO | D174: 903 | E174: 3384226 | F174: 319473 | G174: 338803 | H174: 330044 | I174: 252883 | J174: 336448 | K174: 265563 | L174: 291484 | M174: 296050 | N174: 243711 | O174: 243798 | P174: 266757 | Q174: 199212
A175: 903100 | B175: Cust Contracts & Orders-Local | C175: CO | D175: 903 | E175: 414250 | F175: 42158 | G175: 31184 | H175: 31302 | I175: 31220 | J175: 32137 | K175: 14101 | L175: 42446 | M175: 36851 | N175: 36846 | O175: 43283 | P175: 36432 | Q175: 36290
A176: 903200 | B176: Cust Billing & Acct | C176: CO | D176: 903 | E176: 760804 | F176: 97756 | G176: 68945 | H176: 72335 | I176: 71472 | J176: 80157 | K176: 59290 | L176: 54927 | M176: 49665 | N176: 49661 | O176: 59580 | P176: 48674 | Q176: 48342
A177: 903300 | B177: Cust Collecting-Local | C177: CO | D177: 903 | E177: 423947 | F177: 38509 | G177: 29206 | H177: 27081 | I177: 26760 | J177: 31105 | K177: 13383 | L177: 48025 | M177: 38004 | N177: 40934 | O177: 52962 | P177: 37426 | Q177: 40552
A178: 903400 | B178: Cust Receiv & Collect Exp-Edp | C178: CO | D178: 903 | E178: 41166 | F178: 3247 | G178: 3337 | H178: 1896 | I178: 2219 | J178: 2350 | K178: 2527 | L178: 5795 | M178: 2911 | N178: 4096 | O178: 6228 | P178: 2747 | Q178: 3813
A179: 903891 | B179: IC Collection Agent Revenue | C179: CO | D179: 903 | E179: -216623 | F179: -17545 | G179: 0 | H179: -18809 | I179: -37516 | J179: -22770 | K179: -21288 | L179: -13623 | M179: -12763 | N179: -14546 | O179: -18976 | P179: -18628 | Q179: -20159
A180: 904000 | B180: Uncollectible Accounts | C180: CO | D180: 904 | E180: -107342 | F180: 0 | G180: -32837 | H180: -10704 | I180: -10419 | J180: -26479 | K180: -26903 | L180: 0 | M180: 0 | N180: 0 | O180: 0 | P180: 0 | Q180: 0
A181: 904001 | B181: Bad Debt Expense | C181: CO | D181: 904 | E181: 38432 | F181: 176 | G181: 8032 | H181: 6988 | I181: 216 | J181: 57636 | K181: -34616 | L181: 0 | M181: 0 | N181: 0 | O181: 0 | P181: 0 | Q181: 0
A182: 904003 | B182: Cust Acctg-Loss On Sale-A/R | C182: CO | D182: 904 | E182: 804030 | F182: 0 | G182: 0 | H182: 0 | I182: 0 | J182: 0 | K182: 0 | L182: 129816 | M182: 145934 | N182: 153078 | O182: 169684 | P182: 126455 | Q182: 79063
A183: 904891 | B183: IC Loss on Sale of AR with VIE (I) | C183: CO | D183: 904 | E183: 0 | F183: 0 | G183: 0 | H183: 0 | I183: 0 | J183: 0 | K183: 0 | L183: 0 | M183: 0 | N183: 0 | O183: 0 | P183: 0 | Q183: 0
A184: 905000 | B184: Misc Customer Accts Expenses | C184: CO | D184: 905 | E184: 40 | F184: 0 | G184: 16 | H184: 6 | I184: 0 | J184: 18 | K184: 0 | L184: 0 | M184: 0 | N184: 0 | O184: 0 | P184: 0 | Q184: 0
A185: 908000 | B185: Cust Asst Exp-Conservation Pro | C185: CSI | D185: 908 | E185: 111 | F185: 0 | G185: 0 | H185: 0 | I185: 0 | J185: 0 | K185: 111 | L185: 0 | M185: 0 | N185: 0 | O185: 0 | P185: 0 | Q185: 0
A186: 909650 | B186: Misc Advertising Expenses | C186: CSI | D186: 909 | E186: 2288 | F186: 1515 | G186: 0 | H186: 0 | I186: 0 | J186: 0 | K186: 773 | L186: 0 | M186: 0 | N186: 0 | O186: 0 | P186: 0 | Q186: 0
A187: 910000 | B187: Misc Cust Serv/Inform Exp | C187: CSI | D187: 910 | E187: 187061 | F187: 26480 | G187: 18549 | H187: 12797 | I187: 10782 | J187: 21818 | K187: 13221 | L187: 14904 | M187: 14639 | N187: 12899 | O187: 15623 | P187: 14386 | Q187: 10963
A188: 910100 | B188: Exp-Rs Reg Prod/Svces-CstAccts | C188: CSI | D188: 910 | E188: 141607 | F188: 5618 | G188: 9745 | H188: 16077 | I188: 6031 | J188: 10825 | K188: 5165 | L188: 9583 | M188: 9586 | N188: 9584 | O188: 9587 | P188: 41088 | Q188: 8718
A189: 911000 | B189: Supervision | C189: CSI | D189: 911 | E189: 0 | F189: 0 | G189: 0 | H189: 0 | I189: 0 | J189: 0 | K189: 0 | L189: 0 | M189: 0 | N189: 0 | O189: 0 | P189: 0 | Q189: 0
A190: 912000 | B190: Demonstrating & Selling Exp | C190: SE | D190: 912 | E190: 2224271 | F190: 116865 | G190: 105776 | H190: 113018 | I190: 121637 | J190: 111102 | K190: 121086 | L190: 149455 | M190: 126774 | N190: 128132 | O190: 147065 | P190: 912067 | Q190: 71294
A191: 913001 | B191: Advertising Expense | C191: SE | D191: 913 | E191: 68900 | F191: 4343 | G191: 3175 | H191: -273 | I191: 2838 | J191: 5886 | K191: -17 | L191: 3463 | M191: 3463 | N191: 3463 | O191: 3463 | P191: 39096 | Q191: 0
A192: 920000 | B192: A & G Salaries | C192: AGO | D192: 920 | E192: 8933321 | F192: 860832 | G192: 593610 | H192: 627375 | I192: 907067 | J192: 632772 | K192: 635170 | L192: 510374 | M192: 639832 | N192: 640322 | O192: 586495 | P192: 1764223 | Q192: 535249
A193: 920100 | B193: Salaries & Wages-Proj Supt-NCRC Rec | C193: AGO | D193: =VALUE(LEFT(A193,3)) -> 920 | E193: =SUM(F193:Q193) -> 64 | F193: 0 | G193: 34 | H193: 0 | I193: 16 | J193: 12 | K193: 2 | L193: 0 | M193: 0 | N193: 0 | O193: 0 | P193: 0 | Q193: 0
A194: 920300 | B194: Project Development Labor | C194: AGO | D194: 920 | E194: 0 | F194: 0 | G194: 0 | H194: 0 | I194: 0 | J194: 0 | K194: 0 | L194: 0 | M194: 0 | N194: 0 | O194: 0 | P194: 0 | Q194: 0
A195: 921100 | B195: Employee Expenses | C195: AGO | D195: 921 | E195: 176323 | F195: 4360 | G195: 30073 | H195: 6205 | I195: 12685 | J195: 17639 | K195: 13295 | L195: 1416 | M195: 351 | N195: 333 | O195: 1813 | P195: 66663 | Q195: 21490
A196: 921101 | B196: Employee Exp - NC | C196: AGO | D196: 921 | E196: 4 | F196: 0 | G196: 3 | H196: 0 | I196: 0 | J196: 0 | K196: 1 | L196: 0 | M196: 0 | N196: 0 | O196: 0 | P196: 0 | Q196: 0
A197: 921110 | B197: Relocation Expenses | C197: AGO | D197: 921 | E197: 8 | F197: 0 | G197: 2 | H197: 0 | I197: 0 | J197: 0 | K197: 0 | L197: 1 | M197: 1 | N197: 1 | O197: 1 | P197: 1 | Q197: 1
A198: 921200 | B198: Office Expenses | C198: AGO | D198: 921 | E198: 327586 | F198: 63775 | G198: 34640 | H198: 27127 | I198: 17430 | J198: 182904 | K198: -97543 | L198: 37355 | M198: 17024 | N198: 19870 | O198: 37996 | P198: -23606 | Q198: 10614
A199: 921300 | B199: Telephone And Telegraph Exp | C199: AGO | D199: 921 | E199: 6 | F199: 1 | G199: 1 | H199: 1 | I199: 1 | J199: 1 | K199: 1 | L199: 0 | M199: 0 | N199: 0 | O199: 0 | P199: 0 | Q199: 0
A200: 921400 | B200: Computer Services Expenses | C200: AGO | D200: 921 | E200: 222263 | F200: 9145 | G200: 10096 | H200: 52008 | I200: 23437 | J200: 22501 | K200: 6810 | L200: 15807 | M200: 15487 | N200: 15289 | O200: 14628 | P200: 24060 | Q200: 12995
A201: 921540 | B201: Computer Rent (Go Only) | C201: AGO | D201: 921 | E201: 79215 | F201: 12435 | G201: 11670 | H201: 12500 | I201: 13298 | J201: 12639 | K201: 11657 | L201: 836 | M201: 836 | N201: 836 | O201: 836 | P201: 836 | Q201: 836
A202: 921600 | B202: Other | C202: AGO | D202: 921 | E202: 51 | F202: 0 | G202: 2 | H202: 5 | I202: 7 | J202: 0 | K202: 7 | L202: 5 | M202: 5 | N202: 5 | O202: 5 | P202: 5 | Q202: 5
... 68 more rows

Sheet BP Rev by Product
A1: =COMPANY -> DUKE ENERGY KENTUCKY, INC.
A2: =CASE -> CASE NO. 2022-00372
A3: BASE PERIOD REVENUES BY PRODUCT
A4: BASE PERIOD
A6: =Data -> DATA: "X" BASE PERIOD FORECASTED PERIOD
A7: =Type -> TYPE OF FILING: "X" ORIGINAL UPDATED REVISED
A11: Account | B11: Description | C11: Code | D11: Product | E11: Product Desc. | F11: Total | G11: =LOGO!I7 -> 2022-03-31 | H11: =LOGO!I8 -> 2022-04-30 | I11: =LOGO!I9 -> 2022-05-31 | J11: =LOGO!I10 -> 2022-06-30 | K11: =LOGO!I11 -> 2022-07-31 | L11: =LOGO!I12 -> 2022-08-31 | M11: =LOGO!I13 -> 2022-09-30 | N11: =LOGO!I14 -> 2022-10-31 | O11: =LOGO!I15 -> 2022-11-30 | P11: =LOGO!I16 -> 2022-12-31 | Q11: =LOGO!I17 -> 2023-01-31 | R11: =LOGO!I18 -> 2023-02-28
A12: 440000 | B12: Residential | D12: BBEREV | E12: Bundled Base Revenue Elect | F12: =SUM(G12:R12) -> 103477022 | G12: =7552250-2 -> 7552248 | H12: =9794604-1 -> 9794603 | I12: =4497867-2 -> 4497865 | J12: =8775974+1 -> 8775975 | K12: =10175668-1 -> 10175667 | L12: =10583805-1 -> 10583804 | M12: =9483056-1 -> 9483055 | N12: =6959973+1 -> 6959974 | O12: =6671328+2 -> 6671330 | P12: =8544228-2 -> 8544226 | Q12: =10781529+3 -> 10781532 | R12: =9656746-3 -> 9656743
A13: 440000 | B13: Residential | D13: BEFREV | E13: Base Elec Fuel Rev | F13: 38275593 | G13: 2902860 | H13: 0 | I13: 4969747 | J13: 3246515 | K13: 3907454 | L13: 4023608 | M13: 3573217 | N13: 2418407 | O13: 2286300 | P13: 3140241 | Q13: 4160332 | R13: 3646912
A14: 440000 | B14: Residential | D14: REDSM | E14: Demand Side Mgmt Elec | F14: 6982600 | G14: 756085 | H14: 703423 | I14: 659878 | J14: 890721 | K14: 1072209 | L14: 1104115 | M14: 344882 | N14: 233421 | O14: 220670 | P14: 303091 | Q14: 369875 | R14: 324230
A15: 440000 | B15: Residential | D15: REFC | E15: Fuel Cost Adjustment | F15: 11056274 | G15: -119779 | H15: 600943 | I15: 553426 | J15: 3387309 | K15: 1715000 | L15: 2126195 | M15: 698320 | N15: 243889 | O15: 241353 | P15: 1295999 | Q15: 155857 | R15: 157762
A16: 440000 | B16: Residential | D16: RKEPSM | E16: Off-SystemSales Profit Sharing | F16: -695240 | G16: -25280 | H16: -23320 | I16: -21886 | J16: -4367 | K16: -5080 | L16: -5212 | M16: -46571 | N16: 0 | O16: -118436 | P16: -127713 | Q16: -179021 | R16: -138354
A17: 440000 | B17: Residential | D17: ROEESM | E17: Environmental Surcharge Mechan | F17: 11228719 | G17: 541161 | H17: 1006767 | I17: 956257 | J17: 1614789 | K17: 1659116 | L17: 640890 | M17: 846882 | N17: 707044 | O17: 706109 | P17: 831825 | Q17: 879799 | R17: 838080
A18: 440990 | B18: Residential Unbilled Rev | D18: UNBILL | E18: Unbill Total (inc base& rider) | F18: 3312816 | G18: -501895 | H18: -918561 | I18: 3090976 | J18: 1815804 | K18: 1902734 | L18: -962221 | M18: -1823909 | N18: -356689 | O18: 1510019 | P18: 1978930 | Q18: -1861876 | R18: -560496
A19: 442100 | B19: General Service | D19: BBEREV | E19: Bundled Base Revenue Elect | F19: =SUM(G19:R19) -> 82149877 | G19: 6081700 | H19: 5512003 | I19: 5250841 | J19: 5270784 | K19: 9685456 | L19: 8524437 | M19: 7609011 | N19: 6766936 | O19: 6533813 | P19: 6623018 | Q19: 7195630 | R19: 7096248
A20: 442100 | B20: General Service | D20: BEFREV | E20: Base Elec Fuel Rev | F20: 37118421 | G20: 2804056 | H20: 0 | I20: 4410999 | J20: 2077497 | K20: 4767812 | L20: 3966501 | M20: 3478330 | N20: 3038796 | O20: 2854018 | P20: 3127919 | Q20: 3400271 | R20: 3192222
A21: 442100 | B21: General Service | D21: REDSM | E21: Demand Side Mgmt Elec | F21: 546985 | G21: -66127 | H21: -44405 | I21: -79862 | J21: -58511 | K21: -134555 | L21: -111906 | M21: 196650 | N21: 171801 | O21: 161354 | P21: 176840 | Q21: 173150 | R21: 162556
A22: 442100 | B22: General Service | D22: REFC | E22: Fuel Cost Adjustment | F22: 10490048 | G22: -97842 | H22: 370651 | I22: 656563 | J22: 2195628 | K22: 2439058 | L22: 2082088 | M22: 679776 | N22: 306454 | O22: 301284 | P22: 1290913 | Q22: 127383 | R22: 138092
A23: 442100 | B23: General Service | D23: RKEPSM | E23: Off-SystemSales Profit Sharing | F23: -676196 | G23: -24824 | H23: -14309 | I23: -25815 | J23: -2518 | K23: -14426 | L23: -6495 | M23: -45334 | N23: 0 | O23: -147845 | P23: -127211 | Q23: -146315 | R23: -121104
A24: 442100 | B24: General Service | D24: ROEESM | E24: Environmental Surcharge Mechan | F24: 10073659 | G24: 482635 | H24: 590591 | I24: 999338 | J24: 857962 | K24: 1566027 | L24: 701630 | M24: 824393 | N24: 888420 | O24: 881446 | P24: 828561 | Q24: 719066 | R24: 733590
A25: 442190 | B25: General Service Unbilled Rev | D25: UNBILL | E25: Unbill Total (inc base& rider) | F25: 3968084 | G25: 729591 | H25: 4063455 | I25: 1478462 | J25: -1143387 | K25: 614856 | L25: -215111 | M25: -548631 | N25: -83418 | O25: 92645 | P25: -660 | Q25: -905769 | R25: -113949
A26: 442200 | B26: Industrial Service | D26: BBEREV | E26: Bundled Base Revenue Elect | F26: 34219305 | G26: 2412622 | H26: 1682742 | I26: 1598264 | J26: -917363 | K26: 7249575 | L26: 4385588 | M26: 3276067 | N26: 3018384 | O26: 2983956 | P26: 2798663 | Q26: 2820981 | R26: 2909826
A27: 442200 | B27: Industrial Service | D27: BEFREV | E27: Base Elec Fuel Rev | F27: 19187183 | G27: 1471464 | H27: 0 | I27: 1809528 | J27: -706920 | K27: 4184381 | L27: 2346344 | M27: 1812765 | N27: 1675500 | O27: 1646799 | P27: 1675155 | Q27: 1652375 | R27: 1619792
A28: 442200 | B28: Industrial Service | D28: REDSM | E28: Demand Side Mgmt Elec | F28: 353933 | G28: -30859 | H28: -14827 | I28: -28915 | J28: 13424 | K28: -81266 | L28: -55272 | M28: 102486 | N28: 94726 | O28: 93103 | P28: 94706 | Q28: 84143 | R28: 82484
A29: 442200 | B29: Industrial Service | D29: REFC | E29: Fuel Cost Adjustment | F29: 5201399 | G29: -62171 | H29: 141365 | I29: 273489 | J29: 63045 | K29: 2057034 | L29: 1208231 | M29: 354272 | N29: 168969 | O29: 173844 | P29: 691348 | Q29: 61902 | R29: 70071
A30: 442200 | B30: Industrial Service | D30: RKEPSM | E30: Off-SystemSales Profit Sharing | F30: -356024 | G30: -12519 | H30: -5459 | I30: -10997 | J30: 8551 | K30: -20933 | L30: -5052 | M30: -23626 | N30: 0 | O30: -85308 | P30: -68128 | Q30: -71102 | R30: -61451
A31: 442200 | B31: Industrial Service | D31: ROEESM | E31: Environmental Surcharge Mechan | F31: 4659008 | G31: 193868 | H31: 165377 | I31: 312898 | J31: -120339 | K31: 1075492 | L31: 438216 | M31: 429640 | N31: 489848 | O31: 508603 | P31: 443735 | Q31: 349433 | R31: 372237
A32: 442290 | B32: Industrial Svc Unbilled Rev | D32: UNBILL | E32: Unbill Total (inc base& rider) | F32: 1911069 | G32: 471838 | H32: 2930083 | I32: 1310669 | J32: 3317816 | K32: -5389169 | L32: 27957 | M32: -260645 | N32: 134075 | O32: -410 | P32: -73741 | Q32: -459750 | R32: -97654
A33: 444000 | B33: Public St & Highway Lighting | D33: BBEREV | E33: Bundled Base Revenue Elect | F33: 911495 | G33: 94175 | H33: 5423 | I33: 106839 | J33: 186020 | K33: 97918 | L33: -197202 | M33: 104079 | N33: 100125 | O33: 105314 | P33: 101751 | Q33: 99816 | R33: 107237
A34: 444000 | B34: Public St & Highway Lighting | D34: BEFREV | E34: Base Elec Fuel Rev | F34: 277275 | G34: 26339 | H34: 0 | I34: 28751 | J34: 50890 | K34: 27165 | L34: -31107 | M34: 29336 | N34: 27874 | O34: 29468 | P34: 29474 | Q34: 28762 | R34: 30323
A35: 444000 | B35: Public St & Highway Lighting | D35: REDSM | E35: Demand Side Mgmt Elec | F35: -20 | G35: -20 | H35: 0 | I35: 0 | J35: 0 | K35: 0 | L35: 0 | M35: 0 | N35: 0 | O35: 0 | P35: 0 | Q35: 0 | R35: 0
A36: 444000 | B36: Public St & Highway Lighting | D36: REFC | E36: Fuel Cost Adjustment | F36: 62535 | G36: -1247 | H36: 636 | I36: 6055 | J36: 32385 | K36: 12862 | L36: -14365 | M36: 5733 | N36: 2811 | O36: 3111 | P36: 12164 | Q36: 1078 | R36: 1312
A37: 444000 | B37: Public St & Highway Lighting | D37: RKEPSM | E37: Off-SystemSales Profit Sharing | F37: -6059 | G37: -229 | H37: -24 | I37: -237 | J37: -266 | K37: -35 | L37: 228 | M37: -382 | N37: 0 | O37: -1527 | P37: -1199 | Q37: -1238 | R37: -1150
A38: 444000 | B38: Public St & Highway Lighting | D38: ROEESM | E38: Environmental Surcharge Mechan | F38: 92586 | G38: 7427 | H38: 407 | I38: 16088 | J38: 39249 | K38: 19189 | L38: -34835 | M38: 6953 | N38: 8149 | O38: 9101 | P38: 7808 | Q38: 6082 | R38: 6968
A39: 445000 | B39: Other Sales to Public Auth | D39: BBEREV | E39: Bundled Base Revenue Elect | F39: 13010751 | G39: 902011 | H39: 695600 | I39: 836912 | J39: 152541 | K39: 2092377 | L39: 1181969 | M39: 1329101 | N39: 1158578 | O39: 1040413 | P39: 1137079 | Q39: 1197883 | R39: 1286287
A40: 445000 | B40: Other Sales to Public Auth | D40: BEFREV | E40: Base Elec Fuel Rev | F40: 6310959 | G40: 538389 | H40: 0 | I40: 657805 | J40: -30894 | K40: 1105460 | L40: 641275 | M40: 637689 | N40: 566089 | O40: 497693 | P40: 553992 | Q40: 587489 | R40: 555972
A41: 445000 | B41: Other Sales to Public Auth | D41: REDSM | E41: Demand Side Mgmt Elec | F41: 115874 | G41: -10882 | H41: -5544 | I41: -10940 | J41: -1145 | K41: -25065 | L41: -16290 | M41: 36052 | N41: 32004 | O41: 28137 | P41: 31320 | Q41: 29916 | R41: 28311
A42: 445000 | B42: Other Sales to Public Auth | D42: REFC | E42: Fuel Cost Adjustment | F42: 1697283 | G42: -22400 | H42: 46378 | I42: 106409 | J42: 146780 | K42: 579400 | L42: 331768 | M42: 124625 | N42: 57088 | O42: 52539 | P42: 228636 | Q42: 22009 | R42: 24051
A43: 445000 | B43: Other Sales to Public Auth | D43: RKEPSM | E43: Off-SystemSales Profit Sharing | F43: -117190 | G43: -4065 | H43: -1789 | I43: -4193 | J43: 1749 | K43: -4822 | L43: -1074 | M43: -8311 | N43: 0 | O43: -25782 | P43: -22531 | Q43: -25280 | R43: -21092
A44: 445000 | B44: Other Sales to Public Auth | D44: ROEESM | E44: Environmental Surcharge Mechan | F44: 1646411 | G44: 77060 | H44: 75971 | I44: 151763 | J44: 32002 | K44: 331400 | L44: 109117 | M44: 151137 | N44: 165501 | O44: 153709 | P44: 146748 | Q44: 124238 | R44: 127765
A45: 445090 | B45: OPA Unbilled | D45: UNBILL | E45: Unbill Total (inc base& rider) | F45: 823099 | G45: 181945 | H45: 1025391 | I45: 102472 | J45: 1020498 | K45: -2024669 | L45: 758578 | M45: -144423 | N45: 90988 | O45: 29149 | P45: 565 | Q45: -211112 | R45: -6283
A46: 447150 | B46: Sales For Resale - Outside | D46: CAPCTY | E46: CAPCTY | F46: 660868 | G46: 0 | H46: 0 | I46: 0 | J46: 0 | K46: 438184 | L46: 222684 | M46: 0 | N46: 0 | O46: 0 | P46: 0 | Q46: 0 | R46: 0
A47: 447150 | B47: Sales For Resale - Outside | D47: FACASM | E47: FAC-Ancillary Services | F47: 298307 | G47: 57215 | H47: 25468 | I47: 38154 | J47: 59781 | K47: 71403 | L47: 46286 | M47: 0 | N47: 0 | O47: 0 | P47: 0 | Q47: 0 | R47: 0
A48: 447150 | B48: Sales For Resale - Outside | D48: FER668 | E48: FERC 668 Netting | F48: 12392230 | G48: 5702721 | H48: 0 | I48: 0 | J48: 6689509 | K48: 0 | L48: 0 | M48: 0 | N48: 0 | O48: 0 | P48: 0 | Q48: 0 | R48: 0
A49: 447150 | B49: Sales For Resale - Outside | D49: SLSRSL | E49: Sales for Resale | F49: 9359945 | G49: 693926 | H49: =1136183-1 -> 1136182 | I49: 2800109 | J49: 3134175 | K49: =846309-1 -> 846308 | L49: =749246-1 -> 749245 | M49: 0 | N49: 0 | O49: 0 | P49: 0 | Q49: 0 | R49: 0
A50: 447150 | B50: Sales For Resale - Outside | F50: =SUM(G50:R50) -> 5105070 | G50: 0 | H50: 0 | I50: 0 | J50: 0 | K50: 0 | L50: 0 | M50: 370152 | N50: 0 | O50: 1099751 | P50: 1188322 | Q50: 1419790 | R50: 1027055
A51: 448000 | B51: Interdepartmental Sales-Elec | F51: 120514 | G51: 76984 | H51: 3325 | I51: 0 | J51: 0 | K51: 0 | L51: 0 | M51: =4695-1 -> 4694 | N51: 4349 | O51: =4039-1 -> 4038 | P51: =8921+1 -> 8922 | Q51: 9456 | R51: =8745+1 -> 8746
A52: 449100 | B52: Provisions For Rate Refunds | F52: -4883131 | G52: -261422 | H52: 70013 | I52: -1642884 | J52: -2072437 | K52: -1342898 | L52: 366497 | M52: 0 | N52: 0 | O52: 0 | P52: 0 | Q52: 0 | R52: 0
A53: 449111 | B53: Tax reform - Retail | F53: 18460 | G53: 9230 | H53: 9230 | I53: 0 | J53: 0 | K53: 0 | L53: 0 | M53: 0 | N53: 0 | O53: 0 | P53: 0 | Q53: 0 | R53: 0
A54: 450100 | B54: Late Pmt and Forf Disc | F54: =SUM(G54:R54) -> 0 | G54: 0 | H54: -1038 | I54: 1038 | J54: 0 | K54: 0 | L54: 0 | M54: 0 | N54: 0 | O54: 0 | P54: 0 | Q54: 0 | R54: 0
A55: 451100 | B55: Misc Service Revenue | D55: GP0000 | E55: Green Power | F55: =SUM(G55:R55) -> 5130 | G55: 1377 | H55: 0 | I55: 822 | J55: 1087 | K55: 517 | L55: 1327 | M55: 0 | N55: 0 | O55: 0 | P55: 0 | Q55: 0 | R55: 0
A56: 451100 | B56: Misc Service Revenue | D56: MRJC | E56: Rev-Jobbing And Contract Work | F56: -12297 | G56: 13399 | H56: 0 | I56: 0 | J56: -25696 | K56: 0 | L56: 0 | M56: 0 | N56: 0 | O56: 0 | P56: 0 | Q56: 0 | R56: 0
A57: 451100 | B57: Misc Service Revenue | D57: MROTH | E57: NonUtil Misc Serv Rev - Oth | F57: 275054 | G57: 11275 | H57: -28337 | I57: -18931 | J57: -125209 | K57: =199747+1 -> 199748 | L57: 236508 | M57: 0 | N57: 0 | O57: 0 | P57: 0 | Q57: 0 | R57: 0
A58: 451100 | B58: Misc Service Revenue | D58: PDREV | E58: PD Revenue | F58: 1561 | G58: 33 | H58: 0 | I58: 0 | J58: 0 | K58: 276 | L58: 1252 | M58: 0 | N58: 0 | O58: 0 | P58: 0 | Q58: 0 | R58: 0
A59: 451100 | B59: Misc Service Revenue | F59: =SUM(G59:R59) -> 124998 | G59: 0 | H59: 0 | I59: 0 | J59: 0 | K59: 0 | L59: 0 | M59: 20833 | N59: 20833 | O59: 20833 | P59: 20833 | Q59: 20833 | R59: 20833
A60: 454004 | B60: Rent - Joint Use | D60: OARG | E60: Other Attachments Regulated | F60: 0 | G60: 0 | H60: 0 | I60: 0 | J60: 0 | K60: 0 | L60: 0 | M60: 0 | N60: 0 | O60: 0 | P60: 0 | Q60: 0 | R60: 0
A61: 454100 | B61: Extra-Facilities | F61: 42 | G61: 0 | H61: 0 | I61: 42 | J61: 0 | K61: 0 | L61: 0 | M61: 0 | N61: 0 | O61: 0 | P61: 0 | Q61: 0 | R61: 0
A62: 454100 | B62: Extra-Facilities | D62: BBEREV | E62: Bundled Base Revenue Elect | F62: 246 | G62: 0 | H62: 0 | I62: 0 | J62: 132 | K62: 63 | L62: 51 | M62: 0 | N62: 0 | O62: 0 | P62: 0 | Q62: 0 | R62: 0
A63: 454200 | B63: Pole & Line Attachments | F63: 108668 | G63: 0 | H63: 0 | I63: 0 | J63: 0 | K63: 0 | L63: 0 | M63: 18111 | N63: 18111 | O63: 18111 | P63: 18111 | Q63: 18112 | R63: 18112
A64: 454200 | B64: Pole & Line Attachments | D64: PDREV | E64: PD Revenue | F64: 0 | G64: 0 | H64: 0 | I64: 0 | J64: 0 | K64: 0 | L64: 0 | M64: 0 | N64: 0 | O64: 0 | P64: 0 | Q64: 0 | R64: 0
A65: 454210 | B65: Foreign Pole Revenue | D65: PDREV | E65: PD Revenue | F65: 34869 | G65: 0 | H65: 0 | I65: 15640 | J65: 14659 | K65: 0 | L65: 4570 | M65: 0 | N65: 0 | O65: 0 | P65: 0 | Q65: 0 | R65: 0
A66: 454300 | B66: Tower Lease Revenues | F66: 10375 | G66: 0 | H66: 0 | I66: 0 | J66: 0 | K66: 0 | L66: 10375 | M66: 0 | N66: 0 | O66: 0 | P66: 0 | Q66: 0 | R66: 0
A67: 454300 | B67: Tower Lease Revenues | D67: WRLATT | E67: Wireless Regulated | F67: 1686 | G67: 281 | H67: 281 | I67: 281 | J67: 281 | K67: 281 | L67: 281 | M67: 0 | N67: 0 | O67: 0 | P67: 0 | Q67: 0 | R67: 0
A68: 454400 | B68: Other Electric Rents | F68: 873841 | G68: 90796 | H68: 30502 | I68: 46055 | J68: -26980 | K68: 235762 | L68: 97710 | M68: =66667-1 -> 66666 | N68: =66667-1 -> 66666 | O68: 66666 | P68: 66666 | Q68: 66666 | R68: 66666
A69: 454400 | B69: Other Electric Rents | D69: BDPCHG | E69: BDPCHG | F69: 250002 | G69: 0 | H69: 0 | I69: 0 | J69: 0 | K69: 0 | L69: 0 | M69: 41667 | N69: 41667 | O69: 41667 | P69: 41667 | Q69: 41667 | R69: 41667
A70: 456025 | B70: RSG Rev - MISO Make Whole | F70: 2113018 | G70: 37393 | H70: 170522 | I70: 83101 | J70: 312113 | K70: 958955 | L70: 550934 | M70: 0 | N70: 0 | O70: 0 | P70: 0 | Q70: 0 | R70: 0
A71: 456040 | B71: Sales Use Tax Coll Fee | F71: 300 | G71: 50 | H71: 50 | I71: 50 | J71: 50 | K71: 50 | L71: 50 | M71: 0 | N71: 0 | O71: 0 | P71: 0 | Q71: 0 | R71: 0
A72: 456075 | B72: Data Processing Service | F72: 0 | G72: 0 | H72: 0 | I72: 0 | J72: 0 | K72: 0 | L72: 0 | M72: 0 | N72: 0 | O72: 0 | P72: 0 | Q72: 0 | R72: 0
A73: 456100 | B73: Profit Or Loss On Sale Of M&S | F73: 0 | G73: 0 | H73: 0 | I73: 0 | J73: 0 | K73: 0 | L73: 0 | M73: 0 | N73: 0 | O73: 0 | P73: 0 | Q73: 0 | R73: 0
A74: 456110 | B74: Transmission Charge PTP | F74: 155036 | G74: 16599 | H74: 11336 | I74: 11007 | J74: 14168 | K74: 14481 | L74: 14947 | M74: 12083 | N74: 12083 | O74: 12083 | P74: 12083 | Q74: 12083 | R74: 12083
A75: 456111 | B75: Other Transmission Revenues | D75: FACFTR | E75: Fuel Adj Clause - FTR | F75: 3721004 | G75: 129258 | H75: 109054 | I75: 158342 | J75: 1738484 | K75: 831989 | L75: 753877 | M75: 0 | N75: 0 | O75: 0 | P75: 0 | Q75: 0 | R75: 0
A76: 456970 | B76: Wheel Transmission Rev - ED | F76: 40079 | G76: 5058 | H76: 4493 | I76: 3775 | J76: 4464 | K76: 5122 | L76: 4915 | M76: 2042 | N76: 2042 | O76: 2042 | P76: 2042 | Q76: 2042 | R76: 2042
A77: 457105 | B77: Scheduling & Dispatch Revenues | F77: 106497 | G77: 21172 | H77: 20390 | I77: 18541 | J77: 7670 | K77: 18295 | L77: 20429 | M77: 0 | N77: 0 | O77: 0 | P77: 0 | Q77: 0 | R77: 0
A78: 457204 | B78: PJM Reactive Rev | F78: =SUM(G78:R78) -> 1881498 | G78: 157311 | H78: 156887 | I78: 156938 | J78: 156926 | K78: 155835 | L78: 157101 | M78: 156750 | N78: 156750 | O78: 156750 | P78: 156750 | Q78: 156750 | R78: 156750

Sheet FORECASTED PERIOD
A1: =COMPANY -> DUKE ENERGY KENTUCKY, INC.
A2: =CASE -> CASE NO. 2022-00372
A3: MONTHLY REVENUES AND EXPENSES BY ACCOUNT
A4: FORECASTED PERIOD
A6: =DataF -> DATA: BASE PERIOD "X" FORECASTED PERIOD
A7: =Type -> TYPE OF FILING: "X" ORIGINAL UPDATED REVISED
F8: 3 | G8: 4 | H8: 5 | I8: 6 | J8: 7 | K8: 8 | L8: 9 | M8: 10 | N8: 11 | O8: 12 | P8: 13 | Q8: 14
F9: BUDGET | G9: BUDGET | H9: BUDGET | I9: BUDGET | J9: BUDGET | K9: BUDGET | L9: BUDGET | M9: BUDGET | N9: BUDGET | O9: BUDGET | P9: BUDGET | Q9: BUDGET
A10: Account | B10: Description | C10: Code | D10: FERC | E10: Total | F10: =LOGO!J7 -> 2023-07-31 | G10: =LOGO!J8 -> 2023-08-31 | H10: =LOGO!J9 -> 2023-09-30 | I10: =LOGO!J10 -> 2023-10-31 | J10: =LOGO!J11 -> 2023-11-30 | K10: =LOGO!J12 -> 2023-12-31 | L10: =LOGO!J13 -> 2024-01-31 | M10: =LOGO!J14 -> 2024-02-29 | N10: =LOGO!J15 -> 2024-03-31 | O10: =LOGO!J16 -> 2024-04-30 | P10: =LOGO!J17 -> 2024-05-31 | Q10: =LOGO!J18 -> 2024-06-30
A11: ='BASE PERIOD'!A11 -> 403002 | B11: ='BASE PERIOD'!B11 -> Depr-Expense | C11: ='BASE PERIOD'!C11 -> DEPR | D11: =VALUE(LEFT(A11,3)) -> 403 | E11: =SUM(F11:Q11) -> 54270722 | F11: 4425919 | G11: 4427557 | H11: 4466849 | I11: 4495530 | J11: 4495602 | K11: 4504890 | L11: 4576542 | M11: 4568996 | N11: 4564554 | O11: 4582143 | P11: 4581210 | Q11: 4580930
A12: ='BASE PERIOD'!A12 -> 404200 | B12: ='BASE PERIOD'!B12 -> Amort of Elec Plt - Software | C12: ='BASE PERIOD'!C12 -> DEPR | D12: 404 | E12: 2835306 | F12: 269357 | G12: 224214 | H12: 224207 | I12: 234007 | J12: 233275 | K12: 230389 | L12: 240337 | M12: 234838 | N12: 234773 | O12: 236556 | P12: 236591 | Q12: 236762
A13: ='BASE PERIOD'!A13 -> 407115 | B13: ='BASE PERIOD'!B13 -> Meter Amortization | C13: ='BASE PERIOD'!C13 -> AMORT | D13: =VALUE(LEFT(A13,3)) -> 407 | E13: =SUM(F13:Q13) -> 0 | F13: 0 | G13: 0 | H13: 0 | I13: 0 | J13: 0 | K13: 0 | L13: 0 | M13: 0 | N13: 0 | O13: 0 | P13: 0 | Q13: 0
A14: ='BASE PERIOD'!A14 -> 407305 | B14: ='BASE PERIOD'!B14 -> Regulatory Debits | C14: ='BASE PERIOD'!C14 -> AMORT | D14: 407 | E14: 5154204 | F14: 429517 | G14: 429517 | H14: 429517 | I14: 429517 | J14: 429517 | K14: 429517 | L14: 429517 | M14: 429517 | N14: 429517 | O14: 429517 | P14: 429517 | Q14: 429517
A15: ='BASE PERIOD'!A15 -> 407324 | B15: ='BASE PERIOD'!B15 -> NC & MW Coal As Amort Exp | C15: ='BASE PERIOD'!C15 -> AMORT | D15: 407 | E15: 6524004 | F15: 850667 | G15: 850667 | H15: 850667 | I15: 850667 | J15: 850667 | K15: 850667 | L15: 236667 | M15: 236667 | N15: 236667 | O15: 236667 | P15: 236667 | Q15: 236667
A16: ='BASE PERIOD'!A16 -> 407354 | B16: ='BASE PERIOD'!B16 -> DSM Deferral - Electric | C16: ='BASE PERIOD'!C16 -> OTH | D16: 407 | E16: 0 | F16: 0 | G16: 0 | H16: 0 | I16: 0 | J16: 0 | K16: 0 | L16: 0 | M16: 0 | N16: 0 | O16: 0 | P16: 0 | Q16: 0
A17: ='BASE PERIOD'!A17 -> 407407 | B17: ='BASE PERIOD'!B17 -> Carrying Charges | C17: ='BASE PERIOD'!C17 -> OTH | D17: 407 | E17: 0 | F17: 0 | G17: 0 | H17: 0 | I17: 0 | J17: 0 | K17: 0 | L17: 0 | M17: 0 | N17: 0 | O17: 0 | P17: 0 | Q17: 0
A18: ='BASE PERIOD'!A18 -> 408040 | B18: ='BASE PERIOD'!B18 -> Taxes Property-Allocated | C18: ='BASE PERIOD'!C18 -> OTHTX | D18: 408 | E18: =SUM(F18:Q18) -> 89088 | F18: 7424 | G18: 7424 | H18: 7424 | I18: 7424 | J18: 7424 | K18: 7424 | L18: 7424 | M18: 7424 | N18: 7424 | O18: 7424 | P18: 7424 | Q18: 7424
A19: ='BASE PERIOD'!A19 -> 408120 | B19: ='BASE PERIOD'!B19 -> Franchise Tax - Non Electric | C19: ='BASE PERIOD'!C19 -> OTHTX | D19: 408 | E19: 0 | F19: 0 | G19: 0 | H19: 0 | I19: 0 | J19: 0 | K19: 0 | L19: 0 | M19: 0 | N19: 0 | O19: 0 | P19: 0 | Q19: 0
A20: ='BASE PERIOD'!A20 -> 408121 | B20: ='BASE PERIOD'!B20 -> Taxes Property-Operating | C20: ='BASE PERIOD'!C20 -> OTHTX | D20: 408 | E20: 19652376 | F20: =1261718+311757 -> 1573475 | G20: =1261718+311757 -> 1573475 | H20: 1573475 | I20: 1573475 | J20: 1573475 | K20: 1573475 | L20: =1335927+365994 -> 1701921 | M20: =1335927+365994 -> 1701921 | N20: 1701921 | O20: 1701921 | P20: 1701921 | Q20: 1701921
A21: ='BASE PERIOD'!A21 -> 408150 | B21: ='BASE PERIOD'!B21 -> State Unemployment Tax | C21: ='BASE PERIOD'!C21 -> OTHTX | D21: 408 | E21: 0 | F21: 0 | G21: 0 | H21: 0 | I21: 0 | J21: 0 | K21: 0 | L21: 0 | M21: 0 | N21: 0 | O21: 0 | P21: 0 | Q21: 0
A22: ='BASE PERIOD'!A22 -> 408151 | B22: ='BASE PERIOD'!B22 -> Federal Unemployment Tax | C22: ='BASE PERIOD'!C22 -> OTHTX | D22: 408 | E22: 0 | F22: 0 | G22: 0 | H22: 0 | I22: 0 | J22: 0 | K22: 0 | L22: 0 | M22: 0 | N22: 0 | O22: 0 | P22: 0 | Q22: 0
A23: ='BASE PERIOD'!A23 -> 408152 | B23: ='BASE PERIOD'!B23 -> Employer FICA Tax | C23: ='BASE PERIOD'!C23 -> OTHTX | D23: 408 | E23: 0 | F23: 0 | G23: 0 | H23: 0 | I23: 0 | J23: 0 | K23: 0 | L23: 0 | M23: 0 | N23: 0 | O23: 0 | P23: 0 | Q23: 0
A24: ='BASE PERIOD'!A24 -> 408205 | B24: ='BASE PERIOD'!B24 -> Highway Use Tax | C24: ='BASE PERIOD'!C24 -> OTHTX | D24: 408 | E24: 0 | F24: 0 | G24: 0 | H24: 0 | I24: 0 | J24: 0 | K24: 0 | L24: 0 | M24: 0 | N24: 0 | O24: 0 | P24: 0 | Q24: 0
A25: 408470 | B25: Franchise Tax | C25: ='BASE PERIOD'!C25 -> OTHTX | D25: 408 | E25: =SUM(F25:Q25) -> 0 | F25: 0 | G25: 0 | H25: 0 | I25: 0 | J25: 0 | K25: 0 | L25: 0 | M25: 0 | N25: 0 | O25: 0 | P25: 0 | Q25: 0
A26: ='BASE PERIOD'!A26 -> 408700 | B26: ='BASE PERIOD'!B26 -> Fed Social Security Tax-Elec | C26: ='BASE PERIOD'!C26 -> OTHTX | D26: 408 | E26: 0 | F26: 0 | G26: 0 | H26: 0 | I26: 0 | J26: 0 | K26: 0 | L26: 0 | M26: 0 | N26: 0 | O26: 0 | P26: 0 | Q26: 0
A27: ='BASE PERIOD'!A27 -> 408800 | B27: ='BASE PERIOD'!B27 -> Federal Highway Use Tax-Elec | C27: ='BASE PERIOD'!C27 -> OTHTX | D27: 408 | E27: 0 | F27: 0 | G27: 0 | H27: 0 | I27: 0 | J27: 0 | K27: 0 | L27: 0 | M27: 0 | N27: 0 | O27: 0 | P27: 0 | Q27: 0
A28: ='BASE PERIOD'!A29 -> 408851 | B28: ='BASE PERIOD'!B29 -> Sales & Use Tax Exp | C28: ='BASE PERIOD'!C29 -> OTHTX | D28: 408 | E28: 0 | F28: 0 | G28: 0 | H28: 0 | I28: 0 | J28: 0 | K28: 0 | L28: 0 | M28: 0 | N28: 0 | O28: 0 | P28: 0 | Q28: 0
A29: ='BASE PERIOD'!A30 -> 408960 | B29: ='BASE PERIOD'!B30 -> Allocated Payroll Taxes | C29: ='BASE PERIOD'!C30 -> OTHTX | D29: 408 | E29: 1924728 | F29: 160394 | G29: 160394 | H29: 160394 | I29: 160394 | J29: 160394 | K29: 160394 | L29: 160394 | M29: 160394 | N29: 160394 | O29: 160394 | P29: 160394 | Q29: 160394
A30: ='BASE PERIOD'!A31 -> 409102 | B30: ='BASE PERIOD'!B31 -> SIT Exp-Utility | C30: ='BASE PERIOD'!C31 -> FIT | D30: 409 | E30: -834574 | F30: -69548 | G30: -69548 | H30: -69548 | I30: -69548 | J30: -69548 | K30: -69548 | L30: -69548 | M30: -69548 | N30: -69548 | O30: -69548 | P30: -69548 | Q30: -69546
A31: ='BASE PERIOD'!A32 -> 409104 | B31: ='BASE PERIOD'!B32 -> Current State Income Tax - PY | C31: ='BASE PERIOD'!C32 -> FIT | D31: 409 | E31: 0 | F31: 0 | G31: 0 | H31: 0 | I31: 0 | J31: 0 | K31: 0 | L31: 0 | M31: 0 | N31: 0 | O31: 0 | P31: 0 | Q31: 0
A32: ='BASE PERIOD'!A33 -> 409190 | B32: ='BASE PERIOD'!B33 -> Federal Income Tax-Electric-CY | C32: ='BASE PERIOD'!C33 -> FIT | D32: 409 | E32: -323953 | F32: -26996 | G32: -26996 | H32: -26996 | I32: -26996 | J32: -26996 | K32: -26996 | L32: -26996 | M32: -26996 | N32: -26996 | O32: -26996 | P32: -26996 | Q32: -26997
A33: ='BASE PERIOD'!A34 -> 409191 | B33: ='BASE PERIOD'!B34 -> Fed Income Tax-Electric-PY | C33: ='BASE PERIOD'!C34 -> FIT | D33: 409 | E33: 0 | F33: 0 | G33: 0 | H33: 0 | I33: 0 | J33: 0 | K33: 0 | L33: 0 | M33: 0 | N33: 0 | O33: 0 | P33: 0 | Q33: 0
A34: ='BASE PERIOD'!A35 -> 409194 | B34: ='BASE PERIOD'!B35 -> Current FIT Elec - PY Audit | C34: ='BASE PERIOD'!C35 -> FIT | D34: 409 | E34: 0 | F34: 0 | G34: 0 | H34: 0 | I34: 0 | J34: 0 | K34: 0 | L34: 0 | M34: 0 | N34: 0 | O34: 0 | P34: 0 | Q34: 0
A35: ='BASE PERIOD'!A36 -> 409195 | B35: ='BASE PERIOD'!B36 -> UTP Tax Expense: Fed Util-PY | C35: ='BASE PERIOD'!C36 -> FIT | D35: 409 | E35: 0 | F35: 0 | G35: 0 | H35: 0 | I35: 0 | J35: 0 | K35: 0 | L35: 0 | M35: 0 | N35: 0 | O35: 0 | P35: 0 | Q35: 0
A36: ='BASE PERIOD'!A37 -> 409197 | B36: ='BASE PERIOD'!B37 -> Current State Inc Tax-Util | C36: ='BASE PERIOD'!C37 -> FIT | D36: 409 | E36: =SUM(F36:Q36) -> 0 | F36: 0 | G36: 0 | H36: 0 | I36: 0 | J36: 0 | K36: 0 | L36: 0 | M36: 0 | N36: 0 | O36: 0 | P36: 0 | Q36: 0
A37: ='BASE PERIOD'!A38 -> 410100 | B37: ='BASE PERIOD'!B38 -> DFIT: Utility: Current Year | C37: ='BASE PERIOD'!C38 -> FIT | D37: 410 | E37: 1763749 | F37: 146979 | G37: 146979 | H37: 146979 | I37: 146979 | J37: 146979 | K37: 146979 | L37: 146979 | M37: 146979 | N37: 146979 | O37: 146979 | P37: 146979 | Q37: 146980
A38: ='BASE PERIOD'!A39 -> 410102 | B38: ='BASE PERIOD'!B39 -> DSIT: Utility: Current Year | C38: ='BASE PERIOD'!C39 -> FIT | D38: 410 | E38: 2110332 | F38: 175861 | G38: 175861 | H38: 175861 | I38: 175861 | J38: 175861 | K38: 175861 | L38: 175861 | M38: 175861 | N38: 175861 | O38: 175861 | P38: 175861 | Q38: 175861
A39: ='BASE PERIOD'!A40 -> 410105 | B39: ='BASE PERIOD'!B40 -> DFIT: Utility: Prior Year | C39: ='BASE PERIOD'!C40 -> FIT | D39: 410 | E39: 0 | F39: 0 | G39: 0 | H39: 0 | I39: 0 | J39: 0 | K39: 0 | L39: 0 | M39: 0 | N39: 0 | O39: 0 | P39: 0 | Q39: 0
A40: ='BASE PERIOD'!A41 -> 410106 | B40: ='BASE PERIOD'!B41 -> DSIT: Utility: Prior Year | C40: ='BASE PERIOD'!C41 -> FIT | D40: 410 | E40: 0 | F40: 0 | G40: 0 | H40: 0 | I40: 0 | J40: 0 | K40: 0 | L40: 0 | M40: 0 | N40: 0 | O40: 0 | P40: 0 | Q40: 0
A41: ='BASE PERIOD'!A43 -> 411051 | B41: ='BASE PERIOD'!B43 -> Accretion Expense-ARO Ash Pond | C41: ='BASE PERIOD'!C43 -> OTH | D41: 411 | E41: 0 | F41: 0 | G41: 0 | H41: 0 | I41: 0 | J41: 0 | K41: 0 | L41: 0 | M41: 0 | N41: 0 | O41: 0 | P41: 0 | Q41: 0
A42: ='BASE PERIOD'!A44 -> 411100 | B42: ='BASE PERIOD'!B44 -> DFIT: Utility: Curr Year CR | C42: ='BASE PERIOD'!C44 -> FIT | D42: 411 | E42: 0 | F42: 0 | G42: 0 | H42: 0 | I42: 0 | J42: 0 | K42: 0 | L42: 0 | M42: 0 | N42: 0 | O42: 0 | P42: 0 | Q42: 0
A43: ='BASE PERIOD'!A45 -> 411101 | B43: ='BASE PERIOD'!B45 -> DSIT: Utility: Curr Year CR | C43: ='BASE PERIOD'!C45 -> FIT | D43: 411 | E43: 0 | F43: 0 | G43: 0 | H43: 0 | I43: 0 | J43: 0 | K43: 0 | L43: 0 | M43: 0 | N43: 0 | O43: 0 | P43: 0 | Q43: 0
A44: ='BASE PERIOD'!A46 -> 411102 | B44: ='BASE PERIOD'!B46 -> DFIT: Utility: Prior Year CR | C44: ='BASE PERIOD'!C46 -> FIT | D44: 411 | E44: 0 | F44: 0 | G44: 0 | H44: 0 | I44: 0 | J44: 0 | K44: 0 | L44: 0 | M44: 0 | N44: 0 | O44: 0 | P44: 0 | Q44: 0
A45: ='BASE PERIOD'!A47 -> 411103 | B45: ='BASE PERIOD'!B47 -> DSIT: Utility: Prior Year CR | C45: ='BASE PERIOD'!C47 -> FIT | D45: 411 | E45: 0 | F45: 0 | G45: 0 | H45: 0 | I45: 0 | J45: 0 | K45: 0 | L45: 0 | M45: 0 | N45: 0 | O45: 0 | P45: 0 | Q45: 0
A46: ='BASE PERIOD'!A48 -> 411106 | B46: ='BASE PERIOD'!B48 -> DFIT:Utility:Prior year | C46: ='BASE PERIOD'!C48 -> FIT | D46: 411 | E46: 0 | F46: 0 | G46: 0 | H46: 0 | I46: 0 | J46: 0 | K46: 0 | L46: 0 | M46: 0 | N46: 0 | O46: 0 | P46: 0 | Q46: 0
A47: ='BASE PERIOD'!A49 -> 411410 | B47: ='BASE PERIOD'!B49 -> Invest Tax Credit Adj-Electric | C47: ='BASE PERIOD'!C49 -> FIT | D47: 411 | E47: =SUM(F47:Q47) -> 0 | F47: 0 | G47: 0 | H47: 0 | I47: 0 | J47: 0 | K47: 0 | L47: 0 | M47: 0 | N47: 0 | O47: 0 | P47: 0 | Q47: 0
A48: 411834 | B48: NOx Sales Proceeds Native | C48: Fuel | D48: 411 | E48: =SUM(F48:Q48) -> 0 | F48: 0 | G48: 0 | H48: 0 | I48: 0 | J48: 0 | K48: 0 | L48: 0 | M48: 0 | N48: 0 | O48: 0 | P48: 0 | Q48: 0
A49: 411835 | B49: NOx Sales COGS -Native | C49: Fuel | D49: 411 | E49: =SUM(F49:Q49) -> 0 | F49: 0 | G49: 0 | H49: 0 | I49: 0 | J49: 0 | K49: 0 | L49: 0 | M49: 0 | N49: 0 | O49: 0 | P49: 0 | Q49: 0
A50: 426591 | B50: I/C - Loss on Sale of AR | C50: ='BASE PERIOD'!C53 -> CO | D50: =VALUE(LEFT(A50,3)) -> 426 | E50: 260284 | F50: 47319 | G50: 103149 | H50: 66660 | I50: 76664 | J50: 44363 | K50: 78416 | L50: -115016 | M50: 1363 | N50: 9409 | O50: 227 | P50: -21358 | Q50: -30912
A51: 426891 | B51: IC Sale of AR Fees VIE | C51: ='BASE PERIOD'!C54 -> CO | D51: 426 | E51: 292463 | F51: 35382 | G51: 26462 | H51: 24015 | I51: 22103 | J51: 21460 | K51: 21950 | L51: 23690 | M51: 26811 | N51: 23484 | O51: 24807 | P51: 21855 | Q51: 20444
A52: ='BASE PERIOD'!A55 -> 440000 | B52: ='BASE PERIOD'!B55 -> Residential | C52: ='BASE PERIOD'!C55 -> REV | D52: 440 | E52: 159273003 | F52: 16436814 | G52: 16279843 | H52: 15114289 | I52: 10673803 | J52: 10400225 | K52: 13351461 | L52: 16104977 | M52: 15530859 | N52: 13136950 | O52: 10174403 | P52: 9791589 | Q52: 12277790
A53: ='BASE PERIOD'!A56 -> 440990 | B53: ='BASE PERIOD'!B56 -> Residential Unbilled Rev | C53: ='BASE PERIOD'!C56 -> REV | D53: 440 | E53: 94678 | F53: 630116 | G53: 3289 | H53: -1897581 | I53: -93789 | J53: 1833729 | K53: 1127795 | L53: -1484027 | M53: -449565 | N53: -1729528 | O53: -139379 | P53: 994481 | Q53: 1299137
A54: ='BASE PERIOD'!A57 -> 442100 | B54: ='BASE PERIOD'!B57 -> General Service | C54: ='BASE PERIOD'!C57 -> REV | D54: 442 | E54: 145156870 | F54: 13777835 | G54: 13675583 | H54: 13466744 | I54: 11852203 | J54: 11642119 | K54: 11833075 | L54: 11592154 | M54: 11783214 | N54: 10946837 | O54: 10669454 | P54: 11458118 | Q54: 12459534
A55: ='BASE PERIOD'!A58 -> 442190 | B55: ='BASE PERIOD'!B58 -> General Service Unbilled Rev | C55: ='BASE PERIOD'!C58 -> REV | D55: 442 | E55: -242550 | F55: 94707 | G55: 518177 | H55: -720924 | I55: 5638 | J55: 347176 | K55: -662511 | L55: -607923 | M55: -5031 | N55: -99912 | O55: -181039 | P55: 717022 | Q55: 352070
A56: ='BASE PERIOD'!A59 -> 442200 | B56: ='BASE PERIOD'!B59 -> Industrial Service | C56: ='BASE PERIOD'!C59 -> REV | D56: 442 | E56: 65096619 | F56: 5890240 | G56: 6053861 | H56: 5994756 | I56: 5538658 | J56: 5623093 | K56: 5327280 | L56: 4956379 | M56: 5291786 | N56: 4842648 | O56: 4879923 | P56: 5201153 | Q56: 5496842
A57: ='BASE PERIOD'!A60 -> 442290 | B57: ='BASE PERIOD'!B60 -> Industrial Svc Unbilled Rev | C57: ='BASE PERIOD'!C60 -> REV | D57: 442 | E57: -157313 | F57: 42417 | G57: 299376 | H57: -378771 | I57: 160505 | J57: 110154 | K57: -425867 | L57: -282835 | M57: -36282 | N57: 35076 | O57: -98675 | P57: 397645 | Q57: 19944
A58: ='BASE PERIOD'!A61 -> 444000 | B58: ='BASE PERIOD'!B61 -> Public St & Highway Lighting | C58: ='BASE PERIOD'!C61 -> REV | D58: 444 | E58: 1715100 | F58: 145958 | G58: 142549 | H58: 146805 | I58: 140852 | J58: 151236 | K58: 144831 | L58: 136529 | M58: 150266 | N58: 136560 | O58: 147586 | P58: 129792 | Q58: 142136
A59: ='BASE PERIOD'!A62 -> 445000 | B59: ='BASE PERIOD'!B62 -> Other Sales to Public Auth | C59: ='BASE PERIOD'!C62 -> REV | D59: 445 | E59: 24629772 | F59: 2276469 | G59: 2247742 | H59: 2307867 | I59: 2030233 | J59: 1855845 | K59: 1992676 | L59: 1964982 | M59: 2126093 | N59: 1746780 | O59: 1921909 | P59: 2018135 | Q59: 2141041
A60: ='BASE PERIOD'!A63 -> 445090 | B60: ='BASE PERIOD'!B63 -> OPA Unbilled | C60: ='BASE PERIOD'!C63 -> REV | D60: 445 | E60: -66882 | F60: 1610 | G60: 76706 | H60: -180528 | I60: 92153 | J60: 81074 | K60: -125864 | L60: -143011 | M60: 14816 | N60: -89472 | O60: 24794 | P60: 154226 | Q60: 26614
A61: ='BASE PERIOD'!A64 -> 447150 | B61: ='BASE PERIOD'!B64 -> Sales For Resale - Outside | C61: ='BASE PERIOD'!C64 -> REV | D61: 447 | E61: 5535505 | F61: 566848 | G61: 30502 | H61: 0 | I61: 136462 | J61: 31822 | K61: 0 | L61: 3376886 | M61: 1264978 | N61: 114639 | O61: 13368 | P61: 0 | Q61: 0
A62: ='BASE PERIOD'!A65 -> 448000 | B62: ='BASE PERIOD'!B65 -> Interdepartmental Sales-Elec | C62: ='BASE PERIOD'!C65 -> REV | D62: 448 | E62: 71904 | F62: 4328 | G62: 5120 | H62: 4763 | I62: 4453 | J62: 4285 | K62: 8519 | L62: 9685 | M62: 9250 | N62: 8551 | O62: 4837 | P62: 3926 | Q62: 4187
A63: ='BASE PERIOD'!A66 -> 449100 | B63: ='BASE PERIOD'!B66 -> Provisions For Rate Refunds | C63: ='BASE PERIOD'!C66 -> REV | D63: 449 | E63: 0 | F63: 0 | G63: 0 | H63: 0 | I63: 0 | J63: 0 | K63: 0 | L63: 0 | M63: 0 | N63: 0 | O63: 0 | P63: 0 | Q63: 0
A64: ='BASE PERIOD'!A67 -> 449111 | B64: ='BASE PERIOD'!B67 -> Tax Reform - Residential | C64: ='BASE PERIOD'!C67 -> REV | D64: =VALUE(LEFT(A64,3)) -> 449 | E64: =SUM(F64:Q64) -> 0 | F64: 0 | G64: 0 | H64: 0 | I64: 0 | J64: 0 | K64: 0 | L64: 0 | M64: 0 | N64: 0 | O64: 0 | P64: 0 | Q64: 0
A65: ='BASE PERIOD'!A68 -> 450100 | B65: ='BASE PERIOD'!B68 -> Late Payment Fees | C65: ='BASE PERIOD'!C68 -> REV | D65: 450 | E65: =SUM(F65:Q65) -> 0 | F65: 0 | G65: 0 | H65: 0 | I65: 0 | J65: 0 | K65: 0 | L65: 0 | M65: 0 | N65: 0 | O65: 0 | P65: 0 | Q65: 0
A66: ='BASE PERIOD'!A69 -> 451100 | B66: ='BASE PERIOD'!B69 -> Misc Service Revenue | C66: ='BASE PERIOD'!C69 -> REV | D66: 451 | E66: =SUM(F66:Q66) -> 249996 | F66: 20833 | G66: 20833 | H66: 20833 | I66: 20833 | J66: 20833 | K66: 20833 | L66: 20833 | M66: 20833 | N66: 20833 | O66: 20833 | P66: 20833 | Q66: 20833
A67: ='BASE PERIOD'!A70 -> 454004 | B67: ='BASE PERIOD'!B70 -> Rent - Joint Use | C67: ='BASE PERIOD'!C70 -> REV | D67: 454 | E67: =SUM(F67:Q67) -> 0 | F67: 0 | G67: 0 | H67: 0 | I67: 0 | J67: 0 | K67: 0 | L67: 0 | M67: 0 | N67: 0 | O67: 0 | P67: 0 | Q67: 0
A68: 454100 | B68: Extra-Facilities | C68: REV | D68: =VALUE(LEFT(A68,3)) -> 454 | E68: =SUM(F68:Q68) -> 0 | F68: 0 | G68: 0 | H68: 0 | I68: 0 | J68: 0 | K68: 0 | L68: 0 | M68: 0 | N68: 0 | O68: 0 | P68: 0 | Q68: 0
A69: ='BASE PERIOD'!A72 -> 454200 | B69: ='BASE PERIOD'!B72 -> Pole & Line Attachments | C69: ='BASE PERIOD'!C72 -> REV | D69: 454 | E69: 217344 | F69: 18112 | G69: 18112 | H69: 18112 | I69: 18112 | J69: 18112 | K69: 18112 | L69: 18112 | M69: 18112 | N69: 18112 | O69: 18112 | P69: 18112 | Q69: 18112
A70: 454210 | B70: Foreign Pole Revenue | C70: REV | D70: 454 | E70: 0 | F70: 0 | G70: 0 | H70: 0 | I70: 0 | J70: 0 | K70: 0 | L70: 0 | M70: 0 | N70: 0 | O70: 0 | P70: 0 | Q70: 0
A71: ='BASE PERIOD'!A74 -> 454300 | B71: ='BASE PERIOD'!B74 -> Tower Lease Revenues | C71: ='BASE PERIOD'!C74 -> REV | D71: 454 | E71: 0 | F71: 0 | G71: 0 | H71: 0 | I71: 0 | J71: 0 | K71: 0 | L71: 0 | M71: 0 | N71: 0 | O71: 0 | P71: 0 | Q71: 0
A72: ='BASE PERIOD'!A75 -> 454400 | B72: ='BASE PERIOD'!B75 -> Other Electric Rents | C72: ='BASE PERIOD'!C75 -> REV | D72: 454 | E72: 1299996 | F72: 108333 | G72: 108333 | H72: 108333 | I72: 108333 | J72: 108333 | K72: 108333 | L72: 108333 | M72: 108333 | N72: 108333 | O72: 108333 | P72: 108333 | Q72: 108333
A73: ='BASE PERIOD'!A76 -> 456025 | B73: ='BASE PERIOD'!B76 -> RSG Rev - MISO Make Whole | C73: ='BASE PERIOD'!C76 -> REV | D73: 456 | E73: =SUM(F73:Q73) -> 0 | F73: 0 | G73: 0 | H73: 0 | I73: 0 | J73: 0 | K73: 0 | L73: 0 | M73: 0 | N73: 0 | O73: 0 | P73: 0 | Q73: 0
A74: ='BASE PERIOD'!A77 -> 456040 | B74: ='BASE PERIOD'!B77 -> Sales Use Tax Coll Fee | C74: ='BASE PERIOD'!C77 -> REV | D74: 456 | E74: 0 | F74: 0 | G74: 0 | H74: 0 | I74: 0 | J74: 0 | K74: 0 | L74: 0 | M74: 0 | N74: 0 | O74: 0 | P74: 0 | Q74: 0
A75: ='BASE PERIOD'!A78 -> 456075 | B75: ='BASE PERIOD'!B78 -> Data Processing Service | C75: ='BASE PERIOD'!C78 -> REV | D75: 456 | E75: =SUM(F75:Q75) -> 0 | F75: 0 | G75: 0 | H75: 0 | I75: 0 | J75: 0 | K75: 0 | L75: 0 | M75: 0 | N75: 0 | O75: 0 | P75: 0 | Q75: 0
A76: ='BASE PERIOD'!A79 -> 456110 | B76: ='BASE PERIOD'!B79 -> Transmission Charge PTP | C76: ='BASE PERIOD'!C79 -> REV | D76: 456 | E76: 144996 | F76: 12083 | G76: 12083 | H76: 12083 | I76: 12083 | J76: 12083 | K76: 12083 | L76: 12083 | M76: 12083 | N76: 12083 | O76: 12083 | P76: 12083 | Q76: 12083
A77: ='BASE PERIOD'!A80 -> 456111 | B77: ='BASE PERIOD'!B80 -> Other Transmission Revenues | C77: ='BASE PERIOD'!C80 -> REV | D77: 456 | E77: =SUM(F77:Q77) -> 0 | F77: 0 | G77: 0 | H77: 0 | I77: 0 | J77: 0 | K77: 0 | L77: 0 | M77: 0 | N77: 0 | O77: 0 | P77: 0 | Q77: 0
A78: ='BASE PERIOD'!A81 -> 456610 | B78: ='BASE PERIOD'!B81 -> Other Electric Revenues | C78: ='BASE PERIOD'!C81 -> REV | D78: 456 | E78: =SUM(F78:Q78) -> 0 | F78: 0 | G78: 0 | H78: 0 | I78: 0 | J78: 0 | K78: 0 | L78: 0 | M78: 0 | N78: 0 | O78: 0 | P78: 0 | Q78: 0
A79: ='BASE PERIOD'!A82 -> 456970 | B79: ='BASE PERIOD'!B82 -> Wheel Transmission Rev - ED | C79: ='BASE PERIOD'!C82 -> REV | D79: 456 | E79: 24504 | F79: 2042 | G79: 2042 | H79: 2042 | I79: 2042 | J79: 2042 | K79: 2042 | L79: 2042 | M79: 2042 | N79: 2042 | O79: 2042 | P79: 2042 | Q79: 2042
A80: ='BASE PERIOD'!A83 -> 457100 | B80: ='BASE PERIOD'!B83 -> Regional Transmission Service | C80: ='BASE PERIOD'!C83 -> REV | D80: 457 | E80: =SUM(F80:Q80) -> 0 | F80: 0 | G80: 0 | H80: 0 | I80: 0 | J80: 0 | K80: 0 | L80: 0 | M80: 0 | N80: 0 | O80: 0 | P80: 0 | Q80: 0
A81: ='BASE PERIOD'!A84 -> 457105 | B81: ='BASE PERIOD'!B84 -> Scheduling & Dispatch Revenues | C81: ='BASE PERIOD'!C84 -> REV | D81: 457 | E81: =SUM(F81:Q81) -> 0 | F81: 0 | G81: 0 | H81: 0 | I81: 0 | J81: 0 | K81: 0 | L81: 0 | M81: 0 | N81: 0 | O81: 0 | P81: 0 | Q81: 0
A82: ='BASE PERIOD'!A85 -> 457204 | B82: ='BASE PERIOD'!B85 -> PJM Reactive Rev | C82: ='BASE PERIOD'!C85 -> REV | D82: 457 | E82: =SUM(F82:Q82) -> 1881000 | F82: 156750 | G82: 156750 | H82: 156750 | I82: 156750 | J82: 156750 | K82: 156750 | L82: 156750 | M82: 156750 | N82: 156750 | O82: 156750 | P82: 156750 | Q82: 156750
A83: ='BASE PERIOD'!A86 -> 500000 | B83: ='BASE PERIOD'!B86 -> Suprvsn and Engrg - Steam Oper | C83: ='BASE PERIOD'!C86 -> PO | D83: 500 | E83: =SUM(F83:Q83) -> 627772 | F83: 45125 | G83: 44757 | H83: 49981 | I83: 52034 | J83: 51360 | K83: 52046 | L83: 53351 | M83: 53129 | N83: 61093 | O83: 60889 | P83: 55191 | Q83: 48816
A84: ='BASE PERIOD'!A87 -> 501110 | B84: ='BASE PERIOD'!B87 -> Coal Consumed-Fossil Steam | C84: ='BASE PERIOD'!C87 -> Fuel | D84: 501 | E84: =SUM(F84:Q84) -> 31401736 | F84: 4891628 | G84: 4898832 | H84: 104977 | I84: 535173 | J84: 943762 | K84: 1265688 | L84: 8309450 | M84: 7799843 | N84: 1882256 | O84: 704015 | P84: 0 | Q84: 66112
A85: ='BASE PERIOD'!A88 -> 501150 | B85: ='BASE PERIOD'!B88 -> Coal & Other Fuel Handling | C85: ='BASE PERIOD'!C88 -> PO | D85: 501 | E85: 1043317 | F85: 82646 | G85: 82670 | H85: 82883 | I85: 82810 | J85: 82854 | K85: 104310 | L85: 81886 | M85: 82253 | N85: 84705 | O85: 84657 | P85: 106445 | Q85: 85198
A86: ='BASE PERIOD'!A89 -> 501160 | B86: ='BASE PERIOD'!B89 -> Coal Sampling & Testing | C86: ='BASE PERIOD'!C89 -> PO | D86: 501 | E86: 0 | F86: 0 | G86: 0 | H86: 0 | I86: 0 | J86: 0 | K86: 0 | L86: 0 | M86: 0 | N86: 0 | O86: 0 | P86: 0 | Q86: 0
A87: 501180 | B87: Sale of Fly Ash-Revenues | C87: ='BASE PERIOD'!C90 -> PO | D87: 501 | E87: =SUM(F87:Q87) -> 3780 | F87: 0 | G87: 0 | H87: 945 | I87: 0 | J87: 0 | K87: 945 | L87: 0 | M87: 0 | N87: 945 | O87: 0 | P87: 0 | Q87: 945
A88: ='BASE PERIOD'!A91 -> 501190 | B88: ='BASE PERIOD'!B91 -> Sale of Fly Ash-Expenses | C88: ='BASE PERIOD'!C91 -> PO | D88: 501 | E88: =SUM(F88:Q88) -> 4124508 | F88: 343721 | G88: 343721 | H88: 343720 | I88: 343723 | J88: 343721 | K88: 343724 | L88: 343668 | M88: 343636 | N88: 343719 | O88: 343717 | P88: 343720 | Q88: 343718
A89: ='BASE PERIOD'!A92 -> 501310 | B89: ='BASE PERIOD'!B92 -> Oil Consumed-Fossil Steam | C89: ='BASE PERIOD'!C92 -> Fuel | D89: 501 | E89: =SUM(F89:Q89) -> 0 | F89: 0 | G89: 0 | H89: 0 | I89: 0 | J89: 0 | K89: 0 | L89: 0 | M89: 0 | N89: 0 | O89: 0 | P89: 0 | Q89: 0
A90: ='BASE PERIOD'!A93 -> 501350 | B90: ='BASE PERIOD'!B93 -> Oil Handling Expense | C90: ='BASE PERIOD'!C93 -> PO | D90: 501 | E90: =SUM(F90:Q90) -> 0 | F90: 0 | G90: 0 | H90: 0 | I90: 0 | J90: 0 | K90: 0 | L90: 0 | M90: 0 | N90: 0 | O90: 0 | P90: 0 | Q90: 0
A91: ='BASE PERIOD'!A94 -> 501996 | B91: ='BASE PERIOD'!B94 -> Fuel Expense | C91: ='BASE PERIOD'!C94 -> Fuel | D91: 501 | E91: =SUM(F91:Q91) -> 3763221 | F91: 375155 | G91: 20713 | H91: 0 | I91: 83763 | J91: 19862 | K91: 0 | L91: 2375102 | M91: 801047 | N91: 77885 | O91: 9694 | P91: 0 | Q91: 0
A92: 502020 | B92: Ammonia - Qualifying | C92: PO | D92: 502 | E92: 281300 | F92: 29200 | G92: 40700 | H92: 700 | I92: 3200 | J92: 25400 | K92: 23300 | L92: 49700 | M92: 46700 | N92: 50100 | O92: 7800 | P92: 4500 | Q92: 0
A93: ='BASE PERIOD'!A96 -> 502040 | B93: ='BASE PERIOD'!B96 -> Cost of Lime | C93: ='BASE PERIOD'!C96 -> PO | D93: 502 | E93: 7527600 | F93: 782300 | G93: 1088200 | H93: 20100 | I93: 86800 | J93: 679600 | K93: 624200 | L93: 1331100 | M93: 1248400 | N93: 1339700 | O93: 207700 | P93: 119500 | Q93: 0
A94: ='BASE PERIOD'!A97 -> 502070 | B94: ='BASE PERIOD'!B97 -> Gypsum - Qualifying | C94: ='BASE PERIOD'!C97 -> PO | D94: 502 | E94: =SUM(F94:Q94) -> 0 | F94: 0 | G94: 0 | H94: 0 | I94: 0 | J94: 0 | K94: 0 | L94: 0 | M94: 0 | N94: 0 | O94: 0 | P94: 0 | Q94: 0
A95: ='BASE PERIOD'!A98 -> 502100 | B95: ='BASE PERIOD'!B98 -> Fossil Steam Exp-Other | C95: ='BASE PERIOD'!C98 -> PO | D95: 502 | E95: 3538062 | F95: 273458 | G95: 273631 | H95: 274995 | I95: 274358 | J95: 274538 | K95: 384669 | L95: 270085 | M95: 272188 | N95: 281697 | O95: 281090 | P95: 392839 | Q95: 284514
A96: ='BASE PERIOD'!A99 -> 502410 | B96: ='BASE PERIOD'!B99 -> Steam Oper-Bottom Ash/Fly Ash | C96: ='BASE PERIOD'!C99 -> PO | D96: 502 | E96: =SUM(F96:Q96) -> 0 | F96: 0 | G96: 0 | H96: 0 | I96: 0 | J96: 0 | K96: 0 | L96: 0 | M96: 0 | N96: 0 | O96: 0 | P96: 0 | Q96: 0
A97: ='BASE PERIOD'!A100 -> 505000 | B97: ='BASE PERIOD'!B100 -> Electric Expenses-Steam Oper | C97: ='BASE PERIOD'!C100 -> PO | D97: 505 | E97: =SUM(F97:Q97) -> 1299924 | F97: 99477 | G97: 99529 | H97: 99986 | I97: 99829 | J97: 99924 | K97: 145940 | L97: 98350 | M97: 99161 | N97: 102531 | O97: 102430 | P97: 149167 | Q97: 103600
A98: ='BASE PERIOD'!A101 -> 506000 | B98: ='BASE PERIOD'!B101 -> Misc Fossil Power Expenses | C98: ='BASE PERIOD'!C101 -> PO | D98: 506 | E98: 2379925 | F98: 134312 | G98: 131711 | H98: 197113 | I98: 132999 | J98: 132342 | K98: 779004 | L98: 139483 | M98: 143832 | N98: 149919 | O98: 139941 | P98: 140524 | Q98: 158745
A99: ='BASE PERIOD'!A102 -> 507000 | B99: ='BASE PERIOD'!B102 -> Steam Power Gen Op Rents | C99: ='BASE PERIOD'!C102 -> PO | D99: 507 | E99: =SUM(F99:Q99) -> 0 | F99: 0 | G99: 0 | H99: 0 | I99: 0 | J99: 0 | K99: 0 | L99: 0 | M99: 0 | N99: 0 | O99: 0 | P99: 0 | Q99: 0
A100: ='BASE PERIOD'!A103 -> 509030 | B100: ='BASE PERIOD'!B103 -> SO2 Emission Expense | C100: ='BASE PERIOD'!C103 -> EA | D100: 509 | E100: 0 | F100: 0 | G100: 0 | H100: 0 | I100: 0 | J100: 0 | K100: 0 | L100: 0 | M100: 0 | N100: 0 | O100: 0 | P100: 0 | Q100: 0
A101: ='BASE PERIOD'!A104 -> 509212 | B101: ='BASE PERIOD'!B104 -> Annual NOx Emission Expense | C101: ='BASE PERIOD'!C104 -> EA | D101: 509 | E101: 0 | F101: 0 | G101: 0 | H101: 0 | I101: 0 | J101: 0 | K101: 0 | L101: 0 | M101: 0 | N101: 0 | O101: 0 | P101: 0 | Q101: 0
A102: ='BASE PERIOD'!A105 -> 510000 | B102: ='BASE PERIOD'!B105 -> Suprvsn and Engrng-Steam Maint | C102: ='BASE PERIOD'!C105 -> PM | D102: 510 | E102: 2888869 | F102: 257401 | G102: 259558 | H102: 259244 | I102: 62525 | J102: 257238 | K102: 256328 | L102: 252448 | M102: 245693 | N102: 262190 | O102: 251383 | P102: 262446 | Q102: 262415
A103: ='BASE PERIOD'!A106 -> 510100 | B103: ='BASE PERIOD'!B106 -> Suprvsn & Engrng-Steam Maint R | C103: ='BASE PERIOD'!C106 -> PM | D103: 510 | E103: 15037 | F103: 1566 | G103: 1184 | H103: 1130 | I103: 1097 | J103: 1164 | K103: 1662 | L103: 1105 | M103: 1118 | N103: 1140 | O103: 1190 | P103: 1493 | Q103: 1188
A104: ='BASE PERIOD'!A107 -> 511000 | B104: ='BASE PERIOD'!B107 -> Maint of Structures-Steam | C104: ='BASE PERIOD'!C107 -> PM | D104: 511 | E104: =SUM(F104:Q104) -> 4620574 | F104: 307961 | G104: 422080 | H104: 387030 | I104: 458703 | J104: 503847 | K104: 340698 | L104: 357068 | M104: 358740 | N104: 364683 | O104: 361350 | P104: 391658 | Q104: 366756
A105: ='BASE PERIOD'!A108 -> 512100 | B105: ='BASE PERIOD'!B108 -> Maint of Boiler Plant-Other | C105: ='BASE PERIOD'!C108 -> PM | D105: 512 | E105: =SUM(F105:Q105) -> 10872466 | F105: 522038 | G105: 586970 | H105: 663477 | I105: 1206503 | J105: 1066399 | K105: 575751 | L105: 517549 | M105: 633508 | N105: 1024237 | O105: 2031806 | P105: 1370527 | Q105: 673701
A106: ='BASE PERIOD'!A109 -> 513100 | B106: ='BASE PERIOD'!B109 -> Maint of Electric Plant-Other | C106: ='BASE PERIOD'!C109 -> PM | D106: 513 | E106: =SUM(F106:Q106) -> 2379792 | F106: 144917 | G106: 94965 | H106: 220381 | I106: 285238 | J106: 303816 | K106: 94764 | L106: 93944 | M106: 119705 | N106: 340082 | O106: 304907 | P106: 255487 | Q106: 121586
A107: ='BASE PERIOD'!A110 -> 514000 | B107: ='BASE PERIOD'!B110 -> Maintenance - Misc Steam Plant | C107: ='BASE PERIOD'!C110 -> PM | D107: 514 | E107: 430187 | F107: 34434 | G107: 34449 | H107: 34574 | I107: 34531 | J107: 34557 | K107: 41888 | L107: 34131 | M107: 34357 | N107: 34924 | O107: 34886 | P107: 42404 | Q107: 35052
A108: ='BASE PERIOD'!A111 -> 514300 | B108: ='BASE PERIOD'!B111 -> Maintenance - Misc Steam Plant | C108: ='BASE PERIOD'!C111 -> PM | D108: 514 | E108: 0 | F108: 0 | G108: 0 | H108: 0 | I108: 0 | J108: 0 | K108: 0 | L108: 0 | M108: 0 | N108: 0 | O108: 0 | P108: 0 | Q108: 0
A109: ='BASE PERIOD'!A112 -> 546000 | B109: ='BASE PERIOD'!B112 -> Suprvsn and Enginring-CT Oper | C109: ='BASE PERIOD'!C112 -> PO | D109: 546 | E109: 84445 | F109: 7958 | G109: 6522 | H109: 6598 | I109: 6579 | J109: 6590 | K109: 7938 | L109: 6205 | M109: 6248 | N109: 7123 | O109: 7086 | P109: 8544 | Q109: 7054
A110: ='BASE PERIOD'!A113 -> 547100 | B110: ='BASE PERIOD'!B113 -> Natural Gas | C110: ='BASE PERIOD'!C113 -> Fuel | D110: 547 | E110: 0 | F110: 0 | G110: 0 | H110: 0 | I110: 0 | J110: 0 | K110: 0 | L110: 0 | M110: 0 | N110: 0 | O110: 0 | P110: 0 | Q110: 0
A111: ='BASE PERIOD'!A114 -> 547150 | B111: ='BASE PERIOD'!B114 -> Natural Gas Handling-CT | C111: PO | D111: 547 | E111: 32261 | F111: 2643 | G111: 2644 | H111: 2643 | I111: 2644 | J111: 2643 | K111: 2675 | L111: 2621 | M111: 2599 | N111: 2697 | O111: 3057 | P111: 2698 | Q111: 2697
A112: ='BASE PERIOD'!A115 -> 547200 | B112: ='BASE PERIOD'!B115 -> Oil | C112: PO | D112: =VALUE(LEFT(A112,3)) -> 547 | E112: =SUM(F112:Q112) -> 0 | F112: 0 | G112: 0 | H112: 0 | I112: 0 | J112: 0 | K112: 0 | L112: 0 | M112: 0 | N112: 0 | O112: 0 | P112: 0 | Q112: 0
A113: ='BASE PERIOD'!A116 -> 548100 | B113: ='BASE PERIOD'!B116 -> Generation Expenses-Other CT | C113: ='BASE PERIOD'!C116 -> PO | D113: 548 | E113: 19638 | F113: 1622 | G113: 1627 | H113: 1661 | I113: 1621 | J113: 1612 | K113: 1654 | L113: 1575 | M113: 1577 | N113: 1682 | O113: 1635 | P113: 1662 | Q113: 1710
A114: ='BASE PERIOD'!A117 -> 548200 | B114: ='BASE PERIOD'!B117 -> Prime Movers - Generators- CT | C114: ='BASE PERIOD'!C117 -> PO | D114: 548 | E114: 170577 | F114: 19882 | G114: 12133 | H114: 12209 | I114: 12239 | J114: 12255 | K114: 19896 | L114: 11973 | M114: 12108 | N114: 12551 | O114: 12534 | P114: 20296 | Q114: 12501
A115: ='BASE PERIOD'!A118 -> 549000 | B115: ='BASE PERIOD'!B118 -> Misc-Power Generation Expenses | C115: ='BASE PERIOD'!C118 -> PO | D115: 549 | E115: 672209 | F115: 66729 | G115: 63880 | H115: 54445 | I115: 49019 | J115: 46759 | K115: 56227 | L115: 43549 | M115: 52947 | N115: 47004 | O115: 50509 | P115: 85227 | Q115: 55914
A116: ='BASE PERIOD'!A119 -> 551000 | B116: ='BASE PERIOD'!B119 -> Suprvsn and Enginring-CT Maint | C116: ='BASE PERIOD'!C119 -> PM | D116: 551 | E116: 463693 | F116: 38421 | G116: 38364 | H116: 38496 | I116: 38451 | J116: 38478 | K116: 38376 | L116: 37818 | M116: 38049 | N116: 39384 | O116: 39283 | P116: 39346 | Q116: 39227
A117: ='BASE PERIOD'!A120 -> 552000 | B117: ='BASE PERIOD'!B120 -> Maintenance of Structures-CT | C117: ='BASE PERIOD'!C120 -> PM | D117: 552 | E117: 202758 | F117: 12310 | G117: 12310 | H117: 22310 | I117: 12310 | J117: 12310 | K117: 12348 | L117: 12310 | M117: 12310 | N117: 12310 | O117: 12310 | P117: 47310 | Q117: 22310
A118: ='BASE PERIOD'!A121 -> 552220 | B118: ='BASE PERIOD'!B121 -> Solar: Maint of Structures | C118: ='BASE PERIOD'!C121 -> PM | D118: 552 | E118: =SUM(F118:Q118) -> 0 | F118: 0 | G118: 0 | H118: 0 | I118: 0 | J118: 0 | K118: 0 | L118: 0 | M118: 0 | N118: 0 | O118: 0 | P118: 0 | Q118: 0
A119: ='BASE PERIOD'!A122 -> 553000 | B119: ='BASE PERIOD'!B122 -> Maint-Gentg and Elect Equip-CT | C119: ='BASE PERIOD'!C122 -> PM | D119: 553 | E119: 516818 | F119: 35598 | G119: 158349 | H119: 21963 | I119: 68511 | J119: 8376 | K119: 15563 | L119: 54767 | M119: 8323 | N119: 27251 | O119: 32551 | P119: 67946 | Q119: 17620
A120: ='BASE PERIOD'!A123 -> 554000 | B120: ='BASE PERIOD'!B123 -> Misc Power Generation Plant-CT | C120: ='BASE PERIOD'!C123 -> PM | D120: 554 | E120: =SUM(F120:Q120) -> 331568 | F120: 31844 | G120: 24152 | H120: 24602 | I120: 25041 | J120: 24217 | K120: 32186 | L120: 23957 | M120: 24931 | N120: 25861 | O120: 24630 | P120: 41334 | Q120: 28813
A121: ='BASE PERIOD'!A124 -> 555028 | B121: ='BASE PERIOD'!B124 -> Purch Pwr - Non-native - net | C121: ='BASE PERIOD'!C124 -> PP | D121: 555 | E121: 0 | F121: 0 | G121: 0 | H121: 0 | I121: 0 | J121: 0 | K121: 0 | L121: 0 | M121: 0 | N121: 0 | O121: 0 | P121: 0 | Q121: 0
A122: ='BASE PERIOD'!A125 -> 555190 | B122: ='BASE PERIOD'!B125 -> Capacity Purchase Expense | C122: ='BASE PERIOD'!C125 -> PP | D122: 555 | E122: 0 | F122: 0 | G122: 0 | H122: 0 | I122: 0 | J122: 0 | K122: 0 | L122: 0 | M122: 0 | N122: 0 | O122: 0 | P122: 0 | Q122: 0
A123: ='BASE PERIOD'!A126 -> 555202 | B123: ='BASE PERIOD'!B126 -> Purch Power-Fuel Clause | C123: ='BASE PERIOD'!C126 -> PP | D123: 555 | E123: =SUM(F123:Q123) -> 90298628 | F123: 7715290 | G123: 6958191 | H123: 10995765 | I123: 8737354 | J123: 8312061 | K123: 9856931 | L123: 1489563 | M123: 1554282 | N123: 8041900 | O123: 7737754 | P123: 8719632 | Q123: 10179905
A124: ='BASE PERIOD'!A127 -> 556000 | B124: ='BASE PERIOD'!B127 -> System Cnts & Load Dispatching | C124: ='BASE PERIOD'!C127 -> OPS | D124: 556 | E124: =SUM(F124:Q124) -> 90367 | F124: 7517 | G124: 7452 | H124: 7452 | I124: 7452 | J124: 7452 | K124: 7516 | L124: 7407 | M124: 7407 | N124: 7664 | O124: 7664 | P124: 7720 | Q124: 7664
A125: ='BASE PERIOD'!A128 -> 557000 | B125: ='BASE PERIOD'!B128 -> Other Expenses-Oper | C125: ='BASE PERIOD'!C128 -> OPS | D125: 557 | E125: =SUM(F125:Q125) -> 6016471 | F125: 418396 | G125: 492054 | H125: 417649 | I125: 450277 | J125: 373462 | K125: 1142589 | L125: 407699 | M125: 435267 | N125: 461670 | O125: 471422 | P125: 452663 | Q125: 493323
A126: ='BASE PERIOD'!A129 -> 557450 | B126: ='BASE PERIOD'!B129 -> Commissions/Brokerage Expense | C126: ='BASE PERIOD'!C129 -> OPS | D126: 557 | E126: 74124 | F126: 6177 | G126: 6177 | H126: 6177 | I126: 6177 | J126: 6177 | K126: 6177 | L126: 6177 | M126: 6177 | N126: 6177 | O126: 6177 | P126: 6177 | Q126: 6177
A127: ='BASE PERIOD'!A130 -> 557451 | B127: ='BASE PERIOD'!B130 -> EA & Coal Broker Fees | C127: ='BASE PERIOD'!C130 -> OPS | D127: 557 | E127: =SUM(F127:Q127) -> 0 | F127: 0 | G127: 0 | H127: 0 | I127: 0 | J127: 0 | K127: 0 | L127: 0 | M127: 0 | N127: 0 | O127: 0 | P127: 0 | Q127: 0
A128: ='BASE PERIOD'!A131 -> 557980 | B128: ='BASE PERIOD'!B131 -> Retail Deferred Fuel Expenses | C128: ='BASE PERIOD'!C131 -> Fuel | D128: 557 | E128: =SUM(F128:Q128) -> 8105944 | F128: 566094 | G128: 1400102 | H128: 104962 | I128: 207652 | J128: 1262332 | K128: -377140 | L128: 1605156 | M128: 2627572 | N128: -1325802 | O128: -199921 | P128: 1547884 | Q128: 687053
A129: ='BASE PERIOD'!A132 -> 560000 | B129: ='BASE PERIOD'!B132 -> Supervsn and Engrng-Trans Oper | C129: ='BASE PERIOD'!C132 -> TO | D129: 560 | E129: 0 | F129: 0 | G129: 0 | H129: 0 | I129: 0 | J129: 0 | K129: 0 | L129: 0 | M129: 0 | N129: 0 | O129: 0 | P129: 0 | Q129: 0
A130: ='BASE PERIOD'!A133 -> 561100 | B130: ='BASE PERIOD'!B133 -> Load Dispatch-Reliability | C130: ='BASE PERIOD'!C133 -> TO | D130: 561 | E130: 117283 | F130: 9691 | G130: 9658 | H130: 9658 | I130: 9659 | J130: 9658 | K130: 9692 | L130: 9613 | M130: 9970 | N130: 9912 | O130: 9911 | P130: 9944 | Q130: 9917
A131: ='BASE PERIOD'!A134 -> 561200 | B131: ='BASE PERIOD'!B134 -> Load Dispatch-Mnitor&OprTrnSys | C131: ='BASE PERIOD'!C134 -> TO | D131: =VALUE(LEFT(A131,3)) -> 561 | E131: 291607 | F131: 23748 | G131: 23695 | H131: 23691 | I131: 23696 | J131: 23696 | K131: 23734 | L131: 27301 | M131: 24855 | N131: 24283 | O131: 24276 | P131: 24326 | Q131: 24306
A132: ='BASE PERIOD'!A135 -> 561300 | B132: ='BASE PERIOD'!B135 -> Load Dispatch - TransSvc&Sch | C132: ='BASE PERIOD'!C135 -> TO | D132: 561 | E132: 118352 | F132: 9792 | G132: 9758 | H132: 9757 | I132: 9758 | J132: 9758 | K132: 9791 | L132: 9722 | M132: 9885 | N132: 10025 | O132: 10024 | P132: 10054 | Q132: 10028
A133: ='BASE PERIOD'!A136 -> 561400 | B133: ='BASE PERIOD'!B136 -> Scheduling-Sys Cntrl&Disp Svs | C133: ='BASE PERIOD'!C136 -> TO | D133: 561 | E133: =SUM(F133:Q133) -> 1200000 | F133: 100000 | G133: 100000 | H133: 100000 | I133: 100000 | J133: 100000 | K133: 100000 | L133: 100000 | M133: 100000 | N133: 100000 | O133: 100000 | P133: 100000 | Q133: 100000
A134: ='BASE PERIOD'!A137 -> 561800 | B134: ='BASE PERIOD'!B137 -> ReliabilityPlanning&StdsDev | C134: ='BASE PERIOD'!C137 -> TO | D134: 561 | E134: =SUM(F134:Q134) -> 2000004 | F134: 166667 | G134: 166667 | H134: 166667 | I134: 166667 | J134: 166667 | K134: 166667 | L134: 166667 | M134: 166667 | N134: 166667 | O134: 166667 | P134: 166667 | Q134: 166667
A135: ='BASE PERIOD'!A138 -> 562000 | B135: ='BASE PERIOD'!B138 -> Station Expenses | C135: ='BASE PERIOD'!C138 -> TO | D135: 562 | E135: 96977 | F135: 6643 | G135: 6371 | H135: 6629 | I135: 6243 | J135: 8685 | K135: 9206 | L135: 16038 | M135: 6867 | N135: 5549 | O135: 7148 | P135: 10142 | Q135: 7456
A136: ='BASE PERIOD'!A139 -> 563000 | B136: ='BASE PERIOD'!B139 -> Overhead Line Expenses-Trans | C136: ='BASE PERIOD'!C139 -> TO | D136: 563 | E136: 37350 | F136: 411 | G136: 271 | H136: 287 | I136: 272 | J136: 265 | K136: 410 | L136: 8848 | M136: 8554 | N136: 8561 | O136: 8772 | P136: 417 | Q136: 282
A137: ='BASE PERIOD'!A140 -> 565000 | B137: ='BASE PERIOD'!B140 -> Transm of Elec By Others | C137: ='BASE PERIOD'!C140 -> TO | D137: 565 | E137: 20970372 | F137: 1747531 | G137: 1747531 | H137: 1747531 | I137: 1747531 | J137: 1747531 | K137: 1747531 | L137: 1747531 | M137: 1747531 | N137: 1747531 | O137: 1747531 | P137: 1747531 | Q137: 1747531
A138: ='BASE PERIOD'!A141 -> 566000 | B138: ='BASE PERIOD'!B141 -> Misc Trans Exp-Other | C138: ='BASE PERIOD'!C141 -> TO | D138: 566 | E138: 356942 | F138: 17021 | G138: 16083 | H138: 48334 | I138: 20438 | J138: 23752 | K138: 64435 | L138: 13763 | M138: 13507 | N138: 46357 | O138: 15024 | P138: 16405 | Q138: 61823
A139: ='BASE PERIOD'!A142 -> 566100 | B139: ='BASE PERIOD'!B142 -> Misc Trans-Trans Lines Related | C139: ='BASE PERIOD'!C142 -> TO | D139: 566 | E139: 5898 | F139: 487 | G139: 487 | H139: 487 | I139: 487 | J139: 487 | K139: 487 | L139: 488 | M139: 487 | N139: 500 | O139: 500 | P139: 501 | Q139: 500
A140: ='BASE PERIOD'!A143 -> 569000 | B140: ='BASE PERIOD'!B143 -> Maint of Structures-Trans | C140: ='BASE PERIOD'!C143 -> TM | D140: 569 | E140: =SUM(F140:Q140) -> 10635 | F140: 1554 | G140: 1978 | H140: 1397 | I140: 546 | J140: 502 | K140: 742 | L140: 650 | M140: 522 | N140: 625 | O140: 642 | P140: 902 | Q140: 575
A141: ='BASE PERIOD'!A144 -> 569200 | B141: ='BASE PERIOD'!B144 -> Maint of Computer Software | C141: ='BASE PERIOD'!C144 -> TM | D141: 569 | E141: 70957 | F141: 5827 | G141: 5827 | H141: 5825 | I141: 5828 | J141: 5826 | K141: 5829 | L141: 6047 | M141: 5810 | N141: 5944 | O141: 5894 | P141: 6375 | Q141: 5925
A142: ='BASE PERIOD'!A145 -> 570100 | B142: ='BASE PERIOD'!B145 -> Maint Stat Equip-Other- Trans | C142: ='BASE PERIOD'!C145 -> TM | D142: 570 | E142: 64916 | F142: 7940 | G142: 2532 | H142: 4566 | I142: 4577 | J142: 5721 | K142: 3714 | L142: 8317 | M142: 6110 | N142: 5563 | O142: 5840 | P142: 4134 | Q142: 5902
A143: ='BASE PERIOD'!A146 -> 570200 | B143: ='BASE PERIOD'!B146 -> Main-Cir BrkrsTrnsf Mtrs-Trans | C143: ='BASE PERIOD'!C146 -> TM | D143: 570 | E143: 70591 | F143: 7629 | G143: 5041 | H143: 5300 | I143: 5059 | J143: 4947 | K143: 7612 | L143: 6464 | M143: 5246 | N143: 5391 | O143: 5495 | P143: 7199 | Q143: 5208
A144: ='BASE PERIOD'!A147 -> 571000 | B144: ='BASE PERIOD'!B147 -> Maint of Overhead Lines-Trans | C144: ='BASE PERIOD'!C147 -> TM | D144: 571 | E144: 1624332 | F144: 160263 | G144: 157554 | H144: 127891 | I144: 207305 | J144: 308216 | K144: 50697 | L144: 71893 | M144: 71290 | N144: 151445 | O144: 97587 | P144: 98212 | Q144: 121979
A145: ='BASE PERIOD'!A148 -> 575700 | B145: ='BASE PERIOD'!B148 -> Market Faciliation-Mntr&Comp | C145: ='BASE PERIOD'!C148 -> RMO | D145: 575 | E145: 2906856 | F145: 242238 | G145: 242238 | H145: 242238 | I145: 242238 | J145: 242238 | K145: 242238 | L145: 242238 | M145: 242238 | N145: 242238 | O145: 242238 | P145: 242238 | Q145: 242238
A146: ='BASE PERIOD'!A149 -> 580000 | B146: ='BASE PERIOD'!B149 -> Supervsn and Engring-Dist Oper | C146: ='BASE PERIOD'!C149 -> DO | D146: 580 | E146: 0 | F146: 0 | G146: 0 | H146: 0 | I146: 0 | J146: 0 | K146: 0 | L146: 0 | M146: 0 | N146: 0 | O146: 0 | P146: 0 | Q146: 0
A147: ='BASE PERIOD'!A150 -> 581004 | B147: ='BASE PERIOD'!B150 -> Load Dispatch-Dist of Elec | C147: ='BASE PERIOD'!C150 -> DO | D147: 581 | E147: 388682 | F147: 55567 | G147: 25870 | H147: 25870 | I147: 25870 | J147: 25870 | K147: 36457 | L147: 50096 | M147: 26089 | N147: 26998 | O147: 26998 | P147: 35999 | Q147: 26998
A148: ='BASE PERIOD'!A151 -> 582100 | B148: ='BASE PERIOD'!B151 -> Station Expenses-Other-Dist | C148: ='BASE PERIOD'!C151 -> DO | D148: 582 | E148: 47394 | F148: 2523 | G148: 1978 | H148: 4694 | I148: 2756 | J148: 4277 | K148: 5406 | L148: 4084 | M148: 3770 | N148: 5254 | O148: 4062 | P148: 4604 | Q148: 3986
A149: ='BASE PERIOD'!A152 -> 583100 | B149: ='BASE PERIOD'!B152 -> Overhead Line Exps-Other-Dist | C149: ='BASE PERIOD'!C152 -> DO | D149: 583 | E149: 149921 | F149: 7779 | G149: 48081 | H149: 13666 | I149: 13946 | J149: 8018 | K149: 7865 | L149: 7909 | M149: 8039 | N149: 10972 | O149: 7962 | P149: 7833 | Q149: 7851
A150: ='BASE PERIOD'!A153 -> 583200 | B150: ='BASE PERIOD'!B153 -> Transf Set Rem Reset Test-Dist | C150: ='BASE PERIOD'!C153 -> DO | D150: 583 | E150: 136167 | F150: 12181 | G150: 10952 | H150: 10952 | I150: 11025 | J150: 11025 | K150: 12292 | L150: 10994 | M150: 10994 | N150: 11183 | O150: 11183 | P150: 12203 | Q150: 11183
A151: ='BASE PERIOD'!A154 -> 584000 | B151: ='BASE PERIOD'!B154 -> Underground Line Expenses-Dist | C151: ='BASE PERIOD'!C154 -> DO | D151: 584 | E151: 344827 | F151: 35637 | G151: 36622 | H151: 34577 | I151: 24360 | J151: 25584 | K151: 23748 | L151: 22534 | M151: 23908 | N151: 27306 | O151: 24673 | P151: 33054 | Q151: 32824
A152: ='BASE PERIOD'!A155 -> 586000 | B152: ='BASE PERIOD'!B155 -> Meter Expenses-Dist | C152: ='BASE PERIOD'!C155 -> DO | D152: 586 | E152: 206994 | F152: 19161 | G152: 16481 | H152: 16495 | I152: 16527 | J152: 16542 | K152: 19200 | L152: 16439 | M152: 16498 | N152: 16903 | O152: 16995 | P152: 18808 | Q152: 16945
A153: ='BASE PERIOD'!A156 -> 587000 | B153: ='BASE PERIOD'!B156 -> Cust Install Exp-Other Dist | C153: ='BASE PERIOD'!C156 -> DO | D153: 587 | E153: 794432 | F153: 78527 | G153: 60752 | H153: 57926 | I153: 59512 | J153: 62175 | K153: 87371 | L153: 58052 | M153: 61792 | N153: 62980 | O153: 67053 | P153: 73635 | Q153: 64657
A154: ='BASE PERIOD'!A157 -> 588100 | B154: ='BASE PERIOD'!B157 -> Misc Distribution Exp-Other | C154: ='BASE PERIOD'!C157 -> DO | D154: 588 | E154: 2715593 | F154: 225972 | G154: 222797 | H154: 217959 | I154: 247615 | J154: 210816 | K154: 293196 | L154: 258651 | M154: 209759 | N154: 205248 | O154: 202992 | P154: 228969 | Q154: 191619
A155: 588300 | B155: Load Mang-Gen and Control-Dist | C155: ='BASE PERIOD'!C158 -> DO | D155: 588 | E155: =SUM(F155:Q155) -> 0 | F155: 0 | G155: 0 | H155: 0 | I155: 0 | J155: 0 | K155: 0 | L155: 0 | M155: 0 | N155: 0 | O155: 0 | P155: 0 | Q155: 0
A156: 588700 | B156: Intcon Study Costs (D) | C156: DO | D156: 588 | E156: 0 | F156: 0 | G156: 0 | H156: 0 | I156: 0 | J156: 0 | K156: 0 | L156: 0 | M156: 0 | N156: 0 | O156: 0 | P156: 0 | Q156: 0
A157: ='BASE PERIOD'!A160 -> 589000 | B157: ='BASE PERIOD'!B160 -> Rents-Dist Oper | C157: ='BASE PERIOD'!C160 -> DO | D157: 589 | E157: 0 | F157: 0 | G157: 0 | H157: 0 | I157: 0 | J157: 0 | K157: 0 | L157: 0 | M157: 0 | N157: 0 | O157: 0 | P157: 0 | Q157: 0
A158: 590000 | B158: Supervsn and Engrng-Dist Maint | C158: ='BASE PERIOD'!C161 -> DM | D158: 590 | E158: =SUM(F158:Q158) -> 113228 | F158: 9728 | G158: 9206 | H158: 9235 | I158: 9301 | J158: 9330 | K158: 9811 | L158: 9161 | M158: 9276 | N158: 9434 | O158: 9524 | P158: 9799 | Q158: 9423
A159: ='BASE PERIOD'!A162 -> 591000 | B159: ='BASE PERIOD'!B162 -> Maintenance of Structures-Dist | C159: ='BASE PERIOD'!C162 -> DM | D159: 591 | E159: 14815 | F159: 3006 | G159: 3207 | H159: 2578 | I159: 495 | J159: 405 | K159: 976 | L159: 691 | M159: 396 | N159: 654 | O159: 676 | P159: 1168 | Q159: 563
A160: ='BASE PERIOD'!A163 -> 592100 | B160: ='BASE PERIOD'!B163 -> Maint Station Equip-Other-Dist | C160: ='BASE PERIOD'!C163 -> DM | D160: 592 | E160: 122851 | F160: 12550 | G160: 3230 | H160: 7216 | I160: 7793 | J160: 13168 | K160: 5180 | L160: 14665 | M160: 12452 | N160: 12062 | O160: 13693 | P160: 7319 | Q160: 13523
A161: ='BASE PERIOD'!A164 -> 592200 | B161: ='BASE PERIOD'!B164 -> Cir BrkrsTrnsf Mters Rely-Dist | C161: ='BASE PERIOD'!C164 -> DM | D161: 592 | E161: =SUM(F161:Q161) -> 87654 | F161: 9475 | G161: 6258 | H161: 6589 | I161: 6281 | J161: 6137 | K161: 9453 | L161: 8682 | M161: 6523 | N161: 6663 | O161: 6796 | P161: 8368 | Q161: 6429
A162: ='BASE PERIOD'!A165 -> 593000 | B162: ='BASE PERIOD'!B165 -> Maint Overhd Lines-Other-Dist | C162: ='BASE PERIOD'!C165 -> DM | D162: 593 | E162: 3376853 | F162: 330865 | G162: 309404 | H162: 310651 | I162: 247519 | J162: 259687 | K162: 329405 | L162: 245959 | M162: 249384 | N162: 270976 | O162: 270233 | P162: 288591 | Q162: 264179
A163: ='BASE PERIOD'!A166 -> 593100 | B163: ='BASE PERIOD'!B166 -> Right-of-Way Maintenance-Dist | C163: ='BASE PERIOD'!C166 -> DM | D163: 593 | E163: 4736232 | F163: 487790 | G163: 487790 | H163: 487790 | I163: 311119 | J163: 309280 | K163: 309280 | L163: 309287 | M163: 309286 | N163: 309287 | O163: 468714 | P163: 472385 | Q163: 474224
A164: ='BASE PERIOD'!A167 -> 594000 | B164: ='BASE PERIOD'!B167 -> Maint-Underground Lines-Dist | C164: ='BASE PERIOD'!C167 -> DM | D164: 594 | E164: 78677 | F164: 3964 | G164: 7612 | H164: 5063 | I164: 3911 | J164: 2778 | K164: 4395 | L164: 4061 | M164: 3055 | N164: 7955 | O164: 5693 | P164: 23844 | Q164: 6346
A165: ='BASE PERIOD'!A168 -> 595100 | B165: ='BASE PERIOD'!B168 -> Maint Line Transfrs-Other-Dist | C165: ='BASE PERIOD'!C168 -> DM | D165: 595 | E165: 38939 | F165: 1412 | G165: 1417 | H165: 11375 | I165: 1411 | J165: 1403 | K165: 1441 | L165: 1370 | M165: 1372 | N165: 13375 | O165: 1424 | P165: 1448 | Q165: 1491
A166: ='BASE PERIOD'!A169 -> 596000 | B166: ='BASE PERIOD'!B169 -> Maint-StreetLightng/Signl-Dist | C166: ='BASE PERIOD'!C169 -> DM | D166: 596 | E166: 169326 | F166: 12062 | G166: 11820 | H166: 15874 | I166: 15056 | J166: 14480 | K166: 16844 | L166: 16633 | M166: 16312 | N166: 12114 | O166: 15273 | P166: 12067 | Q166: 10791
A167: ='BASE PERIOD'!A170 -> 597000 | B167: ='BASE PERIOD'!B170 -> Maintenance of Meters-Dist | C167: ='BASE PERIOD'!C170 -> DM | D167: 597 | E167: 344542 | F167: 28416 | G167: 28471 | H167: 28487 | I167: 28525 | J167: 28541 | K167: 28462 | L167: 28446 | M167: 28514 | N167: 29168 | O167: 29212 | P167: 29145 | Q167: 29155
A168: ='BASE PERIOD'!A171 -> 598100 | B168: ='BASE PERIOD'!B171 -> Main Misc Dist Plt - Other - Dist | C168: ='BASE PERIOD'!C171 -> DM | D168: =VALUE(LEFT(A168,3)) -> 598 | E168: =SUM(F168:Q168) -> 9432 | F168: 786 | G168: 786 | H168: 786 | I168: 786 | J168: 786 | K168: 786 | L168: 786 | M168: 786 | N168: 786 | O168: 786 | P168: 786 | Q168: 786
A169: ='BASE PERIOD'!A172 -> 901000 | B169: ='BASE PERIOD'!B172 -> Supervision-Cust Accts | C169: ='BASE PERIOD'!C172 -> CO | D169: 901 | E169: -3384 | F169: -1783 | G169: 41 | H169: 145 | I169: 221 | J169: 318 | K169: -1783 | L169: -124 | M169: 242 | N169: 116 | O169: 250 | P169: -1245 | Q169: 218
A170: ='BASE PERIOD'!A173 -> 902000 | B170: ='BASE PERIOD'!B173 -> Meter Reading Expense | C170: ='BASE PERIOD'!C173 -> CO | D170: 902 | E170: 139463 | F170: 11730 | G170: 11473 | H170: 11473 | I170: 11473 | J170: 11473 | K170: 11730 | L170: 11468 | M170: 11468 | N170: 11746 | O170: 11751 | P170: 11927 | Q170: 11751
A171: ='BASE PERIOD'!A174 -> 903000 | B171: ='BASE PERIOD'!B174 -> Cust Records & Collection Exp | C171: ='BASE PERIOD'!C174 -> CO | D171: 903 | E171: 2288134 | F171: 187571 | G171: 188278 | H171: 131588 | I171: 165685 | J171: 186048 | K171: 159842 | L171: 276415 | M171: 209079 | N171: 251734 | O171: 167999 | P171: 187980 | Q171: 175915
A172: ='BASE PERIOD'!A175 -> 903100 | B172: ='BASE PERIOD'!B175 -> Cust Contracts & Orders-Local | C172: ='BASE PERIOD'!C175 -> CO | D172: 903 | E172: 466651 | F172: 37526 | G172: 36873 | H172: 42477 | I172: 36883 | J172: 36878 | K172: 43315 | L172: 36829 | M172: 36686 | N172: 39692 | O172: 37360 | P172: 41946 | Q172: 40186
A173: ='BASE PERIOD'!A176 -> 903200 | B173: ='BASE PERIOD'!B176 -> Cust Billing & Acct | C173: ='BASE PERIOD'!C176 -> CO | D173: 903 | E173: 630688 | F173: 54091 | G173: 49654 | H173: 54956 | I173: 49694 | J173: 49689 | K173: 59610 | L173: 49609 | M173: 49277 | N173: 52698 | O173: 50500 | P173: 57740 | Q173: 53170
A174: ='BASE PERIOD'!A177 -> 903300 | B174: ='BASE PERIOD'!B177 -> Cust Collecting-Local | C174: ='BASE PERIOD'!C177 -> CO | D174: 903 | E174: 529866 | F174: 42795 | G174: 41244 | H174: 48748 | I174: 38027 | J174: 44557 | K174: 50385 | L174: 37928 | M174: 41054 | N174: 50379 | O174: 38649 | P174: 48916 | Q174: 47184
A175: ='BASE PERIOD'!A178 -> 903400 | B175: ='BASE PERIOD'!B178 -> Cust Receiv & Collect Exp-Edp | C175: ='BASE PERIOD'!C178 -> CO | D175: 903 | E175: 50932 | F175: 2895 | G175: 4839 | H175: 5795 | I175: 2911 | J175: 5224 | K175: 4159 | L175: 2750 | M175: 3816 | N175: 5537 | O175: 2761 | P175: 4343 | Q175: 5902
A176: ='BASE PERIOD'!A179 -> 903891 | B176: ='BASE PERIOD'!B179 -> IC Collection Agent Revenue | C176: ='BASE PERIOD'!C179 -> CO | D176: 903 | E176: =SUM(F176:Q176) -> -187567 | F176: -14926 | G176: -14748 | H176: -13623 | I176: -12763 | J176: -14546 | K176: -18976 | L176: -18628 | M176: -20159 | N176: -15972 | O176: -13868 | P176: -13608 | Q176: -15750
A177: 904000 | B177: Uncollectible Accounts | C177: CO | D177: 904 | E177: =SUM(F177:Q177) -> 0 | F177: 0 | G177: 0 | H177: 0 | I177: 0 | J177: 0 | K177: 0 | L177: 0 | M177: 0 | N177: 0 | O177: 0 | P177: 0 | Q177: 0
A178: ='BASE PERIOD'!A181 -> 904001 | B178: ='BASE PERIOD'!B181 -> Bad Debt Expense | C178: ='BASE PERIOD'!C181 -> CO | D178: 904 | E178: 0 | F178: 0 | G178: 0 | H178: 0 | I178: 0 | J178: 0 | K178: 0 | L178: 0 | M178: 0 | N178: 0 | O178: 0 | P178: 0 | Q178: 0
A179: ='BASE PERIOD'!A182 -> 904003 | B179: ='BASE PERIOD'!B182 -> Cust Acctg-Loss On Sale-A/R | C179: ='BASE PERIOD'!C182 -> CO | D179: 904 | E179: 1316780 | F179: 149729 | G179: 127473 | H179: 121285 | I179: 112828 | J179: 111054 | K179: 121125 | L179: 126455 | M179: 79063 | N179: 38892 | O179: 72950 | P179: 131180 | Q179: 124746
A180: ='BASE PERIOD'!A184 -> 905000 | B180: ='BASE PERIOD'!B184 -> Misc Customer Accts Expenses | C180: ='BASE PERIOD'!C184 -> CO | D180: 905 | E180: 0 | F180: 0 | G180: 0 | H180: 0 | I180: 0 | J180: 0 | K180: 0 | L180: 0 | M180: 0 | N180: 0 | O180: 0 | P180: 0 | Q180: 0
A181: ='BASE PERIOD'!A185 -> 908000 | B181: ='BASE PERIOD'!B185 -> Cust Asst Exp-Conservation Pro | C181: ='BASE PERIOD'!C185 -> CSI | D181: 908 | E181: 0 | F181: 0 | G181: 0 | H181: 0 | I181: 0 | J181: 0 | K181: 0 | L181: 0 | M181: 0 | N181: 0 | O181: 0 | P181: 0 | Q181: 0
A182: ='BASE PERIOD'!A186 -> 909650 | B182: ='BASE PERIOD'!B186 -> Misc Advertising Expenses | C182: ='BASE PERIOD'!C186 -> CSI | D182: 909 | E182: 0 | F182: 0 | G182: 0 | H182: 0 | I182: 0 | J182: 0 | K182: 0 | L182: 0 | M182: 0 | N182: 0 | O182: 0 | P182: 0 | Q182: 0
A183: ='BASE PERIOD'!A187 -> 910000 | B183: ='BASE PERIOD'!B187 -> Misc Cust Serv/Inform Exp | C183: ='BASE PERIOD'!C187 -> CSI | D183: 910 | E183: =SUM(F183:Q183) -> 169726 | F183: 12919 | G183: 16838 | H183: 14426 | I183: 14162 | J183: 12417 | K183: 15150 | L183: 15107 | M183: 11684 | N183: 13396 | O183: 13506 | P183: 12255 | Q183: 17866
A184: ='BASE PERIOD'!A188 -> 910100 | B184: ='BASE PERIOD'!B188 -> Exp-Rs Reg Prod/Svces-CstAccts | C184: ='BASE PERIOD'!C188 -> CSI | D184: 910 | E184: 137758 | F184: 8782 | G184: 8782 | H184: 8780 | I184: 8783 | J184: 8780 | K184: 8784 | L184: 41101 | M184: 8730 | N184: 8859 | O184: 8791 | P184: 8794 | Q184: 8792
A185: ='BASE PERIOD'!A189 -> 911000 | B185: ='BASE PERIOD'!B189 -> Supervision | C185: ='BASE PERIOD'!C189 -> CSI | D185: 911 | E185: =SUM(F185:Q185) -> 0 | F185: 0 | G185: 0 | H185: 0 | I185: 0 | J185: 0 | K185: 0 | L185: 0 | M185: 0 | N185: 0 | O185: 0 | P185: 0 | Q185: 0
A186: ='BASE PERIOD'!A190 -> 912000 | B186: ='BASE PERIOD'!B190 -> Demonstrating & Selling Exp | C186: ='BASE PERIOD'!C190 -> SE | D186: 912 | E186: 1403451 | F186: 61706 | G186: 61601 | H186: 64650 | I186: 64612 | J186: 65086 | K186: 68172 | L186: 464113 | M186: 113245 | N186: 109540 | O186: 106243 | P186: 116559 | Q186: 107924
A187: ='BASE PERIOD'!A191 -> 913001 | B187: ='BASE PERIOD'!B191 -> Advertising Expense | C187: ='BASE PERIOD'!C191 -> SE | D187: 913 | E187: 39096 | F187: 0 | G187: 0 | H187: 0 | I187: 0 | J187: 0 | K187: 0 | L187: 39096 | M187: 0 | N187: 0 | O187: 0 | P187: 0 | Q187: 0
A188: ='BASE PERIOD'!A192 -> 920000 | B188: ='BASE PERIOD'!B192 -> A & G Salaries | C188: ='BASE PERIOD'!C192 -> AGO | D188: 920 | E188: 8092143 | F188: 587488 | G188: 581156 | H188: 748808 | I188: 583387 | J188: 584107 | K188: 525652 | L188: 1132831 | M188: 620489 | N188: 877446 | O188: 664090 | P188: 677099 | Q188: 509590
A189: ='BASE PERIOD'!A193 -> 920100 | B189: ='BASE PERIOD'!B193 -> Salaries & Wages-Proj Supt-NCRC Rec | C189: ='BASE PERIOD'!C193 -> AGO | D189: =VALUE(LEFT(A189,3)) -> 920 | E189: =SUM(F189:Q189) -> 0 | F189: 0 | G189: 0 | H189: 0 | I189: 0 | J189: 0 | K189: 0 | L189: 0 | M189: 0 | N189: 0 | O189: 0 | P189: 0 | Q189: 0
A190: 920300 | B190: Project Development Labor | C190: AGO | D190: 920 | E190: =SUM(F190:Q190) -> 0 | F190: 0 | G190: 0 | H190: 0 | I190: 0 | J190: 0 | K190: 0 | L190: 0 | M190: 0 | N190: 0 | O190: 0 | P190: 0 | Q190: 0
A191: ='BASE PERIOD'!A195 -> 921100 | B191: ='BASE PERIOD'!B195 -> Employee Expenses | C191: ='BASE PERIOD'!C195 -> AGO | D191: 921 | E191: 310145 | F191: 21969 | G191: 22138 | H191: 22500 | I191: 22171 | J191: 22162 | K191: 22928 | L191: 66663 | M191: 21490 | N191: 22015 | O191: 21934 | P191: 21956 | Q191: 22219
A192: ='BASE PERIOD'!A196 -> 921101 | B192: ='BASE PERIOD'!B196 -> Employee Exp - NC | C192: ='BASE PERIOD'!C196 -> AGO | D192: 921 | E192: 0 | F192: 0 | G192: 0 | H192: 0 | I192: 0 | J192: 0 | K192: 0 | L192: 0 | M192: 0 | N192: 0 | O192: 0 | P192: 0 | Q192: 0
A193: ='BASE PERIOD'!A197 -> 921110 | B193: ='BASE PERIOD'!B197 -> Relocation Expenses | C193: ='BASE PERIOD'!C197 -> AGO | D193: 921 | E193: 12 | F193: 1 | G193: 1 | H193: 1 | I193: 1 | J193: 1 | K193: 1 | L193: 1 | M193: 1 | N193: 1 | O193: 1 | P193: 1 | Q193: 1
A194: ='BASE PERIOD'!A198 -> 921200 | B194: ='BASE PERIOD'!B198 -> Office Expenses | C194: ='BASE PERIOD'!C198 -> AGO | D194: 921 | E194: 223585 | F194: 8718 | G194: 9030 | H194: 30536 | I194: 10021 | J194: 10093 | K194: 30714 | L194: -22649 | M194: 11572 | N194: 58613 | O194: 22204 | P194: 23064 | Q194: 31669
A195: ='BASE PERIOD'!A199 -> 921300 | B195: ='BASE PERIOD'!B199 -> Telephone And Telegraph Exp | C195: ='BASE PERIOD'!C199 -> AGO | D195: 921 | E195: 0 | F195: 0 | G195: 0 | H195: 0 | I195: 0 | J195: 0 | K195: 0 | L195: 0 | M195: 0 | N195: 0 | O195: 0 | P195: 0 | Q195: 0
A196: ='BASE PERIOD'!A200 -> 921400 | B196: ='BASE PERIOD'!B200 -> Computer Services Expenses | C196: ='BASE PERIOD'!C200 -> AGO | D196: 921 | E196: 175725 | F196: 11013 | G196: 15565 | H196: 14693 | I196: 13031 | J196: 13900 | K196: 13514 | L196: 24060 | M196: 12995 | N196: 17922 | O196: 19224 | P196: 8365 | Q196: 11443
A197: ='BASE PERIOD'!A201 -> 921540 | B197: ='BASE PERIOD'!B201 -> Computer Rent (Go Only) | C197: ='BASE PERIOD'!C201 -> AGO | D197: 921 | E197: 10032 | F197: 836 | G197: 836 | H197: 836 | I197: 836 | J197: 836 | K197: 836 | L197: 836 | M197: 836 | N197: 836 | O197: 836 | P197: 836 | Q197: 836
A198: ='BASE PERIOD'!A202 -> 921600 | B198: ='BASE PERIOD'!B202 -> Other | C198: ='BASE PERIOD'!C202 -> AGO | D198: 921 | E198: 60 | F198: 5 | G198: 5 | H198: 5 | I198: 5 | J198: 5 | K198: 5 | L198: 5 | M198: 5 | N198: 5 | O198: 5 | P198: 5 | Q198: 5
A199: ='BASE PERIOD'!A203 -> 921980 | B199: ='BASE PERIOD'!B203 -> Office Supplies & Expenses | C199: ='BASE PERIOD'!C203 -> AGO | D199: =VALUE(LEFT(A199,3)) -> 921 | E199: 2480243 | F199: 206702 | G199: 207495 | H199: 207680 | I199: 207503 | J199: 207295 | K199: 206437 | L199: 196602 | M199: 208589 | N199: 208022 | O199: 208104 | P199: 208060 | Q199: 207754
A200: ='BASE PERIOD'!A204 -> 922000 | B200: ='BASE PERIOD'!B204 -> Admin Expense Transfer | C200: ='BASE PERIOD'!C204 -> AGO | D200: 922 | E200: =SUM(F200:Q200) -> 0 | F200: 0 | G200: 0 | H200: 0 | I200: 0 | J200: 0 | K200: 0 | L200: 0 | M200: 0 | N200: 0 | O200: 0 | P200: 0 | Q200: 0
A201: ='BASE PERIOD'!A205 -> 923000 | B201: ='BASE PERIOD'!B205 -> Outside Services Employed | C201: ='BASE PERIOD'!C205 -> AGO | D201: 923 | E201: 1547198 | F201: 94325 | G201: 81351 | H201: 121214 | I201: 94873 | J201: 75282 | K201: 141893 | L201: 343609 | M201: 79065 | N201: 148711 | O201: 161602 | P201: 91310 | Q201: 113963
... 65 more rows

Sheet FP Rev by Product
A1: =COMPANY -> DUKE ENERGY KENTUCKY, INC.
A2: =CASE -> CASE NO. 2022-00372
A3: FORECASTED PERIOD REVENUES BY PRODUCT
A6: =DataF -> DATA: BASE PERIOD "X" FORECASTED PERIOD
A7: =Type -> TYPE OF FILING: "X" ORIGINAL UPDATED REVISED
A11: Account | B11: Description | C11: Code | D11: Product | E11: Product Desc. | F11: Total | G11: =LOGO!J7 -> 2023-07-31 | H11: =LOGO!J8 -> 2023-08-31 | I11: =LOGO!J9 -> 2023-09-30 | J11: =LOGO!J10 -> 2023-10-31 | K11: =LOGO!J11 -> 2023-11-30 | L11: =LOGO!J12 -> 2023-12-31 | M11: =LOGO!J13 -> 2024-01-31 | N11: =LOGO!J14 -> 2024-02-29 | O11: =LOGO!J15 -> 2024-03-31 | P11: =LOGO!J16 -> 2024-04-30 | Q11: =LOGO!J17 -> 2024-05-31 | R11: =LOGO!J18 -> 2024-06-30
A12: 440000 | B12: Residential | D12: BBEREV | E12: Distribution Revenue Elect | F12: =SUM(G12:R12) -> 41547782 | G12: =4194142+1 -> 4194143 | H12: =4115299 -> 4115299 | I12: =3857781-3 -> 3857778 | J12: =2804965 -> 2804965 | K12: =2688688 -> 2688688 | L12: =3438662-1 -> 3438661 | M12: =4269601+1 -> 4269602 | N12: =3994750+2 -> 3994752 | O12: =3536542-1 -> 3536541 | P12: =2782721-1 -> 2782720 | Q12: =2607935-1 -> 2607934 | R12: =3256696+3 -> 3256699
A13: 440000 | B13: Residential | D13: BEFREV | E13: Base Elec Fuel Rev | F13: =SUM(G13:R13) -> 37641287 | G13: 3967247 | H13: 3877273 | I13: 3586179 | J13: 2396418 | K13: 2265014 | L13: 3109311 | M13: 4045476 | N13: 3734290 | O13: 3216973 | P13: 2369360 | Q13: 2168987 | R13: 2904759
A14: 440000 | B14: Residential | D14: BBEREV | E14: Generation Revenue | F14: 56645890 | G14: 5718257 | H14: 5610763 | I14: 5259665 | J14: 3824265 | K14: 3665735 | L14: 4688242 | M14: 5821138 | N14: 5446408 | O14: 4821691 | P14: 3793938 | Q14: 3555636 | R14: 4440152
A15: 440000 | B15: Residential | D15: BBEREV | E15: Transmission Revenue Elect | F15: 4395216 | G15: 443686 | H15: 435345 | I15: 408103 | J15: 296729 | K15: 284428 | L15: 363766 | M15: 451668 | N15: 422593 | O15: 374120 | P15: 294376 | Q15: 275886 | R15: 344516
A16: 440000 | B16: Residential | D16: REDSM | E16: Demand Side Mgmt Elec | F16: 3411948 | G16: 352709 | H16: 344710 | I16: 318830 | J16: 213054 | K16: 201372 | L16: 276434 | M16: 374021 | N16: 345250 | O16: 297422 | P16: 219057 | Q16: 200532 | R16: 268557
A17: 440000 | B17: Residential | D17: REFC | E17: Fuel Cost Adjustment | F17: 8742214 | G17: 1013330 | H17: 1090722 | I17: 914251 | J17: 515451 | K17: 662592 | L17: 724470 | M17: 913467 | N17: 1165521 | O17: 354341 | P17: 258972 | Q17: 554277 | R17: 574820
A18: 440000 | B18: Residential | D18: RKEPSM | E18: Off-SystemSales Profit Sharing | F18: -651406 | G18: -67630 | H18: -3428 | I18: 0 | J18: -14541 | K18: -3291 | L18: 0 | M18: -378123 | N18: -170832 | O18: -12518 | P18: -1043 | Q18: 0 | R18: 0
A19: 440000 | B19: Residential | D19: ROEESM | E19: Environmental Surcharge | F19: 7540073 | G19: 815073 | H19: 809158 | I19: 769480 | J19: 637463 | K19: 635687 | L19: 750577 | M19: 607729 | N19: 592879 | O19: 548378 | P19: 457023 | Q19: 428337 | R19: 488289
A20: 440990 | B20: Residential Unbilled Rev | D20: UNBILL | E20: Unbill Total (inc base& rider) | F20: 94678 | G20: 630116 | H20: 3289 | I20: -1897581 | J20: -93789 | K20: 1833729 | L20: 1127795 | M20: -1484027 | N20: -449565 | O20: -1729528 | P20: -139379 | Q20: 994481 | R20: 1299137
A21: 442100 | B21: General Service | D21: BBEREV | E21: Distribution Revenue Elect | F21: 23432681 | G21: 2203632 | H21: 2167824 | I21: 2138479 | J21: 1893023 | K21: 1833857 | L21: 1851380 | M21: 1912748 | N21: 1904792 | O21: 1834242 | P21: 1784575 | Q21: 1857808 | R21: 2050321
A22: 442100 | B22: General Service | D22: BEFREV | E22: Base Elec Fuel Rev | F22: 39470587 | G22: 3740409 | H22: 3650391 | I22: 3631832 | J22: 3158229 | K22: 2976005 | L22: 3248429 | M22: 3358000 | N22: 3183392 | O22: 3106844 | P22: 2980932 | Q22: 3024504 | R22: 3411620
A23: 442100 | B23: General Service | D23: BBEREV | E23: Generation Revenue | F23: 58222899 | G23: 5475339 | H23: 5386366 | I23: 5313453 | J23: 4703571 | K23: 4556562 | L23: 4600102 | M23: 4752582 | N23: 4732814 | O23: 4557518 | P23: 4434111 | Q23: 4616073 | R23: 5094408
A24: 442100 | B24: General Service | D24: BBEREV | E24: Transmission Revenue Elect | F24: 5400711 | G24: 507888 | H24: 499635 | I24: 492872 | J24: 436300 | K24: 422663 | L24: 426702 | M24: 440846 | N24: 439012 | O24: 422752 | P24: 411305 | Q24: 428183 | R24: 472553
A25: 442100 | B25: General Service | D25: REDSM | E25: Demand Side Mgmt Elec | F25: 2056256 | G25: 190471 | H25: 185887 | I25: 184942 | J25: 160825 | K25: 151545 | L25: 165418 | M25: 179155 | N25: 169840 | O25: 165756 | P25: 159038 | Q25: 161363 | R25: 182016
A26: 442100 | B26: General Service | D26: REFC | E26: Fuel Cost Adjustment | F26: 9082817 | G26: 955390 | H26: 1026898 | I26: 925890 | J26: 679310 | K26: 870581 | L26: 756885 | M26: 758235 | N26: 993578 | O26: 342210 | P26: 325817 | Q26: 772901 | R26: 675122
A27: 442100 | B27: General Service | D27: RKEPSM | E27: Off-SystemSales Profit Sharing | F27: -563376 | G27: -63763 | H27: -3228 | I27: 0 | J27: -19163 | K27: -4324 | L27: 0 | M27: -313866 | N27: -145630 | O27: -12090 | P27: -1312 | Q27: 0 | R27: 0
A28: 442100 | B28: General Service | D28: ROEESM | E28: Environmental Surcharge | F28: 8054296 | G28: 768469 | H28: 761810 | I28: 779276 | J28: 840110 | K28: 835230 | L28: 784159 | M28: 504453 | N28: 505415 | O28: 529605 | P28: 574989 | Q28: 597287 | R28: 573493
A29: 442190 | B29: General Service Unbilled Rev | D29: UNBILL | E29: Unbill Total (inc base& rider) | F29: -242550 | G29: 94707 | H29: 518177 | I29: -720924 | J29: 5638 | K29: 347176 | L29: -662511 | M29: -607923 | N29: -5031 | O29: -99912 | P29: -181039 | Q29: 717022 | R29: 352070
A30: 442200 | B30: Industrial Service | D30: BBEREV | E30: Distribution Revenue Elect | F30: 8175241 | G30: 744608 | H30: 759076 | I30: 748936 | J30: 689802 | K30: 682412 | L30: 640609 | M30: 639638 | N30: 667746 | O30: 623811 | P30: 623746 | Q30: 647747 | R30: 707110
A31: 442200 | B31: Industrial Service | D31: BEFREV | E31: Base Elec Fuel Rev | F31: 20070919 | G31: 1775111 | H31: 1788311 | I31: 1801499 | J31: 1664543 | K31: 1637175 | L31: 1666854 | M31: 1628708 | N31: 1615860 | O31: 1602075 | P31: 1600199 | Q31: 1583483 | R31: 1707101
A32: 442200 | B32: Industrial Service | D32: BBEREV | E32: Generation Revenue | F32: 25141145 | G32: 2289878 | H32: 2334371 | I32: 2303188 | J32: 2121333 | K32: 2098607 | L32: 1970050 | M32: 1967065 | N32: 2053504 | O32: 1918393 | P32: 1918193 | Q32: 1992002 | R32: 2174561
A33: 442200 | B33: Industrial Service | D33: BBEREV | E33: Transmission Revenue Elect | F33: 2222267 | G33: 202406 | H33: 206339 | I33: 203583 | J33: 187508 | K33: 185499 | L33: 174136 | M33: 173872 | N33: 181513 | O33: 169570 | P33: 169552 | Q33: 176076 | R33: 192213
A34: 442200 | B34: Industrial Service | D34: REDSM | E34: Demand Side Mgmt Elec | F34: 1045715 | G34: 90393 | H34: 91065 | I34: 91737 | J34: 84762 | K34: 83369 | L34: 84880 | M34: 86894 | N34: 86209 | O34: 85474 | P34: 85373 | Q34: 84482 | R34: 91077
A35: 442200 | B35: Industrial Service | D35: REFC | E35: Fuel Cost Adjustment | F35: 4607014 | G35: 453406 | H35: 503073 | I35: 459270 | J35: 358030 | K35: 478929 | L35: 388377 | M35: 367762 | N35: 504331 | O35: 176464 | P35: 174902 | Q35: 404653 | R35: 337817
A36: 442200 | B36: Industrial Service | D36: RKEPSM | E36: Off-SystemSales Profit Sharing | F36: -277410 | G36: -30260 | H36: -1581 | I36: 0 | J36: -10100 | K36: -2379 | L36: 0 | M36: -152232 | N36: -73920 | O36: -6234 | P36: -704 | Q36: 0 | R36: 0
A37: 442200 | B37: Industrial Service | D37: ROEESM | E37: Environmental Surcharge | F37: 4111728 | G37: 364698 | H37: 373207 | I37: 386544 | J37: 442779 | K37: 459481 | L37: 402373 | M37: 244672 | N37: 256544 | O37: 273096 | P37: 308661 | Q37: 312710 | R37: 286963
A38: 442290 | B38: Industrial Svc Unbilled Rev | D38: UNBILL | E38: Unbill Total (inc base& rider) | F38: -157313 | G38: 42417 | H38: 299376 | I38: -378771 | J38: 160505 | K38: 110154 | L38: -425867 | M38: -282835 | N38: -36282 | O38: 35076 | P38: -98675 | Q38: 397645 | R38: 19944
A39: 444000 | B39: Public St & Highway Lighting | D39: BBEREV | E39: Distribution Revenue Elect | F39: 676384 | G39: 57497 | H39: 55665 | I39: 57269 | J39: 55085 | K39: 57949 | L39: 55988 | M39: 54996 | N39: 59088 | O39: 55387 | P39: 59646 | Q39: 50966 | R39: 56848
A40: 444000 | B40: Public St & Highway Lighting | D40: BEFREV | E40: Base Elec Fuel Rev | F40: 344742 | G40: 28907 | H40: 27969 | I40: 29260 | J40: 27798 | K40: 29391 | L40: 29398 | M40: 28725 | N40: 30285 | O40: 28326 | P40: 30320 | Q40: 25745 | R40: 28618
A41: 444000 | B41: Public St & Highway Lighting | D41: BBEREV | E41: Generation Revenue | F41: 507325 | G41: 43126 | H41: 41752 | I41: 42955 | J41: 41317 | K41: 43465 | L41: 41994 | M41: 41250 | N41: 44319 | O41: 41543 | P41: 44738 | Q41: 38227 | R41: 42639
A42: 444000 | B42: Public St & Highway Lighting | D42: BBEREV | E42: Transmission Revenue Elect | F42: 42327 | G42: 3598 | H42: 3483 | I42: 3584 | J42: 3447 | K42: 3626 | L42: 3504 | M42: 3442 | N42: 3698 | O42: 3466 | P42: 3733 | Q42: 3189 | R42: 3557
A43: 444000 | B43: Public St & Highway Lighting | D43: REDSM | E43: Demand Side Mgmt Elec | F43: 0 | G43: 0 | H43: 0 | I43: 0 | J43: 0 | K43: 0 | L43: 0 | M43: 0 | N43: 0 | O43: 0 | P43: 0 | Q43: 0 | R43: 0
A44: 444000 | B44: Public St & Highway Lighting | D44: REFC | E44: Fuel Cost Adjustment | F44: 78752 | G44: 7384 | H44: 7868 | I44: 7459 | J44: 5979 | K44: 8598 | L44: 6850 | M44: 6486 | N44: 9452 | O44: 3120 | P44: 3314 | Q44: 6579 | R44: 5663
A45: 444000 | B45: Public St & Highway Lighting | D45: RKEPSM | E45: Off-SystemSales Profit Sharing | F45: -4923 | G45: -493 | H45: -25 | I45: 0 | J45: -169 | K45: -43 | L45: 0 | M45: -2685 | N45: -1385 | O45: -110 | P45: -13 | Q45: 0 | R45: 0
A46: 444000 | B46: Public St & Highway Lighting | D46: ROEESM | E46: Environmental Surcharge | F46: 70489 | G46: 5939 | H46: 5837 | I46: 6278 | J46: 7394 | K46: 8249 | L46: 7097 | M46: 4315 | N46: 4808 | O46: 4829 | P46: 5848 | Q46: 5084 | R46: 4811
A47: 445000 | B47: Other Sales to Public Auth | D47: BBEREV | E47: Distribution Revenue Elect | F47: 3549681 | G47: 332449 | H47: 314931 | I47: 324192 | J47: 282560 | K47: 253837 | L47: 277723 | M47: 288417 | N47: 315137 | O47: 248572 | P47: 292344 | Q47: 294891 | R47: 324628
A48: 445000 | B48: Other Sales to Public Auth | D48: BEFREV | E48: Base Elec Fuel Rev | F48: 6808775 | G48: 607497 | H48: 617798 | I48: 640243 | J48: 568281 | K48: 499806 | L48: 556950 | M48: 582235 | N48: 560669 | O48: 544043 | P48: 530275 | Q48: 533941 | R48: 567037
A49: 445000 | B49: Other Sales to Public Auth | D49: BBEREV | E49: Generation Revenue | F49: 10149825 | G49: 950592 | H49: 900503 | I49: 926982 | J49: 807942 | K49: 725811 | L49: 794110 | M49: 824689 | N49: 901090 | O49: 710759 | P49: 835917 | Q49: 843200 | R49: 928230
A50: 445000 | B50: Other Sales to Public Auth | D50: BBEREV | E50: Transmission Revenue Elect | F50: 911539 | G50: 85371 | H50: 80873 | I50: 83251 | J50: 72560 | K50: 65184 | L50: 71318 | M50: 74064 | N50: 80925 | O50: 63832 | P50: 75072 | Q50: 75726 | R50: 83363
A51: 445000 | B51: Other Sales to Public Auth | D51: REDSM | E51: Demand Side Mgmt Elec | F51: 354780 | G51: 30935 | H51: 31460 | I51: 32603 | J51: 28938 | K51: 25451 | L51: 28361 | M51: 31063 | N51: 29913 | O51: 29026 | P51: 28291 | Q51: 28487 | R51: 30252
A52: 445000 | B52: Other Sales to Public Auth | D52: REFC | E52: Fuel Cost Adjustment | F52: 1563399 | G52: 155169 | H52: 173794 | I52: 163222 | J52: 122233 | K52: 146210 | L52: 129769 | M52: 131468 | N52: 174992 | O52: 59925 | P52: 57959 | Q52: 136447 | R52: 112211
A53: 445000 | B53: Other Sales to Public Auth | D53: RKEPSM | E53: Off-SystemSales Profit Sharing | F53: -97495 | G53: -10356 | H53: -546 | I53: 0 | J53: -3448 | K53: -726 | L53: 0 | M53: -54420 | N53: -25649 | O53: -2117 | P53: -233 | Q53: 0 | R53: 0
A54: 445000 | B54: Other Sales to Public Auth | D54: ROEESM | E54: Environmental Surcharge | F54: 1389270 | G54: 124811 | H54: 128930 | I54: 137376 | J54: 151166 | K54: 140273 | L54: 134446 | M54: 87466 | N54: 89015 | O54: 92740 | P54: 102284 | Q54: 105444 | R54: 95319
A55: 445090 | B55: OPA Unbilled | D55: UNBILL | E55: Unbill Total (inc base& rider) | F55: -66882 | G55: 1610 | H55: 76706 | I55: -180528 | J55: 92153 | K55: 81074 | L55: -125864 | M55: -143011 | N55: 14816 | O55: -89472 | P55: 24794 | Q55: 154226 | R55: 26614
A56: 447150 | B56: Sales For Resale - Outside | D56: CAPCTY | E56: CAPCTY | F56: 0 | G56: 0 | H56: 0 | I56: 0 | J56: 0 | K56: 0 | L56: 0 | M56: 0 | N56: 0 | O56: 0 | P56: 0 | Q56: 0 | R56: 0
A57: 447150 | B57: Sales For Resale - Outside | D57: FACASM | E57: FAC-Ancillary Services | F57: 0 | G57: 0 | H57: 0 | I57: 0 | J57: 0 | K57: 0 | L57: 0 | M57: 0 | N57: 0 | O57: 0 | P57: 0 | Q57: 0 | R57: 0
A58: 447150 | B58: Sales For Resale - Outside | D58: FER668 | E58: FERC 668 Netting | F58: 0 | G58: 0 | H58: 0 | I58: 0 | J58: 0 | K58: 0 | L58: 0 | M58: 0 | N58: 0 | O58: 0 | P58: 0 | Q58: 0 | R58: 0
A59: 447150 | B59: Sales For Resale - Outside | D59: SLSRSL | E59: Sales for Resale | F59: 0 | G59: 0 | H59: 0 | I59: 0 | J59: 0 | K59: 0 | L59: 0 | M59: 0 | N59: 0 | O59: 0 | P59: 0 | Q59: 0 | R59: 0
A60: 447150 | B60: Sales For Resale - Outside | F60: =SUM(G60:R60) -> 5535505 | G60: 566848 | H60: 30502 | I60: 0 | J60: 136462 | K60: 31822 | L60: 0 | M60: 3376886 | N60: 1264978 | O60: 114639 | P60: 13368 | Q60: 0 | R60: 0
A61: 448000 | B61: Interdepartmental Sales-Elec | E61: NO VALUE | F61: 71904 | G61: 4328 | H61: 5120 | I61: 4763 | J61: 4453 | K61: 4285 | L61: 8519 | M61: 9685 | N61: 9250 | O61: 8551 | P61: 4837 | Q61: 3926 | R61: 4187
A62: 451100 | B62: Misc Service Revenue | D62: 0 | E62: NO VALUE | F62: 249996 | G62: 20833 | H62: 20833 | I62: 20833 | J62: 20833 | K62: 20833 | L62: 20833 | M62: 20833 | N62: 20833 | O62: 20833 | P62: 20833 | Q62: 20833 | R62: 20833
A63: 453625 | B63: Intercompany Sales of Water | E63: NO VALUE | F63: 0
A64: 454200 | B64: Pole & Line Attachments | D64: 0 | E64: NO VALUE | F64: 217344 | G64: 18112 | H64: 18112 | I64: 18112 | J64: 18112 | K64: 18112 | L64: 18112 | M64: 18112 | N64: 18112 | O64: 18112 | P64: 18112 | Q64: 18112 | R64: 18112
A65: 454400 | B65: Other Electric Rents | D65: 0 | E65: NO VALUE | F65: 799992 | G65: =66667-1 -> 66666 | H65: =66667-1 -> 66666 | I65: 66666 | J65: 66666 | K65: 66666 | L65: 66666 | M65: 66666 | N65: 66666 | O65: 66666 | P65: 66666 | Q65: 66666 | R65: 66666
A66: 454400 | B66: Other Electric Rents | D66: BDPCHG | E66: BDPCHG | F66: 500004 | G66: 41667 | H66: 41667 | I66: 41667 | J66: 41667 | K66: 41667 | L66: 41667 | M66: 41667 | N66: 41667 | O66: 41667 | P66: 41667 | Q66: 41667 | R66: 41667
A67: 456110 | B67: Transmission Charge PTP | D67: 0 | E67: NO VALUE | F67: 144996 | G67: 12083 | H67: 12083 | I67: 12083 | J67: 12083 | K67: 12083 | L67: 12083 | M67: 12083 | N67: 12083 | O67: 12083 | P67: 12083 | Q67: 12083 | R67: 12083
A68: 456111 | B68: Other Transmission Revenues | D68: 0 | E68: NO VALUE | F68: 0
A69: 456610 | B69: Other Electric Revenues | D69: OTHER | E69: MISO - Other Charges | F69: 0
A70: 456970 | B70: Wheel Transmission Rev - ED | D70: 0 | E70: NO VALUE | F70: 24504 | G70: 2042 | H70: 2042 | I70: 2042 | J70: 2042 | K70: 2042 | L70: 2042 | M70: 2042 | N70: 2042 | O70: 2042 | P70: 2042 | Q70: 2042 | R70: 2042
A71: 457204 | B71: Regional Transmission Service Revenues | E71: NO VALUE | F71: 1881000 | G71: 156750 | H71: 156750 | I71: 156750 | J71: 156750 | K71: 156750 | L71: 156750 | M71: 156750 | N71: 156750 | O71: 156750 | P71: 156750 | Q71: 156750 | R71: 156750

Sheet SCH A
A1: =COMPANY -> DUKE ENERGY KENTUCKY, INC.
A2: =CASE -> CASE NO. 2022-00372
A3: OVERALL FINANCIAL SUMMARY
A4: =PERIOD -> FOR THE TWELVE MONTHS ENDED FEBRUARY 28, 2023
A5: =PeriodF -> FOR THE TWELVE MONTHS ENDED JUNE 30, 2024
A6: .
A7: =DataB -> DATA: "X" BASE PERIOD "X" FORECASTED PERIOD | H7: SCHEDULE A
A8: =Type -> TYPE OF FILING: "X" ORIGINAL UPDATED REVISED | H8: PAGE 1 OF 1
A9: WORK PAPER REFERENCE NO(S).: SEE BELOW | H9: WITNESS RESPONSIBLE:
H10: =_WIT1 -> L. D. STEINKUHL
E12: SUPPORTING | G12: JURISDICTIONAL REVENUE REQUIREMENTS
A13: LINE | E13: SCHEDULE | G13: BASE | I13: FORECASTED
A14: NO. | C14: DESCRIPTION | E14: REFERENCE | G14: PERIOD | I14: PERIOD
A17: 1 | C17: Rate Base | E17: B-1 | G17: =SCH_B1!G42 -> 1126023530 | I17: =IF('SCH_C2.1 - Forecasted Period'!J368=(SCH_E1!K116+SCH_E1!K138),SCH_B1!I42,"BALANCE FP TAXES TO SCH. E") -> 1176674865
A19: 2 | C19: Operating Income | E19: C-2 | G19: =SCH_C2!E59 -> 48705867 | I19: =IF(SCH_D1_ERROR_CHECK="",SCH_C2!N59,"ERROR") -> 32212101
A21: 3 | C21: Earned Rate of Return (Line 2 / Line 1) | G21: =ROUND(G19/G17,5) -> 0.04325 | I21: =ROUND(I19/I17,5) -> 0.02738
A23: 4 | C23: Rate of Return | E23: J-1 | G23: ='SCH_J1 - Base'!M33 -> 0.07477 | I23: ='SCH_J1 - Forecast'!M34 -> 0.07526
A25: 5 | C25: Required Operating Income (Line 1 x Line 4) | G25: =ROUND(G17*G23,0) -> 84192779 | I25: =ROUND(I17*I23,0) -> 88556550
A27: 6 | C27: Operating Income Deficiency (Line 5 - Line 2) | G27: =G25-G19 -> 35486912 | I27: =I25-I19 -> 56344449
A29: 7 | C29: Gross Revenue Conversion Factor | E29: H | G29: =SCH_H!$I$34 -> 1.3342383 | I29: =SCH_H!I72 -> 1.3342383
A31: 8 | C31: Revenue Deficiency (Line 6 x Line 7) | G31: =ROUND(G29*G27,0) -> 47347997 | I31: =ROUND(I29*I27,0) -> 75176922
A33: 9 | C33: Revenue Increase Requested | E33: C-1 | G33: N/A | I33: =MINCR -> 75176777
A35: 10 | C35: Adjusted Operating Revenues | E35: C-1 | G35: N/A | I35: =SCH_C1!E17 -> 378362041
A37: 11 | C37: Revenue Requirements (Line 9 + Line 10) | G37: N/A | I37: =I33+I35 -> 453538818

Sheet SCH_B1
A1: =COMPANY -> DUKE ENERGY KENTUCKY, INC.
A2: =CASE -> CASE NO. 2022-00372
A3: JURISDICTIONAL RATE BASE SUMMARY
A4: ="AS OF " &RIGHT(TESTYR,(LEN(TESTYR)-16)) -> AS OF FEBRUARY 28, 2023
A5: ="AS OF " &RIGHT(Forecast,(LEN(Forecast)-16)) -> AS OF JUNE 30, 2024
A6: .
A7: =DataB -> DATA: "X" BASE PERIOD "X" FORECASTED PERIOD | I7: SCHEDULE B-1
A8: =Type -> TYPE OF FILING: "X" ORIGINAL UPDATED REVISED | I8: PAGE 1 OF 1
A9: WORK PAPER REFERENCE NO(S).: SEE BELOW | I9: WITNESS RESPONSIBLE:
I10: =_WIT1 -> L. D. STEINKUHL
E13: SUPPORTING | I13: 13 MONTH AVG.
A14: LINE | E14: SCHEDULE | G14: BASE | I14: FORECAST
A15: NO. | C15: RATE BASE COMPONENT | E15: REFERENCE | G15: PERIOD | I15: PERIOD
A18: 1 | C18: Adjusted Jurisdictional Plant in Service | E18: B-2 | G18: =ROUND('SCH B-2'!G42,0) -> 2172061349 | I18: =ROUND('SCH B-2'!G90,0) -> 2247062477
A20: 2 | C20: Accumulated Depreciation and Amortization | E20: B-3 / B-3.2 | G20: =-ROUND('SCH B-3'!K272,0) -> -840613698 | I20: =-ROUND('SCH B-3.2 - Proposed'!H299+(SCH_D2.24!J27*0.5),0) -> -863836939 | J20: (1)
A22: 3 | C22: Net Plant in Service (Line 1 + Line 2) | G22: =G18+G20 -> 1331447651 | I22: =PLANT_IN_SERVICE+I20 -> 1383225538
A24: 4 | C24: Construction Work in Progress | E24: B-4 | G24: 0 | I24: 0 | J24: (2)
A26: 5 | C26: Cash Working Capital Allowance | E26: B-5 | G26: =SCH_B5s!M17 -> 12170358 | I26: =SCH_B5s!O17 -> 5424742
A28: 6 | C28: Other Working Capital Allowances | E28: B-5 | G28: =SCH_B5s!M41-G26 -> 45233909 | I28: =SCH_B5s!O41-I26 -> 45233909
A30: 7 | C30: Other Items:
A32: 8 | C32: Customers' Advances for Construction | E32: B-6 | G32: 0 | I32: 0
A34: 9 | C34: Investment Tax Credits | E34: B-6 | G34: =SCH_B6!P24 -> 0 | I34: =SCH_B6!P68 -> 0
A36: 10 | C36: Deferred Income Taxes | E36: B-6 | G36: =SCH_B6!P27 -> -207679505 | I36: =SCH_B6!P71-SCH_D1!AA297-SCH_D1!AA302 -> -205889990 | J36: (3)
A38: 11 | C38: Excess ADIT | E38: B-6 | G38: =SCH_B6!P29 -> -55148883 | I38: =SCH_B6!P73 -> -51319334
A40: 12 | C40: Other Rate Base Adjustments
A42: 13 | C42: Jurisdictional Rate Base (Line 3 through Line 12) | G42: =SUM(G22:G40) -> 1126023530 | I42: =SUM(I22:I40) -> 1176674865
C45: (1) Includes an average of the annualized depreciation adjustment per Schedule D-2.24.
C46: (2) The Company is not requesting to include recovery of CWIP in base rates.
C47: (3) Includes an adjustment to ADIT to reflect annualized depreciation as calculated on Schedule D-1 and Schedule D-2.24.

Sheet SCH B-2
A1: =COMPANY -> DUKE ENERGY KENTUCKY, INC.
A2: =CASE -> CASE NO. 2022-00372
A3: PLANT IN SERVICE BY MAJOR PROPERTY GROUPING
A4: ="AS OF " &RIGHT(TESTYR,(LEN(TESTYR)-16)) -> AS OF FEBRUARY 28, 2023
A5: .
A9: =Data -> DATA: "X" BASE PERIOD FORECASTED PERIOD | F9: SCHEDULE B-2
A10: =Type -> TYPE OF FILING: "X" ORIGINAL UPDATED REVISED | F10: PAGE 1 OF 2
A11: WORK PAPER REFERENCE NO(S).: SCHEDULE B-2.1 | F11: WITNESS RESPONSIBLE:
F12: =_WIT7 -> G. S. CARPENTER / H. C. DANG
A17: Line | C17: Base | D17: Jurisdictional | E17: Jurisdictional | G17: Adjusted
A18: No. | B18: Major Property Groupings | C18: Period | D18: % | E18: Total | F18: Adjustments | G18: Jurisdiction
C20: $ | E20: $ | F20: $ | G20: $
A23: 1 | B23: Steam Production | C23: ='SCH B-2.1'!E36 -> 1035780369 | D23: 100 | E23: =ROUND((C23*D23)/100,0) -> 1035780369 | F23: ='SCH B-2.1'!H36 -> -91565563 | G23: =E23+F23 -> 944214806
A25: =1+A23 -> 2 | B25: Other Production | C25: ='SCH B-2.1'!E75 -> 363504489 | D25: 100 | E25: =ROUND((C25*D25)/100,0) -> 363504489 | F25: ='SCH B-2.1'!H75 -> 0 | G25: =E25+F25 -> 363504489
A27: =1+A25 -> 3 | B27: Transmission | C27: ='SCH B-2.1'!E114 -> 118167521 | D27: 100 | E27: =ROUND((C27*D27)/100,0) -> 118167521 | F27: ='SCH B-2.1'!H114 -> 0 | G27: =E27+F27 -> 118167521
A29: =1+A27 -> 4 | B29: Distribution | C29: ='SCH B-2.1'!E166 -> 660112068 | D29: 100 | E29: =ROUND((C29*D29)/100,0) -> 660112068 | F29: ='SCH B-2.1'!H166 -> -4102354 | G29: =E29+F29 -> 656009714
A31: =1+A29 -> 5 | B31: General | C31: ='SCH B-2.1'!E205 -> 59361057 | D31: 100 | E31: =ROUND((C31*D31)/100,0) -> 59361057 | F31: ='SCH B-2.1'!H205 -> 0 | G31: =E31+F31 -> 59361057
A33: =1+A31 -> 6 | B33: Common (Allocated to Electric) | C33: ='SCH B-2.1'!E250 -> 30965676 | D33: 100 | E33: =ROUND((C33*D33)/100,0) -> 30965676 | F33: ='SCH B-2.1'!H250 -> -161914 | G33: =E33+F33 -> 30803762
A35: =1+A33 -> 7 | B35: Completed Construction
B36: Not Classified (1)
A38: =1+A35 -> 8 | B38: Other (specify)
A42: =1+A38 -> 9 | B42: TOTAL | C42: =SUM(C23:C38) -> 2267891180 | E42: =SUM(E23:E38) -> 2267891180 | F42: =SUM(F23:F38) -> -95829831 | G42: =SUM(G23:G38) -> 2172061349
A46: (1) Included in each function on Schedule B-2.1
A49: =COMPANY -> DUKE ENERGY KENTUCKY, INC.
A50: =CASE -> CASE NO. 2022-00372
A51: PLANT IN SERVICE BY MAJOR PROPERTY GROUPING
A52: ="AS OF " &RIGHT(Forecast,(LEN(Forecast)-16)) -> AS OF JUNE 30, 2024
A57: =DataF -> DATA: BASE PERIOD "X" FORECASTED PERIOD | F57: SCHEDULE B-2
A58: =Type -> TYPE OF FILING: "X" ORIGINAL UPDATED REVISED | F58: PAGE 2 OF 2
A59: WORK PAPER REFERENCE NO(S).: SCHEDULE B-2.1 | F59: WITNESS RESPONSIBLE:
F60: =_WIT7 -> G. S. CARPENTER / H. C. DANG
C64: 13 Month | F64: 13 Month | G64: 13 Month Average
A65: Line | C65: Average | D65: Jurisdictional | E65: Jurisdictional | F65: Average | G65: Adjusted
A66: No. | B66: Major Property Groupings | C66: Forecasted Period | D66: % | E66: Total | F66: Adjustments | G66: Jurisdiction
C68: $ | E68: $ | F68: $ | G68: $
A71: 1 | B71: Steam Production | C71: ='SCH B-2.1'!E292 -> 1049044849 | D71: 100 | E71: =ROUND((C71*D71)/100,0) -> 1049044849 | F71: ='SCH B-2.1'!H292 -> -92219721 | G71: =E71+F71 -> 956825128
A73: =1+A71 -> 2 | B73: Other Production | C73: ='SCH B-2.1'!E331 -> 362888366 | D73: 100 | E73: =ROUND((C73*D73)/100,0) -> 362888366 | F73: ='SCH B-2.1'!H331 -> 0 | G73: =E73+F73 -> 362888366
A75: =1+A73 -> 3 | B75: Transmission | C75: ='SCH B-2.1'!E370 -> 134522697 | D75: 100 | E75: =ROUND((C75*D75)/100,0) -> 134522697 | F75: ='SCH B-2.1'!H370 -> 0 | G75: =E75+F75 -> 134522697
A77: =1+A75 -> 4 | B77: Distribution | C77: ='SCH B-2.1'!E423 -> 697001290 | D77: 100 | E77: =ROUND((C77*D77)/100,0) -> 697001290 | F77: ='SCH B-2.1'!H423 -> -4037540 | G77: =E77+F77 -> 692963750
A79: =1+A77 -> 5 | B79: General | C79: ='SCH B-2.1'!E462 -> 66537591 | D79: 100 | E79: =ROUND((C79*D79)/100,0) -> 66537591 | F79: ='SCH B-2.1'!H462 -> 0 | G79: =E79+F79 -> 66537591
A81: =1+A79 -> 6 | B81: Common (Allocated to Electric) | C81: ='SCH B-2.1'!E507 -> 33486859 | D81: 100 | E81: =ROUND((C81*D81)/100,0) -> 33486859 | F81: ='SCH B-2.1'!H507 -> -161914 | G81: =E81+F81 -> 33324945
A83: =1+A81 -> 7 | B83: Completed Construction
B84: Not Classified (1)
A86: =1+A83 -> 8 | B86: Other (specify)
A90: =1+A86 -> 9 | B90: TOTAL | C90: =SUM(C71:C86) -> 2343481652 | E90: =SUM(E71:E86) -> 2343481652 | F90: =SUM(F71:F86) -> -96419175 | G90: =SUM(G71:G86) -> 2247062477
A94: (1) Included in each function on Schedule B-2.1
A437: \F
A439: \B
A441: \A
A443: \C
A450: \D
A452: \E

Sheet SCH B-2.1
A1: =COMPANY -> DUKE ENERGY KENTUCKY, INC.
A2: =CASE -> CASE NO. 2022-00372
A3: PLANT IN SERVICE BY ACCOUNTS AND SUBACCOUNTS
A4: ="AS OF " &RIGHT(TESTYR,(LEN(TESTYR)-16)) -> AS OF FEBRUARY 28, 2023
A5: .
A6: STEAM PRODUCTION PLANT
A10: =Data -> DATA: "X" BASE PERIOD FORECASTED PERIOD | H10: SCHEDULE B-2.1
A11: =Type -> TYPE OF FILING: "X" ORIGINAL UPDATED REVISED | H11: PAGE 1 OF 12
A12: WORK PAPER REFERENCE NO(S).: SCHEDULE B-2.2, SCHEDULE B-2.3 | H12: WITNESS RESPONSIBLE:
H13: =_WIT7 -> G. S. CARPENTER / H. C. DANG
B17: FERC | C17: Company
A18: Line | B18: Acct. | C18: Acct. | E18: Base | F18: Jurisdictional | G18: Jurisdictional | I18: Adjusted
A19: No. | B19: No. | C19: No. | D19: Account Title | E19: Period | F19: % | G19: Total | H19: Adjustments | I19: Jurisdiction
E21: $ | G21: $ | H21: $ | I21: $
A23: 1 | B23: 310 | C23: 3100 | D23: Land and Land Rights | E23: ='SCH B-2.3'!K23 -> 7076686 | F23: 1 | G23: =ROUND((E23*F23),0) -> 7076686 | I23: =G23+H23 -> 7076686
A24: =A23+1 -> 2 | B24: 311 | C24: 3110 | D24: Structures & Improvements | E24: ='SCH B-2.3'!K24 -> 183199106 | F24: 1 | G24: 183199106 | I24: 183199106
A25: =A24+1 -> 3 | B25: 312 | C25: 3120 | D25: Boiler Plant Equipment | E25: ='SCH B-2.3'!K25 -> 545354539 | F25: 1 | G25: 545354539 | I25: 545354539
A26: 4 | B26: 312 | C26: 3123 | D26: Boiler Plant Equip - SCR Catalyst | E26: ='SCH B-2.3'!K26 -> 7823058 | F26: 1 | G26: 7823058 | I26: 7823058
A27: 5 | B27: 314 | C27: 3140 | D27: Turbogenerator Equipment | E27: ='SCH B-2.3'!K27 -> 117584634 | F27: 1 | G27: 117584634 | I27: 117584634
A28: 6 | B28: 315 | C28: 3150 | D28: Accessory Electric Equipment | E28: ='SCH B-2.3'!K28 -> 49872744 | F28: 1 | G28: 49872744 | I28: 49872744
A29: 7 | B29: 316 | C29: 3160 | D29: Miscellaneous Powerplant Equipment | E29: ='SCH B-2.3'!K29 -> 24168159 | F29: 1 | G29: 24168159 | I29: 24168159
A30: 8 | B30: 317 | C30: 3170 | D30: ARO - Steam Production | E30: ='SCH B-2.3'!K30 -> 100701443 | F30: 1 | G30: 100701443 | H30: ='SCH B-2.2'!G23 -> -100701443 | I30: 0
A31: 9 | D31: Case 2015-120 Acq of DPL Share of East Bend | E31: ='SCH B-2.3'!K31 -> 0 | F31: 1 | G31: 0 | H31: ='SCH B-2.2'!G27 -> 9135880 | I31: 9135880
A32: 10 | D32: Completed Construction Not Classified | E32: ='SCH B-2.3'!K32 -> 0 | F32: 1 | G32: 0 | I32: 0
A36: =A32+1 -> 11 | D36: Total Steam Production Plant | E36: =SUM(E23:E33) -> 1035780369 | G36: =SUM(G23:G33) -> 1035780369 | H36: =SUM(H23:H33) -> -91565563 | I36: =SUM(I23:I33) -> 944214806 | K36: =IF(E36='SCH B-2.3'!K36,"BALANCED","ERROR") -> BALANCED
A39: =COMPANY -> DUKE ENERGY KENTUCKY, INC.
A40: =CASE -> CASE NO. 2022-00372
A41: PLANT IN SERVICE BY ACCOUNTS AND SUBACCOUNTS
A42: ="AS OF " &RIGHT(TESTYR,(LEN(TESTYR)-16)) -> AS OF FEBRUARY 28, 2023
A44: OTHER PRODUCTION PLANT
A48: =Data -> DATA: "X" BASE PERIOD FORECASTED PERIOD | H48: SCHEDULE B-2.1
A49: =Type -> TYPE OF FILING: "X" ORIGINAL UPDATED REVISED | H49: PAGE 2 OF 12
A50: WORK PAPER REFERENCE NO(S).: SCHEDULE B-2.2, SCHEDULE B-2.3 | H50: WITNESS RESPONSIBLE:
H51: =_WIT7 -> G. S. CARPENTER / H. C. DANG
B55: FERC | C55: Company
A56: Line | B56: Acct. | C56: Acct. | E56: Base | F56: Jurisdictional | G56: Jurisdictional | I56: Adjusted
A57: No. | B57: No. | C57: No. | D57: Account Title | E57: Period | F57: % | G57: Total | H57: Adjustments | I57: Jurisdiction
E59: $ | G59: $ | H59: $ | I59: $
A61: 1 | B61: 340 | C61: 3400 | D61: Land and Land Rights | E61: ='SCH B-2.3'!K61 -> 2265295 | F61: 1 | G61: =ROUND((E61*F61),0) -> 2265295 | I61: =G61+H61 -> 2265295
A62: =A61+1 -> 2 | B62: 340 | C62: 3401 | D62: Rights of Way | E62: ='SCH B-2.3'!K62 -> 0 | F62: 1 | G62: 0 | I62: 0
A63: 3 | B63: 341 | C63: 3410 | D63: Structures & Improvements | E63: ='SCH B-2.3'!K63 -> 36490465 | F63: 1 | G63: 36490465 | I63: 36490465
A64: 4 | B64: 342 | C64: 3420 | D64: Fuel Holders, Producers, Accessories | E64: ='SCH B-2.3'!K64 -> 61138411 | F64: 1 | G64: 61138411 | I64: 61138411
A65: 5 | B65: 343 | C65: 3430, 3431 | D65: Prime Movers | E65: ='SCH B-2.3'!K65 -> 9149731 | F65: 1 | G65: 9149731 | I65: 9149731
A66: 6 | B66: 344 | C66: 3440 | D66: Generators | E66: ='SCH B-2.3'!K66 -> 211945141 | F66: 1 | G66: 211945141 | I66: 211945141
A67: 7 | B67: 344 | C67: 3446 | D67: Solar Generators | E67: ='SCH B-2.3'!K67 -> 15778050 | F67: 1 | G67: 15778050 | I67: 15778050
A68: 8 | B68: 345 | C68: 3450 | D68: Accessory Electric Equipment | E68: ='SCH B-2.3'!K68 -> 19850612 | F68: 1 | G68: 19850612 | I68: 19850612
A69: 9 | B69: 345 | C69: 3456 | D69: Solar Accessory Electric Equipment | E69: ='SCH B-2.3'!K69 -> 1729695 | F69: 1 | G69: 1729695 | I69: 1729695
A70: 10 | B70: 346 | C70: 3460 | D70: Miscellaneous Plant Equipment | E70: ='SCH B-2.3'!K70 -> 5157089 | F70: 1 | G70: 5157089 | I70: 5157089
A71: 11 | D71: Completed Construction Not Classified | E71: ='SCH B-2.3'!K71 -> 0 | F71: 1 | G71: 0 | I71: 0
A75: =A71+1 -> 12 | D75: Total Other Production Plant | E75: =SUM(E60:E72) -> 363504489 | G75: =SUM(G60:G72) -> 363504489 | H75: =SUM(H60:H72) -> 0 | I75: =SUM(I60:I72) -> 363504489 | K75: =IF(E75='SCH B-2.3'!K75,"BALANCED","ERROR") -> BALANCED
A78: =COMPANY -> DUKE ENERGY KENTUCKY, INC.
A79: =CASE -> CASE NO. 2022-00372
A80: PLANT IN SERVICE BY ACCOUNTS AND SUBACCOUNTS
A81: ="AS OF " &RIGHT(TESTYR,(LEN(TESTYR)-16)) -> AS OF FEBRUARY 28, 2023
A83: TRANSMISSION PLANT
H86: =H10 -> SCHEDULE B-2.1
A87: =Data -> DATA: "X" BASE PERIOD FORECASTED PERIOD | H87: PAGE 3 OF 12
A88: =Type -> TYPE OF FILING: "X" ORIGINAL UPDATED REVISED | H88: WITNESS RESPONSIBLE:
A89: WORK PAPER REFERENCE NO(S).: SCHEDULE B-2.2, SCHEDULE B-2.3 | H89: =_WIT7 -> G. S. CARPENTER / H. C. DANG
B94: FERC | C94: Company
A95: Line | B95: Acct. | C95: Acct. | E95: Base | F95: Jurisdictional | G95: Jurisdictional | I95: Adjusted
A96: No. | B96: No. | C96: No. | D96: Account Title | E96: Period | F96: % | G96: Total | H96: Adjustments | I96: Jurisdiction
E98: $ | G98: $ | H98: $ | I98: $
A100: 1 | B100: 350 | C100: 3500 | D100: Land | E100: ='SCH B-2.3'!K100 -> 4883832 | F100: 1 | G100: =ROUND((E100*F100),0) -> 4883832 | I100: =G100+H100 -> 4883832
A101: =A100+1 -> 2 | B101: 350 | C101: 3501 | D101: Rights of Way | E101: ='SCH B-2.3'!K101 -> 1595141 | F101: 1 | G101: 1595141 | I101: 1595141
A102: 3 | B102: 352 | C102: 3520 | D102: Structures & Improvements | E102: ='SCH B-2.3'!K102 -> 7216591 | F102: 1 | G102: 7216591 | I102: 7216591
A103: 4 | B103: 353 | C103: 3530 | D103: Station Equipment | E103: ='SCH B-2.3'!K103 -> 35269633 | F103: 1 | G103: 35269633 | I103: 35269633
A104: 5 | B104: 353 | C104: 3531 | D104: Station Equipment - Step Up | E104: ='SCH B-2.3'!K104 -> 11212526 | F104: 1 | G104: 11212526 | I104: 11212526
A105: 6 | B105: 353 | C105: 3532 | D105: Station Equipment - Major | E105: ='SCH B-2.3'!K105 -> 13676954 | F105: 1 | G105: 13676954 | I105: 13676954
A106: 7 | B106: 353 | C106: 3534 | D106: Station Equipment - Step Up Equipment | E106: ='SCH B-2.3'!K106 -> 9173573 | F106: 1 | G106: 9173573 | I106: 9173573
A107: 8 | B107: 355 | C107: 3550 | D107: Poles & Fixtures | E107: ='SCH B-2.3'!K107 -> 17266490 | F107: 1 | G107: 17266490 | I107: 17266490
A108: 9 | B108: 356 | C108: 3560 | D108: Overhead Conductors & Devices | E108: ='SCH B-2.3'!K108 -> 15226839 | F108: 1 | G108: 15226839 | I108: 15226839
A109: 10 | B109: 356 | C109: 3561 | D109: Overhead Conductors - Clear R/W | E109: ='SCH B-2.3'!K109 -> 2645942 | F109: 1 | G109: 2645942 | I109: 2645942
A110: 11 | D110: Completed Construction Not Classified | E110: ='SCH B-2.3'!K110 -> 0 | F110: 1 | G110: 0 | I110: 0
A114: 12 | D114: Total Transmission Plant | E114: =SUM(E100:E110) -> 118167521 | G114: =SUM(G100:G110) -> 118167521 | H114: =SUM(H100:H110) -> 0 | I114: =SUM(I100:I110) -> 118167521 | K114: =IF(E114='SCH B-2.3'!K114,"BALANCED","ERROR") -> BALANCED
A117: =A1 -> DUKE ENERGY KENTUCKY, INC.
A118: =A2 -> CASE NO. 2022-00372
A119: =A3 -> PLANT IN SERVICE BY ACCOUNTS AND SUBACCOUNTS
A120: =A4 -> AS OF FEBRUARY 28, 2023
A122: DISTRIBUTION PLANT
H125: =H10 -> SCHEDULE B-2.1
A126: =A10 -> DATA: "X" BASE PERIOD FORECASTED PERIOD | H126: PAGE 4 OF 12
A127: =A11 -> TYPE OF FILING: "X" ORIGINAL UPDATED REVISED | H127: WITNESS RESPONSIBLE:
A128: =A12 -> WORK PAPER REFERENCE NO(S).: SCHEDULE B-2.2, SCHEDULE B-2.3 | H128: =H13 -> G. S. CARPENTER / H. C. DANG
B133: FERC | C133: Company
A134: Line | B134: Acct. | C134: Acct. | E134: Base | F134: Jurisdictional | G134: Jurisdictional | I134: Adjusted
A135: No. | B135: No. | C135: No. | D135: Account Title | E135: Period | F135: % | G135: Total | H135: Adjustments | I135: Jurisdiction
E137: $ | G137: $ | H137: $ | I137: $
A139: 1 | B139: 360 | C139: 3600 | D139: Land and Land Rights | E139: ='SCH B-2.3'!K139 -> 13127962 | F139: 1 | G139: =ROUND((E139*F139),0) -> 13127962 | I139: =G139+H139 -> 13127962
A140: =A139+1 -> 2 | B140: 360 | C140: 3601 | D140: Rights of Way | E140: ='SCH B-2.3'!K140 -> 4942027 | F140: 1 | G140: 4942027 | I140: 4942027
A141: 3 | B141: 361 | C141: 3610 | D141: Structures & Improvements | E141: ='SCH B-2.3'!K141 -> 1476490 | F141: 1 | G141: 1476490 | I141: 1476490
A142: 4 | B142: 362 | C142: 3620 | D142: Station Equipment | E142: ='SCH B-2.3'!K142 -> 81715289 | F142: 1 | G142: 81715289 | I142: 81715289
A143: 5 | B143: 362 | C143: 3622 | D143: Station Equipment - Major | E143: ='SCH B-2.3'!K143 -> 45890554 | F143: 1 | G143: 45890554 | I143: 45890554
A144: 6 | B144: 363 | C144: 3630 | D144: Storage Battery Equipment | E144: ='SCH B-2.3'!K144 -> 0 | F144: 1 | G144: 0 | I144: 0
A145: 7 | B145: 364 | C145: 3640 | D145: Poles, Towers & Fixtures | E145: ='SCH B-2.3'!K145 -> 78493709 | F145: 1 | G145: 78493709 | I145: 78493709
A146: 8 | B146: 365 | C146: 3650 | D146: Overhead Conductors & Devices | E146: ='SCH B-2.3'!K146 -> 150576966 | F146: 1 | G146: 150576966 | I146: 150576966
A147: 9 | B147: 365 | C147: 3651 | D147: Overhead Conductors - Clear R/W | E147: ='SCH B-2.3'!K147 -> 7818250 | F147: 1 | G147: 7818250 | I147: 7818250
A148: 10 | B148: 366 | C148: 3660 | D148: Underground Conduit | E148: ='SCH B-2.3'!K148 -> 45247696 | F148: 1 | G148: 45247696 | I148: 45247696
A149: 11 | B149: 367 | C149: 3670 | D149: Underground Conductors & Devices | E149: ='SCH B-2.3'!K149 -> 86949876 | F149: 1 | G149: 86949876 | I149: 86949876
A150: 12 | B150: 368 | C150: 3680 | D150: Line Transformers | E150: ='SCH B-2.3'!K150 -> 78560192 | F150: 1 | G150: 78560192 | I150: 78560192
A151: 13 | B151: 368 | C151: 3682 | D151: Customers Transformer Installation | E151: ='SCH B-2.3'!K151 -> 286401 | F151: 1 | G151: 286401 | I151: 286401
A152: 14 | B152: 369 | C152: 3691 | D152: Services - Underground | E152: ='SCH B-2.3'!K152 -> 3205861 | F152: 1 | G152: 3205861 | I152: 3205861
A153: 15 | B153: 369 | C153: 3692 | D153: Services - Overhead | E153: ='SCH B-2.3'!K153 -> 18667566 | F153: 1 | G153: 18667566 | I153: 18667566
A154: 16 | B154: 370 | C154: 3700 | D154: Meters | E154: ='SCH B-2.3'!K154 -> 2890636 | F154: 1 | G154: 2890636 | I154: 2890636
A155: 17 | B155: 370 | C155: 3702 | D155: AMI Meters | E155: ='SCH B-2.3'!K155 -> 28835299 | F155: 1 | G155: 28835299 | I155: 28835299
A156: 18 | B156: 371 | C156: 3711, 3712 | D156: Company Owned Outdoor Lighting | E156: ='SCH B-2.3'!K156 -> 1165412 | F156: 1 | G156: 1165412 | I156: 1165412
A157: 19 | B157: 372 | C157: 3720 | D157: Leased Property on Customers | E157: ='SCH B-2.3'!K157 -> 10096 | F157: 1 | G157: 10096 | I157: 10096
A158: 20 | B158: 373 | C158: 3731 | D158: Street Lighting - Overhead | E158: ='SCH B-2.3'!K158 -> 2624193 | F158: 1 | G158: 2624193 | I158: 2624193
A159: 21 | B159: 373 | C159: 3732 | D159: Street Lighting - Boulevard | E159: ='SCH B-2.3'!K159 -> 3525239 | F159: 1 | G159: 3525239 | I159: 3525239
A160: 22 | B160: 373 | C160: 3733 | D160: Street Lighting - Cust, Private Outdoor Lighting | E160: ='SCH B-2.3'!K160 -> 1665874 | F160: 1 | G160: 1665874 | H160: =-E160 -> -1665874 | I160: 0
A161: 23 | B161: 373 | C161: 3734 | D161: Light Choice OLE | E161: ='SCH B-2.3'!K161 -> 2436480 | F161: 1 | G161: 2436480 | H161: =-E161 -> -2436480 | I161: 0
A162: 24 | D162: Completed Construction Not Classified | E162: ='SCH B-2.3'!K162 -> 0 | F162: 1 | G162: 0 | I162: 0
A166: =A162+1 -> 25 | D166: Total Distribution Plant | E166: =SUM(E139:E164) -> 660112068 | G166: =SUM(G139:G164) -> 660112068 | H166: =SUM(H139:H164) -> -4102354 | I166: =SUM(I139:I164) -> 656009714 | K166: =IF(E166='SCH B-2.3'!K166,"BALANCED","ERROR") -> BALANCED
A170: =A1 -> DUKE ENERGY KENTUCKY, INC.
A171: =A2 -> CASE NO. 2022-00372
A172: =A3 -> PLANT IN SERVICE BY ACCOUNTS AND SUBACCOUNTS
A173: =A4 -> AS OF FEBRUARY 28, 2023
A175: GENERAL PLANT
A178: =A10 -> DATA: "X" BASE PERIOD FORECASTED PERIOD | H178: =H10 -> SCHEDULE B-2.1
A179: =A11 -> TYPE OF FILING: "X" ORIGINAL UPDATED REVISED | H179: PAGE 5 OF 12
A180: =A12 -> WORK PAPER REFERENCE NO(S).: SCHEDULE B-2.2, SCHEDULE B-2.3 | H180: WITNESS RESPONSIBLE:
H181: =H13 -> G. S. CARPENTER / H. C. DANG
B186: FERC | C186: Company
A187: Line | B187: Acct. | C187: Acct. | E187: Base | F187: Jurisdictional | G187: Jurisdictional | I187: Adjusted
A188: No. | B188: No. | C188: No. | D188: Account Title | E188: Period | F188: % | G188: Total | H188: Adjustments | I188: Jurisdiction
E190: $ | G190: $ | H190: $ | I190: $
A192: 1 | B192: 303 | C192: 3030 | D192: Miscellaneous Intangible Plant | E192: ='SCH B-2.3'!K192 -> 33148284 | F192: 1 | G192: =ROUND(E192*F192,0) -> 33148284 | I192: =G192+H192 -> 33148284
A193: =A192+1 -> 2 | B193: 390 | C193: 3900 | D193: Structures & Improvements | E193: ='SCH B-2.3'!K193 -> 179856 | F193: 1 | G193: 179856 | I193: 179856
A194: 3 | B194: 391 | C194: 3910 | D194: Office Furniture & Equipment | E194: ='SCH B-2.3'!K194 -> 404455 | F194: 1 | G194: 404455 | I194: 404455
A195: 4 | B195: 391 | C195: 3911 | D195: Electronic Data Proc Equip | E195: ='SCH B-2.3'!K195 -> 6194920 | F195: 1 | G195: 6194920 | I195: 6194920
A196: 5 | B196: 392 | C196: 3920 | D196: Transportation Equipment | E196: ='SCH B-2.3'!K196 -> 1024589 | F196: 1 | G196: 1024589 | I196: 1024589
A197: 6 | B197: 392 | C197: 3921 | D197: Trailers | E197: ='SCH B-2.3'!K197 -> 296442 | F197: 1 | G197: 296442 | I197: 296442
A198: 7 | B198: 394 | C198: 3940 | D198: Tools, Shop & Garage Equipment | E198: ='SCH B-2.3'!K198 -> 3699163 | F198: 1 | G198: 3699163 | I198: 3699163
A199: 8 | B199: 396 | C199: 3960 | D199: Power Operated Equipment | E199: ='SCH B-2.3'!K199 -> 12825 | F199: 1 | G199: 12825 | I199: 12825
A200: 9 | B200: 397 | C200: 3970 | D200: Communication Equipment | E200: ='SCH B-2.3'!K200 -> 14400523 | F200: 1 | G200: 14400523 | I200: 14400523
A201: 10 | D201: Completed Construction Not Classified | E201: ='SCH B-2.3'!K201 -> 0 | F201: 1 | G201: 0 | I201: 0
A205: 11 | D205: Total General Plant | E205: =SUM(E192:E202) -> 59361057 | G205: =SUM(G192:G202) -> 59361057 | H205: =SUM(H192:H202) -> 0 | I205: =SUM(I192:I202) -> 59361057 | K205: =IF(E205='SCH B-2.3'!K205,"BALANCED","ERROR") -> BALANCED
A208: 12 | D208: Total Electric Plant | E208: =E36+E75+E114+E166+E205 -> 2236925504 | G208: =G36+G75+G114+G166+G205 -> 2236925504 | H208: =H36+H75+H114+H166+H205 -> -95667917 | I208: =I36+I75+I114+I166+I205 -> 2141257587 | K208: =IF(E208='SCH B-2.3'!K208,"BALANCED","ERROR") -> BALANCED
A212: =A1 -> DUKE ENERGY KENTUCKY, INC.
A213: =A2 -> CASE NO. 2022-00372
A214: =A3 -> PLANT IN SERVICE BY ACCOUNTS AND SUBACCOUNTS
A215: =A4 -> AS OF FEBRUARY 28, 2023
A217: COMMON PLANT
A220: =A10 -> DATA: "X" BASE PERIOD FORECASTED PERIOD | H220: =H10 -> SCHEDULE B-2.1
A221: =A11 -> TYPE OF FILING: "X" ORIGINAL UPDATED REVISED | H221: PAGE 6 OF 12
A222: =A12 -> WORK PAPER REFERENCE NO(S).: SCHEDULE B-2.2, SCHEDULE B-2.3 | H222: WITNESS RESPONSIBLE:
H223: =H13 -> G. S. CARPENTER / H. C. DANG
B228: FERC | C228: Company
A229: Line | B229: Acct. | C229: Acct. | E229: Base | F229: Jurisdictional | G229: Jurisdictional | I229: Adjusted
A230: No. | B230: No. | C230: No. | D230: Account Title | E230: Period | F230: % | G230: Total | H230: Adjustments | I230: Jurisdiction
E232: $ | G232: $ | H232: $ | I232: $
A234: 1 | B234: 103 | C234: 1030 | D234: Miscellaneous Intangible Plant | E234: ='SCH B-2.3'!K234 -> 22425004 | F234: 1 | G234: =ROUND(E234*F234,0) -> 22425004 | I234: =G234+H234 -> 22425004
A235: =A234+1 -> 2 | B235: 189 | C235: 1890 | D235: Land and Land Rights | E235: ='SCH B-2.3'!K235 -> 1041678 | F235: 1 | G235: 1041678 | I235: 1041678
A236: 3 | B236: 190 | C236: 1900 | D236: Structures & Improvements | E236: ='SCH B-2.3'!K236 -> 12562647 | F236: 1 | G236: 12562647 | I236: 12562647
A237: 4 | B237: 191 | C237: 1910 | D237: Office Furniture & Equipment | E237: ='SCH B-2.3'!K237 -> 788869 | F237: 1 | G237: 788869 | I237: 788869
A238: 5 | B238: 191 | C238: 1911 | D238: Office Furniture & Equipment - EDP Equipment | E238: ='SCH B-2.3'!K238 -> 9095 | F238: 1 | G238: 9095 | I238: 9095
A239: 6 | B239: 194 | C239: 1940 | D239: Tools, Shop & Garage Equipment | E239: ='SCH B-2.3'!K239 -> 112890 | F239: 1 | G239: 112890 | I239: 112890
A240: 7 | B240: 197 | C240: 1970 | D240: Communication Equipment | E240: ='SCH B-2.3'!K240 -> 6131223 | F240: 1 | G240: 6131223 | I240: 6131223
A241: 8 | B241: 198 | C241: 1980 | D241: Miscellaneous Equipment | E241: ='SCH B-2.3'!K241 -> 95301 | F241: 1 | G241: 95301 | I241: 95301
A242: 9 | B242: 199 | C242: 1990 | D242: ARO - Common Plant | E242: ='SCH B-2.3'!K242 -> 226897 | F242: 1 | G242: 226897 | H242: =-'SCH B-2.3'!K242 -> -226897 | I242: 0
A243: 10 | D243: Completed Construction Not Classified | E243: ='SCH B-2.3'!K243 -> 0 | F243: 1 | G243: 0 | I243: 0
A247: 11 | D247: Total Common Plant | E247: =SUM(E234:E245) -> 43393604 | G247: =SUM(G234:G245) -> 43393604 | H247: =SUM(H234:H245) -> -226897 | I247: =SUM(I234:I245) -> 43166707 | K247: =IF(E247='SCH B-2.3'!K247,"BALANCED","ERROR") -> BALANCED
A250: 12 | C250: 0.7136 | D250: Common Plant Allocated to Electric | E250: =ROUND(E247*CommonE,0) -> 30965676 | G250: =ROUND(G247*CommonE,0) -> 30965676 | H250: =ROUND(H247*CommonE,0) -> -161914 | I250: =ROUND(I247*CommonE,0) -> 30803762 | K250: =IF(E250='SCH B-2.3'!K250,"BALANCED","ERROR") -> BALANCED
A253: 13 | D253: Total Electric Plant Including Allocated Common | E253: =E208+E250 -> 2267891180 | G253: =G208+G250 -> 2267891180 | H253: =H208+H250 -> -95829831 | I253: =I208+I250 -> 2172061349 | K253: =IF(E253='SCH B-2.3'!K253,"BALANCED","ERROR") -> BALANCED
A257: =COMPANY -> DUKE ENERGY KENTUCKY, INC.
A258: =CASE -> CASE NO. 2022-00372
A259: PLANT IN SERVICE BY ACCOUNTS AND SUBACCOUNTS
A260: ="AS OF " &RIGHT(Forecast,(LEN(Forecast)-16)) -> AS OF JUNE 30, 2024
A262: STEAM PRODUCTION PLANT
A266: =DataF -> DATA: BASE PERIOD "X" FORECASTED PERIOD | H266: SCHEDULE B-2.1
A267: =Type -> TYPE OF FILING: "X" ORIGINAL UPDATED REVISED | H267: PAGE 7 OF 12
A268: WORK PAPER REFERENCE NO(S).: SCHEDULE B-2.2, SCHEDULE B-2.3 | H268: WITNESS RESPONSIBLE:
H269: =_WIT7 -> G. S. CARPENTER / H. C. DANG
I272: 13 Month
B273: FERC | C273: Company | E273: 13 Month | H273: 13 Month | I273: Average
A274: Line | B274: Acct. | C274: Acct. | E274: Average | F274: Jurisdictional | G274: Jurisdictional | H274: Average | I274: Adjusted
A275: No. | B275: No. | C275: No. | D275: Account Title | E275: Forecasted Period | F275: % | G275: Total | H275: Adjustments | I275: Jurisdiction
E277: $ | G277: $ | H277: $ | I277: $
A279: 1 | B279: 310 | C279: 3100 | D279: Land and Land Rights | E279: ='SCH B-2.3'!L279 -> 7267197 | F279: 1 | G279: =ROUND((E279*F279),0) -> 7267197 | I279: =G279+H279 -> 7267197
A280: =A279+1 -> 2 | B280: 311 | C280: 3110 | D280: Structures & Improvements | E280: ='SCH B-2.3'!L280 -> 185879874 | F280: 1 | G280: 185879874 | I280: 185879874
A281: 3 | B281: 312 | C281: 3120 | D281: Boiler Plant Equipment | E281: ='SCH B-2.3'!L281 -> 553244784 | F281: 1 | G281: 553244784 | I281: 553244784
A282: 4 | B282: 312 | C282: 3123 | D282: Boiler Plant Equip - SCR Catalyst | E282: ='SCH B-2.3'!L282 -> 7714318 | F282: 1 | G282: 7714318 | I282: 7714318
A283: 5 | B283: 314 | C283: 3140 | D283: Turbogenerator Equipment | E283: ='SCH B-2.3'!L283 -> 118509201 | F283: 1 | G283: 118509201 | I283: 118509201
A284: 6 | B284: 315 | C284: 3150 | D284: Accessory Electric Equipment | E284: ='SCH B-2.3'!L284 -> 51143847 | F284: 1 | G284: 51143847 | I284: 51143847
A285: 7 | B285: 316 | C285: 3160 | D285: Miscellaneous Powerplant Equipment | E285: ='SCH B-2.3'!L285 -> 24584185 | F285: 1 | G285: 24584185 | I285: 24584185
A286: 8 | B286: 317 | C286: 3170 | D286: ARO - Steam Production | E286: ='SCH B-2.3'!L286 -> 100701443 | F286: 1 | G286: 100701443 | H286: ='SCH B-2.2'!G63 -> -100701443 | I286: 0
A287: 9 | D287: Case 2015-120 Acq of DPL Share of East Bend | E287: ='SCH B-2.3'!L287 -> 0 | F287: 1 | G287: 0 | H287: ='SCH B-2.2'!G67 -> 8481722 | I287: 8481722
A288: 10 | D288: Completed Construction Not Classified | E288: ='SCH B-2.3'!L288 -> 0 | F288: 1 | G288: 0 | I288: 0
A292: =A288+1 -> 11 | D292: Total Production Plant | E292: =SUM(E279:E288) -> 1049044849 | G292: =SUM(G279:G288) -> 1049044849 | H292: =SUM(H279:H288) -> -92219721 | I292: =SUM(I279:I288) -> 956825128 | K292: =IF(E292='SCH B-2.3'!L291,"BALANCED","ERROR") -> BALANCED
A295: =COMPANY -> DUKE ENERGY KENTUCKY, INC.
A296: =CASE -> CASE NO. 2022-00372
A297: PLANT IN SERVICE BY ACCOUNTS AND SUBACCOUNTS
A298: ="AS OF " &RIGHT(Forecast,(LEN(Forecast)-16)) -> AS OF JUNE 30, 2024
A300: OTHER PRODUCTION PLANT
A304: =DataF -> DATA: BASE PERIOD "X" FORECASTED PERIOD | H304: SCHEDULE B-2.1
A305: =Type -> TYPE OF FILING: "X" ORIGINAL UPDATED REVISED | H305: PAGE 8 OF 12
A306: WORK PAPER REFERENCE NO(S).: SCHEDULE B-2.2, SCHEDULE B-2.3 | H306: WITNESS RESPONSIBLE:
H307: =_WIT7 -> G. S. CARPENTER / H. C. DANG
B311: FERC | C311: Company | E311: 13 Month
A312: Line | B312: Acct. | C312: Acct. | E312: Average | F312: Jurisdictional | G312: Jurisdictional | I312: Adjusted
... 132 more rows

Sheet SCH B-2.2
A1: =COMPANY -> DUKE ENERGY KENTUCKY, INC.
A2: =CASE -> CASE NO. 2022-00372
A3: ADJUSTMENTS TO PLANT IN SERVICE
A4: ="AS OF " &RIGHT(TESTYR,(LEN(TESTYR)-16)) -> AS OF FEBRUARY 28, 2023
A5: .
A9: =Data -> DATA: "X" BASE PERIOD FORECASTED PERIOD | H9: SCHEDULE B-2.2
A10: =Type -> TYPE OF FILING: "X" ORIGINAL UPDATED REVISED | H10: PAGE 1 OF 2
A11: WORK PAPER REFERENCE NO(S).: | H11: WITNESS RESPONSIBLE:
H12: =_WIT7 -> G. S. CARPENTER / H. C. DANG
B17: FERC | C17: Company | I17: Description and
A18: Line | B18: Acct. | C18: Acct. | E18: Base | F18: Jurisdictional | G18: Jurisdictional | H18: Workpaper | I18: Purpose of
A19: No. | B19: No. | C19: No. | D19: Account Title | E19: Period | F19: % | G19: Adjustment | H19: Reference No. | I19: Adjustment
E21: $ | G21: $
A23: 1 | B23: 317 | C23: 3170 | D23: ARO - Steam Production | E23: =-'SCH B-2.3'!K30 -> -100701443 | F23: 1 | G23: =E23*F23 -> -100701443 | I23: To remove ARO balances
A24: 2 | B24: 399 | C24: 3990 | D24: ARO - Common Plant | E24: =-'SCH B-2.3'!K242 -> -226897 | F24: 1 | G24: =E24*F24 -> -226897 | I24: To remove ARO balances
A25: 3 | B25: 373 | C25: 3733 | D25: Street Lighting - Cust, Private Outdoor Lighting | E25: =-'SCH B-2.3'!K160 -> -1665874 | F25: 1 | G25: =E25*F25 -> -1665874 | I25: To exclude street lighting balances
A26: 4 | B26: 373 | C26: 3734 | D26: Light Choice OLE | E26: =-'SCH B-2.3'!K161 -> -2436480 | F26: 1 | G26: -2436480 | I26: To exclude street lighting balances
A27: 5 | D27: Case 2015-120 Acq of DPL Share of East Bend | E27: 9135880 | F27: 1 | G27: =E27*F27 -> 9135880 | I27: To add DP&L Share of East Bend to Rate Base
A30: 7 | D30: Total Adjustments | E30: =SUM(E23:E28) -> -95894814 | F30: 1 | G30: =SUM(G23:G28) -> -95894814
A41: =COMPANY -> DUKE ENERGY KENTUCKY, INC.
A42: =CASE -> CASE NO. 2022-00372
A43: ADJUSTMENTS TO PLANT IN SERVICE
A44: ="AS OF " &RIGHT(Forecast,(LEN(Forecast)-16)) -> AS OF JUNE 30, 2024
A49: =DataF -> DATA: BASE PERIOD "X" FORECASTED PERIOD | H49: SCHEDULE B-2.2
A50: =Type -> TYPE OF FILING: "X" ORIGINAL UPDATED REVISED | H50: PAGE 2 OF 2
A51: WORK PAPER REFERENCE NO(S).: | H51: WITNESS RESPONSIBLE:
H52: =_WIT7 -> G. S. CARPENTER / H. C. DANG
E56: 13 Month
B57: FERC | C57: Company | E57: Average | I57: Description and
A58: Line | B58: Acct. | C58: Acct. | E58: Forecasted | F58: Jurisdictional | G58: Jurisdictional | H58: Workpaper | I58: Purpose of
A59: No. | B59: No. | C59: No. | D59: Account Title | E59: Period | F59: % | G59: Adjustment | H59: Reference No. | I59: Adjustment
E61: $ | G61: $
A63: 1 | B63: 317 | C63: 3170 | D63: ARO - Steam Production | E63: =-'SCH B-2.3'!L286 -> -100701443 | F63: 1 | G63: =E63*F63 -> -100701443 | I63: To remove ARO balances
A64: 2 | B64: 399 | C64: 3990 | D64: ARO - Common Plant | E64: =-'SCH B-2.3'!L496 -> -226897 | F64: 1 | G64: -226897 | I64: To remove ARO balances
A65: 3 | B65: 373 | C65: 3733 | D65: Street Lighting - Cust, Private Outdoor Lighting | E65: =-'SCH B-2.3'!L415 -> -1776859 | F65: 1 | G65: -1776859 | I65: To exclude street lighting balances
A66: 4 | B66: 373 | C66: 3734 | D66: Light Choice OLE | E66: =-'SCH B-2.3'!L416 -> -2260681 | F66: 1 | G66: -2260681 | I66: To exclude street lighting balances
A67: 5 | D67: Case 2015-120 Acq of DPL Share of East Bend | E67: 8481722 | F67: 1 | G67: =E67*F67 -> 8481722 | I67: To add DP&L Share of East Bend to Rate Base
A68: 6
A70: 7 | D70: Total Adjustments | E70: =SUM(E63:E68) -> -96484158 | F70: 1 | G70: =SUM(G63:G68) -> -96484158

Sheet SCH B-2.3
A1: =COMPANY -> DUKE ENERGY KENTUCKY, INC.
A2: =CASE -> CASE NO. 2022-00372
A3: GROSS ADDITIONS, RETIREMENTS, AND TRANSFERS
A4: ="FROM MARCH 1, 2022 TO "&RIGHT(TESTYR,(LEN(TESTYR)-16)) -> FROM MARCH 1, 2022 TO FEBRUARY 28, 2023
A5: .
A6: STEAM PRODUCTION PLANT
A10: =Data -> DATA: "X" BASE PERIOD FORECASTED PERIOD | J10: SCHEDULE B-2.3
A11: =Type -> TYPE OF FILING: "X" ORIGINAL UPDATED REVISED | J11: PAGE 1 OF 12
A12: WORK PAPER REFERENCE NO(S).: | J12: WITNESS RESPONSIBLE:
J13: =_WIT7 -> G. S. CARPENTER / H. C. DANG
B17: FERC | C17: Company | H17: Transfers/Reclassifications
A18: Line | B18: Acct. | C18: Acct. | D18: Account | E18: Beginning | I18: Explanation | J18: Other Accts. | K18: Ending
A19: No. | B19: No. | C19: No. | D19: Title | E19: Balance | F19: Additions | G19: Retirements | H19: Amount | I19: of Transfer | J19: Involved | K19: Balance
E21: $ | F21: $ | G21: $ | H21: $ | K21: $
A23: 1 | B23: 310 | C23: 3100 | D23: Land and Land Rights | E23: 7046984 | F23: 29762 | G23: 60 | H23: 0 | K23: =E23+F23-G23+H23 -> 7076686
A24: 2 | B24: 311 | C24: 3110 | D24: Structures & Improvements | E24: 183716926 | F24: 907423 | G24: 1425243 | H24: 0 | K24: 183199106
A25: 3 | B25: 312 | C25: 3120 | D25: Boiler Plant Equipment | E25: 545607154 | F25: 3932374 | G25: 4184989 | H25: 0 | K25: 545354539
A26: 4 | B26: 312 | C26: 3123 | D26: Boiler Plant Equip - SCR Catalyst | E26: 7984158 | F26: 33720 | G26: 194820 | H26: 0 | K26: 7823058
A27: 5 | B27: 314 | C27: 3140 | D27: Turbogenerator Equipment | E27: 115790522 | F27: 1085042 | G27: -709070 | H27: 0 | K27: 117584634
A28: 6 | B28: 315 | C28: 3150 | D28: Accessory Electric Equipment | E28: 49169516 | F28: 776855 | G28: 73627 | H28: 0 | K28: 49872744
A29: 7 | B29: 316 | C29: 3160 | D29: Miscellaneous Power Plant Equipment | E29: 24003324 | F29: 308115 | G29: 143280 | H29: 0 | K29: 24168159
A30: 8 | B30: 317 | C30: 3170 | D30: ARO - Steam Production | E30: 100701443 | F30: 0 | G30: 0 | H30: 0 | K30: 100701443
A31: =A30+1 -> 9 | D31: Case 2015-120 Acq of DPL Share of East Bend | E31: 0 | F31: 0 | G31: 0 | H31: 0 | K31: 0
A32: =A31+1 -> 10 | D32: Completed Construction Not Classified | E32: 0 | F32: 0 | G32: 0 | H32: 0 | K32: 0
A36: =A32+1 -> 11 | D36: Total Steam Production Plant | E36: =SUM(E23:E34) -> 1034020027 | F36: =SUM(F23:F34) -> 7073291 | G36: =SUM(G23:G34) -> 5312949 | H36: =SUM(H23:H34) -> 0 | K36: =SUM(K23:K34) -> 1035780369
A39: =COMPANY -> DUKE ENERGY KENTUCKY, INC.
A40: =CASE -> CASE NO. 2022-00372
A41: GROSS ADDITIONS, RETIREMENTS, AND TRANSFERS
A42: =A4 -> FROM MARCH 1, 2022 TO FEBRUARY 28, 2023
A44: OTHER PRODUCTION PLANT
A48: =Data -> DATA: "X" BASE PERIOD FORECASTED PERIOD | J48: SCHEDULE B-2.3
A49: =Type -> TYPE OF FILING: "X" ORIGINAL UPDATED REVISED | J49: PAGE 2 OF 12
A50: WORK PAPER REFERENCE NO(S).: | J50: WITNESS RESPONSIBLE:
J51: =_WIT7 -> G. S. CARPENTER / H. C. DANG
B55: FERC | C55: Company | H55: Transfers/Reclassifications
A56: Line | B56: Acct. | C56: Acct. | D56: Account | E56: Beginning | I56: Explanation | J56: Other Accts. | K56: Ending
A57: No. | B57: No. | C57: No. | D57: Title | E57: Balance | F57: Additions | G57: Retirements | H57: Amount | I57: of Transfer | J57: Involved | K57: Balance
E59: $ | F59: $ | G59: $ | H59: $ | K59: $
A61: 1 | B61: 340 | C61: 3400 | D61: Land and Land Rights | E61: 2258588 | F61: 6707 | G61: 0 | H61: 0 | K61: =E61+F61-G61+H61 -> 2265295
A62: 2 | B62: 340 | C62: 3401 | D62: Rights of Way | E62: 0 | F62: 0 | G62: 0 | H62: 0 | K62: 0
A63: 3 | B63: 341 | C63: 3410 | D63: Structures & Improvements | E63: 36379260 | F63: 141284 | G63: 30079 | H63: 0 | K63: 36490465
A64: 4 | B64: 342 | C64: 3420 | D64: Fuel Holders, Producers, Accessories | E64: 61310890 | F64: 182061 | G64: 354540 | H64: 0 | K64: 61138411
A65: 5 | B65: 343 | C65: 3430, 3431 | D65: Prime Movers | E65: 10469994 | F65: 67237 | G65: 1387500 | H65: 0 | K65: 9149731
A66: 6 | B66: 344 | C66: 3440 | D66: Generators | E66: 211248425 | F66: 627296 | G66: -69420 | H66: 0 | K66: 211945141
A67: 7 | B67: 344 | C67: 3440- Solar | D67: Solar Generators | E67: 10478050 | F67: 5300000 | G67: 0 | H67: 0 | K67: 15778050
A68: 8 | B68: 345 | C68: 3450 | D68: Accessory Electric Equipment | E68: 19858902 | F68: 58970 | G68: 67260 | H68: 0 | K68: 19850612
A69: 9 | B69: 345 | C69: 3456 - Solar | D69: Accessory Electric Equipment | E69: 1729695 | F69: 0 | G69: 0 | H69: 0 | K69: 1729695
A70: 10 | B70: 346 | C70: 3460 | D70: Miscellaneous Plant Equipment | E70: 5152110 | F70: 15299 | G70: 10320 | H70: 0 | K70: 5157089
A71: 11 | D71: Completed Construction Not Classified | E71: 0 | F71: 0 | G71: 0 | H71: 0 | K71: 0
A75: =A71+1 -> 12 | D75: Total Other Production Plant | E75: =SUM(E61:E73) -> 358885914 | F75: =SUM(F61:F73) -> 6398854 | G75: =SUM(G61:G73) -> 1780279 | H75: =SUM(H61:H73) -> 0 | K75: =SUM(K61:K73) -> 363504489
A78: =COMPANY -> DUKE ENERGY KENTUCKY, INC.
A79: =CASE -> CASE NO. 2022-00372
A80: GROSS ADDITIONS, RETIREMENTS, AND TRANSFERS
A81: =A4 -> FROM MARCH 1, 2022 TO FEBRUARY 28, 2023
A83: TRANSMISSION PLANT
A87: =Data -> DATA: "X" BASE PERIOD FORECASTED PERIOD | J87: =J10 -> SCHEDULE B-2.3
A88: =Type -> TYPE OF FILING: "X" ORIGINAL UPDATED REVISED | J88: PAGE 3 OF 12
A89: WORK PAPER REFERENCE NO(S).: | J89: WITNESS RESPONSIBLE:
J90: =J13 -> G. S. CARPENTER / H. C. DANG
B94: FERC | C94: Company | H94: Transfers/Reclassifications
A95: Line | B95: Acct. | C95: Acct. | D95: Account | E95: Beginning | I95: Explanation | J95: Other Accts. | K95: Ending
A96: No. | B96: No. | C96: No. | D96: Title | E96: Balance | F96: Additions | G96: Retirements | H96: Amount | I96: of Transfer | J96: Involved | K96: Balance
E98: $ | F98: $ | G98: $ | H98: $ | K98: $
A100: 1 | B100: 350 | C100: 3500 | D100: Land | E100: 2055418 | F100: 2828414 | G100: 0 | H100: 0 | K100: =E100+F100-G100+H100 -> 4883832
A101: 2 | B101: 350 | C101: 3501 | D101: Rights of Way | E101: 1333532 | F101: 261609 | G101: 0 | H101: 0 | K101: 1595141
A102: 3 | B102: 352 | C102: 3520 | D102: Structures & Improvements | E102: 5985540 | F102: 1231051 | G102: 0 | H102: 0 | K102: 7216591
A103: 4 | B103: 353 | C103: 3530 | D103: Station Equipment | E103: 30314175 | F103: 5680960 | G103: 722215 | H103: -3287 | K103: 35269633
A104: 5 | B104: 353 | C104: 3531 | D104: Station Equipment - Step Up | E104: 9373634 | F104: 1838892 | G104: 0 | H104: 0 | K104: 11212526
A105: 6 | B105: 353 | C105: 3532 | D105: Station Equipment - Major | E105: 11448790 | F105: 2245804 | G105: 17640 | H105: 0 | K105: 13676954
A106: 7 | B106: 353 | C106: 3534 | D106: Station Equipment - Step Up Equipment | E106: 7668103 | F106: 1505470 | G106: 0 | H106: 0 | K106: 9173573
A107: 8 | B107: 355 | C107: 3550 | D107: Poles & Fixtures | E107: 14970926 | F107: 3316266 | G107: 1020702 | H107: 0 | K107: 17266490
A108: 9 | B108: 356 | C108: 3560 | D108: Overhead Conductors & Devices | E108: 10784621 | F108: 4568345 | G108: 126127 | H108: 0 | K108: 15226839
A109: 10 | B109: 356 | C109: 3561 | D109: Overhead Conductors - Clear R/W | E109: 2100919 | F109: 545023 | G109: 0 | H109: 0 | K109: 2645942
A110: 11 | D110: Completed Construction Not Classified | E110: 0 | F110: 0 | G110: 0 | H110: 0 | K110: 0
A114: 12 | D114: Total Transmission Plant | E114: =SUM(E100:E110) -> 96035658 | F114: =SUM(F100:F110) -> 24021834 | G114: =SUM(G100:G110) -> 1886684 | H114: =SUM(H100:H110) -> -3287 | K114: =SUM(K100:K110) -> 118167521
A117: =A1 -> DUKE ENERGY KENTUCKY, INC.
A118: =A2 -> CASE NO. 2022-00372
A119: =A3 -> GROSS ADDITIONS, RETIREMENTS, AND TRANSFERS
A120: =A4 -> FROM MARCH 1, 2022 TO FEBRUARY 28, 2023
A122: DISTRIBUTION PLANT
A126: =Data -> DATA: "X" BASE PERIOD FORECASTED PERIOD | J126: =J10 -> SCHEDULE B-2.3
A127: =A11 -> TYPE OF FILING: "X" ORIGINAL UPDATED REVISED | J127: PAGE 4 OF 12
A128: =A12 -> WORK PAPER REFERENCE NO(S).: | J128: WITNESS RESPONSIBLE:
J129: =J13 -> G. S. CARPENTER / H. C. DANG
B133: FERC | C133: Company | H133: Transfers/Reclassifications
A134: Line | B134: Acct. | C134: Acct. | D134: Account | E134: Beginning | I134: Explanation | J134: Other Accts. | K134: Ending
A135: No. | B135: No. | C135: No. | D135: Title | E135: Balance | F135: Additions | G135: Retirements | H135: Amount | I135: of Transfer | J135: Involved | K135: Balance
E137: $ | F137: $ | G137: $ | H137: $ | K137: $
A139: 1 | B139: 360 | C139: 3600 | D139: Land and Land Rights | E139: 12596384 | F139: 531578 | G139: 0 | H139: 0 | K139: =E139+F139-G139+H139 -> 13127962
A140: 2 | B140: 360 | C140: 3601 | D140: Rights of Way | E140: 4497571 | F140: 444456 | G140: 0 | H140: 0 | K140: 4942027
A141: 3 | B141: 361 | C141: 3610 | D141: Structures & Improvements | E141: 1420206 | F141: 67004 | G141: 10720 | H141: 0 | K141: 1476490
A142: 4 | B142: 362 | C142: 3620 | D142: Station Equipment | E142: 75095647 | F142: 4674935 | G142: -1941420 | H142: 3287 | K142: 81715289
A143: 5 | B143: 362 | C143: 3622 | D143: Station Equipment - Major | E143: 43802438 | F143: 2306414 | G143: 218298 | H143: 0 | K143: 45890554
A144: =A143+1 -> 6 | B144: 363 | C144: 3630 | D144: Storage Battery Equipment | E144: 0 | F144: 0 | G144: 0 | H144: 0 | K144: 0
A145: =A144+1 -> 7 | B145: 364 | C145: 3640 | D145: Poles, Towers & Fixtures | E145: 74617430 | F145: 4497981 | G145: 621702 | H145: 0 | K145: 78493709
A146: 8 | B146: 365 | C146: 3650 | D146: Overhead Conductors & Devices | E146: 145042541 | F146: 8832500 | G146: 3298075 | H146: 0 | K146: 150576966
A147: 9 | B147: 365 | C147: 3651 | D147: Overhead Conductors - Clear R/W | E147: 7260640 | F147: 557610 | G147: 0 | H147: 0 | K147: 7818250
A148: 10 | B148: 366 | C148: 3660 | D148: Underground Conduit | E148: 43500233 | F148: 1752486 | G148: 5023 | H148: 0 | K148: 45247696
A149: 11 | B149: 367 | C149: 3670 | D149: Underground Conductors & Devices | E149: 82283078 | F149: 5009842 | G149: 343044 | H149: 0 | K149: 86949876
A150: 12 | B150: 368 | C150: 3680 | D150: Line Transformers | E150: 74238718 | F150: 5289522 | G150: 968048 | H150: 0 | K150: 78560192
A151: 13 | B151: 368 | C151: 3682 | D151: Customers Transformer Installation | E151: 273661 | F151: 12740 | G151: 0 | H151: 0 | K151: 286401
A152: 14 | B152: 369 | C152: 3691 | D152: Services - Underground | E152: 2827885 | F152: 377976 | G152: 0 | H152: 0 | K152: 3205861
A153: 15 | B153: 369 | C153: 3692 | D153: Services - Overhead | E153: 19648019 | F153: -975434 | G153: 5019 | H153: 0 | K153: 18667566
A154: 16 | B154: 370 | C154: 3700 | D154: Meters | E154: 2655276 | F154: 257863 | G154: 22503 | H154: 0 | K154: 2890636
A155: 17 | B155: 370 | C155: 3702 | D155: AMI Meters | E155: 25914672 | F155: 3185917 | G155: 265290 | H155: 0 | K155: 28835299
A156: 18 | B156: 371 | C156: 3711, 3712 | D156: Company Owned Outdoor Lighting | E156: 876547 | F156: 309836 | G156: 20971 | H156: 0 | K156: 1165412
A157: 19 | B157: 372 | C157: 3720 | D157: Leased Property on Customers | E157: 9647 | F157: 449 | G157: 0 | H157: 0 | K157: 10096
A158: 20 | B158: 373 | C158: 3731 | D158: Street Lighting - Overhead | E158: 2507459 | F158: 116734 | G158: 0 | H158: 0 | K158: 2624193
A159: 21 | B159: 373 | C159: 3732 | D159: Street Lighting - Boulevard | E159: 3368423 | F159: 156816 | G159: 0 | H159: 0 | K159: 3525239
A160: 22 | B160: 373 | C160: 3733 | D160: Street Lighting - Cust, Private Outdoor Lighting | E160: 1591770 | F160: 74104 | G160: 0 | H160: 0 | K160: 1665874
A161: 23 | B161: 373 | C161: 3734 | D161: Light Choice OLE | E161: 2171598 | F161: 415021 | G161: 150139 | H161: 0 | K161: 2436480
A162: 24 | D162: Completed Construction Not Classified | E162: 0 | F162: 0 | G162: 0 | H162: 0 | K162: 0
A166: =A162+1 -> 25 | D166: Total Distribution Plant | E166: =SUM(E139:E162) -> 626199843 | F166: =SUM(F139:F162) -> 37896350 | G166: =SUM(G139:G162) -> 3987412 | H166: =SUM(H139:H162) -> 3287 | K166: =SUM(K139:K162) -> 660112068
A170: =A1 -> DUKE ENERGY KENTUCKY, INC.
A171: =A2 -> CASE NO. 2022-00372
A172: =A3 -> GROSS ADDITIONS, RETIREMENTS, AND TRANSFERS
A173: =A4 -> FROM MARCH 1, 2022 TO FEBRUARY 28, 2023
A175: GENERAL PLANT
A179: =Data -> DATA: "X" BASE PERIOD FORECASTED PERIOD | J179: =J10 -> SCHEDULE B-2.3
A180: =A11 -> TYPE OF FILING: "X" ORIGINAL UPDATED REVISED | J180: PAGE 5 OF 12
A181: =A12 -> WORK PAPER REFERENCE NO(S).: | J181: WITNESS RESPONSIBLE:
J182: =J13 -> G. S. CARPENTER / H. C. DANG
B186: FERC | C186: Company | H186: Transfers/Reclassifications
A187: Line | B187: Acct. | C187: Acct. | D187: Account | E187: Beginning | I187: Explanation | J187: Other Accts. | K187: Ending
A188: No. | B188: No. | C188: No. | D188: Title | E188: Balance | F188: Additions | G188: Retirements | H188: Amount | I188: of Transfer | J188: Involved | K188: Balance
E190: $ | F190: $ | G190: $ | H190: $ | K190: $
A192: 1 | B192: 303 | C192: 3030 | D192: Miscellaneous Intangible Plant | E192: 21007195 | F192: 12079728 | G192: 0 | H192: 61361 | K192: =E192+F192-G192+H192 -> 33148284
A193: 2 | B193: 390 | C193: 3900 | D193: Structures & Improvements | E193: 165342 | F193: 14814 | G193: 300 | H193: 0 | K193: 179856
A194: 3 | B194: 391 | C194: 3910 | D194: Office Furniture & Equipment | E194: 374028 | F194: 30427 | G194: 0 | H194: 0 | K194: 404455
A195: 4 | B195: 391 | C195: 3911 | D195: Electronic Data Proc Equip | E195: 2758071 | F195: 3667849 | G195: 231000 | H195: 0 | K195: 6194920
A196: 5 | B196: 392 | C196: 3920 | D196: Transportation Equipment | E196: 1059154 | F196: 93356 | G196: 127921 | H196: 0 | K196: 1024589
A197: 6 | B197: 392 | C197: 3921 | D197: Trailers | E197: 272066 | F197: 24376 | G197: 0 | H197: 0 | K197: 296442
A198: 7 | B198: 394 | C198: 3940 | D198: Tools, Shop & Garage Equipment | E198: 3168675 | F198: 530668 | G198: 180 | H198: 0 | K198: 3699163
A199: 8 | B199: 396 | C199: 3960 | D199: Power Operated Equipment | E199: 11770 | F199: 1055 | G199: 0 | H199: 0 | K199: 12825
A200: 9 | B200: 397 | C200: 3970 | D200: Communication Equipment | E200: 9040987 | F200: 5385336 | G200: 25800 | H200: 0 | K200: 14400523
A201: 10 | D201: Completed Construction Not Classified | E201: 0 | F201: 0 | G201: 0 | H201: 0 | K201: 0
A205: 11 | D205: Total General Plant | E205: =SUM(E192:E202) -> 37857288 | F205: =SUM(F192:F202) -> 21827609 | G205: =SUM(G192:G202) -> 385201 | H205: =SUM(H192:H202) -> 61361 | K205: =SUM(K192:K202) -> 59361057
A208: 12 | D208: Total Electric Plant | E208: =E36+E75+E114+E166+E205 -> 2152998730 | F208: =F36+F75+F114+F166+F205 -> 97217938 | G208: =G36+G75+G114+G166+G205 -> 13352525 | H208: =H36+H75+H114+H166+H205 -> 61361 | K208: =K36+K75+K114+K166+K205 -> 2236925504
A212: =A1 -> DUKE ENERGY KENTUCKY, INC.
A213: =A2 -> CASE NO. 2022-00372
A214: =A3 -> GROSS ADDITIONS, RETIREMENTS, AND TRANSFERS
A215: =A4 -> FROM MARCH 1, 2022 TO FEBRUARY 28, 2023
A217: COMMON PLANT
A221: =Data -> DATA: "X" BASE PERIOD FORECASTED PERIOD | J221: =J10 -> SCHEDULE B-2.3
A222: =A11 -> TYPE OF FILING: "X" ORIGINAL UPDATED REVISED | J222: PAGE 6 OF 12
A223: =A12 -> WORK PAPER REFERENCE NO(S).: | J223: WITNESS RESPONSIBLE:
J224: =J13 -> G. S. CARPENTER / H. C. DANG
B228: FERC | C228: Company | H228: Transfers/Reclassifications
A229: Line | B229: Acct. | C229: Acct. | D229: Account | E229: Beginning | I229: Explanation | J229: Other Accts. | K229: Ending
A230: No. | B230: No. | C230: No. | D230: Title | E230: Balance | F230: Additions | G230: Retirements | H230: Amount | I230: of Transfer | J230: Involved | K230: Balance
E232: $ | F232: $ | G232: $ | H232: $ | K232: $
A234: 1 | C234: 1030 | D234: Miscellaneous Intangible Plant | E234: 22425665 | F234: -661 | G234: 0 | H234: 0 | K234: =E234+F234-G234+H234 -> 22425004
A235: 2 | C235: 1890 | D235: Land and Land Rights | E235: 1041678 | F235: 0 | G235: 0 | H235: 0 | K235: 1041678
A236: 3 | C236: 1900 | D236: Structures & Improvements | E236: 13802982 | F236: 4333 | G236: 1244668 | H236: 0 | K236: 12562647
A237: 4 | C237: 1910 | D237: Office Furniture & Equipment | E237: 788869 | F237: 0 | G237: 0 | H237: 0 | K237: 788869
A238: 5 | C238: 1911 | D238: Office Furniture & Equipment - EDP Equipment | E238: 5177 | F238: 9798 | G238: 5880 | H238: 0 | K238: 9095
A239: 6 | C239: 1940 | D239: Tools, Shop & Garage Equipment | E239: 113850 | F239: 0 | G239: 960 | H239: 0 | K239: 112890
A240: 7 | C240: 1970 | D240: Communication Equipment | E240: 6414003 | F240: 0 | G240: 282780 | H240: 0 | K240: 6131223
A241: 8 | C241: 1980 | D241: Miscellaneous Equipment | E241: 95301 | F241: 0 | G241: 0 | H241: 0 | K241: 95301
A242: 9 | C242: 1990 | D242: ARO - Common Plant | E242: 226897 | F242: 0 | G242: 0 | H242: 0 | K242: 226897
A243: 10 | D243: Completed Construction Not Classified | E243: 0 | F243: 0 | G243: 0 | H243: 0 | K243: 0
A247: 11 | D247: Total Common Plant | E247: =SUM(E234:E243) -> 44914422 | F247: =SUM(F234:F243) -> 13470 | G247: =SUM(G234:G243) -> 1534288 | H247: =SUM(H234:H243) -> 0 | K247: =SUM(K234:K243) -> 43393604
A250: 12 | C250: =CommonE -> 0.7136 | D250: Common Plant Allocated to Electric | E250: =ROUND(E247*$C$250,0) -> 32050932 | F250: =ROUND(F247*$C$250,0) -> 9612 | G250: =ROUND(G247*$C$250,0) -> 1094868 | H250: =ROUND(H247*$C$250,0) -> 0 | K250: =E250+F250-G250+H250 -> 30965676
A253: 13 | D253: Total Electric Plant Including Allocated Common | E253: =E250+E208 -> 2185049662 | F253: =F250+F208 -> 97227550 | G253: =G250+G208 -> 14447393 | H253: =H250+H208 -> 61361 | K253: =K250+K208 -> 2267891180
A257: =COMPANY -> DUKE ENERGY KENTUCKY, INC.
A258: =CASE -> CASE NO. 2022-00372
A259: GROSS ADDITIONS, RETIREMENTS, AND TRANSFERS
A260: ="FROM JULY 1, 2023"&" TO "&RIGHT(Forecast,(LEN(Forecast)-16)) -> FROM JULY 1, 2023 TO JUNE 30, 2024
A262: STEAM PRODUCTION PLANT
A266: =DataF -> DATA: BASE PERIOD "X" FORECASTED PERIOD | K266: SCHEDULE B-2.3
A267: =Type -> TYPE OF FILING: "X" ORIGINAL UPDATED REVISED | K267: PAGE 7 OF 12
A268: WORK PAPER REFERENCE NO(S).: | K268: WITNESS RESPONSIBLE:
K269: =_WIT7 -> G. S. CARPENTER / H. C. DANG
B273: FERC | C273: Company | H273: Transfers/Reclassifications
A274: Line | B274: Acct. | C274: Acct. | D274: Account | E274: Beginning | I274: Explanation | J274: Other Accts. | K274: Ending | L274: 13 Month
A275: No. | B275: No. | C275: No. | D275: Title | E275: Balance | F275: Additions | G275: Retirements | H275: Amount | I275: of Transfer | J275: Involved | K275: Balance | L275: Average
E277: $ | F277: $ | G277: $ | H277: $ | K277: $ | L277: $
A279: 1 | B279: 310 | C279: 3100 | D279: Land and Land Rights | E279: 7191617.313 | F279: 169465 | G279: 120 | H279: 0 | K279: =E279+F279-G279+H279 -> 7360962.313 | L279: 7267197
A280: =A279+1 -> 2 | B280: 311 | C280: 3110 | D280: Structures & Improvements | E280: 185281484.1 | F280: 4419930 | G280: 2748840 | H280: 0 | K280: 186952574.1 | L280: 185879874
A281: =A280+1 -> 3 | B281: 312 | C281: 3120 | D281: Boiler Plant Equipment | E281: 551517757.4 | F281: 13158742 | G281: 8292600 | H281: 0 | K281: 556383899.4 | L281: 553244784
A282: 4 | B282: 312 | C282: 3123 | D282: Boiler Plant Equip - SCR Catalyst | E282: 7823439.386 | F282: 192002 | G282: 389640 | H282: 0 | K282: 7625801.386 | L282: 7714318
A283: 5 | B283: 314 | C283: 3140 | D283: Turbogenerator Equipment | E283: 118605422.7 | F283: 2848517 | G283: 2735280 | H283: 0 | K283: 118718659.7 | L283: 118509201
A284: 6 | B284: 315 | C284: 3150 | D284: Accessory Electric Equipment | E284: 50654352.24 | F284: 1195343 | G284: 88080 | H284: 0 | K284: 51761615.24 | L284: 51143847
A285: 7 | B285: 316 | C285: 3160 | D285: Miscellaneous Powerplant Equipment | E285: 24467612.46 | F285: 582179 | G285: 286560 | H285: 0 | K285: 24763231.46 | L285: 24584185
A286: 8 | B286: 317 | C286: 3170 | D286: ARO - Steam Production | E286: 100701442.9 | F286: 0 | G286: 0 | H286: 0 | K286: 100701442.9 | L286: 100701443
A287: 9 | D287: Case 2015-120 Acq of DPL Share of East Bend | E287: 0 | F287: 0 | G287: 0 | H287: 0 | K287: 0 | L287: 0
A288: 10 | D288: Completed Construction Not Classified | E288: 0 | F288: 0 | G288: 0 | H288: 0 | K288: 0 | L288: 0
A291: =A288+1 -> 11 | D291: Total Steam Production Plant | E291: =SUM(E279:E288) -> 1046243128 | F291: =SUM(F279:F288) -> 22566178 | G291: =SUM(G279:G288) -> 14541120 | H291: =SUM(H279:H288) -> 0 | K291: =SUM(K279:K288) -> 1054268186 | L291: =SUM(L279:L288) -> 1049044849
A294: =COMPANY -> DUKE ENERGY KENTUCKY, INC.
A295: =CASE -> CASE NO. 2022-00372
A296: GROSS ADDITIONS, RETIREMENTS, AND TRANSFERS
A297: =$A$260 -> FROM JULY 1, 2023 TO JUNE 30, 2024
A299: OTHER PRODUCTION PLANT
A303: =DataF -> DATA: BASE PERIOD "X" FORECASTED PERIOD | K303: SCHEDULE B-2.3
A304: =Type -> TYPE OF FILING: "X" ORIGINAL UPDATED REVISED | K304: PAGE 8 OF 12
A305: WORK PAPER REFERENCE NO(S).: | K305: WITNESS RESPONSIBLE:
K306: =_WIT7 -> G. S. CARPENTER / H. C. DANG
B310: FERC | C310: Company | H310: Transfers/Reclassifications
A311: Line | B311: Acct. | C311: Acct. | D311: Account | E311: Beginning | I311: Explanation | J311: Other Accts. | K311: Ending | L311: 13 Month
A312: No. | B312: No. | C312: No. | D312: Title | E312: Balance | F312: Additions | G312: Retirements | H312: Amount | I312: of Transfer | J312: Involved | K312: Balance | L312: Average
... 127 more rows

Sheet SCH B-2.4
A1: =COMPANY -> DUKE ENERGY KENTUCKY, INC.
A2: =CASE -> CASE NO. 2022-00372
A3: PROPERTY MERGED OR ACQUIRED
A4: ="FROM MARCH 1, 2022 TO "&RIGHT(TESTYR,(LEN(TESTYR)-16)) -> FROM MARCH 1, 2022 TO FEBRUARY 28, 2023
A5: .
A8: =Data -> DATA: "X" BASE PERIOD FORECASTED PERIOD | I8: SCHEDULE B-2.4
A9: =Type -> TYPE OF FILING: "X" ORIGINAL UPDATED REVISED | I9: PAGE 1 OF 2
A10: WORK PAPER REFERENCE NO(S).: | I10: WITNESS RESPONSIBLE:
I11: =_WIT7 -> G. S. CARPENTER / H. C. DANG
B15: FERC | C15: Company | H15: Commission | J15: Explanation
A16: Line | B16: Acct. | C16: Acct. | D16: Description | E16: Acquisition | F16: Cost | G16: Acquisition | H16: Approval Date | I16: Date of | J16: of
A17: No. | B17: No. | C17: No. | D17: of Property | E17: Cost | F17: Basis | G17: Adjustment | H17: (Docket No.) | I17: Acquisition | J17: Treatment
A20: The company has not merged or acquired property from other than affiliated companies.
A23: =COMPANY -> DUKE ENERGY KENTUCKY, INC.
A24: =CASE -> CASE NO. 2022-00372
A25: PROPERTY MERGED OR ACQUIRED
A26: ="FROM JULY 1, 2023"&" TO "&RIGHT(Forecast,(LEN(Forecast)-16)) -> FROM JULY 1, 2023 TO JUNE 30, 2024
A30: =DataF -> DATA: BASE PERIOD "X" FORECASTED PERIOD | I30: SCHEDULE B-2.4
A31: =Type -> TYPE OF FILING: "X" ORIGINAL UPDATED REVISED | I31: PAGE 2 OF 2
A32: WORK PAPER REFERENCE NO(S).: | I32: WITNESS RESPONSIBLE:
I33: =_WIT7 -> G. S. CARPENTER / H. C. DANG
B37: FERC | C37: Company | H37: Commission | J37: Explanation
A38: Line | B38: Acct. | C38: Acct. | D38: Description | E38: Acquisition | F38: Cost | G38: Acquisition | H38: Approval Date | I38: Date of | J38: of
A39: No. | B39: No. | C39: No. | D39: of Property | E39: Cost | F39: Basis | G39: Adjustment | H39: (Docket No.) | I39: Acquisition | J39: Treatment
A42: The company has not merged or acquired property from other than affiliated companies.

Sheet SCH B-2.5
A1: =COMPANY -> DUKE ENERGY KENTUCKY, INC.
A2: =CASE -> CASE NO. 2022-00372
A3: LEASED PROPERTY
A4: ELECTRIC AND COMMON
A5: ="AS OF " &RIGHT(TESTYR,(LEN(TESTYR)-16)) -> AS OF FEBRUARY 28, 2023
A6: .
A9: =Data -> DATA: "X" BASE PERIOD FORECASTED PERIOD | F9: SCHEDULE B-2.5
A10: =Type -> TYPE OF FILING: "X" ORIGINAL UPDATED REVISED | F10: PAGE 1 OF 2
A11: WORK PAPER REFERENCE NO(S).: | F11: WITNESS RESPONSIBLE:
F12: =_WIT7 -> G. S. CARPENTER / H. C. DANG
F15: Dollar
A16: Identification | F16: Value of
A17: or Reference | B17: Description of Type | C17: Name of | D17: Frequency | E17: Amount of | F17: Property | G17: Explain Method of
A18: Number | B18: and Use of Property | C18: Lessee | D18: of Payment | E18: Lease Payment | F18: Involved | G18: Capitalization
B22: The company has no property leases as of February 28, 2023.
A32: =COMPANY -> DUKE ENERGY KENTUCKY, INC.
A33: =CASE -> CASE NO. 2022-00372
A34: LEASED PROPERTY
A35: ELECTRIC AND COMMON
A36: ="AS OF " &RIGHT(Forecast,(LEN(Forecast)-16)) -> AS OF JUNE 30, 2024
A40: =DataF -> DATA: BASE PERIOD "X" FORECASTED PERIOD | F40: SCHEDULE B-2.5
A41: =Type -> TYPE OF FILING: "X" ORIGINAL UPDATED REVISED | F41: PAGE 2 OF 2
A42: WORK PAPER REFERENCE NO(S).: | F42: WITNESS RESPONSIBLE:
F43: =_WIT7 -> G. S. CARPENTER / H. C. DANG
F46: Dollar
A47: Identification | F47: Value of
A48: or Reference | B48: Description of Type | C48: Name of | D48: Frequency | E48: Amount of | F48: Property | G48: Explain Method of
A49: Number | B49: and Use of Property | C49: Lessee | D49: of Payment | E49: Lease Payment | F49: Involved | G49: Capitalization
B53: The company has no forecasted property leases as of June 30, 2024.

Sheet SCH B-2.6
A1: =COMPANY -> DUKE ENERGY KENTUCKY, INC.
A2: =CASE -> CASE NO. 2022-00372
A3: PROPERTY HELD FOR FUTURE USE INCLUDED IN RATE BASE
A4: ="AS OF " &RIGHT(TESTYR,(LEN(TESTYR)-16)) -> AS OF FEBRUARY 28, 2023
A5: .
A8: =Data -> DATA: "X" BASE PERIOD FORECASTED PERIOD | K8: SCHEDULE B-2.6
A9: =Type -> TYPE OF FILING: "X" ORIGINAL UPDATED REVISED | K9: PAGE 1 OF 2
A10: WORK PAPER REFERENCE NO(S).: | K10: ='SCH B-2'!F11 -> WITNESS RESPONSIBLE:
K11: =_WIT7 -> G. S. CARPENTER / H. C. DANG
B16: Description | F16: Net | G16: Revenue Realized | K16: Expenses Incurred
A17: Line | B17: and Location | C17: Acquisition | D17: Original | E17: Accumulated | F17: Original | H17: Acct. | L17: Acct.
A18: No. | B18: of Property | C18: Date | D18: Cost | E18: Depreciation | F18: Cost | G18: Amount | H18: No. | I18: Description | K18: Amount | L18: No. | M18: Description
C21: The company has no plant held for future use included in rate base.
A25: =COMPANY -> DUKE ENERGY KENTUCKY, INC.
A26: =CASE -> CASE NO. 2022-00372
A27: PROPERTY HELD FOR FUTURE USE INCLUDED IN RATE BASE
A28: ="AS OF " &RIGHT(Forecast,(LEN(Forecast)-16)) -> AS OF JUNE 30, 2024
A32: =DataF -> DATA: BASE PERIOD "X" FORECASTED PERIOD | K32: SCHEDULE B-2.6
A33: =Type -> TYPE OF FILING: "X" ORIGINAL UPDATED REVISED | K33: PAGE 2 OF 2
A34: WORK PAPER REFERENCE NO(S).: | K34: =K10 -> WITNESS RESPONSIBLE:
K35: =_WIT7 -> G. S. CARPENTER / H. C. DANG
B40: Description | F40: Net | G40: Revenue Realized | K40: Expenses Incurred
A41: Line | B41: and Location | C41: Acquisition | D41: Original | E41: Accumulated | F41: Original | H41: Acct. | L41: Acct.
A42: No. | B42: of Property | C42: Date | D42: Cost | E42: Depreciation | F42: Cost | G42: Amount | H42: No. | I42: Description | K42: Amount | L42: No. | M42: Description
C45: The company has no plant held for future use included in rate base.

Sheet SCH B-2.7
A1: =COMPANY -> DUKE ENERGY KENTUCKY, INC.
A2: =CASE -> CASE NO. 2022-00372
A3: PROPERTY EXCLUDED FROM RATE BASE
A4: (FOR REASONS OTHER THAN JURISDICTIONAL ALLOCATION)
A5: ="AS OF " &RIGHT(TESTYR,(LEN(TESTYR)-16)) -> AS OF FEBRUARY 28, 2023
A6: .
A10: =Data -> DATA: "X" BASE PERIOD FORECASTED PERIOD | J10: SCHEDULE B-2.7
A11: =Type -> TYPE OF FILING: "X" ORIGINAL UPDATED REVISED | J11: PAGE 1 OF 2
A12: WORK PAPER REFERENCE NO(S).: | J12: WITNESS RESPONSIBLE:
J13: =_WIT7 -> G. S. CARPENTER / H. C. DANG
F17: Accum. | H17: Base Period
B18: Company | F18: Depre. | G18: Net | H18: Revenue and Expense
A19: Line | B19: Acct. | C19: Description of | D19: In-Service | E19: Original | F19: and | G19: Original | I19: Acct. | K19: Reasons
A20: No. | B20: No. | C20: Excluded Property | D20: Date | E20: Cost | F20: Amort. | G20: Cost | H20: Amount | I20: No. | J20: Description | K20: for Exclusion
C24: No property is excluded from rate base for reasons other than jurisdictional allocation.
A28: =COMPANY -> DUKE ENERGY KENTUCKY, INC.
A29: =CASE -> CASE NO. 2022-00372
A30: PROPERTY EXCLUDED FROM RATE BASE
A31: (FOR REASONS OTHER THAN JURISDICTIONAL ALLOCATION)
A32: ="AS OF " &RIGHT(Forecast,(LEN(Forecast)-16)) -> AS OF JUNE 30, 2024
A37: =DataF -> DATA: BASE PERIOD "X" FORECASTED PERIOD | J37: SCHEDULE B-2.7
A38: =Type -> TYPE OF FILING: "X" ORIGINAL UPDATED REVISED | J38: PAGE 2 OF 2
A39: WORK PAPER REFERENCE NO(S).: | J39: WITNESS RESPONSIBLE:
J40: =_WIT7 -> G. S. CARPENTER / H. C. DANG
F44: Accum. | H44: Base Period
B45: Company | F45: Depre. | G45: Net | H45: Revenue and Expense
A46: Line | B46: Acct. | C46: Description of | D46: In-Service | E46: Original | F46: and | G46: Original | I46: Acct. | K46: Reasons
A47: No. | B47: No. | C47: Excluded Property | D47: Date | E47: Cost | F47: Amort. | G47: Cost | H47: Amount | I47: No. | J47: Description | K47: for Exclusion
C51: No property is excluded from rate base for reasons other than jurisdictional allocation.

Sheet SCH B-3
A1: =COMPANY -> DUKE ENERGY KENTUCKY, INC.
A2: =CASE -> CASE NO. 2022-00372
A3: ACCUMULATED DEPRECIATION AND AMORTIZATION
A4: ="AS OF " &RIGHT(TESTYR,(LEN(TESTYR)-16)) -> AS OF FEBRUARY 28, 2023
A5: .
A6: STEAM PRODUCTION PLANT
A10: =Data -> DATA: "X" BASE PERIOD FORECASTED PERIOD | J10: SCHEDULE B-3
A11: =Type -> TYPE OF FILING: "X" ORIGINAL UPDATED REVISED | J11: PAGE 1 OF 12
A12: WORK PAPER REFERENCE NO(S).: SCHEDULE B-2.1, SCHEDULE B-3.1 | J12: WITNESS RESPONSIBLE:
J13: =_WIT7 -> G. S. CARPENTER / H. C. DANG
E16: Base
B17: FERC | C17: Company | E17: Period | G17: Base Period Accumulated Balances
A18: Line | B18: Acct. | C18: Acct. | E18: Total | G18: Total | H18: Jurisdictional | I18: Jurisdictional | K18: Adjusted
A19: No. | B19: No. | C19: No. | D19: Account Title | E19: Company (1) | G19: Company | H19: % | I19: Total | J19: Adjustments | K19: Jurisdiction
E20: $ | G20: $ | I20: $ | J20: $ | K20: $
A22: 1 | B22: 310 | C22: 3100 | D22: Land and Land Rights | E22: ='SCH B-2.1'!I23 -> 7076686 | G22: 103620 | H22: 1 | I22: =ROUND((G22*H22),0) -> 103620 | K22: =I22+J22 -> 103620
A23: =A22+1 -> 2 | B23: 311 | C23: 3110 | D23: Structures & Improvements | E23: ='SCH B-2.1'!I24 -> 183199106 | G23: 50461103 | H23: 1 | I23: 50461103 | K23: 50461103
A24: =A23+1 -> 3 | B24: 312 | C24: 3120 | D24: Boiler Plant Equipment | E24: ='SCH B-2.1'!I25 -> 545354539 | G24: 307075034 | H24: 1 | I24: 307075034 | K24: 307075034
A25: 4 | B25: 312 | C25: 3123 | D25: Boiler Plant Equip - SCR Catalyst | E25: ='SCH B-2.1'!I26 -> 7823058 | G25: 6003181 | H25: 1 | I25: 6003181 | K25: 6003181
A26: 5 | B26: 314 | C26: 3140 | D26: Turbogenerator Equipment | E26: ='SCH B-2.1'!I27 -> 117584634 | G26: 49716359 | H26: 1 | I26: 49716359 | K26: 49716359
A27: 6 | B27: 315 | C27: 3150 | D27: Accessory Electric Equipment | E27: ='SCH B-2.1'!I28 -> 49872744 | G27: 31239525 | H27: 1 | I27: 31239525 | K27: 31239525
A28: 7 | B28: 316 | C28: 3160 | D28: Miscellaneous Powerplant Equipment | E28: ='SCH B-2.1'!I29 -> 24168159 | G28: 12051075 | H28: 1 | I28: 12051075 | K28: 12051075
A29: 8 | B29: 317 | C29: 3170 | D29: ARO - Steam Production | E29: ='SCH B-2.1'!I30 -> 0 | G29: 41133033 | H29: 1 | I29: 41133033 | J29: =-G29 -> -41133033 | K29: 0
A30: 9 | D30: Case 2015-120 Acq of DPL Share of East Bend | E30: ='SCH B-2.1'!I31 -> 9135880 | G30: 0 | H30: 1 | I30: 0 | K30: 0
A31: 10 | D31: Completed Construction Not Classified | E31: ='SCH B-2.1'!I32 -> 0 | G31: 0 | H31: 1 | I31: 0 | K31: 0
A32: 11 | C32: 108 | D32: Retirement Work in Progress | E32: ='SCH B-2.1'!I33 -> 0 | G32: -20745348 | H32: 1 | I32: -20745348 | K32: -20745348
A36: =+A32+1 -> 12 | D36: Total Steam Production Plant | E36: =SUM(E22:E35) -> 944214806 | G36: =SUM(G22:G35) -> 477037582 | I36: =SUM(I22:I35) -> 477037582 | J36: =SUM(J22:J35) -> -41133033 | K36: =SUM(K22:K35) -> 435904549 | N36: =IF(E36='SCH B-2.1'!I36,"BALANCED","ERROR") -> BALANCED
A39: (1) Plant Investment Includes Completed Construction Not Classified (Account 106)
A41: =COMPANY -> DUKE ENERGY KENTUCKY, INC.
A42: =CASE -> CASE NO. 2022-00372
A43: ACCUMULATED DEPRECIATION AND AMORTIZATION
A44: ="AS OF " &RIGHT(TESTYR,(LEN(TESTYR)-16)) -> AS OF FEBRUARY 28, 2023
A46: OTHER PRODUCTION PLANT
A50: =Data -> DATA: "X" BASE PERIOD FORECASTED PERIOD | J50: SCHEDULE B-3
A51: =Type -> TYPE OF FILING: "X" ORIGINAL UPDATED REVISED | J51: PAGE 2 OF 12
A52: WORK PAPER REFERENCE NO(S).: SCHEDULE B-2.1, SCHEDULE B-3.1 | J52: WITNESS RESPONSIBLE:
J53: =_WIT7 -> G. S. CARPENTER / H. C. DANG
E56: Base
B57: FERC | C57: Company | E57: Period | G57: Base Period Accumulated Balances
A58: Line | B58: Acct. | C58: Acct. | E58: Total | G58: Total | H58: Jurisdictional | I58: Jurisdictional | K58: Adjusted
A59: No. | B59: No. | C59: No. | D59: Account Title | E59: Company (1) | G59: Company | H59: % | I59: Total | J59: Adjustments | K59: Jurisdiction
E60: $ | G60: $ | I60: $ | J60: $ | K60: $
A62: 1 | B62: 340 | C62: 3400 | D62: Land and Land Rights | E62: ='SCH B-2.1'!I61 -> 2265295 | G62: 3922 | H62: 1 | I62: =ROUND((G62*H62),0) -> 3922 | K62: =I62+J62 -> 3922
A63: =A62+1 -> 2 | B63: 340 | C63: 3401 | D63: Rights of Way | E63: ='SCH B-2.1'!I62 -> 0 | G63: 0 | H63: 1 | I63: 0 | K63: 0
A64: 3 | B64: 341 | C64: 3410 | D64: Structures & Improvements | E64: ='SCH B-2.1'!I63 -> 36490465 | G64: 28907164 | H64: 1 | I64: 28907164 | K64: 28907164
A65: 4 | B65: 342 | C65: 3420 | D65: Fuel Holders, Producers, Accessories | E65: ='SCH B-2.1'!I64 -> 61138411 | G65: 7907805 | H65: 1 | I65: 7907805 | K65: 7907805
A66: 5 | B66: 343 | C66: 3430 | D66: Prime Movers | E66: ='SCH B-2.1'!I65 -> 9149731 | G66: -2943009 | H66: 1 | I66: -2943009 | K66: -2943009
A67: 6 | B67: 344 | C67: 3440 | D67: Generators | E67: ='SCH B-2.1'!I66 -> 211945141 | G67: 149021403 | H67: 1 | I67: 149021403 | K67: 149021403
A68: =A67+1 -> 7 | B68: 344 | C68: 3446 | D68: Solar Generators | E68: ='SCH B-2.1'!I67 -> 15778050 | G68: 2412727 | H68: 1 | I68: 2412727 | K68: 2412727
A69: 8 | B69: 345 | C69: 3450 | D69: Accessory Electric Equipment | E69: ='SCH B-2.1'!I68 -> 19850612 | G69: 13114778 | H69: 1 | I69: 13114778 | K69: 13114778
A70: =A69+1 -> 9 | B70: 345 | C70: 3456 | D70: Solar Accessory Electric Equipment | E70: ='SCH B-2.1'!I69 -> 1729695 | G70: 301125 | H70: 1 | I70: 301125 | K70: 301125
A71: 10 | B71: 346 | C71: 3460 | D71: Miscellaneous Plant Equipment | E71: ='SCH B-2.1'!I70 -> 5157089 | G71: 3538346 | H71: 1 | I71: 3538346 | K71: 3538346
A72: 11 | D72: Completed Construction Not Classified | E72: ='SCH B-2.1'!I71 -> 0 | G72: 0 | H72: 1 | I72: 0 | K72: 0
A73: 12 | C73: 108 | D73: Retirement Work in Progress | G73: -1056015 | H73: 1 | I73: -1056015 | K73: -1056015
A77: =A73+1 -> 13 | D77: Total Other Production Plant | E77: =SUM(E62:E76) -> 363504489 | G77: =SUM(G62:G76) -> 201208246 | I77: =SUM(I62:I76) -> 201208246 | J77: =SUM(J62:J76) -> 0 | K77: =SUM(K62:K76) -> 201208246 | N77: =IF(E77='SCH B-2.1'!I75,"BALANCED","ERROR") -> BALANCED
A80: (1) Plant Investment Includes Completed Construction Not Classified (Account 106)
A82: =A1 -> DUKE ENERGY KENTUCKY, INC.
A83: =A2 -> CASE NO. 2022-00372
A84: =A3 -> ACCUMULATED DEPRECIATION AND AMORTIZATION
A85: ="AS OF " &RIGHT(TESTYR,(LEN(TESTYR)-16)) -> AS OF FEBRUARY 28, 2023
A87: TRANSMISSION PLANT
A91: =Data -> DATA: "X" BASE PERIOD FORECASTED PERIOD | J91: SCHEDULE B-3
A92: =Type -> TYPE OF FILING: "X" ORIGINAL UPDATED REVISED | J92: PAGE 3 OF 12
A93: =A12 -> WORK PAPER REFERENCE NO(S).: SCHEDULE B-2.1, SCHEDULE B-3.1 | J93: WITNESS RESPONSIBLE:
J94: =_WIT7 -> G. S. CARPENTER / H. C. DANG
E97: =E16 -> Base
B98: FERC | C98: Company | E98: =E17 -> Period | G98: =G17 -> Base Period Accumulated Balances
A99: Line | B99: Acct. | C99: Acct. | E99: =E18 -> Total | G99: Total | H99: Allocation | I99: Allocated | K99: Adjusted
A100: No. | B100: No. | C100: No. | D100: Account Title | E100: =E19 -> Company (1) | G100: Company | H100: % | I100: Total | J100: Adjustments | K100: Jurisdiction
G101: $ | I101: $ | J101: $ | K101: $
A103: 1 | B103: 350 | C103: 3500 | D103: Land | E103: ='SCH B-2.1'!I100 -> 4883832 | G103: 0 | H103: 1 | I103: =ROUND((G103*H103),0) -> 0 | K103: =I103+J103 -> 0
A104: =A103+1 -> 2 | B104: 350 | C104: 3501 | D104: Rights of Way | E104: ='SCH B-2.1'!I101 -> 1595141 | G104: 738752 | H104: 1 | I104: 738752 | K104: 738752
A105: 3 | B105: 352 | C105: 3520 | D105: Structures & Improvements | E105: ='SCH B-2.1'!I102 -> 7216591 | G105: 581508 | H105: 1 | I105: 581508 | K105: 581508
A106: 4 | B106: 353 | C106: 3530 | D106: Station Equipment | E106: ='SCH B-2.1'!I103 -> 35269633 | G106: 1639697 | H106: 1 | I106: 1639697 | K106: 1639697
A107: 5 | B107: 353 | C107: 3531 | D107: Station Equipment - Step Up | E107: ='SCH B-2.1'!I104 -> 11212526 | G107: 4962121 | H107: 1 | I107: 4962121 | K107: 4962121
A108: 6 | B108: 353 | C108: 3532 | D108: Station Equipment - Major | E108: ='SCH B-2.1'!I105 -> 13676954 | G108: 2516685 | H108: 1 | I108: 2516685 | K108: 2516685
A109: 7 | B109: 353 | C109: 3534 | D109: Station Equipment - Step Up Equipment | E109: ='SCH B-2.1'!I106 -> 9173573 | G109: 2404397 | H109: 1 | I109: 2404397 | K109: 2404397
A110: 8 | B110: 355 | C110: 3550 | D110: Poles & Fixtures | E110: ='SCH B-2.1'!I107 -> 17266490 | G110: -4040192 | H110: 1 | I110: -4040192 | K110: -4040192
A111: 9 | B111: 356 | C111: 3560 | D111: Overhead Conductors & Devices | E111: ='SCH B-2.1'!I108 -> 15226839 | G111: 2883507 | H111: 1 | I111: 2883507 | K111: 2883507
A112: 10 | B112: 356 | C112: 3561 | D112: Overhead Conductors - Clear R/W | E112: ='SCH B-2.1'!I109 -> 2645942 | G112: 127807 | H112: 1 | I112: 127807 | K112: 127807
A113: 11 | D113: Completed Construction Not Classified | E113: ='SCH B-2.1'!I110 -> 0 | G113: 0 | H113: 1 | I113: 0 | K113: 0
A114: 12 | C114: 108 | D114: Retirement Work in Progress | E114: 0 | G114: -1623529 | H114: 1 | I114: -1623529 | K114: -1623529
A118: 13 | D118: Total Transmission Plant | E118: =SUM(E103:E114) -> 118167521 | G118: =SUM(G103:G114) -> 10190753 | I118: =SUM(I103:I114) -> 10190753 | J118: =SUM(J103:J114) -> 0 | K118: =SUM(K103:K114) -> 10190753 | N118: =IF(E118='SCH B-2.1'!I114,"BALANCED","ERROR") -> BALANCED
A121: (1) Plant Investment Includes Completed Construction Not Classified (Account 106)
A123: =COMPANY -> DUKE ENERGY KENTUCKY, INC.
A124: =CASE -> CASE NO. 2022-00372
A125: =A3 -> ACCUMULATED DEPRECIATION AND AMORTIZATION
A126: ="AS OF " &RIGHT(TESTYR,(LEN(TESTYR)-16)) -> AS OF FEBRUARY 28, 2023
A128: DISTRIBUTION PLANT
A132: =Data -> DATA: "X" BASE PERIOD FORECASTED PERIOD | J132: =J10 -> SCHEDULE B-3
A133: =Type -> TYPE OF FILING: "X" ORIGINAL UPDATED REVISED | J133: PAGE 4 OF 12
A134: =A12 -> WORK PAPER REFERENCE NO(S).: SCHEDULE B-2.1, SCHEDULE B-3.1 | J134: =J12 -> WITNESS RESPONSIBLE:
J135: =J13 -> G. S. CARPENTER / H. C. DANG
E138: =E16 -> Base
B139: FERC | C139: Company | E139: =E17 -> Period | G139: =G17 -> Base Period Accumulated Balances
A140: Line | B140: Acct. | C140: Acct. | E140: =E18 -> Total | G140: Total | H140: Allocation | I140: Allocated | K140: Adjusted
A141: No. | B141: No. | C141: No. | D141: Account Title | E141: =E19 -> Company (1) | G141: Company | H141: % | I141: Total | J141: Adjustments | K141: Jurisdiction
G142: $ | I142: $ | J142: $ | K142: $
A144: 1 | B144: 360 | C144: 3600 | D144: Land and Land Rights | E144: ='SCH B-2.1'!I139 -> 13127962 | G144: 0 | H144: 1 | I144: =ROUND((G144*H144),0) -> 0 | K144: =I144+J144 -> 0
A145: =A144+1 -> 2 | B145: 360 | C145: 3601 | D145: Rights of Way | E145: ='SCH B-2.1'!I140 -> 4942027 | G145: 3244321 | H145: 1 | I145: 3244321 | K145: =I145+J145 -> 3244321
A146: 3 | B146: 361 | C146: 3610 | D146: Structures & Improvements | E146: ='SCH B-2.1'!I141 -> 1476490 | G146: -52107 | H146: 1 | I146: -52107 | K146: -52107
A147: 4 | B147: 362 | C147: 3620 | D147: Station Equipment | E147: ='SCH B-2.1'!I142 -> 81715289 | G147: 6005469 | H147: 1 | I147: 6005469 | K147: 6005469
A148: 5 | B148: 362 | C148: 3622 | D148: Station Equipment - Major | E148: ='SCH B-2.1'!I143 -> 45890554 | G148: 11101918 | H148: 1 | I148: 11101918 | K148: 11101918
A149: 6 | B149: 363 | C149: 3630 | D149: Storage Battery Equipment | E149: ='SCH B-2.1'!I144 -> 0 | G149: 0 | H149: 1 | I149: 0 | K149: 0
A150: 7 | B150: 364 | C150: 3640 | D150: Poles, Towers & Fixtures | E150: ='SCH B-2.1'!I145 -> 78493709 | G150: 30540220 | H150: 1 | I150: 30540220 | K150: 30540220
A151: 8 | B151: 365 | C151: 3650 | D151: Overhead Conductors & Devices | E151: ='SCH B-2.1'!I146 -> 150576966 | G151: 35473491 | H151: 1 | I151: 35473491 | K151: 35473491
A152: 9 | B152: 365 | C152: 3651 | D152: Overhead Conductors - Clear R/W | E152: ='SCH B-2.1'!I147 -> 7818250 | G152: 669145 | H152: 1 | I152: 669145 | K152: 669145
A153: 10 | B153: 366 | C153: 3660 | D153: Underground Conduit | E153: ='SCH B-2.1'!I148 -> 45247696 | G153: 9591603 | H153: 1 | I153: 9591603 | K153: 9591603
A154: 11 | B154: 367 | C154: 3670 | D154: Underground Conductors & Devices | E154: ='SCH B-2.1'!I149 -> 86949876 | G154: 21470805 | H154: 1 | I154: 21470805 | K154: 21470805
A155: 12 | B155: 368 | C155: 3680 | D155: Line Transformers | E155: ='SCH B-2.1'!I150 -> 78560192 | G155: 27695514 | H155: 1 | I155: 27695514 | K155: 27695514
A156: 13 | B156: 368 | C156: 3682 | D156: Customers Transformer Installation | E156: ='SCH B-2.1'!I151 -> 286401 | G156: 280008 | H156: 1 | I156: 280008 | K156: 280008
A157: 14 | B157: 369 | C157: 3691 | D157: Services - Underground | E157: ='SCH B-2.1'!I152 -> 3205861 | G157: 812498 | H157: 1 | I157: 812498 | K157: 812498
A158: 15 | B158: 369 | C158: 3692 | D158: Services - Overhead | E158: ='SCH B-2.1'!I153 -> 18667566 | G158: 10920666 | H158: 1 | I158: 10920666 | K158: 10920666
A159: 16 | B159: 370 | C159: 3700 | D159: Meters | E159: ='SCH B-2.1'!I154 -> 2890636 | G159: 1010995 | H159: 1 | I159: 1010995 | K159: 1010995
A160: 17 | B160: 370 | C160: 3702 | D160: AMI Meters | E160: ='SCH B-2.1'!I155 -> 28835299 | G160: 7891472 | H160: 1 | I160: 7891472 | K160: 7891472
A161: 18 | B161: 371 | C161: 3711, 3712 | D161: Company Owned Outdoor Lighting | E161: ='SCH B-2.1'!I156 -> 1165412 | G161: -37732 | H161: 1 | I161: -37732 | K161: -37732
A162: 19 | B162: 372 | C162: 3720 | D162: Leased Property on Customers | E162: ='SCH B-2.1'!I157 -> 10096 | G162: 9652 | H162: 1 | I162: 9652 | K162: 9652
A163: 20 | B163: 373 | C163: 3731 | D163: Street Lighting - Overhead | E163: ='SCH B-2.1'!I158 -> 2624193 | G163: 2221273 | H163: 1 | I163: 2221273 | K163: 2221273
A164: 21 | B164: 373 | C164: 3732 | D164: Street Lighting - Boulevard | E164: ='SCH B-2.1'!I159 -> 3525239 | G164: 2715605 | H164: 1 | I164: =ROUND((G164*H164),0) -> 2715605 | K164: 2715605
A165: 22 | B165: 373 | C165: 3733 | D165: Street Lighting - Cust, Private Outdoor Lighting | E165: ='SCH B-2.1'!I160 -> 0 | G165: 1833179 | H165: 1 | I165: 1833179 | J165: =-I165 -> -1833179 | K165: 0
A166: 23 | B166: 373 | C166: 3734 | D166: Light Choice OLE | E166: ='SCH B-2.1'!I161 -> 0 | G166: -1291461 | H166: 1 | I166: -1291461 | J166: =-I166 -> 1291461 | K166: 0
A167: 24 | D167: Completed Construction Not Classified | E167: ='SCH B-2.1'!I162 -> 0 | G167: 0 | H167: 1 | I167: 0 | K167: 0
A168: 25 | C168: 108 | D168: Retirement Work in Progress | E168: ='SCH B-2.1'!I163 -> 0 | G168: -20522735 | H168: 1 | I168: -20522735 | K168: -20522735
A172: =A168+1 -> 26 | D172: Total Distribution Plant | E172: =SUM(E144:E169) -> 656009714 | G172: =SUM(G144:G169) -> 151583799 | I172: =SUM(I144:I169) -> 151583799 | J172: =SUM(J144:J169) -> -541718 | K172: =SUM(K143:K169) -> 151042081 | N172: =IF(E172='SCH B-2.1'!I166,"BALANCED","ERROR") -> BALANCED
A175: (1) Plant Investment Includes Completed Construction Not Classified (Account 106)
A177: =COMPANY -> DUKE ENERGY KENTUCKY, INC.
A178: =CASE -> CASE NO. 2022-00372
A179: =A3 -> ACCUMULATED DEPRECIATION AND AMORTIZATION
A180: ="AS OF " &RIGHT(TESTYR,(LEN(TESTYR)-16)) -> AS OF FEBRUARY 28, 2023
A182: GENERAL PLANT
A186: =Data -> DATA: "X" BASE PERIOD FORECASTED PERIOD | J186: =J10 -> SCHEDULE B-3
A187: =Type -> TYPE OF FILING: "X" ORIGINAL UPDATED REVISED | J187: PAGE 5 OF 12
A188: =A12 -> WORK PAPER REFERENCE NO(S).: SCHEDULE B-2.1, SCHEDULE B-3.1 | J188: =J12 -> WITNESS RESPONSIBLE:
J189: =J13 -> G. S. CARPENTER / H. C. DANG
E192: =E16 -> Base
B193: FERC | C193: Company | E193: =E17 -> Period | G193: =G17 -> Base Period Accumulated Balances
A194: Line | B194: Acct. | C194: Acct. | E194: =E18 -> Total | G194: Total | H194: Allocation | I194: Allocated | K194: Adjusted
A195: No. | B195: No. | C195: No. | D195: Account Title | E195: =E19 -> Company (1) | G195: Company | H195: % | I195: Total | J195: Adjustments | K195: Jurisdiction
G196: $ | I196: $ | J196: $ | K196: $
A198: 1 | B198: 303 | C198: 3030 | D198: Miscellaneous Intangible Plant | E198: ='SCH B-2.1'!I192 -> 33148284 | G198: 14761829 | H198: 1 | I198: =ROUND(G198*H198,0) -> 14761829 | K198: =I198+J198 -> 14761829
A199: =A198+1 -> 2 | B199: 390 | C199: 3900 | D199: Structures & Improvements | E199: ='SCH B-2.1'!I193 -> 179856 | G199: 59727 | H199: 1 | I199: 59727 | K199: 59727
A200: 3 | B200: 391 | C200: 3910 | D200: Office Furniture & Equipment | E200: ='SCH B-2.1'!I194 -> 404455 | G200: 19593 | H200: 1 | I200: 19593 | K200: 19593
A201: 4 | B201: 391 | C201: 3910 - URR | D201: Office Furniture & Equipment - Reserve Amortization | E201: 0 | G201: 166 | H201: 1 | I201: 166 | K201: 166
A202: 5 | B202: 391 | C202: 3911 | D202: Electronic Data Proc Equip | E202: ='SCH B-2.1'!I195 -> 6194920 | G202: 1899999 | H202: 1 | I202: 1899999 | K202: 1899999
A203: 6 | B203: 391 | C203: 3911 - URR | D203: Electronic Data Proc Equip - Reserve Amortization | E203: 0 | G203: 32267 | H203: 1 | I203: 32267 | K203: 32267
A204: 7 | B204: 392 | C204: 3920 | D204: Transportation Equipment | E204: ='SCH B-2.1'!I196 -> 1024589 | G204: 406427 | H204: 1 | I204: 406427 | K204: 406427
A205: 8 | B205: 392 | C205: 3921 | D205: Trailers | E205: ='SCH B-2.1'!I197 -> 296442 | G205: 205660 | H205: 1 | I205: 205660 | K205: 205660
A206: 9 | B206: 394 | C206: 3940 | D206: Tools, Shop & Garage Equipment | E206: ='SCH B-2.1'!I198 -> 3699163 | G206: 1151444 | H206: 1 | I206: 1151444 | K206: 1151444
A207: 10 | B207: 394 | C207: 3940 - URR | D207: Tools, Shop & Garage Equipment - Reserve Amortization | E207: 0 | G207: -5733 | H207: 1 | I207: -5733 | K207: -5733
A208: 11 | B208: 396 | C208: 3960 | D208: Power Operated Equipment | E208: ='SCH B-2.1'!I199 -> 12825 | G208: 9294 | H208: 1 | I208: 9294 | K208: 9294
A209: 12 | B209: 397 | C209: 3970 | D209: Communication Equipment | E209: ='SCH B-2.1'!I200 -> 14400523 | G209: 3615097 | H209: 1 | I209: 3615097 | K209: 3615097
A210: 13 | B210: 397 | C210: 3970 - URR | D210: Communication Equipment - URR | E210: 0 | G210: 10000 | H210: 1 | I210: 10000 | K210: 10000
A211: 14 | D211: Completed Construction Not Classified | E211: ='SCH B-2.1'!I201 -> 0 | G211: 0 | H211: 1 | I211: 0 | K211: 0
A212: 15 | C212: 108 | D212: Retirement Work in Progress | E212: ='SCH B-2.1'!I203 -> 0 | G212: 13552 | H212: 1 | I212: 13552 | K212: 13552
A216: 16 | D216: Total General Plant | E216: =SUM(E198:E215) -> 59361057 | G216: =SUM(G198:G215) -> 22179322 | I216: =SUM(I198:I215) -> 22179322 | J216: =SUM(J199:J215) -> 0 | K216: =SUM(K198:K215) -> 22179322 | N216: =IF(E216='SCH B-2.1'!I205,"BALANCED","ERROR") -> BALANCED
A219: 17 | D219: Total Electric Plant | E219: =E36+E77+E118+E172+E216 -> 2141257587 | G219: =G36+G77+G118+G172+G216 -> 862199702 | I219: =I36+I77+I118+I172+I216 -> 862199702 | J219: =J36+J77+J118+J172+J216 -> -41674751 | K219: =K36+K77+K118+K172+K216 -> 820524951 | N219: =IF(E219='SCH B-2.1'!I208,"BALANCED","ERROR") -> BALANCED
A222: (1) Plant Investment Includes Completed Construction Not Classified (Account 106)
A224: =COMPANY -> DUKE ENERGY KENTUCKY, INC.
A225: =CASE -> CASE NO. 2022-00372
A226: =A3 -> ACCUMULATED DEPRECIATION AND AMORTIZATION
A227: ="AS OF " &RIGHT(TESTYR,(LEN(TESTYR)-16)) -> AS OF FEBRUARY 28, 2023
A229: COMMON PLANT
A233: =Data -> DATA: "X" BASE PERIOD FORECASTED PERIOD | J233: =J10 -> SCHEDULE B-3
A234: =Type -> TYPE OF FILING: "X" ORIGINAL UPDATED REVISED | J234: PAGE 6 OF 12
A235: WORK PAPER REFERENCE NO(S).: SCHEDULE B-2.1, SCHEDULE B-3.1 | J235: =J12 -> WITNESS RESPONSIBLE:
J236: =J13 -> G. S. CARPENTER / H. C. DANG
E239: =E16 -> Base
B240: FERC | C240: Company | E240: =E17 -> Period | G240: =G17 -> Base Period Accumulated Balances
A241: Line | B241: Acct. | C241: Acct. | E241: =E18 -> Total | G241: Total | H241: Allocation | I241: Allocated | K241: Adjusted
A242: No. | B242: No. | C242: No. | D242: Account Title | E242: =E19 -> Company (1) | G242: Company | H242: % | I242: Total | J242: Adjustments | K242: Jurisdiction
G243: $ | I243: $ | J243: $ | K243: $
A245: 1 | C245: 1030 | D245: Miscellaneous Intangible Plant | E245: ='SCH B-2.1'!I234 -> 22425004 | G245: 22358278.27 | H245: 1 | I245: =ROUND(G245*H245,0) -> 22358278 | K245: =I245+J245 -> 22358278
A246: =A245+1 -> 2 | C246: 1890 | D246: Land and Land Rights | E246: ='SCH B-2.1'!I235 -> 1041678 | G246: 0 | H246: 1 | I246: 0 | K246: 0
A247: 3 | C247: 1900 | D247: Structures & Improvements | E247: ='SCH B-2.1'!I236 -> 12562647 | G247: -282090.7865 | H247: 1 | I247: -282091 | K247: -282091
A248: 4 | C248: 1910 | D248: Office Furniture & Equipment | E248: ='SCH B-2.1'!I237 -> 788869 | G248: 288176.87 | H248: 1 | I248: 288177 | K248: 288177
A249: 5 | C249: 1910 - URR | D249: Office Furniture & Equipment - Reserve Amortization | E249: 0 | G249: 73.16 | H249: 2 | I249: 146 | K249: 146
A250: 6 | C250: 1911 | D250: Office Furniture & Equipment - EDP Equipment | E250: ='SCH B-2.1'!I238 -> 9095 | G250: 46.06 | H250: 1 | I250: 46 | K250: 46
A251: 7 | C251: 1911 - URR | D251: Office Furniture & Equipment - EDP Equipment - Res. Amort | E251: 0 | G251: -7680 | H251: 1 | I251: -7680 | K251: -7680
A252: 8 | C252: 1940 | D252: Tools, Shop & Garage Equipment | E252: ='SCH B-2.1'!I239 -> 112890 | G252: 68470.24 | H252: 1 | I252: 68470 | K252: 68470
A253: 9 | C253: 1940 - URR | D253: Tools, Shop & Garage Equipment - Reserve Amortization | E253: 0 | G253: 2400 | H253: 1 | I253: 2400 | K253: 2400
A254: 10 | C254: 1970 | D254: Communication Equipment | E254: ='SCH B-2.1'!I240 -> 6131223 | G254: 5203641.513 | H254: 1 | I254: 5203642 | K254: 5203642
A255: 11 | C255: 1970 - URR | D255: Communication Equipment - Reserve Amortization | E255: 0 | G255: 502133.16 | H255: 1 | I255: 502133 | K255: 502133
A256: 12 | C256: 1980 | D256: Miscellaneous Equipment | E256: ='SCH B-2.1'!I241 -> 95301 | G256: 40035.135 | H256: 1 | I256: 40035 | K256: 40035
A257: 13 | C257: 1980 - URR | D257: Miscellaneous Equipment - Reserve Amortization | E257: ='SCH B-2.1'!I242 -> 0 | G257: -573.16 | H257: 1 | I257: -573 | K257: -573
A258: 14 | C258: 1990 | D258: ARO - Common Plant | E258: ='SCH B-2.1'!I243 -> 0 | G258: 237097.6 | H258: 1 | I258: 237098 | J258: -261961 | K258: -24863
A259: 15 | D259: Completed Construction Not Classified | E259: 0 | G259: 0 | H259: 1 | I259: 0 | K259: 0
A260: 16 | C260: 108 | D260: Retirement Work in Progress | E260: 0 | G260: 3224.05 | H260: 1 | I260: 3224 | K260: 3224
A264: =A260+1 -> 17 | D264: Total Common Plant | E264: =SUM(E245:E262) -> 43166707 | G264: =SUM(G245:G262) -> 28413232.11 | I264: =SUM(I245:I262) -> 28413305 | J264: =SUM(J245:J262) -> -261961 | K264: =SUM(K245:K262) -> 28151344 | N264: =IF(E264='SCH B-2.1'!I247,"BALANCED","ERROR") -> BALANCED
D267: Common Plant Allocated to Electric
A268: =A264+1 -> 18 | C268: =CommonE -> 0.7136 | D268: Original Cost | E268: =ROUND(E264*CommonE,0) -> 30803762
A269: =A268+1 -> 19 | C269: =C268 -> 0.7136 | D269: Reserve for Depreciation | G269: =ROUND(G264*CommonE,0) -> 20275682 | I269: =G269 -> 20275682 | J269: =ROUND(J264*CommonE,0) -> -186935 | K269: =I269+J269 -> 20088747 | N269: =IF(E268='SCH B-2.1'!I250,"BALANCED","ERROR") -> BALANCED
A272: =A269+1 -> 20 | D272: Total Electric Plant Including Allocated Common | E272: =E219+E268 -> 2172061349 | G272: =G219+G269 -> 882475384 | I272: =I219+I269 -> 882475384 | J272: =J219+J269 -> -41861686 | K272: =K219+K269 -> 840613698 | N272: =IF(E272='SCH B-2.1'!I253,"BALANCED","ERROR") -> BALANCED
A275: (1) Plant Investment Includes Completed Construction Not Classified (Account 106)
A278: =COMPANY -> DUKE ENERGY KENTUCKY, INC.
A279: =CASE -> CASE NO. 2022-00372
A280: ACCUMULATED DEPRECIATION AND AMORTIZATION
A281: ="AS OF " &RIGHT(Forecast,(LEN(Forecast)-16)) -> AS OF JUNE 30, 2024
A283: STEAM PRODUCTION PLANT
A287: =DataF -> DATA: BASE PERIOD "X" FORECASTED PERIOD | J287: SCHEDULE B-3
A288: =Type -> TYPE OF FILING: "X" ORIGINAL UPDATED REVISED | J288: PAGE 7 OF 12
... 184 more rows

Sheet SCH B-3.1
A1: =COMPANY -> DUKE ENERGY KENTUCKY, INC.
A2: =CASE -> CASE NO. 2022-00372
A3: ADJUSTMENTS TO ACCUMULATED DEPRECIATION AND AMORTIZATION
A4: ="AS OF " &RIGHT(TESTYR,(LEN(TESTYR)-16)) -> AS OF FEBRUARY 28, 2023
A5: .
A9: =Data -> DATA: "X" BASE PERIOD FORECASTED PERIOD | H9: SCHEDULE B-3.1
A10: =Type -> TYPE OF FILING: "X" ORIGINAL UPDATED REVISED | H10: PAGE 1 OF 2
A11: WORK PAPER REFERENCE NOS.: | H11: WITNESS RESPONSIBLE:
H12: =_WIT7 -> G. S. CARPENTER / H. C. DANG
B17: FERC | C17: Company | I17: Description and
A18: Line | B18: Acct. | C18: Acct. | E18: Base | F18: Jurisdictional | G18: Jurisdictional | H18: Workpaper | I18: Purpose of
A19: No. | B19: No. | C19: No. | D19: Account Title | E19: Period | F19: % | G19: Adjustment | H19: Reference No. | I19: Adjustment
A22: 1 | B22: 317 | C22: 3171, 3172 | D22: ARO - Steam Production | E22: ='SCH B-3'!J29 -> -41133033 | F22: 1 | G22: =E22*F22 -> -41133033 | I22: To remove ARO balances
A23: 2 | B23: 373 | C23: 3733 | D23: Street Lighting - Cust, Private Outdoor Lighting | E23: ='SCH B-3'!J165 -> -1833179 | F23: 1 | G23: -1833179 | I23: To exclude street lighting balances
A24: 3 | B24: 373 | C24: 3734 | D24: Light Choice OLE | E24: ='SCH B-3'!J166 -> 1291461 | F24: 1 | G24: 1291461 | I24: To exclude street lighting balances
A25: 4 | C25: 1990 | D25: ARO - Common Plant | E25: ='SCH B-3'!J258 -> -261961 | F25: 1 | G25: -261961 | I25: To remove ARO balances
A29: 5 | D29: Total Adjustments | E29: =SUM(E22:E26) -> -41936712 | F29: 1 | G29: =SUM(G22:G25) -> -41936712
A36: =COMPANY -> DUKE ENERGY KENTUCKY, INC.
A37: =CASE -> CASE NO. 2022-00372
A38: ADJUSTMENTS TO ACCUMULATED DEPRECIATION AND AMORTIZATION
A39: ="AS OF " &RIGHT(Forecast,(LEN(Forecast)-16)) -> AS OF JUNE 30, 2024
A44: =DataF -> DATA: BASE PERIOD "X" FORECASTED PERIOD | H44: SCHEDULE B-3.1
A45: =Type -> TYPE OF FILING: "X" ORIGINAL UPDATED REVISED | H45: PAGE 2 OF 2
A46: WORK PAPER REFERENCE NOS.: | H46: WITNESS RESPONSIBLE:
H47: =_WIT7 -> G. S. CARPENTER / H. C. DANG
E51: 13 Month
B52: FERC | C52: Company | E52: Average | I52: Description and
A53: Line | B53: Acct. | C53: Acct. | E53: Forecasted | F53: Jurisdictional | G53: Jurisdictional | H53: Workpaper | I53: Purpose of
A54: No. | B54: No. | C54: No. | D54: Account Title | E54: Period | F54: % | G54: Adjustment | H54: Reference No. | I54: Adjustment
A57: 1 | B57: 317 | C57: 3171, 3172 | D57: ARO - Steam Production | E57: ='SCH B-3'!J306 -> -43840688 | F57: 1 | G57: =E57*F57 -> -43840688 | I57: To remove ARO balances
A58: 2 | B58: 373 | C58: 3733 | D58: Street Lighting - Cust, Private Outdoor Lighting | E58: ='SCH B-3'!J441 -> -1867746 | F58: 1 | G58: -1867746 | I58: To exclude street lighting balances
A59: 3 | B59: 373 | C59: 3734 | D59: Light Choice OLE | E59: ='SCH B-3'!J442 -> 1607509 | F59: 1 | G59: 1607509 | I59: To exclude street lighting balances
A60: 4 | C60: 1990 | D60: ARO - Common Plant | E60: ='SCH B-3'!J534 -> -237098 | F60: 1 | G60: -237098 | I60: To remove ARO balances
A64: 5 | D64: Total Adjustments | E64: =SUM(E57:E61) -> -44338023 | F64: 1 | G64: =SUM(G57:G61) -> -44338023

Sheet SCH B-3.2 - Proposed
A1: =COMPANY -> DUKE ENERGY KENTUCKY, INC.
A2: =CASE -> CASE NO. 2022-00372
A3: DEPRECIATION AND AMORTIZATION ACCRUAL RATES AND
A4: JURISDICTIONAL ACCUMULATED BALANCES BY ACCOUNTS,
A5: FUNCTIONAL CLASS OR MAJOR PROPERTY GROUP
A6: ="THIRTEEN MONTH AVERAGE AS OF " &RIGHT(Forecast,(LEN(Forecast)-16)) -> THIRTEEN MONTH AVERAGE AS OF JUNE 30, 2024
A7: .
A8: STEAM PRODUCTION PLANT
A12: =DataF -> DATA: BASE PERIOD "X" FORECASTED PERIOD | M12: SCHEDULE B-3.2
A13: =Type -> TYPE OF FILING: "X" ORIGINAL UPDATED REVISED | M13: PAGE 1 OF 6
A14: WORK PAPER REFERENCE NOS.: SCHEDULE B-2.1, SCHEDULE B-3 | M14: ='SCH B-3'!J12 -> WITNESS RESPONSIBLE:
M15: =_WIT7 -> G. S. CARPENTER / H. C. DANG
F18: Adjusted Jurisdiction
B19: FERC | C19: Company | D19: Account Title | F19: 13-Month Average | J19: Proposed | L19: Calculated | N19: Average
A20: Line | B20: Acct. | C20: Acct. | D20: or Major | F20: Plant | H20: Accumulated | J20: Accrual | L20: Depr/Amort | M20: % Net | N20: Service | O20: Curve
A21: No. | B21: No. | C21: No. | D21: Property Grouping | F21: Investment (1) | H21: Balance | J21: Rate | L21: Expense | M21: Salvage | N21: Life | O21: Form
A22: (A) | B22: (B-1) | C22: (B-2) | D22: (C) | F22: (D) | H22: (E) | J22: (F) | L22: (G=DxF) | M22: (H) | N22: (I) | O22: (J)
F23: $ | H23: $ | L23: $
A25: =A24+1 -> 1 | B25: 310 | C25: 3100 | D25: Land and Land Rights | F25: ='SCH B-2.1'!I279 -> 7267197 | H25: ='SCH B-3'!K299 -> 108998 | J25: 0 | L25: =ROUND(F25*J25,0) -> 0 | M25: Perpetual Life
A26: =A25+1 -> 2 | B26: 311 | C26: 3110 | D26: Structures & Improvements | F26: ='SCH B-2.1'!I280 -> 185879874 | H26: ='SCH B-3'!K300 -> 51418002 | J26: 0.063 | L26: 11710432 | M26: -0.1 | N26: 85 | O26: S1
A27: 3 | B27: 312 | C27: 3120 | D27: Boiler Plant Equipment | F27: ='SCH B-2.1'!I281 -> 553244784 | H27: ='SCH B-3'!K301 -> 308069611 | J27: 0.0433 | L27: 23955499 | M27: -0.1 | N27: 45 | O27: S0.5
A28: 4 | B28: 312 | C28: 3123 | D28: Boiler Plant Equip - SCR Catalyst | F28: ='SCH B-2.1'!I282 -> 7714318 | H28: ='SCH B-3'!K302 -> 6804874 | J28: 0.0591 | L28: 455916 | M28: 0 | N28: 10 | O28: S2.5
A29: 5 | B29: 314 | C29: 3140 | D29: Turbogenerator Equipment | F29: ='SCH B-2.1'!I283 -> 118509201 | H29: ='SCH B-3'!K303 -> 49273455 | J29: 0.0453 | L29: 5368467 | M29: -0.1 | N29: 40 | O29: S0.5
A30: 6 | B30: 315 | C30: 3150 | D30: Accessory Electric Equipment | F30: ='SCH B-2.1'!I284 -> 51143847 | H30: ='SCH B-3'!K304 -> 31953342 | J30: 0.0299 | L30: 1529201 | M30: -0.1 | N30: 65 | O30: R2.5
A31: 7 | B31: 316 | C31: 3160 | D31: Miscellaneous Powerplant Equipment | F31: ='SCH B-2.1'!I285 -> 24584185 | H31: ='SCH B-3'!K305 -> 12356024 | J31: 0.0488 | L31: 1199708 | M31: -0.1 | N31: 55 | O31: S0
A32: 8 | B32: 317 | C32: 3170 | D32: AROs | F32: ='SCH B-2.1'!I286 -> 0 | H32: ='SCH B-3'!K306 -> 0 | J32: Various | M32: Depr charged to reg asset account
A33: 9 | D33: Case 2015-120 Acq of DPL Share of East Bend | F33: ='SCH B-2.1'!I287 -> 8481722 | H33: ='SCH B-3'!K307 -> 0 | J33: - | L33: 490618 | M33: Amort. approved in Case No. 2017-00321
A34: 10 | D34: Completed Construction Not Classified | F34: ='SCH B-2.1'!I288 -> 0 | H34: ='SCH B-3'!K308 -> 0 | J34: 0.0471 | L34: 0
A35: 11 | C35: 108 | D35: Retirement Work in Progress | F35: ='SCH B-2.1'!I289 -> 0 | H35: ='SCH B-3'!K309 -> -20745348 | L35: 0
A38: =A35+1 -> 12 | D38: Total Steam Production Plant | F38: =SUM(F25:F37) -> 956825128 | H38: =SUM(H25:H37) -> 439238958 | L38: =SUM(L25:L37) -> 44709841
A41: (1) Plant Investment includes Completed Construction Not Classified (Account 106).
A44: =COMPANY -> DUKE ENERGY KENTUCKY, INC.
A45: =CASE -> CASE NO. 2022-00372
A46: DEPRECIATION AND AMORTIZATION ACCRUAL RATES AND
A47: JURISDICTIONAL ACCUMULATED BALANCES BY ACCOUNTS,
A48: FUNCTIONAL CLASS OR MAJOR PROPERTY GROUP
A49: ="THIRTEEN MONTH AVERAGE AS OF " &RIGHT(Forecast,(LEN(Forecast)-16)) -> THIRTEEN MONTH AVERAGE AS OF JUNE 30, 2024
A51: OTHER PRODUCTION PLANT
A55: =DataF -> DATA: BASE PERIOD "X" FORECASTED PERIOD | M55: SCHEDULE B-3.2
A56: =Type -> TYPE OF FILING: "X" ORIGINAL UPDATED REVISED | M56: PAGE 2 OF 6
A57: WORK PAPER REFERENCE NOS.: SCHEDULE B-2.1, SCHEDULE B-3 | M57: =M14 -> WITNESS RESPONSIBLE:
M58: =_WIT7 -> G. S. CARPENTER / H. C. DANG
F61: Adjusted Jurisdiction
B62: FERC | C62: Company | D62: Account Title | F62: 13-Month Average | J62: Proposed | L62: Calculated | N62: Average
A63: Line | B63: Acct. | C63: Acct. | D63: or Major | F63: Plant | H63: Accumulated | J63: Accrual | L63: Depr/Amort | M63: % Net | N63: Service | O63: Curve
A64: No. | B64: No. | C64: No. | D64: Property Grouping | F64: Investment (1) | H64: Balance | J64: Rate | L64: Expense | M64: Salvage | N64: Life | O64: Form
A65: (A) | B65: (B-1) | C65: (B-2) | D65: (C) | F65: (D) | H65: (E) | J65: (F) | L65: (G=DxF) | M65: (H) | N65: (I) | O65: (J)
F66: $ | H66: $ | L66: $
A68: 1 | B68: 340 | C68: 3400 | D68: Land and Land Rights | F68: ='SCH B-2.1'!I317 -> 2280504 | H68: ='SCH B-3'!K339 -> 5013 | J68: 0 | L68: =ROUND(F68*J68,0) -> 0 | M68: Perpetual Life
A69: 2 | B69: 340 | C69: 3401 | D69: Rights of Way | F69: ='SCH B-2.1'!I318 -> 0 | H69: ='SCH B-3'!K340 -> 0 | J69: 0 | L69: 0 | M69: 0 | N69: 0 | O69: 0
A70: 3 | B70: 341 | C70: 3410 | D70: Structures & Improvements | F70: ='SCH B-2.1'!I319 -> 36701684 | H70: ='SCH B-3'!K341 -> 29607072 | J70: 0.0177 | L70: 649620 | M70: -0.08 | N70: 60 | O70: R4
A71: 4 | B71: 342 | C71: 3420 | D71: Fuel Holders, Producers, Accessories | F71: ='SCH B-2.1'!I320 -> 60960351 | H71: ='SCH B-3'!K342 -> 8394494 | J71: 0.0546 | L71: 3328435 | M71: -0.08 | N71: 50 | O71: S1.5
A72: 5 | B72: 343 | C72: 3430 | D72: Prime Movers | F72: ='SCH B-2.1'!I321 -> 6907974 | H72: ='SCH B-3'!K343 -> -5073353 | J72: 0.0614 | L72: 424150 | M72: -0.08 | N72: 45 | O72: S0
A73: 6 | B73: 344 | C73: 3440 | D73: Generators | F73: ='SCH B-2.1'!I322 -> 213483294 | H73: ='SCH B-3'!K344 -> 154693792 | J73: 0.0283 | L73: 6041577 | M73: -0.08 | N73: 45 | O73: S0
A74: 7 | B74: 344 | C74: 3446 | D74: Solar Generators | F74: ='SCH B-2.1'!I323 -> 15778050 | H74: ='SCH B-3'!K345 -> 2777310 | J74: 0.0522 | L74: 823614 | M74: -0.21 | N74: 25 | O74: S2.5
A75: 8 | B75: 345 | C75: 3450 | D75: Accessory Electric Equipment | F75: ='SCH B-2.1'!I324 -> 19872233 | H75: ='SCH B-3'!K346 -> 13601830 | J75: 0.0323 | L75: 641873 | M75: -0.08 | N75: 40 | O75: R2
A76: 9 | B76: 345 | C76: 3456 | D76: Solar Accessory Electric Equipment | F76: ='SCH B-2.1'!I325 -> 1729695 | H76: ='SCH B-3'!K347 -> 357643 | J76: 0.0551 | L76: 95306 | M76: -0.21 | N76: 25 | O76: S2.5
A77: 10 | B77: 346 | C77: 3460 | D77: Miscellaneous Plant Equipment | F77: ='SCH B-2.1'!I326 -> 5174581 | H77: ='SCH B-3'!K348 -> 3672820 | J77: 0.0262 | L77: 135574 | M77: -0.08 | N77: 40 | O77: R1.5
A78: 11 | D78: Completed Construction Not Classified | F78: ='SCH B-2.1'!I327 -> 0 | H78: ='SCH B-3'!K349 -> 0 | J78: 0.0337 | L78: 0
A79: 12 | C79: 108 | D79: Retirement Work in Progress | F79: ='SCH B-2.1'!I328 -> 0 | H79: ='SCH B-3'!K350 -> -1056015
A83: 13 | D83: Total Other Production Plant | F83: =SUM(F68:F82) -> 362888366 | H83: =SUM(H68:H82) -> 206980606 | L83: =SUM(L68:L82) -> 12140149
A86: (1) Plant Investment includes Completed Construction Not Classified (Account 106).
A90: =COMPANY -> DUKE ENERGY KENTUCKY, INC.
A91: =CASE -> CASE NO. 2022-00372
A92: DEPRECIATION AND AMORTIZATION ACCRUAL RATES AND
A93: JURISDICTIONAL ACCUMULATED BALANCES BY ACCOUNTS,
A94: FUNCTIONAL CLASS OR MAJOR PROPERTY GROUP
A95: ="THIRTEEN MONTH AVERAGE AS OF " &RIGHT(Forecast,(LEN(Forecast)-16)) -> THIRTEEN MONTH AVERAGE AS OF JUNE 30, 2024
A97: TRANSMISSION PLANT
A101: =DataF -> DATA: BASE PERIOD "X" FORECASTED PERIOD | M101: SCHEDULE B-3.2
A102: =Type -> TYPE OF FILING: "X" ORIGINAL UPDATED REVISED | M102: PAGE 3 OF 6
A103: WORK PAPER REFERENCE NOS.: SCHEDULE B-2.1, SCHEDULE B-3 | M103: =M14 -> WITNESS RESPONSIBLE:
M104: =_WIT7 -> G. S. CARPENTER / H. C. DANG
F107: Adjusted Jurisdiction
B108: FERC | C108: Company | D108: Account Title | F108: 13-Month Average | J108: Proposed | L108: Calculated | N108: Average
A109: Line | B109: Acct. | C109: Acct. | D109: or Major | F109: Plant | H109: Accumulated | J109: Accrual | L109: Depr/Amort | M109: % Net | N109: Service | O109: Curve
A110: No. | B110: No. | C110: No. | D110: Property Grouping | F110: Investment (1) | H110: Balance | J110: Rate | L110: Expense | M110: Salvage | N110: Life | O110: Form
A111: (A) | B111: (B-1) | C111: (B-2) | D111: (C) | F111: (D) | H111: (E) | J111: (F) | L111: (G=DxF) | M111: (H) | N111: (I) | O111: (J)
F112: $ | H112: $ | L112: $
A114: 1 | B114: 350 | C114: 3500 | D114: Land | F114: ='SCH B-2.1'!I356 -> 5678092 | H114: ='SCH B-3'!G378 -> 0 | J114: 0 | L114: 0 | M114: Perpetual Life
A115: 2 | B115: 350 | C115: 3501 | D115: Rights of Way | F115: ='SCH B-2.1'!I357 -> 1854560 | H115: ='SCH B-3'!G379 -> 759310 | J115: 0.0093 | L115: =ROUND(F115*J115,0) -> 17247 | M115: 0 | N115: 75 | O115: R4
A116: 3 | B116: 352 | C116: 3520 | D116: Structures & Improvements | F116: ='SCH B-2.1'!I358 -> 8390230 | H116: ='SCH B-3'!G380 -> 698873 | J116: 0.0169 | L116: 141795 | M116: -0.15 | N116: 70 | O116: R2.5
A117: 4 | B117: 353 | C117: 3530 | D117: Station Equipment | F117: ='SCH B-2.1'!I359 -> 39920032 | H117: ='SCH B-3'!G381 -> 1031605 | J117: 0.0231 | L117: 922153 | M117: -0.1 | N117: 50 | O117: R1
A118: 5 | B118: 353 | C118: 3531 | D118: Station Equipment - Step Up | F118: ='SCH B-2.1'!I360 -> 13036026 | H118: ='SCH B-3'!G382 -> 5166147 | J118: 0.0252 | L118: 328508 | M118: -0.1 | N118: 50 | O118: R3
A119: 6 | B119: 353 | C119: 3532 | D119: Station Equipment - Major | F119: ='SCH B-2.1'!I361 -> 15874714 | H119: ='SCH B-3'!G383 -> 2690777 | J119: 0.0178 | L119: 282570 | M119: -0.1 | N119: 60 | O119: R2.5
A120: 7 | B120: 353 | C120: 3534 | D120: Station Equipment - Step Up Equipment | F120: ='SCH B-2.1'!I362 -> 10665478 | H120: ='SCH B-3'!G384 -> 2701283 | J120: 0.0287 | L120: 306099 | M120: -0.1 | N120: 40 | O120: R2.5
A121: 8 | B121: 355 | C121: 3550 | D121: Poles & Fixtures | F121: ='SCH B-2.1'!I363 -> 18509390 | H121: ='SCH B-3'!G385 -> -5530155 | J121: 0.0257 | L121: 475691 | M121: -0.3 | N121: 55 | O121: R1
A122: 9 | B122: 356 | C122: 3560 | D122: Overhead Conductors & Devices | F122: ='SCH B-2.1'!I364 -> 17517922 | H122: ='SCH B-3'!G386 -> 2873042 | J122: 0.0209 | L122: 366125 | M122: -0.25 | N122: 55 | O122: R1
A123: 10 | B123: 356 | C123: 3561 | D123: Overhead Conductors - Clear R/W | F123: ='SCH B-2.1'!I365 -> 3076253 | H123: ='SCH B-3'!G387 -> 165128 | J123: 0.0154 | L123: 47374 | M123: 0 | N123: 65 | O123: R3
A124: 11 | D124: Completed Construction Not Classified | F124: ='SCH B-2.1'!I366 -> 0 | H124: ='SCH B-3'!G388 -> 0 | J124: 0.0226 | L124: 0
A125: 12 | C125: 108 | D125: Retirement Work in Progress | F125: ='SCH B-2.1'!I367 -> 0 | H125: ='SCH B-3'!G389 -> -2587798 | L125: 0
A130: =A125+1 -> 13 | D130: Total Transmission Plant | F130: =SUM(F114:F129) -> 134522697 | H130: =SUM(H114:H129) -> 7968212 | L130: =SUM(L114:L129) -> 2887562
A133: (1) Plant Investment includes Completed Construction Not Classified (Account 106).
A135: =A1 -> DUKE ENERGY KENTUCKY, INC.
A136: CASE NO. 2022-00372
A137: DEPRECIATION AND AMORTIZATION ACCRUAL RATES AND
A138: JURISDICTIONAL ACCUMULATED BALANCES BY ACCOUNTS,
A139: FUNCTIONAL CLASS OR MAJOR PROPERTY GROUP
A140: THIRTEEN MONTH AVERAGE AS OF JUNE 30, 2024
A142: DISTRIBUTION PLANT
A146: =A12 -> DATA: BASE PERIOD "X" FORECASTED PERIOD | M146: =M12 -> SCHEDULE B-3.2
A147: =A13 -> TYPE OF FILING: "X" ORIGINAL UPDATED REVISED | M147: PAGE 4 OF 6
A148: =A14 -> WORK PAPER REFERENCE NOS.: SCHEDULE B-2.1, SCHEDULE B-3 | M148: =M14 -> WITNESS RESPONSIBLE:
M149: =M15 -> G. S. CARPENTER / H. C. DANG
F152: Adjusted Jurisdiction
B153: FERC | C153: Company | D153: Account Title | F153: 13-Month Average | J153: Proposed | L153: Calculated | N153: Average
A154: Line | B154: Acct. | C154: Acct. | D154: or Major | F154: Plant | H154: Accumulated | J154: Accrual | L154: Depr/Amort | M154: % Net | N154: Service | O154: Curve
A155: No. | B155: No. | C155: No. | D155: Property Grouping | F155: Investment (1) | H155: Balance | J155: Rate | L155: Expense | M155: Salvage | N155: Life | O155: Form
A156: (A) | B156: (B-1) | C156: (B-2) | D156: (C) | F156: (D) | H156: (E) | J156: (F) | L156: (G=DxF) | M156: (H) | N156: (I) | O156: (J)
F157: $ | H157: $ | L157: $
A159: =A158+1 -> 1 | B159: 360 | C159: 3600 | D159: Land and Land Rights | F159: ='SCH B-2.1'!I395 -> 14002572 | H159: ='SCH B-3'!K420 -> 0 | J159: 0 | L159: 0 | M159: Perpetual Life
A160: =A159+1 -> 2 | B160: 360 | C160: 3601 | D160: Rights of Way | F160: ='SCH B-2.1'!I396 -> 5271275 | H160: ='SCH B-3'!K421 -> 3291028 | J160: 0.0069 | L160: =ROUND(F160*J160,0) -> 36372 | M160: 0 | N160: 75 | O160: R4
A161: 3 | B161: 361 | C161: 3610 | D161: Structures & Improvements | F161: ='SCH B-2.1'!I397 -> 1574856 | H161: ='SCH B-3'!K422 -> -25424 | J161: 0.0188 | L161: 29607 | M161: -0.15 | N161: 70 | O161: R2.5
A162: 4 | B162: 362 | C162: 3620 | D162: Station Equipment | F162: ='SCH B-2.1'!I398 -> 84729397 | H162: ='SCH B-3'!K423 -> 4768344 | J162: 0.0391 | L162: 3312919 | M162: -0.1 | N162: 32 | O162: R0.5
A163: 5 | B163: 362 | C163: 3622 | D163: Station Equipment - Major | F163: ='SCH B-2.1'!I399 -> 48596984 | H163: ='SCH B-3'!K424 -> 11312329 | J163: 0.0173 | L163: 840728 | M163: -0.1 | N163: 60 | O163: R2.5
A164: 6 | B164: 363 | C164: 3630 | D164: Storage Battery Equipment | F164: ='SCH B-2.1'!I400 -> 0 | H164: ='SCH B-3'!K425 -> 0 | J164: 0.0678 | L164: 0 | M164: 0 | N164: 15
A165: 7 | B165: 364 | C165: 3640 | D165: Poles, Towers & Fixtures | F165: ='SCH B-2.1'!I401 -> 83333055 | H165: ='SCH B-3'!K426 -> 30990566 | J165: 0.0238 | L165: 1983327 | M165: -0.5 | N165: 55 | O165: R0.5
A166: 8 | B166: 365 | C166: 3650 | D166: Overhead Conductors & Devices | F166: ='SCH B-2.1'!I402 -> 158797704 | H166: ='SCH B-3'!K427 -> 35621917 | J166: 0.0251 | L166: 3985822 | M166: -0.4 | N166: 53 | O166: O1
A167: 9 | B167: 365 | C167: 3651 | D167: Overhead Conductors - Clear R/W | F167: ='SCH B-2.1'!I403 -> 8339117 | H167: ='SCH B-3'!K428 -> 780656 | J167: 0.015 | L167: 125087 | M167: 0 | N167: 65 | O167: R3
A168: 10 | B168: 366 | C168: 3660 | D168: Underground Conduit | F168: ='SCH B-2.1'!I404 -> 48256715 | H168: ='SCH B-3'!K429 -> 10202119 | J168: 0.016 | L168: 772107 | M168: -0.25 | N168: 75 | O168: R3
A169: 11 | B169: 367 | C169: 3670 | D169: Underground Conductors & Devices | F169: ='SCH B-2.1'!I405 -> 92338668 | H169: ='SCH B-3'!K430 -> 22348131 | J169: 0.0253 | L169: 2336168 | M169: -0.35 | N169: 56 | O169: R2
A170: 12 | B170: 368 | C170: 3680 | D170: Line Transformers | F170: ='SCH B-2.1'!I406 -> 82913299 | H170: ='SCH B-3'!K431 -> 27662987 | J170: 0.0203 | L170: 1683140 | M170: -0.15 | N170: 48 | O170: R0.5
A171: 13 | B171: 368 | C171: 3682 | D171: Customers Transformer Installation | F171: ='SCH B-2.1'!I407 -> 305481 | H171: ='SCH B-3'!K432 -> 280477 | J171: 0.0053 | L171: 1619 | M171: -0.15 | N171: 55 | O171: R1.5
A172: 14 | B172: 369 | C172: 3691 | D172: Services - Underground | F172: ='SCH B-2.1'!I408 -> 3419442 | H172: ='SCH B-3'!K433 -> 852325 | J172: 0.0197 | L172: 67363 | M172: -0.4 | N172: 65 | O172: R3
A173: 15 | B173: 369 | C173: 3692 | D173: Services - Overhead | F173: ='SCH B-2.1'!I409 -> 19903748 | H173: ='SCH B-3'!K434 -> 11107185 | J173: 0.017 | L173: 338364 | M173: -0.4 | N173: 60 | O173: R1
A174: 16 | B174: 370 | C174: 3700 | D174: Meters | F174: ='SCH B-2.1'!I410 -> 3047358 | H174: ='SCH B-3'!K435 -> 1077149 | J174: 0.046 | L174: 140178 | M174: -0.02 | N174: 24 | O174: L1
A175: 17 | B175: 370 | C175: 3702 | D175: AMI Meters | F175: ='SCH B-2.1'!I411 -> 30331889 | H175: ='SCH B-3'!K436 -> 9418376 | J175: 0.0612 | L175: 1856312 | M175: 0 | N175: 15 | O175: S2.5
A176: 18 | B176: 371 | C176: 3711, 3712 | D176: Company Owned Outdoor Lighting | F176: ='SCH B-2.1'!I412 -> 1232302 | H176: ='SCH B-3'!K437 -> -10153 | J176: 0.1078 | L176: 132842 | M176: -0.05 | N176: 11 | O176: R2
A177: 19 | B177: 372 | C177: 3720 | D177: Leased Property on Customers | F177: ='SCH B-2.1'!I413 -> 10769 | H177: ='SCH B-3'!K438 -> 9668 | J177: N/A | K177: (2) | L177: N/A | M177: 0 | N177: 30 | O177: L3
A178: 20 | B178: 373 | C178: 3731 | D178: Street Lighting - Overhead | F178: ='SCH B-2.1'!I414 -> 2799022 | H178: ='SCH B-3'!K439 -> 2239367 | J178: 0.0125 | L178: 34988 | M178: -0.15 | N178: 34 | O178: L0.5
A179: 21 | B179: 373 | C179: 3732 | D179: Street Lighting - Boulevard | F179: ='SCH B-2.1'!I415 -> 3760097 | H179: ='SCH B-3'!K440 -> 2751140 | J179: 0.0112 | L179: 42113 | M179: -0.2 | N179: 55 | O179: R1.5
A180: 22 | B180: 373 | C180: 3733 | D180: Street Lighting - Cust, Private Outdoor Lighting | F180: ='SCH B-2.1'!I416 -> 0 | H180: ='SCH B-3'!K441 -> 0 | J180: 0.0421 | L180: 0 | M180: -0.1 | N180: 25 | O180: L0
A181: 23 | B181: 373 | C181: 3734 | D181: Light Choice OLE | F181: ='SCH B-2.1'!I417 -> 0 | H181: ='SCH B-3'!K442 -> 0 | J181: 0.0421 | L181: 0 | M181: -0.1 | N181: 25 | O181: L0
A182: 24 | D182: Completed Construction Not Classified | F182: ='SCH B-2.1'!I418 -> 0 | H182: ='SCH B-3'!K443 -> 0 | J182: 0.0261 | L182: 0
A183: 25 | C183: 108 | D183: Retirement Work in Progress | F183: ='SCH B-2.1'!I419 -> 0 | H183: ='SCH B-3'!K444 -> -22560697 | L183: 0
A188: =A183+1 -> 26 | D188: Total Distribution Plant | F188: =SUM(F159:F187) -> 692963750 | H188: =SUM(H159:H187) -> 152117490 | L188: =SUM(L159:L187) -> 17719056
A191: (1) Plant Investment includes Completed Construction Not Classified (Account 106).
A192: (2) This account is fully depreciated.
A195: =A1 -> DUKE ENERGY KENTUCKY, INC.
A196: CASE NO. 2022-00372
A197: DEPRECIATION AND AMORTIZATION ACCRUAL RATES AND
A198: JURISDICTIONAL ACCUMULATED BALANCES BY ACCOUNTS,
A199: FUNCTIONAL CLASS OR MAJOR PROPERTY GROUP
A200: THIRTEEN MONTH AVERAGE AS OF JUNE 30, 2024
A202: GENERAL PLANT
A205: =A12 -> DATA: BASE PERIOD "X" FORECASTED PERIOD | M205: =M12 -> SCHEDULE B-3.2
A206: =A13 -> TYPE OF FILING: "X" ORIGINAL UPDATED REVISED | M206: PAGE 5 OF 6
A207: =A14 -> WORK PAPER REFERENCE NOS.: SCHEDULE B-2.1, SCHEDULE B-3 | M207: =M14 -> WITNESS RESPONSIBLE:
M208: =M15 -> G. S. CARPENTER / H. C. DANG
F212: Adjusted Jurisdiction
B213: FERC | C213: Company | D213: Account Title | F213: 13-Month Average | J213: Proposed | L213: Calculated | N213: Average
A214: Line | B214: Acct. | C214: Acct. | D214: or Major | F214: Plant | H214: Accumulated | J214: Accrual | L214: Depr/Amort | M214: % Net | N214: Service | O214: Curve
A215: No. | B215: No. | C215: No. | D215: Property Grouping | F215: Investment (1) | H215: Balance | J215: Rate | L215: Expense | M215: Salvage | N215: Life | O215: Form
A216: (A) | B216: (B-1) | C216: (B-2) | D216: (C) | F216: (D) | H216: (E) | J216: (F) | L216: (G=DxF) | M216: (H) | N216: (I) | O216: (J)
F217: $ | H217: $ | L217: $
A219: 1 | B219: 303 | C219: 3030 | D219: Miscellaneous Intangible Plant | F219: ='SCH B-2.1'!I449 -> 37376913 | H219: ='SCH B-3'!K474 -> 15807767 | J219: Various | L219: 5181547 | M219: Various
A220: 2 | B220: 390 | C220: 3900 | D220: Structures & Improvements | F220: ='SCH B-2.1'!I450 -> 202337 | H220: ='SCH B-3'!K475 -> 69547 | J220: 0.0333 | L220: =ROUND(F220*J220,0) -> 6738 | M220: -0.1 | N220: 40 | O220: S1
A221: 3 | B221: 391 | C221: 3910 | D221: Office Furniture & Equipment | F221: ='SCH B-2.1'!I451 -> 456050 | H221: ='SCH B-3'!K476 -> 32355 | J221: 0.05 | L221: =ROUND(F221*J221,0) -> 22803 | M221: 0 | N221: 20 | O221: SQ
A222: 4 | B222: 391 | C222: 3910-URR | D222: Office Furniture & Equipment | H222: ='SCH B-3'!K477 -> 166 | J222: NA | K222: (2) | L222: -1744 | M222: N/A | N222: N/A | O222: N/A
A223: 5 | B223: 391 | C223: 3911 | D223: Electronic Data Proc Equip | F223: ='SCH B-2.1'!I452 -> 6629656 | H223: ='SCH B-3'!K478 -> 2043801 | J223: 0.2 | L223: =ROUND(F223*J223,0) -> 1325931 | M223: 0 | N223: 5 | O223: SQ
A224: 6 | B224: 391 | C224: 3911-URR | D224: Electronic Data Proc Equip | H224: ='SCH B-3'!K479 -> 32267 | J224: NA | K224: (2) | L224: -16380 | M224: N/A | N224: N/A | O224: N/A
A225: 7 | B225: 392 | C225: 3920 | D225: Transportation Equipment | F225: ='SCH B-2.1'!I453 -> 1155292 | H225: ='SCH B-3'!K480 -> 518087 | J225: 0.062 | L225: Transp Expense | M225: 0 | N225: 12 | O225: S3
A226: 8 | B226: 392 | C226: 3921 | D226: Trailers | F226: ='SCH B-2.1'!I454 -> 334258 | H226: ='SCH B-3'!K481 -> 224156 | J226: 0.0193 | L226: Transp Expense | M226: 0.05 | N226: 20 | O226: R2.5
A227: 9 | B227: 394 | C227: 3940 | D227: Tools, Shop & Garage Equipment | F227: ='SCH B-2.1'!I455 -> 4170777 | H227: ='SCH B-3'!K482 -> 1378493 | J227: 0.04 | L227: 166831 | M227: 0 | N227: 25 | O227: SQ
A228: 10 | B228: 394 | C228: 3940-URR | D228: Tools, Shop & Garage Equipment | H228: ='SCH B-3'!K483 -> -5733 | J228: NA | K228: (2) | L228: 8000 | M228: N/A | N228: N/A | O228: N/A
A229: 11 | B229: 396 | C229: 3960 | D229: Power Operated Equipment | F229: ='SCH B-2.1'!I456 -> 14461 | H229: ='SCH B-3'!K484 -> 9699 | J229: 0.0418 | L229: Transp Expense | M229: 0 | N229: 15 | O229: L2
A230: 12 | B230: 397 | C230: 3970 | D230: Communication Equipment | F230: ='SCH B-2.1'!I457 -> 16197847 | H230: ='SCH B-3'!K485 -> 4545813 | J230: 0.0667 | L230: 1080396 | M230: 0 | N230: 15 | O230: SQ
A231: 13 | B231: 397-URR | C231: 3970 | D231: Communication Equipment | H231: ='SCH B-3'!K486 -> 10000 | J231: NA | K231: (2) | L231: -5942 | M231: N/A | N231: N/A | O231: N/A
A232: 14 | D232: Completed Construction Not Classified | F232: ='SCH B-2.1'!I458 -> 0 | H232: ='SCH B-3'!K487 -> 0 | J232: 0.082 | L232: 0
A233: 15 | C233: 108 | D233: Retirement Work in Progress | F233: ='SCH B-2.1'!I459 -> 0 | H233: ='SCH B-3'!K488 -> 13552
A237: =A233+1 -> 16 | D237: Total General Plant | F237: =SUM(F219:F236) -> 66537591 | H237: =SUM(H219:H236) -> 24679970 | L237: =SUM(L219:L236) -> 7768180
A240: 17 | D240: Total Electric Plant | F240: =F237+F188+F130+F83+F38 -> 2213737532 | H240: =H237+H188+H130+H83+H38 -> 830985236 | L240: =L237+L188+L130+L83+L38 -> 85224788
A243: (1) Plant Investment includes Completed Construction Not Classified (Account 106).
A244: (2) 5 year life for Unrecovered Reserve for Amortization
A247: =A1 -> DUKE ENERGY KENTUCKY, INC.
A248: CASE NO. 2022-00372
A249: DEPRECIATION AND AMORTIZATION ACCRUAL RATES AND
A250: JURISDICTIONAL ACCUMULATED BALANCES BY ACCOUNTS,
A251: FUNCTIONAL CLASS OR MAJOR PROPERTY GROUP
A252: THIRTEEN MONTH AVERAGE AS OF JUNE 30, 2024
A254: COMMON PLANT
A257: =A12 -> DATA: BASE PERIOD "X" FORECASTED PERIOD | M257: =M12 -> SCHEDULE B-3.2
A258: =A13 -> TYPE OF FILING: "X" ORIGINAL UPDATED REVISED | M258: PAGE 6 OF 6
A259: =A14 -> WORK PAPER REFERENCE NOS.: SCHEDULE B-2.1, SCHEDULE B-3 | M259: =M14 -> WITNESS RESPONSIBLE:
M260: =M15 -> G. S. CARPENTER / H. C. DANG
F264: Adjusted Jurisdiction
B265: FERC | C265: Company | D265: Account Title | F265: 13-Month Average | J265: Proposed | L265: Calculated | N265: Average
A266: Line | B266: Acct. | C266: Acct. | D266: or Major | F266: Plant | H266: Accumulated | J266: Accrual | L266: Depr/Amort | M266: % Net | N266: Service | O266: Curve
A267: No. | B267: No. | C267: No. | D267: Property Grouping | F267: Investment (1) | H267: Balance | J267: Rate | L267: Expense | M267: Salvage | N267: Life | O267: Form
A268: (A) | B268: (B-1) | C268: (B-2) | D268: (C) | F268: (D) | H268: (E) | J268: (F) | L268: (G=DxF) | M268: (H) | N268: (I) | O268: (J)
F269: $ | H269: $ | L269: $
A271: 1 | C271: 1030 | D271: Miscellaneous Intangible Plant | F271: ='SCH B-2.1'!I491 -> 25479678 | H271: ='SCH B-3'!K521 -> 22575506 | J271: Various | K271: (4) | L271: 0 | M271: Amortizes over 60 months
A272: 2 | C272: 1890 | D272: Land and Land Rights | F272: ='SCH B-2.1'!I492 -> 1183573 | H272: ='SCH B-3'!K522 -> 0 | J272: 0 | L272: =ROUND(F272*J272,0) -> 0 | M272: Perpetual Life
A273: 3 | C273: 1900 | D273: Structures & Improvements | F273: ='SCH B-2.1'!I493 -> 12370141 | H273: ='SCH B-3'!K523 -> -2162935 | J273: Various | K273: (2) | L273: 0 | M273: -0.1 | N273: Various | O273: Various
A274: 4 | C274: 1910 | D274: Office Furniture & Equipment | F274: ='SCH B-2.1'!I494 -> 896326 | H274: ='SCH B-3'!K524 -> 330332 | J274: 0.05 | L274: 44816 | M274: 0 | N274: 20 | O274: SQ
A275: 5 | C275: 1910-URR | D275: Office Furniture & Equipment | H275: ='SCH B-3'!K525 -> 73 | J275: NA | K275: (3) | L275: -12200 | M275: N/A | N275: N/A | O275: N/A
A276: 6 | C276: 1911 | D276: Office Furniture & Equipment - EDP Equipment | F276: ='SCH B-2.1'!I495 -> 1336 | H276: ='SCH B-3'!K526 -> -10099 | J276: 0.1001 | L276: 134 | M276: 0 | N276: 5 | O276: SQ
A277: 7 | C277: 1911-URR | D277: Office Furniture & Equipment - EDP Equipment | H277: ='SCH B-3'!K527 -> -7680 | J277: NA | K277: (3) | L277: 6208 | M277: N/A | N277: N/A | O277: N/A
A278: 8 | C278: 1940 | D278: Tools, Shop & Garage Equipment | F278: ='SCH B-2.1'!I496 -> 126798 | H278: ='SCH B-3'!K528 -> 71770 | J278: 0.04 | L278: 5072 | M278: 0 | N278: 25 | O278: SQ
A279: 9 | C279: 1940-URR | D279: Tools, Shop & Garage Equipment | H279: ='SCH B-3'!K529 -> 2400 | J279: NA | K279: (3) | L279: -4480 | M279: N/A | N279: N/A | O279: N/A
... 17 more rows

Sheet SCH B-4
A1: =COMPANY -> DUKE ENERGY KENTUCKY, INC.
A2: =CASE -> CASE NO. 2022-00372
A3: CONSTRUCTION WORK IN PROGRESS
A4: ="AS OF " &RIGHT(TESTYR,(LEN(TESTYR)-16)) -> AS OF FEBRUARY 28, 2023
A5: .
A8: =Data -> DATA: "X" BASE PERIOD FORECASTED PERIOD | E8: SCHEDULE B-4
A9: =Type -> TYPE OF FILING: "X" ORIGINAL UPDATED REVISED | E9: PAGE 1 OF 2
A10: WORK PAPER REFERENCE NO(S).: | E10: WITNESS RESPONSIBLE:
E11: =_WIT7 -> G. S. CARPENTER / H. C. DANG
A14: Line | C14: Jurisdic- | E14: Total
A15: No. | B15: Major Property Groupings | C15: tional % | E15: Gross | F15: Jurisdictional
C16: % | E16: $ | F16: $
A18: 1 | B18: Production | C18: 1 | E18: 5355819 | F18: =E18 -> 5355819
A20: 2 | B20: Transmission | C20: 1 | E20: 4755954 | F20: =E20 -> 4755954
A22: 3 | B22: Distribution | C22: 1 | E22: 17350141 | F22: =E22 -> 17350141
A24: 4 | B24: General | C24: 1 | E24: 4770612 | F24: =E24 -> 4770612
A26: 5 | B26: Total Common | C26: 1 | E26: 3277729 | F26: =E26 -> 3277729
A28: 6 | B28: =TEXT(CommonE,"##.##%")&" Common Allocated to Electric" -> 71.36% Common Allocated to Electric | C28: 1 | E28: =ROUND(E26*CommonE,0) -> 2338987 | F28: =E28 -> 2338987
A32: =A28+1 -> 7 | B32: TOTAL ELECTRIC INCLUDING COMMON ALLOCATED | E32: =E18+E20+E22+E24+E28 -> 34571513 | F32: =F18+F20+F22+F24+F28 -> 34571513
A34: Note: The Company is not requesting to include recovery of CWIP in base rates.
A39: =COMPANY -> DUKE ENERGY KENTUCKY, INC.
A40: =CASE -> CASE NO. 2022-00372
A41: CONSTRUCTION WORK IN PROGRESS
A42: ="THIRTEEN MONTH AVERAGE AS OF " &RIGHT(Forecast,(LEN(Forecast)-16)) -> THIRTEEN MONTH AVERAGE AS OF JUNE 30, 2024
A46: =DataF -> DATA: BASE PERIOD "X" FORECASTED PERIOD | E46: SCHEDULE B-4
A47: =Type -> TYPE OF FILING: "X" ORIGINAL UPDATED REVISED | E47: PAGE 2 OF 2
A48: WORK PAPER REFERENCE NO(S).: | E48: WITNESS RESPONSIBLE:
E49: =_WIT7 -> G. S. CARPENTER / H. C. DANG
A52: Line | C52: Jurisdic- | E52: Total
A53: No. | B53: Major Property Groupings | C53: tional % | E53: Gross | F53: Jurisdictional
C54: % | E54: $ | F54: $
A56: 1 | B56: Production | C56: 1 | E56: 1978580 | F56: =E56 -> 1978580
A58: =A56+1 -> 2 | B58: Transmission | C58: 1 | E58: 4302094 | F58: =E58 -> 4302094
A60: 3 | B60: Distribution | C60: 1 | E60: 20928792 | F60: =E60 -> 20928792
A62: 4 | B62: General | C62: 1 | E62: 3651152 | F62: =E62 -> 3651152
A64: 5 | B64: Total Common | C64: 1 | E64: 3277729 | F64: =E64 -> 3277729
A66: 6 | B66: =B28 -> 71.36% Common Allocated to Electric | C66: 1 | E66: =ROUND(E64*CommonE,0) -> 2338987 | F66: =E66 -> 2338987
A70: =A66+1 -> 7 | B70: TOTAL ELECTRIC INCLUDING COMMON ALLOCATED | E70: =E56+E58+E60+E62+E66 -> 33199605 | F70: =F56+F58+F60+F62+F66 -> 33199605
A72: Note: The Company is not requesting to include recovery of CWIP in base rates.

Sheet SCH_B5s
A1: =COMPANY -> DUKE ENERGY KENTUCKY, INC.
A2: =CASE -> CASE NO. 2022-00372
A3: ALLOWANCE FOR WORKING CAPITAL
A4: ="AS OF " &RIGHT(TESTYR,(LEN(TESTYR)-16)) -> AS OF FEBRUARY 28, 2023
A5: ="AS OF " &RIGHT(Forecast,(LEN(Forecast)-16)) -> AS OF JUNE 30, 2024
A6: .
A7: =DataB -> DATA: "X" BASE PERIOD "X" FORECASTED PERIOD | M7: SCHEDULE B-5
A8: =Type -> TYPE OF FILING: "X" ORIGINAL UPDATED REVISED | M8: PAGE 1 OF 1
A9: WORK PAPER REFERENCE NO(S).: SEE BELOW | M9: WITNESS RESPONSIBLE:
M10: =_WIT10 -> G. S. CARPENTER
E12: DESCRIPTION OF METHODOLOGY | G12: WORK PAPER | I12: TOTAL COMPANY | M12: JURISDICTIONAL
A13: LINE | E13: USED TO DETERMINE | G13: REFERENCE | I13: BASE | K13: FORECASTED | M13: BASE | O13: FORECASTED
A14: NO. | C14: WORKING CAPITAL COMPONENT | E14: JURISDICTIONAL REQUIREMENT | G14: NUMBER | I14: PERIOD | K14: PERIOD | M14: PERIOD | O14: PERIOD
K16: $ | O16: $
A17: 1 | C17: Cash Element of | E17: Lead / Lag Study | I17: =U65 -> 12170358 | K17: =U114 -> 5424742 | M17: =Y65 -> 12170358 | O17: =Y114 -> 5424742
A18: 2 | C18: Working Capital
A19: 3
A20: 4
A21: 5 | C21: Other Working Capital:
A22: 6 | C22: Fuel Inventory
A23: 7 | C23: Coal | E23: (1) | G23: WPB-5.1h | I23: =U69 -> 16477357 | K23: =U118 -> 16477357 | M23: =Y69 -> 16477357 | O23: =Y118 -> 16477357
A24: 8 | C24: Oil | E24: (1) | G24: WPB-5.1h | I24: =U70 -> 9583208 | K24: =U119 -> 9583208 | M24: =Y70 -> 9583208 | O24: =Y119 -> 9583208
A25: 9 | C25: Natural Gas | E25: (1) | G25: WPB-5.1h | I25: =U71 -> 0 | K25: =U120 -> 0 | M25: =Y71 -> 0 | O25: =Y120 -> 0
A26: 10 | C26: Propane - Woodsdale | E26: (1) | G26: WPB-5.1h | I26: =U72 -> 0 | K26: =U121 -> 0 | M26: =Y72 -> 0 | O26: =Y121 -> 0
A27: 11 | C27: Total Fuel Inventory | I27: =SUM(I23:I26) -> 26060565 | K27: =SUM(K23:K26) -> 26060565 | M27: =SUM(M23:M26) -> 26060565 | O27: =SUM(O23:O26) -> 26060565
A28: 12
A29: 13 | C29: Gas Enricher Liquids | E29: (1) | G29: WPB-5.1b | I29: ='WPB-5''s'!M61 -> 0 | K29: ='WPB-5''s'!M79 -> 0 | M29: 0 | O29: 0
A30: 14
A31: 15 | C31: Gas Stored Underground | E31: (1) | G31: WPB-5.1f | I31: ='WPB-5''s'!BB177 -> 7060122 | K31: ='WPB-5''s'!BB195 -> 7060122.077 | M31: 0 | O31: 0
A32: 16
A33: 17 | C33: Emission Allowances | E33: (1) | G33: WPB-5.1i | I33: =U79 -> 0 | K33: =U128 -> 0 | M33: =Y79 -> 0 | O33: =Y128 -> 0
A34: 18
A35: 19 | C35: Materials and Supplies | E35: (1) | G35: WPB-5.1c | I35: ='WPB-5''s'!AL134 -> 18994569 | K35: ='WPB-5''s'!AL147 -> 18994569 | M35: =Y81 -> 18675789 | O35: =Y130 -> 18675789
A36: 20
A37: 21 | C37: Prepayments | E37: (1) | G37: WPB-5.1e | I37: ='WPB-5''s'!W101 -> 1131657 | K37: ='WPB-5''s'!W109 -> 1131657 | M37: =Y83 -> 497555 | O37: =Y132 -> 497555
A38: 22
A39: 23 | C39: Total Other Working Capital | I39: =I27+I29+I31+I33+I35+I37 -> 53246913 | K39: =K27+K29+K31+K33+K35+K37 -> 53246913.08 | M39: =M27+M29+M31+M33+M35+M37 -> 45233909 | O39: =O27+O29+O31+O33+O35+O37 -> 45233909
A40: 24
A41: 25 | C41: Total Working Capital | I41: =I39+I17 -> 65417271 | K41: =K39+K17 -> 58671655.08 | M41: =M39+M17 -> 57404267 | O41: =O39+O17 -> 50658651
C43: N.C - Not calculated
C45: (1) The Base Period is the ending period balance. The Forecasted Period is a 13 month average balance.
Q46: =LOGO!$B$5 -> DUKE ENERGY KENTUCKY, INC.
Q47: =LOGO!B6 -> CASE NO. 2022-00372
Q48: WORKING CAPITAL COMPONENTS
Q49: ="AS OF " &RIGHT(TESTYR,(LEN(TESTYR)-16)) -> AS OF FEBRUARY 28, 2023
Q52: =Data -> DATA: "X" BASE PERIOD FORECASTED PERIOD | X52: SCHEDULE B-5.1
Q53: =LOGO!$B$15 -> TYPE OF FILING: "X" ORIGINAL UPDATED REVISED | X53: PAGE 1 OF 2
Q54: WORK PAPER REFERENCE NO(S).: WPB-5.1b through WPB-5.1i | X54: WITNESS RESPONSIBLE:
X55: =_WIT10 -> G. S. CARPENTER
U58: END OF BASE PERIOD BALANCE
Q59: LINE | W59: JURISDIC- | Y59: JURISDIC-
Q60: NO. | S60: DESCRIPTION | U60: TOTAL | W60: TIONAL | Y60: TIONAL
U61: COMPANY | W61: % | Y61: AMOUNT
U62: (4) | W62: (5) | Y62: (6)
Q64: 1 | S64: Cash Working Capital:
P65: DALL | Q65: 2 | S65: Lead / Lag Study | U65: 12170358 | W65: =VLOOKUP(P65,ALLOCTABLE,2)/100 -> 1 | Y65: =ROUND(W65*U65,0) -> 12170358
Q66: 3
Q67: 4 | S67: Other Working Capital:
Q68: 5 | S68: Fuel Inventory
P69: DALL | Q69: 6 | S69: Coal | U69: ='WPB-5''s'!CE331+'WPB-5''s'!CF331 -> 16477357 | W69: =VLOOKUP(P69,ALLOCTABLE,2)/100 -> 1 | Y69: =ROUND(W69*U69,0) -> 16477357
P70: DALL | Q70: 7 | S70: Oil | U70: ='WPB-5''s'!CH331 -> 9583208 | W70: =VLOOKUP(P70,ALLOCTABLE,2)/100 -> 1 | Y70: =ROUND(W70*U70,0) -> 9583208
P71: DALL | Q71: 8 | S71: Natural Gas | U71: ='WPB-5''s'!CJ331 -> 0 | W71: =VLOOKUP(P71,ALLOCTABLE,2)/100 -> 1 | Y71: =ROUND(W71*U71,0) -> 0
P72: DALL | Q72: 9 | S72: Propane - Woodsdale | U72: ='WPB-5''s'!CK331 -> 0 | W72: =VLOOKUP(P72,ALLOCTABLE,2)/100 -> 1 | Y72: =ROUND(W72*U72,0) -> 0
Q73: 10 | S73: Total Fuel Inventory | U73: =SUM(U69:U72) -> 26060565 | Y73: =SUM(Y69:Y72) -> 26060565
Q74: 11
P75: DNON | Q75: 12 | S75: Gas Enricher Liquids | U75: ='WPB-5''s'!M61 -> 0 | W75: =VLOOKUP(P75,ALLOCTABLE,2)/100 -> 0 | Y75: =ROUND(W75*U75,0) -> 0
Q76: 13
P77: DNON | Q77: 14 | S77: Gas Stored Underground | U77: ='WPB-5''s'!BB177 -> 7060122 | W77: =VLOOKUP(P77,ALLOCTABLE,2)/100 -> 0 | Y77: =ROUND(W77*U77,0) -> 0
Q78: 15
P79: DEA | Q79: 16 | S79: Emission Allowances | U79: ='WPB-5''s'!CV383 -> 0 | W79: =VLOOKUP(P79,ALLOCTABLE,2)/100 -> 1 | Y79: =ROUND(W79*U79,0) -> 0
Q80: 17
Q81: 18 | S81: Materials and Supplies | U81: ='WPB-5''s'!AL134 -> 18994569 | W81: Computed | Y81: ='WPB-5''s'!AO134 -> 18675789
Q82: 19
Q83: 20 | S83: Prepayments | U83: ='WPB-5''s'!W101 -> 1131657 | W83: Computed | Y83: ='WPB-5''s'!AC101 -> 497555
Q84: 21
Q85: 22 | S85: Total Other Working Capital | U85: =U73+U77+U75+U79+U81+U83 -> 53246913 | Y85: =Y73+Y79+Y81+Y83 -> 45233909
Q86: 23
Q87: 24 | S87: Total Working Capital | U87: =U85+U65 -> 65417271 | Y87: =Y85+Y65 -> 57404267
Q95: =LOGO!$B$5 -> DUKE ENERGY KENTUCKY, INC.
Q96: =CASE -> CASE NO. 2022-00372
Q97: WORKING CAPITAL COMPONENTS
Q98: ="AS OF " &RIGHT(Forecast,(LEN(Forecast)-16)) -> AS OF JUNE 30, 2024
Q101: =DataF -> DATA: BASE PERIOD "X" FORECASTED PERIOD | X101: SCHEDULE B-5.1
Q102: =LOGO!$B$15 -> TYPE OF FILING: "X" ORIGINAL UPDATED REVISED | X102: PAGE 2 OF 2
Q103: WORK PAPER REFERENCE NO(S).: WPB-5.1b through WPB-5.1i | X103: WITNESS RESPONSIBLE:
X104: =_WIT10 -> G. S. CARPENTER
U107: 13 MONTH AVERAGE FOR PERIOD
Q108: LINE | W108: JURISDIC- | Y108: JURISDIC-
Q109: NO. | S109: DESCRIPTION | U109: TOTAL | W109: TIONAL | Y109: TIONAL
U110: COMPANY | W110: % | Y110: AMOUNT
U111: (1) | W111: (2) | Y111: (3)
Q113: 1 | S113: Cash Working Capital:
P114: DALL | Q114: 2 | S114: Lead / Lag Study | U114: 5424742 | W114: =VLOOKUP(P114,ALLOCTABLE,2)/100 -> 1 | Y114: =ROUND(W114*U114,0) -> 5424742
Q115: 3
Q116: 4 | S116: Other Working Capital:
Q117: 5 | S117: Fuel Inventory
P118: DALL | Q118: 6 | S118: Coal | U118: ='WPB-5''s'!CE349+'WPB-5''s'!CF349 -> 16477357 | W118: =VLOOKUP(P118,ALLOCTABLE,2)/100 -> 1 | Y118: =ROUND(W118*U118,0) -> 16477357
P119: DALL | Q119: 7 | S119: Oil | U119: ='WPB-5''s'!CH349 -> 9583208 | W119: =VLOOKUP(P119,ALLOCTABLE,2)/100 -> 1 | Y119: =ROUND(W119*U119,0) -> 9583208
P120: DALL | Q120: 8 | S120: Natural Gas | U120: ='WPB-5''s'!CJ349 -> 0 | W120: =VLOOKUP(P120,ALLOCTABLE,2)/100 -> 1 | Y120: =ROUND(W120*U120,0) -> 0
P121: DALL | Q121: 9 | S121: Propane - Woodsdale | U121: ='WPB-5''s'!CK349 -> 0 | W121: =VLOOKUP(P121,ALLOCTABLE,2)/100 -> 1 | Y121: =ROUND(W121*U121,0) -> 0
Q122: 10 | S122: Total Fuel Inventory | U122: =SUM(U118:U121) -> 26060565 | Y122: =SUM(Y118:Y121) -> 26060565
Q123: 11
P124: DNON | Q124: 12 | S124: Gas Enricher Liquids | U124: ='WPB-5''s'!M79 -> 0 | W124: =VLOOKUP(P124,ALLOCTABLE,2)/100 -> 0 | Y124: =ROUND(W124*U124,0) -> 0
Q125: 13
P126: DNON | Q126: 14 | S126: Gas Stored Underground | U126: ='WPB-5''s'!BB195 -> 7060122.077 | W126: =VLOOKUP(P126,ALLOCTABLE,2)/100 -> 0 | Y126: =ROUND(W126*U126,0) -> 0
Q127: 15
P128: DEA | Q128: 16 | S128: Emission Allowances | U128: ='WPB-5''s'!CV401 -> 0 | W128: =VLOOKUP(P128,ALLOCTABLE,2)/100 -> 1 | Y128: =ROUND(W128*U128,0) -> 0
Q129: 17
Q130: 18 | S130: Materials and Supplies | U130: ='WPB-5''s'!AL147 -> 18994569 | W130: Computed | Y130: ='WPB-5''s'!AR147 -> 18675789
Q131: 19
Q132: 20 | S132: Prepayments | U132: ='WPB-5''s'!W109 -> 1131657 | W132: Computed | Y132: ='WPB-5''s'!AC109 -> 497555
Q133: 21
Q134: 22 | S134: Total Other Working Capital | U134: =U122+U126+U124+U128+U130+U132 -> 53246913.08 | Y134: =Y122+Y124+Y126+Y128+Y130+Y132 -> 45233909
Q135: 23
Q136: 24 | S136: Total Working Capital | U136: =U134+U114 -> 58671655.08 | Y136: =Y134+Y114 -> 50658651

Sheet WPB-5's
I39: =COMPANY -> DUKE ENERGY KENTUCKY, INC. | O39: WPB-5.1b
I40: =DEPT -> ELECTRIC DEPARTMENT | O40: WITNESS RESPONSIBLE:
I41: =CASE -> CASE NO. 2022-00372 | O41: =_WIT10 -> G. S. CARPENTER
I42: GAS ENRICHER LIQUIDS
I43: FOR THE BASE PERIOD AND THE FORECASTED PERIOD
I46: LINE | M46: ACCT 151126 | O46: ALLOCATED
I47: NO. | K47: MONTH | M47: ="AMOUNT (A)" -> AMOUNT (A) | N47: ALLOC. (B) | O47: AMOUNT
M48: $ | N48: %
I49: 1 | K49: Base Period
I50: =1+I49 -> 2 | K50: March 2022 | M50: 0 | N50: =1-0.642 -> 0.358 | O50: =ROUND(M50*N50,0) -> 0
I51: 3 | K51: April | M51: 0 | N51: =$N$50 -> 0.358 | O51: 0
I52: =1+I51 -> 4 | K52: May | M52: 0 | N52: 0.358 | O52: 0
I53: 5 | K53: June | M53: 0 | N53: 0.358 | O53: 0
I54: 6 | K54: July | M54: 0 | N54: 0.358 | O54: 0
I55: 7 | K55: August | M55: 0 | N55: 0.358 | O55: 0
I56: 8 | K56: September | M56: 0 | N56: 0.358 | O56: 0
I57: 9 | K57: October | M57: 0 | N57: 0.358 | O57: 0
I58: 10 | K58: November | M58: 0 | N58: 0.358 | O58: 0
I59: 11 | K59: December | M59: 0 | N59: 0.358 | O59: =ROUND(M59*N59,0) -> 0
I60: 12 | K60: January 2023 | M60: 0 | N60: 0.358 | O60: =ROUND(M60*N60,0) -> 0
I61: 13 | K61: February | M61: 0 | N61: 0.358 | O61: =ROUND(M61*N61,0) -> 0
I62: 14
I63: 15 | K63: Forecasted Period
I64: 16 | K64: June 2023 | M64: 0 | N64: =$N$59 -> 0.358 | O64: =ROUND(M64*N64,0) -> 0
I65: 17 | K65: July | M65: 0 | N65: 0.358 | O65: 0
I66: 18 | K66: August | M66: 0 | N66: 0.358 | O66: 0
I67: 19 | K67: September | M67: 0 | N67: 0.358 | O67: 0
I68: 20 | K68: October | M68: 0 | N68: 0.358 | O68: 0
I69: 21 | K69: November | M69: 0 | N69: 0.358 | O69: 0
I70: 22 | K70: December | M70: 0 | N70: 0.358 | O70: 0
I71: 23 | K71: January 2024 | M71: 0 | N71: 0.358 | O71: 0
I72: 24 | K72: February | M72: 0 | N72: 0.358 | O72: 0
I73: 25 | K73: March | M73: 0 | N73: 0.358 | O73: 0
I74: 26 | K74: April | M74: 0 | N74: 0.358 | O74: 0
I75: 27 | K75: May | M75: 0 | N75: 0.358 | O75: 0
I76: 28 | K76: June | M76: 0 | N76: 0.358 | O76: 0
I77: 29 | K77: Total | M77: =SUM(M64:M76) -> 0 | O77: =SUM(O64:O76) -> 0
I78: 30
I79: 31 | K79: 13 Month Average - Forecasted Period | M79: =ROUND(M77/13,0) -> 0 | O79: =ROUND(O77/13,0) -> 0
K82: (A) Source: Company Records
K83: (B) Percent Applicable to Kentucky Customers.
Q85: =COMPANY -> DUKE ENERGY KENTUCKY, INC. | AB85: WPB-5.1e
Q86: =DEPT -> ELECTRIC DEPARTMENT | AB86: WITNESS RESPONSIBLE:
Q87: =CASE -> CASE NO. 2022-00372 | AB87: =_WIT10 -> G. S. CARPENTER
Q88: PREPAYMENTS
Q89: FOR THE BASE PERIOD AND THE FORECASTED PERIOD
X91: ALLOC. TO | AA91: JURIS.
Q92: LINE | W92: TOTAL | X92: ELEC DEPT. | AA92: ALLOCATION | AC92: JURISDIC.
Q93: NO. | S93: DESCRIPTION | W93: COMPANY (1) | X93: % | Z93: AMOUNT | AA93: CODE | AB93: % | AC93: AMOUNT
Q95: 1 | R95: Base Period - Ending Balance
Q96: 2 | S96: KPSC Maintenance Tax - Gas | W96: =$BX$279 -> 133745 | X96: 0 | Z96: =ROUND(W96*X96,0) -> 0 | AA96: DNON | AB96: =VLOOKUP(AA96,ALLOCTABLE,2) -> 0 | AC96: =ROUND(Z96*(AB96/100),0) -> 0
Q97: 3 | S97: KPSC Maintenance Tax - Elec | W97: =$BY$279 -> 463212 | X97: 1 | Z97: 463212 | AA97: DNON | AB97: 0 | AC97: 0
Q98: =Q97+1 -> 4 | S98: Inter-Co Prepaid Insurance - Elec | W98: =$BV$279 -> 515438 | X98: 1 | Z98: 515438 | AA98: DALL | AB98: 100 | AC98: 515438
Q99: =Q98+1 -> 5 | S99: Inter-Co Prepaid Insurance - Gas | W99: =$BW$279 -> 37145 | X99: 0 | Z99: 0 | AA99: DALL | AB99: 100 | AC99: 0
Q100: 6 | S100: Collateral Asset | W100: =$BZ$279 -> -17883 | X100: 1 | Z100: -17883 | AA100: DALL | AB100: 100 | AC100: -17883
Q101: 7 | S101: Total | W101: =SUM(W96:W100) -> 1131657 | Z101: =SUM(Z96:Z100) -> 960767 | AC101: =SUM(AC96:AC100) -> 497555
Q102: 8
Q103: 9 | R103: Forecasted Period - 13 Month Average Balance
Q104: 10 | S104: KPSC Maintenance Tax - Gas | W104: =$BX$297 -> 133745 | X104: =X96 -> 0 | Z104: =ROUND(W104*X104,0) -> 0 | AA104: =AA96 -> DNON | AB104: =VLOOKUP(AA104,ALLOCTABLE,2) -> 0 | AC104: =ROUND(Z104*(AB104/100),0) -> 0
Q105: 11 | S105: KPSC Maintenance Tax - Elec | W105: =$BY$297 -> 463212 | X105: =X97 -> 1 | Z105: 463212 | AA105: =AA97 -> DNON | AB105: 0 | AC105: 0
Q106: 12 | S106: Inter-Co Prepaid Insurance - Elec | W106: =$BV$297 -> 515438 | X106: =X98 -> 1 | Z106: 515438 | AA106: =AA98 -> DALL | AB106: 100 | AC106: 515438
Q107: 13 | S107: Inter-Co Prepaid Insurance - Gas | W107: =$BW$297 -> 37145 | X107: =X99 -> 0 | Z107: 0 | AA107: =AA99 -> DALL | AB107: 100 | AC107: 0
Q108: 14 | S108: Collateral Asset | W108: =$BZ$297 -> -17883 | X108: =X100 -> 1 | Z108: -17883 | AA108: =AA100 -> DALL | AB108: 100 | AC108: -17883
Q109: 15 | S109: Total | W109: =SUM(W104:W108) -> 1131657 | Z109: =SUM(Z104:Z108) -> 960767 | AC109: =SUM(AC104:AC108) -> 497555
AG114: =COMPANY -> DUKE ENERGY KENTUCKY, INC. | AQ114: WPB-5.1c
AG115: =DEPT -> ELECTRIC DEPARTMENT | AQ115: WITNESS RESPONSIBLE:
AG116: =CASE -> CASE NO. 2022-00372 | AQ116: =_WIT10 -> G. S. CARPENTER
AG117: DETAIL OF MATERIALS AND SUPPLIES
AG118: FOR THE BASE PERIOD AND THE FORECASTED PERIOD
AG121: LINE | AL121: DE-KENTUCKY | AM121: ALLOCATED TO ELEC DEPT | AP121: ALLOCATED TO JURISDICTION
AG122: NO. | AI122: ACCOUNT NO. and DESCRIPTION | AL122: INVENTORY (A) | AM122: % | AO122: AMOUNT | AP122: ALLOC CODE | AQ122: % | AR122: AMOUNT
AL123: $ | AO123: $ | AR123: $
AG124: 1 | AI124: Base Period - Ending Balance
AG125: 2 | AI125: 154100 | AJ125: M&S Inventory - Gas | AL125: =BI227 -> 307225 | AM125: 0 | AO125: =ROUND(AL125*AM125,0) -> 0 | AP125: DALL | AQ125: =VLOOKUP(AP125,ALLOCTABLE,2) -> 100 | AR125: =ROUND(AO125*(AQ125/100),0) -> 0
AG126: 3 | AI126: 154100 | AJ126: M&S Inventory - Electric | AL126: =BK227 -> 15732673 | AM126: 1 | AO126: 15732673 | AP126: DALL | AQ126: 100 | AR126: 15732673
AG127: 4 | AI127: 154200 | AJ127: Limestone Inventory - Electric | AL127: =BL227 -> 2440032 | AM127: 1 | AO127: 2440032 | AP127: DALL | AQ127: 100 | AR127: 2440032
AG128: 5 | AI128: 154410 | AJ128: Working Stock - Gas | AL128: =BJ226 -> 122293 | AM128: 0 | AO128: =ROUND(AL128*AM128,0) -> 0 | AP128: DALL | AQ128: =VLOOKUP(AP128,ALLOCTABLE,2) -> 100 | AR128: =ROUND(AO128*(AQ128/100),0) -> 0
AG129: 6 | AI129: 154410 | AJ129: Working Stock - Electric | AL129: =BM227 -> 40843 | AM129: 1 | AO129: 40843 | AP129: DALL | AQ129: 100 | AR129: =ROUND(AO129*(AQ129/100),0) -> 40843
AG130: 7 | AI130: 154990 | AJ130: Sch. M Inventory Surplus - Cr | AL130: =BN227 -> 0 | AM130: 1 | AO130: 0 | AP130: DALL | AQ130: 100 | AR130: =ROUND(AO130*(AQ130/100),0) -> 0
AG131: 8 | AL131: =SUM(AL125:AL130) -> 18643066 | AO131: =SUM(AO125:AO130) -> 18213548 | AR131: =SUM(AR125:AR130) -> 18213548
AG132: 9 | AI132: 163110 | AJ132: Stores Expense - Gas | AL132: =BO227 -> -110738 | AM132: 0 | AO132: =ROUND(AL132*AM132,0) -> 0 | AP132: DALL | AQ132: =VLOOKUP(AP132,ALLOCTABLE,2) -> 100 | AR132: =ROUND(AO132*(AQ132/100),0) -> 0
AG133: 10 | AI133: 163110 | AJ133: Stores Expense - Electric | AL133: =BP227 -> 462241 | AM133: 1 | AO133: =ROUND(AL133*AM133,0) -> 462241 | AP133: DALL | AQ133: =VLOOKUP(AP133,ALLOCTABLE,2) -> 100 | AR133: =ROUND(AO133*(AQ133/100),0) -> 462241
AG134: 11 | AI134: Total | AL134: =SUM(AL131:AL133) -> 18994569 | AO134: =SUM(AO131:AO133) -> 18675789 | AR134: =SUM(AR131:AR133) -> 18675789
AG135: 12
AG136: 13 | AI136: Forecasted Period - 13 Month Average Balance
AG137: 14
AG138: 15 | AI138: 154100 | AJ138: M&S Inventory - Gas | AL138: =BI$245 -> 307225 | AM138: =AM125 -> 0 | AO138: =ROUND(AL138*AM138,0) -> 0 | AP138: DALL | AQ138: =VLOOKUP(AP138,ALLOCTABLE,2) -> 100 | AR138: =ROUND(AO138*(AQ138/100),0) -> 0
AG139: 16 | AI139: 154100 | AJ139: M&S Inventory - Electric | AL139: =BK$245 -> 15732673 | AM139: 1 | AO139: 15732673 | AP139: DALL | AQ139: 100 | AR139: 15732673
AG140: 17 | AI140: 154200 | AJ140: Limestone Inventory - Electric | AL140: =BL$245 -> 2440032 | AM140: 1 | AO140: 2440032 | AP140: DALL | AQ140: 100 | AR140: 2440032
AG141: 18 | AI141: 154410 | AJ141: Working Stock - Gas | AL141: =BJ$245 -> 122293 | AM141: 0 | AO141: =ROUND(AL141*AM141,0) -> 0 | AP141: DALL | AQ141: =VLOOKUP(AP141,ALLOCTABLE,2) -> 100 | AR141: =ROUND(AO141*(AQ141/100),0) -> 0
AG142: 19 | AI142: 154410 | AJ142: Working Stock - Electric | AL142: =BM$245 -> 40843 | AM142: 1 | AO142: 40843 | AP142: DALL | AQ142: 100 | AR142: 40843
AG143: 20 | AI143: 154990 | AJ143: Sch. M Inventory Surplus - Cr | AL143: =BN$245 -> 0 | AM143: 1 | AO143: 0 | AP143: DALL | AQ143: 100 | AR143: 0
AG144: 21 | AL144: =SUM(AL138:AL143) -> 18643066 | AO144: =SUM(AO138:AO143) -> 18213548 | AR144: =SUM(AR138:AR143) -> 18213548
AG145: 22 | AI145: 163110 | AJ145: Stores Expense - Gas | AL145: =BO$245 -> -110738 | AM145: =AM132 -> 0 | AO145: =ROUND(AL145*AM145,0) -> 0 | AP145: DALL | AQ145: =VLOOKUP(AP145,ALLOCTABLE,2) -> 100 | AR145: =ROUND(AO145*(AQ145/100),0) -> 0
AG146: 23 | AI146: 163110 | AJ146: Stores Expense - Electric | AL146: =BP$245 -> 462241 | AM146: =AM133 -> 1 | AO146: =ROUND(AL146*AM146,0) -> 462241 | AP146: DALL | AQ146: =VLOOKUP(AP146,ALLOCTABLE,2) -> 100 | AR146: =ROUND(AO146*(AQ146/100),0) -> 462241
AG147: 24 | AI147: Total | AL147: =SUM(AL144:AL146) -> 18994569 | AO147: =SUM(AO144:AO146) -> 18675789 | AR147: =SUM(AR144:AR146) -> 18675789
AV155: =COMPANY -> DUKE ENERGY KENTUCKY, INC. | BB155: WPB-5.1f
AV156: =DEPT -> ELECTRIC DEPARTMENT | BB156: WITNESS RESPONSIBLE:
AV157: =CASE -> CASE NO. 2022-00372 | BB157: =_WIT10 -> G. S. CARPENTER
AV158: NATURAL GAS STORAGE BALANCE (ACCT NOS. 164100 & 174273)
AV159: FOR THE BASE PERIOD AND THE FORECASTED PERIOD
AV162: LINE
AV163: NO. | AW163: MONTH | BB163: AMOUNT (A)
BB164: $
AV165: 1 | AW165: Base Period
AV166: 2 | AW166: =K50 -> March 2022 | BB166: 1008360
AV167: =1+AV166 -> 3 | AW167: April | BB167: 2050721
AV168: 4 | AW168: May | BB168: 3023868
AV169: 5 | AW169: June | BB169: 4662829
AV170: 6 | AW170: July | BB170: 5870680
AV171: 7 | AW171: August | BB171: 7060122
AV172: 8 | AW172: September | BB172: 7060122
AV173: 9 | AW173: October | BB173: 7060122
AV174: 10 | AW174: November | BB174: 7060122
AV175: 11 | AW175: December | BB175: 7060122
AV176: 12 | AW176: January 2023 | BB176: 7060122
AV177: 13 | AW177: February | BB177: 7060122
AV178: 14
AV179: 15 | AW179: Forecasted Period
AV180: 16 | AW180: =K64 -> June 2023 | BB180: 7060122
AV181: 17 | AW181: July | BB181: 7060122
AV182: 18 | AW182: August | BB182: 7060122
AV183: 19 | AW183: September | BB183: 7060122
AV184: 20 | AW184: October | BB184: 7060122
AV185: 21 | AW185: November | BB185: 7060122
AV186: 22 | AW186: December | BB186: 7060122
AV187: 23 | AW187: January 2024 | BB187: 7060122
AV188: 24 | AW188: February | BB188: 7060122
AV189: 25 | AW189: March | BB189: 7060122
AV190: 26 | AW190: April | BB190: 7060122
AV191: 27 | AW191: May | BB191: 7060122
AV192: 28 | AW192: June | BB192: 7060122
AV193: 29 | AW193: Total | BB193: =SUM(BB180:BB192)+1 -> 91781587
AV194: 30
AV195: 31 | AW195: Thirteen Month Average Balance | BB195: =BB193/13 -> 7060122.077
AW201: (A) Company Records
BF205: =COMPANY -> DUKE ENERGY KENTUCKY, INC. | BO205: WPB-5.1d
BF206: =DEPT -> ELECTRIC DEPARTMENT | BO206: PAGE 1 OF 1
BF207: =CASE -> CASE NO. 2022-00372 | BO207: WITNESS RESPONSIBLE:
BF208: MATERIAL & SUPPLIES | BO208: =_WIT10 -> G. S. CARPENTER
BF209: FOR THE BASE PERIOD AND THE FORECASTED PERIOD
BF212: LINE | BI212: ACCOUNT | BJ212: ACCOUNT | BK212: ACCOUNT | BL212: ACCOUNT | BM212: ACCOUNT | BN212: ACCOUNT | BO212: ACCOUNT | BP212: ACCOUNT
BF213: NO. | BG213: MONTH | BI213: 154100 - Gas | BJ213: 154410 - Gas | BK213: 154100 - Elec | BL213: 154200 - Elec | BM213: 154410 - Elec | BN213: 154990 - Elec | BO213: 163110 - Gas | BP213: 163110 - Elec
BI214: $ | BJ214: $ | BK214: $ | BL214: $ | BM214: $ | BN214: $ | BO214: $ | BP214: $
BF215: 1 | BG215: Base Period
BF216: 2 | BG216: =AW166 -> March 2022 | BI216: 305173 | BJ216: 101781 | BK216: 14317347 | BL216: 2601894 | BM216: 26192 | BN216: 0 | BO216: 93409 | BP216: -120435
BF217: =1+BF216 -> 3 | BG217: April | BI217: 278413 | BJ217: 105436 | BK217: 15603481 | BL217: 2219061 | BM217: 26192 | BN217: 0 | BO217: 90497 | BP217: -143361
BF218: 4 | BG218: May | BI218: 302531 | BJ218: 111171 | BK218: 15791812 | BL218: 2407663 | BM218: 26192 | BN218: 0 | BO218: 80861 | BP218: 14805
BF219: 5 | BG219: June | BI219: 282327 | BJ219: 113775 | BK219: 15747261 | BL219: 2260629 | BM219: 36494 | BN219: 0 | BO219: -108726 | BP219: 31030
BF220: 6 | BG220: July | BI220: 264590 | BJ220: 118419 | BK220: 15683544 | BL220: 2435282 | BM220: 37236 | BN220: 0 | BO220: -124782 | BP220: 240185
BF221: 7 | BG221: August | BI221: 307225 | BJ221: 122293 | BK221: 15732673 | BL221: 2440032 | BM221: 40843 | BN221: 0 | BO221: -110738 | BP221: 462241
BF222: 8 | BG222: September | BI222: 307225 | BJ222: 122293 | BK222: 15732673 | BL222: 2440032 | BM222: 40843 | BN222: 0 | BO222: -110738 | BP222: 462241
BF223: 9 | BG223: October | BI223: 307225 | BJ223: 122293 | BK223: 15732673 | BL223: 2440032 | BM223: 40843 | BN223: 0 | BO223: -110738 | BP223: 462241
BF224: 10 | BG224: November | BI224: 307225 | BJ224: 122293 | BK224: 15732673 | BL224: 2440032 | BM224: 40843 | BN224: 0 | BO224: -110738 | BP224: 462241
BF225: 11 | BG225: December | BI225: 307225 | BJ225: 122293 | BK225: 15732673 | BL225: 2440032 | BM225: 40843 | BN225: 0 | BO225: -110738 | BP225: 462241
BF226: 12 | BG226: January 2023 | BI226: 307225 | BJ226: 122293 | BK226: 15732673 | BL226: 2440032 | BM226: 40843 | BN226: 0 | BO226: -110738 | BP226: 462241
BF227: 13 | BG227: February | BI227: 307225 | BJ227: 122293 | BK227: 15732673 | BL227: 2440032 | BM227: 40843 | BN227: 0 | BO227: -110738 | BP227: 462241
BF228: 14
BF229: 15 | BG229: Forecasted Period
BF230: 16 | BG230: =AW180 -> June 2023 | BI230: 307225 | BJ230: 122293 | BK230: 15732673 | BL230: 2440032 | BM230: 40843 | BN230: 0 | BO230: -110738 | BP230: 462241
BF231: 17 | BG231: July | BI231: 307225 | BJ231: 122293 | BK231: 15732673 | BL231: 2440032 | BM231: 40843 | BN231: 0 | BO231: -110738 | BP231: 462241
BF232: 18 | BG232: August | BI232: 307225 | BJ232: 122293 | BK232: 15732673 | BL232: 2440032 | BM232: 40843 | BN232: 0 | BO232: -110738 | BP232: 462241
BF233: 19 | BG233: September | BI233: 307225 | BJ233: 122293 | BK233: 15732673 | BL233: 2440032 | BM233: 40843 | BN233: 0 | BO233: -110738 | BP233: 462241
BF234: 20 | BG234: October | BI234: 307225 | BJ234: 122293 | BK234: 15732673 | BL234: 2440032 | BM234: 40843 | BN234: 0 | BO234: -110738 | BP234: 462241
BF235: 21 | BG235: November | BI235: 307225 | BJ235: 122293 | BK235: 15732673 | BL235: 2440032 | BM235: 40843 | BN235: 0 | BO235: -110738 | BP235: 462241
BF236: 22 | BG236: December | BI236: 307225 | BJ236: 122293 | BK236: 15732673 | BL236: 2440032 | BM236: 40843 | BN236: 0 | BO236: -110738 | BP236: 462241
BF237: 23 | BG237: January 2024 | BI237: 307225 | BJ237: 122293 | BK237: 15732673 | BL237: 2440032 | BM237: 40843 | BN237: 0 | BO237: -110738 | BP237: 462241
BF238: 24 | BG238: February | BI238: 307225 | BJ238: 122293 | BK238: 15732673 | BL238: 2440032 | BM238: 40843 | BN238: 0 | BO238: -110738 | BP238: 462241
BF239: 25 | BG239: March | BI239: 307225 | BJ239: 122293 | BK239: 15732673 | BL239: 2440032 | BM239: 40843 | BN239: 0 | BO239: -110738 | BP239: 462241
BF240: 26 | BG240: April | BI240: 307225 | BJ240: 122293 | BK240: 15732673 | BL240: 2440032 | BM240: 40843 | BN240: 0 | BO240: -110738 | BP240: 462241
BF241: 27 | BG241: May | BI241: 307225 | BJ241: 122293 | BK241: 15732673 | BL241: 2440032 | BM241: 40843 | BN241: 0 | BO241: -110738 | BP241: 462241
BF242: 28 | BG242: June | BI242: 307225 | BJ242: 122293 | BK242: 15732673 | BL242: 2440032 | BM242: 40843 | BN242: 0 | BO242: -110738 | BP242: 462241
BF243: 29 | BG243: Total | BI243: =SUM(BI230:BI242) -> 3993925 | BJ243: =SUM(BJ230:BJ242) -> 1589809 | BK243: 204524749 | BL243: 31720416 | BM243: =SUM(BM230:BM242) -> 530959 | BN243: 0 | BO243: -1439594 | BP243: 6009133
BF244: 30
BF245: 31 | BG245: Thirteen Month Average Balance | BI245: =BI243/13 -> 307225 | BJ245: =BJ243/13 -> 122293 | BK245: 15732673 | BL245: 2440032 | BM245: =BM243/13 -> 40843 | BN245: 0 | BO245: -110738 | BP245: 462241
BI247: | | BJ247: | | BK247: | | BL247: | | BM247: | | BN247: | | BO247: | | BP247: |
BI248: V | BJ248: V | BK248: V | BL248: V | BM248: V | BN248: V | BO248: V | BP248: V
BI249: To WPB-5.1c | BJ249: To WPB-5.1c | BK249: To WPB-5.1c | BL249: To WPB-5.1c | BM249: To WPB-5.1c | BN249: To WPB-5.1c | BO249: To WPB-5.1c | BP249: To WPB-5.1c
BG252: Note: Source is Company general ledger.
BS255: =COMPANY -> DUKE ENERGY KENTUCKY, INC. | BY255: WPB-5.1g
BS256: =DEPT -> ELECTRIC DEPARTMENT | BY256: WITNESS RESPONSIBLE:
BS257: =CASE -> CASE NO. 2022-00372 | BY257: =_WIT10 -> G. S. CARPENTER
BS258: PREPAYMENTS
BS259: FOR THE BASE PERIOD AND THE FORECASTED PERIOD
BV263: Prepaid | BW263: Prepaid | BX263: Public Utility | BY263: Public Utility | BZ263: Collateral Asset
BS264: LINE | BV264: Insurance - Elec | BW264: Insurance - Gas | BX264: Fees - Gas | BY264: Fees - Elec | BZ264: Elec
BS265: NO. | BT265: MONTH | BV265: 165075 (A) | BW265: 165075 (A) | BX265: 165400 (A) | BY265: 165400 (A) | BZ265: 165520 (A)
BV266: $ | BW266: $ | BX266: $ | BY266: $ | BZ266: $
BS267: 1 | BT267: Base Period
BS268: 2 | BT268: =AW166 -> March 2022 | BV268: 1159736 | BW268: 83576 | BX268: 45789 | BY268: 166120 | BZ268: -39230
BS269: =1+BS268 -> 3 | BT269: April | BV269: 1030877 | BW269: 74290 | BX269: 30526 | BY269: 112137 | BZ269: 375128
BS270: 4 | BT270: May | BV270: 902017 | BW270: 65004 | BX270: 15263 | BY270: 56763 | BZ270: 649791
BS271: 5 | BT271: June | BV271: 773157 | BW271: 55718 | BX271: 160494 | BY271: 555855 | BZ271: -17627
BS272: 6 | BT272: July | BV272: 644298 | BW272: 46431 | BX272: 147119 | BY272: 509534 | BZ272: -17883
BS273: 7 | BT273: August | BV273: 515438 | BW273: 37145 | BX273: 133745 | BY273: 463212 | BZ273: -17883
BS274: 8 | BT274: September | BV274: 515438 | BW274: 37145 | BX274: 133745 | BY274: 463212 | BZ274: -17883
BS275: 9 | BT275: October | BV275: 515438 | BW275: 37145 | BX275: 133745 | BY275: 463212 | BZ275: -17883
BS276: 10 | BT276: November | BV276: 515438 | BW276: 37145 | BX276: 133745 | BY276: 463212 | BZ276: -17883
BS277: 11 | BT277: December | BV277: 515438 | BW277: 37145 | BX277: 133745 | BY277: 463212 | BZ277: -17883
BS278: 12 | BT278: January 2023 | BV278: 515438 | BW278: 37145 | BX278: 133745 | BY278: 463212 | BZ278: -17883
... 110 more rows

Sheet SCH_B6
A1: =COMPANY -> DUKE ENERGY KENTUCKY, INC.
A2: =CASE -> CASE NO. 2022-00372
A3: CERTAIN DEFERRED CREDITS AND ACCUMULATED DEFERRED INCOME TAXES
A4: ="AS OF " &RIGHT(TESTYR,(LEN(TESTYR)-16)) -> AS OF FEBRUARY 28, 2023
A5: .
A8: =Data -> DATA: "X" BASE PERIOD FORECASTED PERIOD | O8: SCHEDULE B-6
A9: =Type -> TYPE OF FILING: "X" ORIGINAL UPDATED REVISED | O9: PAGE 1 OF 2
A10: WORK PAPER REFERENCE NO(S).: WPB-6a | O10: WITNESS RESPONSIBLE:
O11: =_WIT3 -> J. R. PANIZZA
P13: ADJUSTED
A14: LINE | C14: ACCOUNT | G14: TOTAL | I14: JURISDICTIONAL | L14: JURIS. | P14: JURIS.
A15: NO. | C15: NUMBER | E15: DESCRIPTION | G15: COMPANY | I15: CODE | J15: % | L15: AMOUNT | N15: ADJUSTMENT | P15: AMOUNT
G17: (1) | I17: (2) | L17: (3) | N17: (4) | P17: (5)
A19: 1 | C19: 255 | E19: Investment Tax Credits: (A)
A20: =A19+1 -> 2 | F20: 3% Credit | G20: 0 | I20: DALL | J20: =VLOOKUP(I20,ALLOCTABLE,2) -> 100 | L20: =ROUND(G20*(J20/100),0) -> 0 | N20: 0 | O20: (E) | P20: =L20+N20 -> 0
A21: =A20+1 -> 3 | F21: 4% Credit | G21: ='WPB-6''s'!L45 -> 0 | I21: DALL | J21: =VLOOKUP(I21,ALLOCTABLE,2) -> 100 | L21: =ROUND(G21*(J21/100),0) -> 0 | N21: =-L21 -> 0 | O21: (E) | P21: =L21+N21 -> 0
A22: 4 | F22: 10% Credit | G22: ='WPB-6''s'!L46 -> 0 | I22: DALL | J22: =VLOOKUP(I22,ALLOCTABLE,2) -> 100 | L22: =ROUND(G22*(J22/100),0) -> 0 | N22: =-L22 -> 0 | O22: (E) | P22: =L22+N22 -> 0
A23: 5 | F23: 30% Credit | G23: ='WPB-6''s'!L47 -> -3235578 | I23: DALL | J23: =VLOOKUP(I23,ALLOCTABLE,2) -> 100 | L23: =ROUND(G23*(J23/100),0) -> -3235578 | N23: =-L23 -> 3235578 | O23: (E) | P23: =L23+N23 -> 0
A24: 6 | E24: Total Investment Tax Credits | G24: =SUM(G19:G23) -> -3235578 | L24: =SUM(L19:L23) -> -3235578 | N24: =SUM(N19:N23) -> 3235578 | P24: =SUM(P19:P23) -> 0 | Q24: (B)
A25: 7
A26: 8 | C26: 190, 281, | E26: Deferred Income Taxes:
A27: 9 | C27: 282, 283 | E27: Total Deferred Income Taxes | G27: ='WPB-6''s'!L56 -> -207679505 | I27: DALL | J27: =VLOOKUP(I27,ALLOCTABLE,2) -> 100 | L27: =ROUND(G27*(J27/100),0) -> -207679505 | N27: 0 | P27: =L27+N27 -> -207679505 | Q27: (C)
A28: =A27+1 -> 10
A29: =A28+1 -> 11 | C29: 254 | E29: Total Regulatory Liability - Excess Deferred Taxes | G29: ='WPB-6''s'!L61 -> -55148883 | I29: DALL | J29: 100 | L29: =ROUND(G29*(J29/100),0) -> -55148883 | N29: 0 | P29: =L29+N29 -> -55148883 | Q29: (D)
B32: Sources:
C33: (A) The company elected the ratable flow through option in 1971 as provided under Section 46(f)(2).
C34: (B) Included on Schedule B-1 as Investment Tax Credits, Line 9.
C35: (C) Included on Schedule B-1 as Deferred Income Taxes, Line 10.
C36: (D) Included on Schedule B-1 as Excess Deferred Income Taxes, Line 11.
C37: (E) Excluded from Rate Base.
C39: Note:
C40: - Amounts are electric only
C41: - Non-cash transactions not included in these amounts
A44: =COMPANY -> DUKE ENERGY KENTUCKY, INC.
A45: =CASE -> CASE NO. 2022-00372
A46: CERTAIN DEFERRED CREDITS AND ACCUMULATED DEFERRED INCOME TAXES
A47: ="AS OF " &RIGHT(Forecast,(LEN(Forecast)-16)) -> AS OF JUNE 30, 2024
A51: =DataF -> DATA: BASE PERIOD "X" FORECASTED PERIOD | O51: SCHEDULE B-6
A52: =Type -> TYPE OF FILING: "X" ORIGINAL UPDATED REVISED | O52: PAGE 2 OF 2
A53: WORK PAPER REFERENCE NO(S).: WPB-6b, WPB-6c | O53: WITNESS RESPONSIBLE:
O54: =_WIT3 -> J. R. PANIZZA
G56: 13 MONTH
G57: AVERAGE | P57: ADJUSTED
A58: LINE | C58: ACCOUNT | G58: FORECAST | I58: JURISDICTIONAL | L58: JURIS. | P58: JURIS.
A59: NO. | C59: NUMBER | E59: DESCRIPTION | G59: PERIOD | I59: CODE | J59: % | L59: AMOUNT | N59: ADJUSTMENT | P59: AMOUNT
G61: (1) | I61: (2) | L61: (3) | N61: (4) | P61: (5)
A63: 1 | C63: 255 | E63: Investment Tax Credits: (A)
A64: 2 | F64: 3% Credit | G64: ='WPB-6''s'!T128 -> 0 | I64: DALL | J64: =VLOOKUP(I64,ALLOCTABLE,2) -> 100 | L64: =ROUND(G64*(J64/100),0) -> 0 | N64: 0 | P64: =L64+N64 -> 0
A65: 3 | F65: 4% Credit | G65: ='WPB-6''s'!T129 -> 0 | I65: DALL | J65: =VLOOKUP(I65,ALLOCTABLE,2) -> 100 | L65: =ROUND(G65*(J65/100),0) -> 0 | N65: =-L65 -> 0 | O65: (D) | P65: =L65+N65 -> 0
A66: 4 | F66: 10% Credit | G66: ='WPB-6''s'!T130 -> 0 | I66: DALL | J66: =VLOOKUP(I66,ALLOCTABLE,2) -> 100 | L66: =ROUND(G66*(J66/100),0) -> 0 | N66: =-L66 -> 0 | O66: (D) | P66: =L66+N66 -> 0
A67: 5 | F67: 30% Credit | G67: ='WPB-6''s'!T131 -> -3235578 | I67: DALL | J67: =VLOOKUP(I67,ALLOCTABLE,2) -> 100 | L67: =ROUND(G67*(J67/100),0) -> -3235578 | N67: =-L67 -> 3235578 | O67: (D) | P67: =L67+N67 -> 0
A68: 6 | E68: Total Investment Tax Credits | G68: =SUM(G63:G67) -> -3235578 | L68: =SUM(L63:L67) -> -3235578 | N68: =SUM(N63:N67) -> 3235578 | P68: =SUM(P63:P67) -> 0 | Q68: (B)
A69: 7
A70: 8 | E70: Deferred Income Taxes:
A71: 9 | C71: 190, 282, 283 | E71: Total Deferred Income Taxes | G71: ='WPB-6''s'!T145+'WPB-6''s'!T140 -> -214360898 | I71: DALL | J71: =VLOOKUP(I71,ALLOCTABLE,2) -> 100 | L71: =ROUND(G71*(J71/100),0) -> -214360898 | N71: ='WPB-6''s'!AB259 -> 1500712 | O71: (E) | P71: =L71+N71 -> -212860186 | Q71: (C)
A72: 10
A73: 11 | C73: 254 | E73: Total Regulatory Liability - Excess Deferred Taxes | G73: ='WPB-6''s'!T155+'WPB-6''s'!T149 -> -51319334 | I73: DALL | J73: =VLOOKUP(I73,ALLOCTABLE,2) -> 100 | L73: =ROUND(G73*(J73/100),0) -> -51319334 | N73: 0 | P73: =L73+N73 -> -51319334 | Q73: (F)
B77: Sources:
C78: (A) The company elected the ratable flow through option in 1971 as provided under Section 46(f)(2).
C79: (B) Included on Schedule B-1 as Investment Tax Credits, Line 9.
C80: (C) Included on Schedule B-1 as Deferred Income Taxes, Line 10.
C81: (D) Excluded from Rate Base.
C82: (E) Adjustment to eliminate ADIT for items not included in rate base.
C83: (F) Included on Schedule B-1 as Excess Deferred Income Taxes, Line 11.
C85: Note:
C86: - Amounts are electric only
C87: - Non-cash transactions not included in these amounts

Sheet WPB-6's
A1: =COMPANY -> DUKE ENERGY KENTUCKY, INC. | K1: WPB-6a
A2: =CASE -> CASE NO. 2022-00372 | K2: WITNESS RESPONSIBLE:
A3: CERTAIN DEFERRED CREDITS AND ACCUMULATED DEFERRED INCOME TAXES | K3: =_WIT3 -> J. R. PANIZZA
A4: =Data -> DATA: "X" BASE PERIOD FORECASTED PERIOD
A5: END OF MONTH BALANCES
A6: .
A12: LINE | C12: ACCOUNT | F12: AUGUST | G12: SEPTEMBER | H12: OCTOBER | I12: NOVEMBER | J12: DECEMBER | K12: JANUARY | L12: FEBRUARY | N12: MARCH | O12: APRIL | P12: MAY | Q12: JUNE
A13: NO. | C13: NUMBER | E13: DESCRIPTION | F13: 2022 | G13: =$F$13 -> 2022 | H13: =$F$13 -> 2022 | I13: 2022 | J13: 2022 | K13: 2023 | L13: =$K$13 -> 2023 | N13: =$K$13 -> 2023 | O13: =$K$13 -> 2023 | P13: =O13 -> 2023 | Q13: =O13 -> 2023
A16: 1 | C16: GAS
A17: 2 | C17: 252050 | E17: Customers' Advances for Construction | F17: -1855906 | G17: =F17 -> -1855906 | H17: -1855906 | I17: -1855906 | J17: -1855906 | K17: -1855906 | L17: -1855906 | N17: =L17 -> -1855906 | O17: =N17 -> -1855906 | P17: =O17 -> -1855906 | Q17: =P17 -> -1855906
A18: 3
A19: 4 | C19: 255 | E19: Investment Tax Credits:
A20: 5 | E20: 3% Credit | F20: 0 | G20: 0 | H20: 0 | I20: 0 | J20: 0 | K20: 0 | L20: 0 | N20: 0 | O20: 0 | P20: 0 | Q20: 0
A21: 6 | E21: 4% Credit | F21: -441 | G21: -221 | H21: -147 | I21: -74 | J21: 0 | K21: 0 | L21: 0 | N21: 0 | O21: 0 | P21: 0 | Q21: 0
A22: 7 | E22: 10% Credit | F22: -226290 | G22: -177639 | H22: -161422 | I22: -145205 | J22: -128988 | K22: -112771 | L22: -96553 | N22: -80336 | O22: -64119 | P22: -47902 | Q22: -31685
A23: 8 | E23: 30% Credit | F23: 0 | G23: 0 | H23: 0 | I23: 0 | J23: 0 | K23: 0 | L23: 0 | N23: 0 | O23: 0 | P23: 0 | Q23: 0
A24: 9 | E24: Total Investment Tax Credits | F24: =SUM(F20:F23) -> -226731 | G24: =SUM(G20:G23) -> -177860 | H24: -161569 | I24: -145279 | J24: -128988 | K24: -112771 | L24: -96553 | N24: -80336 | O24: =SUM(O20:O23) -> -64119 | P24: =SUM(P20:P23) -> -47902 | Q24: =SUM(Q20:Q23) -> -31685
A25: 10
A26: 11 | E26: Accumulated Deferred Income Taxes:
A27: 12 | C27: 190 | E27: Total Account 190 | F27: 5087403 | G27: 4599556 | H27: 4599556 | I27: 4599556 | J27: 4599556 | K27: 4599556 | L27: 4599556 | N27: 4599556 | O27: 4599556 | P27: 4599556 | Q27: 4599556
A28: 13
A29: 14 | C29: 282 | E29: Account 282 - Other | F29: -9948780 | G29: -9914762 | H29: -9881023 | I29: -9842835 | J29: -9816303 | K29: -9786519 | L29: -9752602 | N29: -9714083 | O29: -9670975 | P29: -9623421 | Q29: -9571612
A30: 15 | C30: 282 | E30: Liberalized Depreciation | F30: -65588719 | G30: -65837454 | H30: -66085706 | I30: -66326442 | J30: -66567111 | K30: -66835198 | L30: -67103139 | N30: -67370827 | O30: -67637902 | P30: -67904725 | Q30: -68171296
A31: 16 | C31: 283 | E31: Account 283 - Other | F31: -3504415 | G31: -3495181 | H31: -3485947 | I31: -3476727 | J31: -3467521 | K31: -3458315 | L31: -3449110 | N31: -3439904 | O31: -3430698 | P31: -3421493 | Q31: -3412287
A32: 17 | C32: 283 | E32: Unrecovered Purchased Gas Cost | F32: 0 | G32: 0 | H32: 0 | I32: 0 | J32: 0 | K32: 0 | L32: 0 | N32: 0 | O32: 0 | P32: 0 | Q32: 0
A33: 18 | E33: Total Deferred Income Taxes | F33: =SUM(F27:F32) -> -73954511 | G33: -74647841 | H33: -74853120 | I33: -75046448 | J33: -75251379 | K33: -75480476 | L33: -75705295 | N33: =SUM(N27:N32) -> -75925258 | O33: =SUM(O27:O32) -> -76140019 | P33: =SUM(P27:P32) -> -76350083 | Q33: =SUM(Q27:Q32) -> -76555639
A34: 19
A35: 20 | E35: Regulatory Liability - Excess Deferred Taxes
A36: 21 | C36: 254 | E36: Protected | F36: -30353102 | G36: -30304247 | H36: -30255392 | I36: -30206538 | J36: -30157683 | K36: -30108828 | L36: -30059974 | N36: -30011119 | O36: -29962264 | P36: -29913410 | Q36: -29864555
A37: 22 | C37: 254 | E37: Unprotected | F37: -572107 | G37: -554402 | H37: -546810 | I37: -539218 | J37: -531625 | K37: -524033 | L37: -516440 | N37: -508848 | O37: -501256 | P37: -493663 | Q37: -486071
A38: 23 | E38: Total Regulatory Liability - Excess Deferred Taxes | F38: =SUM(F36:F37) -> -30925209 | G38: =SUM(G36:G37) -> -30858649 | H38: =SUM(H36:H37) -> -30802202 | I38: =SUM(I36:I37) -> -30745756 | J38: =SUM(J36:J37) -> -30689308 | K38: =SUM(K36:K37) -> -30632861 | L38: =SUM(L36:L37) -> -30576414 | N38: =SUM(N36:N37) -> -30519967 | O38: =SUM(O36:O37) -> -30463520 | P38: =SUM(P36:P37) -> -30407073 | Q38: =SUM(Q36:Q37) -> -30350626
A39: 24
A40: 25 | C40: ELECTRIC
A41: 26 | C41: 252 | E41: Customers' Advances for Construction | F41: 0 | G41: 0 | H41: 0 | I41: 0 | J41: 0 | K41: 0 | L41: 0 | N41: 0 | O41: 0 | P41: 0 | Q41: 0
A42: 27
A43: 28 | C43: 255 | E43: Investment Tax Credits:
A44: 29 | E44: 3% Credit | F44: 0 | G44: 0 | H44: 0 | I44: 0 | J44: 0 | K44: 0 | L44: 0 | N44: 0 | O44: 0 | P44: 0 | Q44: 0
A45: 30 | E45: 4% Credit | F45: 0 | G45: 0 | H45: 0 | I45: 0 | J45: 0 | K45: 0 | L45: 0 | N45: 0 | O45: 0 | P45: 0 | Q45: 0
A46: 31 | E46: 10% Credit | F46: 39 | G46: 0 | H46: 0 | I46: 0 | J46: 0 | K46: 0 | L46: 0 | N46: 0 | O46: 0 | P46: 0 | Q46: 0
A47: 32 | E47: 30% Credit | F47: -3235578 | G47: -3235578 | H47: -3235578 | I47: -3235578 | J47: -3235578 | K47: -3235578 | L47: -3235578 | N47: -3235578 | O47: -3235578 | P47: -3235578 | Q47: -3235578
A48: 33 | E48: Total Investment Tax Credits | F48: =SUM(F44:F47) -> -3235539 | G48: =SUM(G44:G47) -> -3235578 | H48: -3235578 | I48: -3235578 | J48: -3235578 | K48: -3235578 | L48: -3235578 | N48: -3235578 | O48: -3235578 | P48: -3235578 | Q48: -3235578
A49: 34
A50: 35 | E50: Accumulated Deferred Income Taxes:
A51: 36 | C51: 190 | E51: Total Account 190 | F51: 9208209 | G51: 9429890 | H51: 9441431 | I51: 9452971 | J51: 9464512 | K51: 9473711 | L51: 9482910 | N51: 9492109 | O51: 9501308 | P51: 9510507 | Q51: 9519706
A52: 37 | C52: 281 | E52: Total Account 281 | F52: 0 | G52: 0 | H52: 0 | I52: 0 | J52: 0 | K52: 0 | L52: 0 | N52: 0 | O52: 0 | P52: 0 | Q52: 0
A53: 38 | C53: 282 | E53: Account 282 - Other | F53: -125507737 | G53: -126521878 | H53: -127540657 | I53: -128556923 | J53: -129595617 | K53: -130552378 | L53: -131499627 | N53: -132462223 | O53: -133413766 | P53: -134363356 | Q53: -135325434
A54: 39 | C54: 282 | E54: Liberalized Depreciation | F54: -68166710 | G54: -67932924 | H54: -67696619 | I54: -67449678 | J54: -67202889 | K54: -66978885 | L54: -66760414 | N54: -66627051 | O54: -66405161 | P54: -66187750 | Q54: -66229127
A55: 40 | C55: 283 | E55: Total Account 283 | F55: -18630476 | G55: -18541389 | H55: -18452303 | I55: -18363250 | J55: -19080414 | K55: -18991394 | L55: -18902374 | N55: -18813353 | O55: -18724333 | P55: -18615558 | Q55: -18506783
A56: 41 | E56: Total Deferred Income Taxes | F56: =SUM(F51:F55) -> -203096714 | G56: -203566301 | H56: -204248148 | I56: -204916880 | J56: -206414408 | K56: -207048946 | L56: -207679505 | N56: -208410518 | O56: -209041952 | P56: -209656157 | Q56: -210541638
A57: 42
A58: 43 | E58: Regulatory Liability - Excess Deferred Taxes
A59: 44 | C59: 254 | E59: Protected | F59: -45068019 | G59: -44986349 | H59: -44904680 | I59: -44823010 | J59: -44741341 | K59: -44643103 | L59: -44544865 | N59: -44446627 | O59: -44348390 | P59: -44250152 | Q59: -44151914
A60: 45 | C60: 254 | E60: Unprotected | F60: -12344134 | G60: -12035682 | H60: -11749349 | I60: -11463016 | J60: -11176684 | K60: -10890351 | L60: -10604018 | N60: -10317685 | O60: -10031352 | P60: -9745020 | Q60: -9458687
A61: 46 | E61: Total Regulatory Liability - Excess Deferred Taxes | F61: =SUM(F59:F60) -> -57412153 | G61: =SUM(G59:G60) -> -57022031 | H61: -56654029 | I61: -56286026 | J61: -55918025 | K61: -55533454 | L61: -55148883 | N61: =SUM(N59:N60) -> -54764312 | O61: =SUM(O59:O60) -> -54379742 | P61: =SUM(P59:P60) -> -53995172 | Q61: =SUM(Q59:Q60) -> -53610601
A62: 47
A63: 48 | C63: NON-UTILITY
A64: 49
A65: 50 | C65: 255 | E65: Investment Tax Credits:
A66: 51 | E66: 3% Credit | F66: 0 | G66: 0 | H66: 0 | I66: 0 | J66: 0 | K66: 0 | L66: 0 | N66: 0 | O66: 0 | P66: 0 | Q66: 0
A67: 52 | E67: 4% Credit | F67: 0 | G67: 0 | H67: 0 | I67: 0 | J67: 0 | K67: 0 | L67: 0 | N67: 0 | O67: 0 | P67: 0 | Q67: 0
A68: 53 | E68: 10% Credit | F68: 0 | G68: 0 | H68: 0 | I68: 0 | J68: 0 | K68: 0 | L68: 0 | N68: 0 | O68: 0 | P68: 0 | Q68: 0
A69: 54 | E69: Total Investment Tax Credits | F69: =SUM(F67:F68) -> 0 | G69: 0 | H69: 0 | I69: 0 | J69: 0 | K69: 0 | L69: 0 | N69: =SUM(N67:N68) -> 0 | O69: =SUM(O67:O68) -> 0 | P69: =SUM(P67:P68) -> 0 | Q69: =SUM(Q67:Q68) -> 0
A70: 55
A71: 56 | E71: Accumulated Deferred Income Taxes:
A72: 57 | C72: 190 | E72: Total Account 190 | F72: -639086 | G72: -639086 | H72: -639086 | I72: -639086 | J72: -639086 | K72: -639086 | L72: -639086 | N72: -639086 | O72: -639086 | P72: -639086 | Q72: -639086
A73: 58 | C73: 282 | E73: Account 282 - Other | F73: 1656810 | G73: 1640697 | H73: 1624508 | I73: 1607965 | J73: 1594573 | K73: 1583901 | L73: 1571958 | N73: 1559078 | O73: 1544902 | P73: 1529094 | Q73: 1513474
A74: 59 | C74: 282 | E74: Liberalized Depreciation | F74: -23130929 | G74: -22971029 | H74: -22811130 | I74: -22651230 | J74: -22491331 | K74: -22331431 | L74: -22171532 | N74: -22011632 | O74: -21851733 | P74: -21691833 | Q74: -21531934
A75: 60 | C75: 283 | E75: Total Account 283 | F75: 0 | G75: 0 | H75: 0 | I75: 0 | J75: 0 | K75: 0 | L75: 0 | N75: 0 | O75: 0 | P75: 0 | Q75: 0
A76: 61 | E76: Total Deferred Income Taxes | F76: =SUM(F72:F75) -> -22113205 | G76: -21969418 | H76: -21825708 | I76: -21682351 | J76: -21535844 | K76: -21386616 | L76: -21238660 | N76: -21091640 | O76: -20945917 | P76: -20801825 | Q76: -20657546
A77: 62
A78: 63 | E78: Regulatory Liability - Excess Deferred Taxes
A79: 64 | C79: 254 | E79: Protected
A80: 65 | C80: 254 | E80: Unprotected
A81: 66 | E81: Total Regulatory Liability - Excess Deferred Taxes
A86: =COMPANY -> DUKE ENERGY KENTUCKY, INC. | S86: WPB-6b
A87: =CASE -> CASE NO. 2022-00372 | S87: WITNESS RESPONSIBLE:
A88: =A3 -> CERTAIN DEFERRED CREDITS AND ACCUMULATED DEFERRED INCOME TAXES | S88: =_WIT3 -> J. R. PANIZZA
A89: =DataF -> DATA: BASE PERIOD "X" FORECASTED PERIOD
A90: THIRTEEN MONTH AVERAGE BALANCE
A95: LINE | C95: ACCOUNT | F95: =Q12 -> JUNE | G95: JULY | H95: AUGUST | I95: SEPTEMBER | J95: OCTOBER | K95: NOVEMBER | L95: DECEMBER | M95: JANUARY | N95: FEBRUARY | O95: MARCH | P95: APRIL | Q95: MAY | R95: JUNE | T95: PRORATED
A96: NO. | C96: NUMBER | E96: DESCRIPTION | F96: =Q13 -> 2023 | G96: =$F$13+1 -> 2023 | H96: =$F$13+1 -> 2023 | I96: 2023 | J96: 2023 | K96: 2023 | L96: 2023 | M96: =$F$13+2 -> 2024 | N96: 2024 | O96: 2024 | P96: 2024 | Q96: 2024 | R96: =$F$13+2 -> 2024 | S96: TOTAL | T96: ADIT
G97: 31 | H97: 31 | I97: 30 | J97: 31 | K97: 30 | L97: 31 | M97: 31 | N97: 29 | O97: 31 | P97: 30 | Q97: 31 | R97: 30 | S97: =SUM(F97:R97) -> 366
A99: 1 | C99: GAS
A100: =A99+1 -> 2 | C100: 252050 | E100: Customers' Advances for Construction | F100: =Q17 -> -1855906 | G100: =F100 -> -1855906 | H100: =G100 -> -1855906 | I100: -1855906 | J100: -1855906 | K100: -1855906 | L100: -1855906 | M100: -1855906 | N100: -1855906 | O100: -1855906 | P100: -1855906 | Q100: -1855906 | R100: -1855906 | S100: =SUM(F100:R100) -> -24126778 | T100: =ROUND(S100/13,0) -> -1855906
A101: =A100+1 -> 3
A102: 4 | C102: 255 | E102: Investment Tax Credits:
